Workbook

Sheet CF (hidden)
B2: CONDITIONAL FORMATTING MAP
F3: =INDEX(dms_CF_3.6.5, MATCH(dms_TradingName,dms_CF_TradingName))="Y" | G3: =INDEX(dms_CF_3.6.6.1, MATCH(dms_TradingName,dms_CF_TradingName))="Y" | H3: =INDEX(dms_CF_3.6.6.2, MATCH(dms_TradingName,dms_CF_TradingName))="Y" | I3: =INDEX(dms_CF_3.6.6.3, MATCH(dms_TradingName,dms_CF_TradingName))="Y" | J3: =INDEX(dms_CF_3.6.7.1, MATCH(dms_TradingName,dms_CF_TradingName))="Y" | K3: =INDEX(dms_CF_3.6.7.2, MATCH(dms_TradingName,dms_CF_TradingName))="Y" | L3: =INDEX(dms_CF_3.6.7.3, MATCH(dms_TradingName,dms_CF_TradingName))="Y" | M3: =INDEX(dms_CF_3.6.7.4, MATCH(dms_TradingName,dms_CF_TradingName))="Y" | N3: =INDEX(dms_CF_6.6.1, MATCH(dms_TradingName,dms_CF_TradingName))="Y" | O3: =INDEX(dms_CF_6.8, MATCH(dms_TradingName,dms_CF_TradingName))="Y" | P3: =INDEX(dms_CF_7.12, MATCH(dms_TradingName,dms_CF_TradingName))="Y" | Q3: =INDEX(dms_CF_8.1_A, MATCH(dms_TradingName,dms_CF_TradingName))="Y" | R3: =INDEX(dms_CF_8.1_B, MATCH(dms_TradingName,dms_CF_TradingName))="Y" | S3: =INDEX(dms_CF_8.1_Neg, MATCH(dms_TradingName,dms_CF_TradingName))="Y"
B4: dms_CF_TradingName | C4: JurisdictionList | D4: Sector | E4: Segment | F4: dms_CF_3.6.5 | G4: dms_CF_3.6.6.1 | H4: dms_CF_3.6.6.2 | I4: dms_CF_3.6.6.3 | J4: dms_CF_3.6.7.1 | K4: dms_CF_3.6.7.2 | L4: dms_CF_3.6.7.3 | M4: dms_CF_3.6.7.4 | N4: dms_CF_6.6.1 | O4: dms_CF_6.8 | P4: dms_CF_7.12 | Q4: dms_CF_8.1_A | R4: dms_CF_8.1_B | S4: dms_CF_8.1_Neg | T4: Spare1 | U4: Spare2
B5: ActewAGL Distribution | C5: ACT | D5: Electricity | E5: Distribution | F5: Y | G5: N | H5: Y | I5: Y | J5: Y | K5: Y | L5: N | M5: Y | N5: N | O5: Y | P5: Y | Q5: N | R5: Y | S5: Y | T5: N | U5: N
B6: Ausgrid | C6: NSW | D6: Electricity | E6: Distribution | F6: Y | G6: N | H6: Y | I6: Y | J6: N | K6: N | L6: N | M6: Y | N6: N | O6: Y | P6: Y | Q6: N | R6: Y | S6: Y | T6: N | U6: N
B7: AusNet (D) | C7: Vic | D7: Electricity | E7: Distribution | F7: N | G7: N | H7: N | I7: N | J7: N | K7: N | L7: N | M7: N | N7: N | O7: Y | P7: N | Q7: N | R7: N | S7: Y | T7: N | U7: N
B8: AusNet (T) | C8: Vic | D8: Electricity | E8: Transmission | F8: N | G8: N | H8: N | I8: N | J8: N | K8: N | L8: N | M8: N | N8: N | O8: Y | P8: N | Q8: N | R8: N | S8: Y | T8: N | U8: N
B9: CitiPower | C9: Vic | D9: Electricity | E9: Distribution | F9: N | G9: N | H9: N | I9: N | J9: N | K9: N | L9: N | M9: N | N9: N | O9: Y | P9: N | Q9: N | R9: N | S9: Y | T9: N | U9: N
B10: Directlink | C10: Qld | D10: Electricity | E10: Transmission | F10: N | G10: N | H10: N | I10: N | J10: N | K10: N | L10: N | M10: N | N10: N | O10: Y | P10: N | Q10: N | R10: Y | S10: Y | T10: N | U10: N
B11: ElectraNet | C11: SA | D11: Electricity | E11: Transmission | F11: N | G11: N | H11: N | I11: N | J11: N | K11: N | L11: N | M11: N | N11: N | O11: Y | P11: N | Q11: N | R11: Y | S11: Y | T11: N | U11: N
B12: Endeavour Energy | C12: NSW | D12: Electricity | E12: Distribution | F12: Y | G12: N | H12: Y | I12: Y | J12: N | K12: N | L12: N | M12: Y | N12: N | O12: Y | P12: Y | Q12: N | R12: Y | S12: Y | T12: N | U12: N
B13: Energex | C13: Qld | D13: Electricity | E13: Distribution | F13: Y | G13: N | H13: N | I13: N | J13: N | K13: N | L13: N | M13: N | N13: N | O13: Y | P13: Y | Q13: N | R13: Y | S13: Y | T13: N | U13: N
B14: Ergon Energy | C14: Qld | D14: Electricity | E14: Distribution | F14: Y | G14: N | H14: N | I14: N | J14: N | K14: N | L14: N | M14: N | N14: N | O14: Y | P14: Y | Q14: N | R14: Y | S14: Y | T14: N | U14: N
B15: Essential Energy | C15: NSW | D15: Electricity | E15: Distribution | F15: Y | G15: N | H15: Y | I15: Y | J15: N | K15: N | L15: N | M15: Y | N15: N | O15: Y | P15: Y | Q15: N | R15: Y | S15: Y | T15: N | U15: N
B16: Jemena Electricity | C16: Vic | D16: Electricity | E16: Distribution | F16: N | G16: N | H16: N | I16: N | J16: N | K16: N | L16: N | M16: N | N16: N | O16: Y | P16: N | Q16: N | R16: N | S16: Y | T16: N | U16: N
B17: Murraylink | C17: SA | D17: Electricity | E17: Transmission | F17: N | G17: N | H17: N | I17: N | J17: N | K17: N | L17: N | M17: N | N17: N | O17: Y | P17: N | Q17: N | R17: Y | S17: Y | T17: N | U17: N
B18: Power and Water | C18: NT | D18: Electricity | E18: Distribution | F18: N | G18: N | H18: N | I18: N | J18: N | K18: Y | L18: N | M18: N | N18: Y | O18: Y | P18: Y | Q18: N | R18: Y | S18: Y | T18: N | U18: N
B19: Powercor Australia | C19: Vic | D19: Electricity | E19: Distribution | F19: N | G19: N | H19: N | I19: N | J19: N | K19: N | L19: N | M19: N | N19: N | O19: Y | P19: N | Q19: N | R19: N | S19: Y | T19: N | U19: N
B20: Powerlink | C20: Qld | D20: Electricity | E20: Transmission | F20: N | G20: N | H20: N | I20: N | J20: N | K20: N | L20: N | M20: N | N20: N | O20: Y | P20: N | Q20: N | R20: Y | S20: Y | T20: N | U20: N
B21: SA Power Networks | C21: SA | D21: Electricity | E21: Distribution | F21: Y | G21: N | H21: N | I21: N | J21: N | K21: N | L21: N | M21: N | N21: N | O21: Y | P21: Y | Q21: Y | R21: Y | S21: N | T21: N | U21: N
B22: TasNetworks (D) | C22: Tas | D22: Electricity | E22: Distribution | F22: Y | G22: N | H22: N | I22: N | J22: N | K22: N | L22: N | M22: N | N22: N | O22: Y | P22: Y | Q22: N | R22: Y | S22: Y | T22: N | U22: N
B23: TasNetworks (T) | C23: Tas | D23: Electricity | E23: Transmission | F23: N | G23: N | H23: N | I23: N | J23: N | K23: N | L23: N | M23: N | N23: N | O23: Y | P23: N | Q23: N | R23: Y | S23: Y | T23: N | U23: N
B24: TransGrid | C24: NSW | D24: Electricity | E24: Transmission | F24: N | G24: N | H24: N | I24: N | J24: N | K24: N | L24: N | M24: N | N24: N | O24: Y | P24: N | Q24: N | R24: Y | S24: Y | T24: N | U24: N
B25: United Energy | C25: Vic | D25: Electricity | E25: Distribution | F25: N | G25: N | H25: N | I25: N | J25: N | K25: N | L25: N | M25: N | N25: N | O25: Y | P25: N | Q25: N | R25: N | S25: Y | T25: N | U25: N

Sheet AER only (hidden)
B1: Data in these columns used for data validation and database purposes.
B2: Date last modified: | C2: 2017-01-16 | D2: added (Albury and Victora) for AGN
C3: 2016-10-17 | D3: updated TransGrid's correct legal name, corrected TasNetworks (T) to June financial year
C4: 2017-02-01 | D4: inserted Power and Water, added NRs (dms_FeederCat_1 and dms_FeederCat_2)
C5: 2017-03-03 | D5: inserted AEMO as a business | AB5: FOR ELECTRICITY BUSINESSES ONLY
C6: 2018-03-28 | D6: major changes to accommodate STPIS
C7: Template Version | D7: 5 | AB7: Feeder Types | AF7: TasNetworks (D) | AG7: MAIFI flag | AH7: Feeder Names
AB9: CBD | AC9: Urban | AD9: Short rural | AE9: long rural | AF9: EXTRA
B10: dms_TradingName_List | C10: dms_TradingNameFull_List | D10: dms_ABN_List | E10: dms_JurisdictionList | F10: dms_Sector_List | G10: dms_Segment_List | H10: dms_FormControl_List | I10: dms_RPT_List | J10: dms_RPTMonth_List | K10: dms_CRCPlength_List | L10: dms_FRCPlength_List | M10: dms_663_List | N10: dms_DeterminationRef_List | O10: dms_Addr1_List | P10: dms_Addr2_List | Q10: dms_Suburb_List | R10: dms_State_List | S10: dms_PostCode_List | T10: dms_PAddr1_List | U10: dms_PAddr2_List | V10: dms_PSuburb_List | W10: dms_PState_List | X10: dms_PPostCode_List | Y10: dms_ContactName1_List | Z10: dms_ContactPh1_List | AA10: dms_ContactEmail_List | AB10: dms_CBD_flag | AC10: dms_Urban_flag | AD10: dms_ShortRural_flag | AE10: dms_LongRural_flag | AF10: dms_FeederType_5_flag | AG10: dms_MAIFI_flag_List | AH10: dms_FeederName_1 | AI10: dms_FeederName_2 | AJ10: dms_FeederName_3 | AK10: dms_FeederName_4 | AL10: dms_FeederName_5 | AM10: dms_Public_Lighting_List | AN10: Column1
B11: ActewAGL Distribution | C11: ActewAGL Distribution | D11: 76670568688 | E11: ACT | F11: Electricity | G11: Distribution | H11: Revenue cap | I11: Financial | J11: June | K11: 5 | L11: 5 | M11: 5 | N11: 2014-19 Distribution Determination | O11: 40 Bunda Street | Q11: CANBERRA | R11: ACT | S11: 2600 | T11: GPO BOX 366 | V11: CANBERRA | W11: ACT | X11: 2601 | Y11: Robert Walker | Z11: 02 6248 3847 | AA11: robert.walker@actewagle.com.au | AB11: NO | AC11: YES | AD11: YES | AE11: NO | AF11: NO | AG11: NO | AH11: CBD | AI11: Urban | AJ11: Short rural | AK11: Long rural | AM11: YES | AN11: ActewAGL Distribution
B12: ActewAGL Distribution (Tx Assets) | C12: ActewAGL Distribution (Tx Assets) | D12: 76670568688 | E12: ACT | F12: Electricity | G12: Distribution | H12: Revenue cap | I12: Financial | J12: June | K12: 5 | L12: 5 | M12: 5 | N12: distribution determination | O12: 40 Bunda Street | Q12: CANBERRA | R12: ACT | S12: 2600 | T12: GPO BOX 366 | V12: CANBERRA | W12: ACT | X12: 2601 | Y12: Robert Walker | Z12: 02 6248 3847 | AA12: robert.walker@actewagle.com.au | AB12: NO | AC12: YES | AD12: YES | AE12: NO | AF12: NO | AG12: NO | AH12: CBD | AI12: Urban | AJ12: Short rural | AK12: Long rural | AM12: NO | AN12: ActewAGL Distribution (Tx Assets)
B13: ActewAGL Gas | C13: ActewAGL Gas | D13: 76670568688 | E13: ACT | F13: Gas | G13: Distribution | H13: Weighted average price cap | I13: Financial | J13: June | K13: 5 | L13: 5 | M13: x | O13: 40 Bunda Street | Q13: CANBERRA | R13: ACT | S13: 2600 | T13: GPO BOX 366 | V13: CANBERRA | W13: ACT | X13: 2601 | Y13: Philip Deamer | Z13: 02 6248 3438 | AA13: GasAAReview@actewagl.com.au | AB13: NO | AC13: NO | AD13: NO | AE13: NO | AF13: NO | AG13: - | AH13: CBD | AI13: Urban | AJ13: Short rural | AK13: Long rural | AM13: NO | AN13: ActewAGL Gas
B14: AEMO | C14: Australian Energy Market Operator Ltd | D14: 94072010327 | E14: Vic | F14: Electricity | G14: Transmission | H14: - | I14: Financial | J14: March | K14: 5 | L14: 5 | M14: x | N14: - | O14: Level 22 | P14: 530 Collins Street | Q14: MELBOURNE | R14: VIC | S14: 3000 | T14: GPO Box 2008 | V14: MELBOURNE | W14: VIC | X14: 3001 | AB14: NO | AC14: NO | AD14: NO | AE14: NO | AF14: NO | AG14: - | AH14: CBD | AI14: Urban | AJ14: Short rural | AK14: Long rural | AM14: NO | AN14: AEMO
B15: AGN (Albury and Victoria) | C15: Australian Gas Networks Limited (reporting data for Albury and Victoria) | D15: 19078551685 | E15: Vic | F15: Gas | G15: Distribution | H15: Weighted average price cap | I15: Calendar | J15: December | K15: 5 | L15: 5 | M15: x | O15: Level 6 | P15: 400 King William Street | Q15: ADELAIDE | R15: SA | S15: 5000 | T15: PO Box 6468 | U15: Halifax Street | V15: ADELAIDE | W15: SA | X15: 5000 | Y15: Craig de Laine | Z15: 08 8418 1129 | AA15: craig.delaine@agn.com.au | AB15: NO | AC15: NO | AD15: NO | AE15: NO | AF15: NO | AG15: - | AH15: CBD | AI15: Urban | AJ15: Short rural | AK15: Long rural | AM15: NO | AN15: AGN (Albury)
B16: AGN (Albury) | C16: Australian Gas Networks Limited (reporting data for Albury) | D16: 19078551685 | E16: Vic | F16: Gas | G16: Distribution | H16: Weighted average price cap | I16: Calendar | J16: December | K16: 5 | L16: 5 | M16: x | O16: Level 6 | P16: 400 King William Street | Q16: ADELAIDE | R16: SA | S16: 5000 | T16: PO Box 6468 | U16: Halifax Street | V16: ADELAIDE | W16: SA | X16: 5000 | Y16: Craig de Laine | Z16: 08 8418 1129 | AA16: craig.delaine@agn.com.au | AB16: NO | AC16: NO | AD16: NO | AE16: NO | AF16: NO | AG16: - | AH16: CBD | AI16: Urban | AJ16: Short rural | AK16: Long rural | AM16: NO
B17: AGN (SA) | C17: Australian Gas Networks Limited (reporting data for SA) | D17: 19078551685 | E17: SA | F17: Gas | G17: Distribution | H17: Weighted average price cap | I17: Financial | J17: June | K17: 5 | L17: 5 | M17: 5 | N17: distribution determination | O17: Level 6 | P17: 400 King William Street | Q17: ADELAIDE | R17: SA | S17: 5000 | T17: PO Box 6468 | U17: Halifax Street | V17: ADELAIDE | W17: SA | X17: 5000 | Y17: Craig de Laine | Z17: 08 8418 1129 | AA17: craig.delaine@agn.com.au | AB17: NO | AC17: NO | AD17: NO | AE17: NO | AF17: NO | AG17: - | AH17: CBD | AI17: Urban | AJ17: Short rural | AK17: Long rural | AM17: NO | AN17: AGN (SA)
B18: AGN (Victoria) | C18: Australian Gas Networks Limited (reporting data for Victoria) | D18: 19078551685 | E18: Vic | F18: Gas | G18: Distribution | H18: Weighted average price cap | I18: Calendar | J18: December | K18: 5 | L18: 5 | M18: x | O18: Level 6 | P18: 400 King William Street | Q18: ADELAIDE | R18: SA | S18: 5000 | T18: PO Box 6468 | U18: Halifax Street | V18: ADELAIDE | W18: SA | X18: 5000 | Y18: Craig de Laine | Z18: 08 8418 1129 | AA18: craig.delaine@agn.com.au | AB18: NO | AC18: NO | AD18: NO | AE18: NO | AF18: NO | AG18: - | AH18: CBD | AI18: Urban | AJ18: Short rural | AK18: Long rural | AM18: NO | AN18: AGN (Victoria)
B19: Amadeus | C19: APT Pipelines (NT) Pty Ltd | D19: 39009737393 | E19: NT | F19: Gas | G19: Transmission | H19: Weighted average price cap | I19: Financial | J19: June | K19: 5 | L19: 5 | M19: x | N19: n/a | O19: Level 19, HSBC Building | P19: 580 George Street | Q19: SYDNEY | R19: NSW | S19: 2000 | T19: Level 19, HSBC Building | U19: 580 George Street | V19: SYDNEY | W19: NSW | X19: 2000 | Y19: Alexandra Curran | Z19: 02 9275 0020 | AA19: alexandra.curran@apa.com.au | AB19: NO | AC19: NO | AD19: NO | AE19: NO | AF19: NO | AG19: - | AH19: CBD | AI19: Urban | AJ19: Short rural | AK19: Long rural | AM19: NO | AN19: Amadeus
B20: APA GasNet | C20: APA GasNet Australia (Operations) Pty Ltd | D20: 065083009 | E20: Vic | F20: Gas | G20: Transmission | H20: Weighted average price cap | I20: Calendar | J20: December | K20: 5 | L20: 5 | M20: x | O20: Level 19, HSBC Building | P20: 580 George Street | Q20: SYDNEY | R20: NSW | S20: 2000 | T20: PO Box R41 | V20: ROYAL EXCHANGE | W20: NSW | X20: 1225 | Y20: Alexandra Curran | Z20: 02 9275 0020 | AA20: alexandra.curran@apa.com.au | AB20: NO | AC20: NO | AD20: NO | AE20: NO | AF20: NO | AG20: - | AH20: CBD | AI20: Urban | AJ20: Short rural | AK20: Long rural | AM20: NO | AN20: APA GasNet
B21: Ausgrid | C21: Ausgrid | D21: 78508211731 | E21: NSW | F21: Electricity | G21: Distribution | H21: Revenue cap | I21: Financial | J21: June | K21: 5 | L21: 5 | M21: 5 | N21: 2014-19 Distribution Determination | O21: 570 George St | Q21: SYDNEY | R21: NSW | S21: 2000 | T21: GPO Box 4009 | V21: SYDNEY | W21: NSW | X21: 2001 | Y21: John Thomson | Z21: 02 9269 2312 | AA21: john.thomson@ausgrid.com.au | AB21: YES | AC21: YES | AD21: YES | AE21: YES | AF21: NO | AG21: NO | AH21: CBD | AI21: Urban | AJ21: Short rural | AK21: Long rural | AM21: YES | AN21: Ausgrid
B22: Ausgrid (Tx Assets) | C22: Ausgrid (Tx Assets) | D22: 67505337385 | E22: NSW | F22: Electricity | G22: Distribution | H22: Revenue cap | I22: Financial | J22: June | K22: 5 | L22: 5 | M22: 5 | N22: distribution determination | O22: 570 George St | Q22: SYDNEY | R22: NSW | S22: 2000 | T22: GPO Box 4009 | V22: SYDNEY | W22: NSW | X22: 2001 | Y22: John Thomson | Z22: 02 9269 2312 | AA22: john.thomson@ausgrid.com.au | AB22: YES | AC22: YES | AD22: YES | AE22: YES | AF22: NO | AG22: NO | AH22: CBD | AI22: Urban | AJ22: Short rural | AK22: Long rural | AM22: NO | AN22: Ausgrid (Tx Assets)
B23: AusNet (D) | C23: AusNet Electricity Services Pty Ltd | D23: 91064651118 | E23: Vic | F23: Electricity | G23: Distribution | H23: Revenue cap | I23: Calendar | J23: December | K23: 5 | L23: 5 | M23: 2 | N23: 2016-20 Distribution Determination | O23: Level 32 | P23: 2 Southbank Boulevard | Q23: SOUTHBANK | R23: Vic | S23: 3006 | T23: Locked Bag 14051 | V23: MELBOURNE CITY MAIL CENTRE | W23: VIC | X23: 8001 | Y23: please provide contact details | AB23: NO | AC23: YES | AD23: YES | AE23: YES | AF23: NO | AG23: YES | AH23: CBD | AI23: Urban | AJ23: Short rural | AK23: Long rural | AM23: YES | AN23: AusNet (D)
B24: AusNet (Gas) | C24: AusNet Gas Services | D24: 086015036 | E24: Vic | F24: Gas | G24: Distribution | H24: Weighted average price cap | I24: Calendar | J24: December | K24: 5 | L24: 5 | M24: X | O24: Level 19, HSBC Building | P24: 580 George Street | Q24: SYDNEY | R24: NSW | S24: 2000 | T24: PO Box R41 | V24: ROYAL EXCHANGE | W24: NSW | X24: 1225 | Y24: Alexandra Curran | Z24: 02 9275 0020 | AA24: alexandra.curran@apa.com.au | AB24: NO | AC24: NO | AD24: NO | AE24: NO | AF24: NO | AG24: - | AH24: CBD | AI24: Urban | AJ24: Short rural | AK24: Long rural | AM24: NO | AN24: AusNet (Gas)
B25: AusNet (T) | C25: Ausnet Services (Transmission) Ltd | D25: 48116124362 | E25: Vic | F25: Electricity | G25: Transmission | H25: Revenue cap | I25: Financial | J25: March | K25: 5 | L25: 5 | M25: 2 | N25: transmission determination | O25: Level 32 | P25: 2 Southbank Boulevard | Q25: SOUTHBANK | R25: Vic | S25: 3006 | T25: Locked Bag 14051 | V25: MELBOURNE CITY MAIL CENTRE | W25: Vic | X25: 8001 | Y25: Clare Thompson | Z25: 03 9695 6670 | AA25: clare.e.thompson@ausnetservices.com.au | AB25: NO | AC25: NO | AD25: NO | AE25: NO | AF25: NO | AG25: - | AH25: CBD | AI25: Urban | AJ25: Short rural | AK25: Long rural | AM25: NO | AN25: AusNet (T)
B26: Australian Distribution Co. | C26: Australian Distribution Co. | D26: 11222333444 | E26: - | F26: Electricity | G26: Distribution | H26: Revenue cap | I26: Financial | J26: June | K26: 5 | L26: 5 | M26: 2 | N26: distribution determination | O26: 123 Straight Street | Q26: SYDNEY | R26: NSW | S26: 2000 | T26: PO Box 123 | V26: SYDNEY | W26: NSW | X26: 2000 | Y26: Bob Smith | Z26: 02 1234 5678 | AA26: bob@auselec.net.au | AB26: YES | AC26: YES | AD26: YES | AE26: YES | AF26: NO | AG26: NO | AH26: CBD | AI26: Urban | AJ26: Short rural | AK26: Long rural | AM26: YES | AN26: Australian Distribution Co.
B27: Australian Distribution Co. (Gas) | C27: Australian Gas Distribution Co. | D27: 11222333444 | E27: NSW | F27: Gas | G27: Distribution | H27: Weighted average price cap | I27: Financial | J27: June | K27: 5 | L27: 5 | O27: 123 Straight Street | Q27: SYDNEY | R27: NSW | S27: 2000 | T27: PO Box 123 | V27: SYDNEY | W27: NSW | X27: 2000 | Y27: Bob Smith | Z27: 02 1234 5678 | AA27: bob@auselec.net.au | AB27: NO | AC27: NO | AD27: NO | AE27: NO | AF27: NO | AG27: - | AH27: CBD | AI27: Urban | AJ27: Short rural | AK27: Long rural | AM27: NO | AN27: Australian Distribution Co. (Vic)
B28: Australian Distribution Co. (Vic) | C28: Australian Distribution Co. (Victoria) | D28: 11222333444 | E28: Vic | F28: Electricity | G28: Distribution | H28: Revenue cap | I28: Calendar | J28: December | K28: 5 | L28: 5 | M28: 2 | N28: distribution determination | O28: 123 Straight Street | Q28: MELBOURNE | R28: Vic | S28: 3000 | T28: PO Box 123 | V28: MELBOURNE | W28: VIC | X28: 3000 | Y28: Bob Smith | Z28: 02 1234 5678 | AA28: bob@auselec.net.au | AB28: NO | AC28: NO | AD28: NO | AE28: NO | AF28: NO | AG28: YES | AH28: CBD | AI28: Urban | AJ28: Short rural | AK28: Long rural | AM28: YES | AN28: Australian Distribution Co. (Vic)
B29: Australian Transmission Co. | C29: Australian Transmission Co. | D29: 11222333444 | E29: - | F29: Electricity | G29: Transmission | H29: Revenue cap | I29: Financial | J29: June | K29: 5 | L29: 5 | M29: 5 | N29: transmission determination | O29: 123 Straight Street | Q29: SYDNEY | R29: NSW | S29: 2000 | T29: PO Box 123 | V29: SYDNEY | W29: NSW | X29: 2000 | Y29: Bob Smith | Z29: 02 1234 5678 | AA29: bob@auselec.net.au | AB29: NO | AC29: NO | AD29: NO | AE29: NO | AF29: NO | AG29: - | AH29: CBD | AI29: Urban | AJ29: Short rural | AK29: Long rural | AM29: NO | AN29: Australian Transmission Co.
B30: Central Ranges Pipeline (D) | C30: Central Ranges Pipeline Pty Ltd | D30: 108218355 | E30: NSW | F30: Gas | G30: Distribution | H30: Weighted average price cap | I30: Financial | J30: June | K30: 15 | L30: 5 | M30: 5 | N30: distribution determination | O30: Level 19 | P30: 580 George Street | Q30: SYDNEY | R30: NSW | S30: 2000 | T30: PO Box R41 | V30: ROYAL EXCHANGE | W30: NSW | X30: 1225 | Y30: Scott Young | Z30: 02 9275 0031 | AA30: scott.young@apa.com.au | AB30: NO | AC30: NO | AD30: NO | AE30: NO | AF30: NO | AG30: - | AH30: CBD | AI30: Urban | AJ30: Short rural | AK30: Long rural | AM30: NO
B31: Central Ranges Pipeline (T) | C31: Central Ranges Pipeline Pty Ltd | D31: 108218355 | E31: NSW | F31: Gas | G31: Distribution | H31: Weighted average price cap | I31: Financial | J31: June | K31: 14 | L31: 5 | M31: 5 | N31: transmission determination | O31: Level 19 | P31: 580 George Street | Q31: SYDNEY | R31: NSW | S31: 2000 | T31: PO Box R41 | V31: ROYAL EXCHANGE | W31: NSW | X31: 1225 | Y31: Scott Young | Z31: 02 9275 0031 | AA31: scott.young@apa.com.au | AB31: NO | AC31: NO | AD31: NO | AE31: NO | AF31: NO | AG31: - | AH31: CBD | AI31: Urban | AJ31: Short rural | AK31: Long rural | AM31: NO
B32: CitiPower | C32: CitiPower | D32: 76064651056 | E32: Vic | F32: Electricity | G32: Distribution | H32: Revenue cap | I32: Calendar | J32: December | K32: 5 | L32: 5 | M32: 2 | N32: 2016-20 Distribution Determination | O32: 40 Market Street | Q32: MELBOURNE | R32: Vic | S32: 3000 | T32: Locked Bag 14090 | V32: MELBOURNE | W32: VIC | X32: 8001 | Y32: Hannah Williams | Z32: 03 9683 4088 | AA32: hwilliams@powercor.com.au | AB32: YES | AC32: YES | AD32: NO | AE32: NO | AF32: NO | AG32: YES | AH32: CBD | AI32: Urban | AJ32: Short rural | AK32: Long rural | AM32: YES | AN32: CitiPower
B33: Directlink | C33: Directlink | D33: 16779340889 | E33: Qld | F33: Electricity | G33: Transmission | H33: Revenue cap | I33: Financial | J33: June | K33: 5 | L33: 5 | M33: 5 | N33: transmission determination | O33: Level 19, HSBC Building | P33: 580 George Street | Q33: SYDNEY | R33: NSW | S33: 2000 | T33: PO Box R41 | V33: ROYAL EXCHANGE | W33: NSW | X33: 1225 | Y33: Scott Young | Z33: 02 9275 0031 | AA33: scott.young@apa.com.au | AB33: NO | AC33: NO | AD33: NO | AE33: NO | AF33: NO | AG33: - | AH33: CBD | AI33: Urban | AJ33: Short rural | AK33: Long rural | AM33: NO | AN33: Directlink
B34: ElectraNet | C34: ElectraNet | D34: 41094482416 | E34: SA | F34: Electricity | G34: Transmission | H34: Revenue cap | I34: Financial | J34: June | K34: 5 | L34: 5 | M34: 5 | N34: transmission determination | O34: 52-55 East Terrace | P34: Rymill Park | Q34: ADELAIDE | R34: SA | S34: 5000 | T34: PO Box 7096 | U34: Hutt Street Post Office | V34: ADELAIDE | W34: SA | X34: 5000 | Y34: Bill Jackson | Z34: 08 8404 7969 | AA34: jackson.bill@electranet.com.au | AB34: NO | AC34: NO | AD34: NO | AE34: NO | AF34: NO | AG34: - | AH34: CBD | AI34: Urban | AJ34: Short rural | AK34: Long rural | AM34: NO | AN34: ElectraNet
B35: Endeavour Energy | C35: Endeavour Energy | D35: 11247365823 | E35: NSW | F35: Electricity | G35: Distribution | H35: Revenue cap | I35: Financial | J35: June | K35: 5 | L35: 5 | M35: 5 | N35: 2014-19 Distribution Determination | O35: 51 Huntingwood Drive | Q35: HUNTINGWOOD | R35: NSW | S35: 2148 | T35: PO Box 811 | V35: SEVEN HILLS | W35: NSW | X35: 1730 | Y35: Jon Hocking | Z35: 02 9853 4386 / 0407 348 156 | AA35: Jon.Hocking@Endeavourenergy.com.au | AB35: NO | AC35: YES | AD35: YES | AE35: YES | AF35: NO | AG35: NO | AH35: CBD | AI35: Urban | AJ35: Short rural | AK35: Long rural | AM35: YES | AN35: Endeavour Energy
B36: Energex | C36: Energex | D36: 40078849055 | E36: Qld | F36: Electricity | G36: Distribution | H36: Revenue cap | I36: Financial | J36: June | K36: 5 | L36: 5 | M36: 5 | N36: 2015-20 Distribution Determination | O36: 26 Reddacliff Street | Q36: NEWSTEAD | R36: Qld | S36: 4006 | T36: 26 Reddacliff Street | V36: NEWSTEAD | W36: QLD | X36: 4006 | Y36: Jenny Doyle, Group Manager Regulatory Affairs | Z36: (07) 3851 6416 | AA36: jenny.doyle@ergon.com.au | AB36: YES | AC36: YES | AD36: YES | AE36: NO | AF36: NO | AG36: NO | AH36: CBD | AI36: Urban | AJ36: Short rural | AK36: Long rural | AM36: YES | AN36: Energex
B37: Ergon Energy | C37: Ergon Energy | D37: 50087646062 | E37: Qld | F37: Electricity | G37: Distribution | H37: Revenue cap | I37: Financial | J37: June | K37: 5 | L37: 5 | M37: 5 | N37: 2015-20 Distribution Determination | O37: 22 Walker Street | Q37: TOWNSVILLE | R37: Qld | S37: 4810 | T37: Po Box 264 | V37: FORTITUDE VALLEY | W37: QLD | X37: 4006 | Y37: Jenny Doyle, Group Manager Regulatory Affairs | Z37: (07) 3851 6416 | AA37: jenny.doyle@ergon.com.au | AB37: NO | AC37: YES | AD37: YES | AE37: YES | AF37: NO | AG37: NO | AH37: CBD | AI37: Urban | AJ37: Short rural | AK37: Long rural | AM37: YES | AN37: Ergon Energy
B38: Essential Energy | C38: Essential Energy | D38: 37428185226 | E38: NSW | F38: Electricity | G38: Distribution | H38: Revenue cap | I38: Financial | J38: June | K38: 5 | L38: 5 | M38: 5 | N38: 2014-19 Distribution Determination | O38: 8 Buller Street | Q38: PORT MACQUARIE | R38: NSW | S38: 2444 | T38: PO Box 5730 | V38: PORT MACQUARIE | W38: NSW | X38: 2444 | Y38: Catherine Waddell | Z38: 02 6338 3553 | AA38: catherine.waddell@essentialenergy.com.au | AB38: NO | AC38: NO | AD38: YES | AE38: YES | AF38: NO | AG38: NO | AH38: CBD | AI38: Urban | AJ38: Short rural | AK38: Long rural | AM38: YES | AN38: Essential Energy
B39: Jemena Electricity | C39: Jemena Electricity | D39: 82064651083 | E39: Vic | F39: Electricity | G39: Distribution | H39: Revenue cap | I39: Calendar | J39: December | K39: 5 | L39: 5 | M39: 2 | N39: 2016-20 Distribution Determination | O39: Level 16 | P39: 567 Collins Street | Q39: MELBOURNE | R39: VIC | S39: 3000 | T39: PO Box 16182 | V39: MELBOURNE | W39: VIC | X39: 8001 | Y39: Matthew Serpell | Z39: 03 9173 8231 | AA39: matthew.serpell@jemena.com.au | AB39: NO | AC39: YES | AD39: YES | AE39: NO | AF39: NO | AG39: YES | AH39: CBD | AI39: Urban | AJ39: Short rural | AK39: Long rural | AM39: YES | AN39: Jemena Electricity
B40: JGN | C40: Jemena Gas Networks (NSW) Ltd | D40: 003 004 322 | E40: NSW | F40: Gas | G40: Distribution | H40: Weighted average price cap | I40: Financial | J40: June | K40: 5 | L40: 5 | Y40: please provide contact details | AB40: NO | AC40: NO | AD40: NO | AE40: NO | AF40: NO | AG40: - | AH40: CBD | AI40: Urban | AJ40: Short rural | AK40: Long rural | AM40: NO | AN40: JGN
B41: Multinet Gas | C41: Multinet Gas (DB No.1) Pty Ltd (ACN 086 026 986), Multinet Gas (DB No.2) Pty Ltd (ACN 086 230 122) | D41: 086026986 | E41: Vic | F41: Gas | G41: Distribution | H41: Weighted average price cap | I41: Calendar | J41: December | K41: 5 | L41: 5 | M41: x | O41: 43-45 Centreway | Q41: MT WAVERLEY | R41: Vic | S41: 3149 | Y41: Andrew Schille | Z41: 03 8846 9860 | AA41: andrew.schille@ue.com.au | AB41: NO | AC41: NO | AD41: NO | AE41: NO | AF41: NO | AG41: - | AH41: CBD | AI41: Urban | AJ41: Short rural | AK41: Long rural | AM41: NO | AN41: Multinet Gas
B42: Murraylink | C42: Murraylink | D42: 79181207909 | E42: SA | F42: Electricity | G42: Transmission | H42: Revenue cap | I42: Financial | J42: June | K42: 5 | L42: 5 | M42: 5 | N42: transmission determination | O42: Level 19 | P42: 580 George Street | Q42: SYDNEY | R42: NSW | S42: 2000 | T42: PO Box R41 | V42: ROYAL EXCHANGE | W42: NSW | X42: 1225 | Y42: Scott Young | Z42: 02 9275 0031 | AA42: scott.young@apa.com.au | AB42: NO | AC42: NO | AD42: NO | AE42: NO | AF42: NO | AG42: - | AH42: CBD | AI42: Urban | AJ42: Short rural | AK42: Long rural | AM42: NO | AN42: Murraylink
B43: Power and Water | C43: Power and Water Corporation | D43: 15947352360 | E43: NT | F43: Electricity | G43: Distribution | H43: Revenue cap | I43: Financial | J43: June | K43: 5 | L43: 5 | M43: x | N43: distribution determination | O43: GPO Box 1921 | Q43: DARWIN | R43: NT | S43: 801 | T43: GPO Box 1921 | V43: DARWIN | W43: NT | X43: 801 | Y43: Lucy Moon | Z43: 08 8924 5822 | AA43: Lucy.Moon@powerwater.com.au | AB43: YES | AC43: YES | AD43: YES | AE43: YES | AF43: NO | AG43: NO | AH43: CBD | AI43: Urban | AJ43: Short rural | AK43: Long rural | AM43: NO | AN43: Power and Water
B44: Powercor Australia | C44: Powercor Australia | D44: 89064651109 | E44: Vic | F44: Electricity | G44: Distribution | H44: Revenue cap | I44: Calendar | J44: December | K44: 5 | L44: 5 | M44: 2 | N44: 2016-20 Distribution Determination | O44: 40 Market Street | Q44: MELBOURNE | R44: Vic | S44: 3000 | T44: Locked bag 14090 | V44: MELBOURNE | W44: VIC | X44: 8001 | Y44: Hannah Williams | Z44: 03 9683 4088 | AA44: hwilliams@powercor.com.au | AB44: NO | AC44: NO | AD44: YES | AE44: YES | AF44: NO | AG44: YES | AH44: CBD | AI44: Urban | AJ44: Short rural | AK44: Long rural | AM44: YES | AN44: Powercor Australia
B45: Powerlink | C45: Queensland Electricity Transmission Corporation Limited trading as Powerlink Queensland | D45: 82078849233 | E45: Qld | F45: Electricity | G45: Transmission | H45: Revenue cap | I45: Financial | J45: June | K45: 5 | L45: 5 | M45: 5 | N45: transmission determination | O45: 33 Harold St | Q45: VIRGINIA | R45: Qld | S45: 4014 | T45: PO Box 1193 | V45: VIRGINIA | W45: QLD | X45: 4014 | Y45: Jennifer Harris | Z45: 07 3860 2667 | AA45: jharris@powerlink.com.au | AB45: NO | AC45: NO | AD45: NO | AE45: NO | AF45: NO | AG45: - | AH45: CBD | AI45: Urban | AJ45: Short rural | AK45: Long rural | AM45: NO | AN45: Powerlink
B46: Roma to Brisbane Pipeline | C46: APT Petroleum Pipelines Limited t/a Roma to Brisbane Pipeline | D46: 009 737 393 | E46: Qld | F46: Gas | G46: Transmission | H46: Weighted average price cap | I46: Financial | J46: June | K46: 5 | L46: 5 | M46: x | N46: n/a | O46: 580 George Street | Q46: SYDNEY | R46: NSW | S46: 2000 | T46: PO Box R41 | V46: ROYAL EXCHANGE | W46: NSW | X46: 1225 | Y46: Mark Allen | Z46: 02 9275 0010 | AA46: mark.allen@apa.com.au | AB46: NO | AC46: NO | AD46: NO | AE46: NO | AF46: NO | AG46: - | AH46: CBD | AI46: Urban | AJ46: Short rural | AK46: Long rural | AM46: NO | AN46: Roma to Brisbane Pipeline
B47: SA Power Networks | C47: SA Power Networks | D47: 13332330749 | E47: SA | F47: Electricity | G47: Distribution | H47: Revenue cap | I47: Financial | J47: June | K47: 5 | L47: 5 | M47: 5 | N47: 2015-20 Distribution Determination | O47: 1 Anzac Highway | Q47: KESWICK | R47: SA | S47: 5035 | T47: GPO Box 77 | V47: ADELAIDE | W47: SA | X47: 5000 | Y47: Richard Sibly | Z47: 08 8404 5613 | AA47: richard.sibly@sapowernetworks.com.au | AB47: NO | AC47: NO | AD47: YES | AE47: YES | AF47: NO | AG47: NO | AH47: CBD | AI47: Urban | AJ47: Short rural | AK47: Long rural | AM47: NO | AN47: SA Power Networks
B48: TasNetworks (D) | C48: TasNetworks (D) | D48: 24167357299 | E48: Tas | F48: Electricity | G48: Distribution | H48: Revenue cap | I48: Financial | J48: June | K48: 5 | L48: 5 | M48: 5 | N48: distribution determination | O48: 1-7 Maria Street | Q48: LENAH VALLEY | R48: Tas | S48: 7008 | T48: PO Box 606 | V48: MOONAH | W48: Tas | X48: 7009 | Y48: John Sayers | Z48: 03 6271 6469 | AA48: john.sayers@tasnetworks.com.au | AB48: YES | AC48: YES | AD48: YES | AE48: YES | AF48: YES | AG48: NO | AH48: Critical Infrastructure | AI48: High density commercial | AJ48: Urban | AK48: High density rural | AL48: Low density rural | AM48: YES | AN48: TasNetworks (D)
B49: TasNetworks (T) | C49: TasNetworks (T) | D49: 24167357299 | E49: Tas | F49: Electricity | G49: Transmission | H49: Revenue cap | I49: Financial | J49: June | K49: 5 | L49: 5 | M49: 5 | N49: transmission determination | O49: 1-7 Maria Street | Q49: LENAH VALLEY | R49: Tas | S49: 7008 | T49: PO Box 606 | V49: MOONAH | W49: Tas | X49: 7009 | Y49: John Sayers | Z49: 03 6271 6469 | AA49: john.sayers@tasnetworks.com.au | AB49: NO | AC49: NO | AD49: NO | AE49: NO | AF49: NO | AG49: - | AH49: CBD | AI49: Urban | AJ49: Short rural | AK49: Long rural | AM49: NO | AN49: TasNetworks (T)
B50: TransGrid | C50: NSW Electricity Networks Operations Pty Ltd trading as TransGrid | D50: 70 250 995 390 | E50: NSW | F50: Electricity | G50: Transmission | H50: Revenue cap | I50: Financial | J50: June | K50: 4 | L50: 5 | M50: 5 | N50: transmission determination | O50: 180 Thomas Street | Q50: SYDNEY | R50: NSW | S50: 2000 | T50: PO Box A1000 | V50: SYDNEY SOUTH | W50: NSW | X50: 1235 | Y50: Garrie Chubb | Z50: 0408 210 221 | AA50: garrie.chubb@transgrid.com.au | AB50: NO | AC50: NO | AD50: NO | AE50: NO | AF50: NO | AG50: - | AH50: CBD | AI50: Urban | AJ50: Short rural | AK50: Long rural | AM50: NO | AN50: TransGrid
B51: United Energy | C51: United Energy | D51: 70064651029 | E51: Vic | F51: Electricity | G51: Distribution | H51: Revenue cap | I51: Calendar | J51: December | K51: 5 | L51: 5 | M51: 2 | N51: 2016-20 Distribution Determination | O51: Level 3 | P51: 6 Nexus Court | Q51: MULGRAVE | R51: Vic | S51: 3149 | T51: PO Box 449 | V51: MOUNT WAVERLEY | W51: VIC | X51: 3170 | Y51: Mathew Abraham | Z51: 03 8846 9758 | AA51: mathew.abraham@ue.com.au | AB51: NO | AC51: NO | AD51: YES | AE51: NO | AF51: NO | AG51: YES | AH51: CBD | AI51: Urban | AJ51: Short rural | AK51: Long rural | AM51: YES | AN51: United Energy
Z54: For EB & Reset RINs only | AE54: For AARs only
B55: The Reg Year Ending (dms_RYE) must be set to the last year of the regulatory period. For forecast data is is usually (FRCP_y5) for actual it is a single year (CRY). For historical actual data the RYE will need to be set manually in the business details sheet by setting the dms_Multiyear_flag to 1 and putting the correct value in 'dms_Specified_FinalYear. See cells C67:C68 | N55: Drop down selector box for CA & Reset RINs. | O55: For CA & Reset RINs only | Z55: for DNSP only | AE55: For DNSPs only
B56: dms_Model_List | C56: dms_Worksheet_List | E56: dms_RYE_Formula_Result | N56: dms_0203_ProjectType | O56: dms_020303_01_UOM | P56: dms_020501_01_UOM | Q56: dms_020501_02_UOM | R56: dms_020501_03_UOM | S56: dms_020501_04_UOM | T56: dms_020603_01_UOM | U56: dms_020701_01_UOM | V56: dms_020701_02_UOM | W56: dms_020701_01_Rows | X56: dms_040102_01_UOM | Y56: dms_040102_04_UOM | Z56: dms_030601_01_UOM | AA56: dms_030601_02_UOM | AB56: dms_030701_01_UOM | AC56: dms_030702_01_UOM | AD56: dms_030703_01_UOM | AE56: dms_030605_UOM | AF56: dms_03060703_UOM
B57: ARR | C57: ANNUAL REPORTING STATEMENT | E57: =LEFT(dms_SingleYear_FinalYear_Result,2)&RIGHT(dms_SingleYear_FinalYear_Result,2) -> 2009 | F57: =LEFT(dms_SingleYear_FinalYear_Result,2)&RIGHT(dms_SingleYear_FinalYear_Result,2) | H57: Formula errors are OK | N57: New line on new route - single circuit | O57: Circuit line length in km | P57: 0's | Q57: 0's | R57: 0's | S57: 0's | T57: 0's | U57: km | V57: km | W57: Route line length within zone | X57: 0's | Y57: days | Z57: minutes/customer | AA57: minutes/customer | AB57: Customer / km | AC57: % | AD57: km | AE57: number | AF57: number
B58: CA | C58: CATEGORY ANALYSIS | E58: =LEFT(dms_SingleYear_FinalYear_Result,2)&RIGHT(dms_SingleYear_FinalYear_Result,2) -> 2009 | F58: =LEFT(dms_SingleYear_FinalYear_Result,2)&RIGHT(dms_SingleYear_FinalYear_Result,2) | H58: Formula errors are OK | N58: New line on new route - dual circuit | O58: Circuit line length in km | P58: 0's | Q58: 0's | R58: 0's | S58: 0's | T58: 0's | U58: 0's | V58: 0's | W58: Number of maintenance spans | X58: 0's | Y58: 0's | Z58: minutes/customer | AA58: minutes/customer | AB58: MWh/customer | AC58: Number of spans | AE58: number | AF58: number
B59: CESS | C59: CAPITLAL EXPENDITURE SHARING SCHEMING | E59: 2016 | F59: =LEFT(dms_SingleYear_FinalYear_Result,2)&RIGHT(dms_SingleYear_FinalYear_Result,2) | N59: New line on new route - other | O59: Circuit line length in km | P59: MVA added | Q59: MVA added | R59: MVA added | S59: MVA added | T59: 0's | U59: km | V59: km | W59: Total length of maintenance spans | X59: 0's | Y59: $0s | Z59: interruptions/customer | AA59: interruptions/customer | AB59: kVA / customer | AC59: Number of spans | AE59: number | AF59: number
B60: CPI | C60: CPI | N60: Line rebuild over existing route - single circuit | O60: Circuit line length in km | P60: 0's | Q60: 0's | R60: 0's | S60: 0's | T60: 0's | U60: km | V60: km | W60: Length of vegetation corridors | X60: $0s | Y60: 0's | Z60: interruptions/customer | AA60: interruptions/customer | AC60: Number of spans | AE60: number | AF60: number
B61: EB | C61: ECONOMIC BENCHMARKING | E61: =LEFT(dms_SingleYear_FinalYear_Result,2)&RIGHT(dms_SingleYear_FinalYear_Result,2) -> 2009 | F61: =LEFT(dms_SingleYear_FinalYear_Result,2)&RIGHT(dms_SingleYear_FinalYear_Result,2) | H61: Formula errors are OK | N61: Line rebuild over existing route - dual circuit | O61: Number | P61: total spend $0s | Q61: total spend $0s | R61: total spend $0s | S61: total spend $0s | T61: (per cent) | U61: 0's | V61: 0's | W61: Average number of trees per maintenance span | AC61: Number of spans | AE61: number | AF61: (per cent)
B62: PTRM | C62: POST TAX REVENUE MODEL | E62: =LEFT(dms_MultiYear_FinalYear_Result,2)&RIGHT(dms_MultiYear_FinalYear_Result,2) -> 2018 | F62: =LEFT(dms_MultiYear_FinalYear_Result,2)&RIGHT(dms_MultiYear_FinalYear_Result,2) | N62: Reconductor - Single circuit | O62: Number | P62: net circuit km added | Q62: net circuit km added | R62: net circuit km added | S62: net circuit km added | U62: years | V62: years | W62: Average frequency of cutting cycle | AC62: Years | AE62: number
B63: Reset | C63: REGULATORY REPORTING STATEMENT | E63: =LEFT(dms_MultiYear_FinalYear_Result,2)&RIGHT(dms_MultiYear_FinalYear_Result,2) -> 2018 | F63: =LEFT(dms_MultiYear_FinalYear_Result,2)&RIGHT(dms_MultiYear_FinalYear_Result,2) | H63: Formula errors are OK | N63: Reconductor - Dual circuit | O63: Number | P63: total spend $0s | Q63: total spend $0s | R63: total spend $0s | S63: total spend $0s | AC63: Years | AE63: number
B64: RFM | C64: ROLL FORWARD MODEL | E64: =LEFT(dms_CRCP_FinalYear_Result,2)&RIGHT(dms_CRCP_FinalYear_Result,2) -> 2018 | F64: =LEFT(dms_CRCP_FinalYear_Result,2)&RIGHT(dms_CRCP_FinalYear_Result,2) | N64: Other | P64: net circuit km added | Q64: net circuit km added | R64: net circuit km added | S64: net circuit km added | AC64: Trees | AE64: number
B65: WACC | C65: WEIGHTED AVERAGE COST OF CAPITAL | E65: =LEFT(dms_MultiYear_FinalYear_Result,2)&RIGHT(dms_MultiYear_FinalYear_Result,2) -> 2018 | F65: =LEFT(dms_MultiYear_FinalYear_Result,2)&RIGHT(dms_MultiYear_FinalYear_Result,2) | P65: total spend $0s | Q65: total spend $0s | R65: total spend $0s | S65: total spend $0s | AC65: Trees | AE65: number
P66: 0's | R66: $0s | AC66: Defects | AE66: number
B67: dms_DataQuality_List | P67: 0's | AC67: Defects | AE67: number
B68: Actual | P68: 0's | AC68: Spans | AE68: number
B69: Estimate | P69: $0s | AC69: km | AE69: (per cent)
B70: Consolidated | AC70: Spans | AE70: (per cent)
B71: Recast
B72: Public
O73: For PTRM files - this field set the text for the named range "DMS_Xfactor" which in all cases is simply the text "x factors" - this saves putting in each old gas PTRM file | Z73: for TNSP only
B74: For all files either AER or business needs to be able to specify the type of submission | C74: For PTRM & RFM templates we must provide a choice in case they change their form of control - otherwise it is drawn from the business specific lookup table above. | O74: DMS_Xfactor | Z74: dms_030601_01_UOM | AB74: dms_030701_01_UOM | AC74: dms_030702_01_UOM
B75: dms_SourceList | C75: dms_FormControl_Choices | O75: x factors | Z75: % | AB75: Number of spans | AC75: km
B76: After appeal | C76: Revenue cap | Z76: number | AB76: Years | AC76: %
B77: Draft decision | C77: Revenue yield | Z77: number | AB77: Trees | AC77: km
B78: Final decision | C78: Weighted average price cap | Z78: % | AB78: Defects | AC78: number
B79: PTRM update 1 | Z79: number | AB79: Number of spans
B80: PTRM update 2 | Z80: number | AB80: km
B81: PTRM update 3 | Z81: % | AB81: km
B82: PTRM update 4 | Z82: number | AB82: Number of spans
B83: PTRM update 5 | Z83: number
B84: PTRM update 6 | Z84: %
B85: PTRM update 7 | Z85: number
B86: Regulatory proposal | Z86: %
B87: Reporting | Z87: number
B88: Revised regulatory proposal | Z88: %
Z89: number
B93: Reason for interruption | C93: dms_Reason_Interruption_Detailed | D93: dms_Reason_Interruption | E93: dms_STPIS_Exclusion_List | F93: dms_020301_ProjectType_List | G93: dms_020302_ProjectType_List
B94: Animal | C94: Animal impact | D94: Animal | E94: Weather | F94: New substation establishment | G94: New line on new route - single circuit
C95: Animal nesting/burrowing, etc and other | D95: Asset failure | E95: Equipment failure | F95: Capacity upgrade | G95: New line on new route - dual circuit
C96: Other | D96: Other | E96: Operational error | F96: Voltage upgrade | G96: New line on new route - other
B97: Asset failure | C97: LV | D97: Overloads | E97: Vegetation | F97: Other | G97: Line rebuild over existing route - single circuit
C98: Distribution substation | D98: Planned | E98: Animals | G98: Line rebuild over existing route - dual circuit
C99: HV | D99: Network business | E99: Third party impacts | G99: Reconductor - Single circuit
C100: Zone substation | D100: Third party | E100: Transmission failure | G100: Reconductor - Dual circuit
C101: Subtransmission | D101: Unknown | E101: Load shedding | G101: Reconductor - Other
B102: Other | C102: insert description of 'other' | D102: Vegetation | E102: Inter-distributor connection failure | G102: Line upgrade - raising/retensoring
B103: Overloads | C103: - | D103: Weather | E103: Other | G103: Line upgrade - voltage upgrade
B104: Planned | C104: - | D104: 2 - STPIS Exclusion (3.3)(a) | G104: Line upgrade - capacity
B105: Network business | C105: Network error | D105: 3 - STPIS Exclusion (3.3)(a) | G105: String spare circuit
C106: Switching and protection error | D106: 4 - STPIS Exclusion (3.3)(a) | G106: Other
B107: Third party | C107: Fire | D107: 5 - STPIS Exclusion (3.3)(a)
C108: Other | D108: 6 - STPIS Exclusion (3.3)(a)
C109: Dig-in | D109: 7 - STPIS Exclusion (3.3)(a)
C110: Unauthorised access
C111: Vehicle impact
B112: Unknown | C112: Unknown
B113: Vegetation | C113: Blow-in/Fall-in - NSP responsibility
C114: Grow-in - NSP responsibility
C115: Blow-in/Fall-in - Other responsible party
C116: Grow-in - Other responsible party
B117: Weather
B118: 2 - STPIS Exclusion (3.3)(a)
B119: 3 - STPIS Exclusion (3.3)(a)
B120: 4 - STPIS Exclusion (3.3)(a)
B121: 5 - STPIS Exclusion (3.3)(a)
B122: 6 - STPIS Exclusion (3.3)(a)
B123: 7 - STPIS Exclusion (3.3)(a)
B131: These are indeces and lookup values for various dates. All step from the value placed in FRCP_y1 on the business and other details worksheet | O131: These date tables are currently used in the Recast templates to provide column headings and conditional formatting
B132: dms_FRCPlength_Num_List | C132: dms_FinalYear_List | D132: dms_CRCPlength_Num_List | E132: dms_CFinalYear_List | F132: dms_FRCP_years | H132: dms_CRCP_years | J132: dms_CRCP_index | L132: dms_Financial_Years | M132: dms_Calendar_Years | O132: CRY from input cell on business sheet | P132: CRY - financial | Q132: dms_FinYears | R132: CRY calendar | S132: dms_CalYears
B133: 1 | C133: dms_FRCP_y1 | D133: 1 | E133: CRCP_y1 | F133: =FRCP_y1 -> 2008-09 | G133: dms_FRCP_y1 | H133: =IF(dms_RPT="financial",VALUE(LEFT(dms_FRCP_y1,4)-1)&"-"&TEXT(VALUE(MID(dms_FRCP_y1,3,2)),"00"),VALUE(LEFT(dms_FRCP_y1,4)-1)) -> 2007-08 | I133: dms_CRCP_yZ | J133: 1 | L133: 2005-06 | M133: 2006 | O133: =CRY -> 2008-09 | P133: =VALUE(LEFT(CRY,4))&"-"&TEXT(MID(CRY,3,2)+1,"00") -> 2008-09 | Q133: dms_CRYf_y1 | R133: =VALUE(LEFT(CRY,4)+1) -> 2009 | S133: dms_CRYc_y1
B134: 2 | C134: dms_FRCP_y2 | D134: 2 | E134: CRCP_y2 | F134: =IF(dms_RPT="financial",VALUE(LEFT(dms_FRCP_y1,4)+1)&"-"&TEXT(VALUE(RIGHT(dms_FRCP_y1,2)+1),"00"),VALUE(LEFT(dms_FRCP_y1,4)+1)) -> 2009-10 | G134: dms_FRCP_y2 | H134: =IF(dms_RPT="financial",VALUE(LEFT(dms_CRCP_yZ,4)-1)&"-"&TEXT(VALUE(MID(dms_CRCP_yZ,3,2)),"00"),VALUE(LEFT(dms_CRCP_yZ,4)-1)) -> 2006-07 | I134: dms_CRCP_yY | J134: 2 | L134: 2006-07 | M134: 2007 | P134: =VALUE(LEFT(dms_CRYf_y1,4)+1)&"-"&TEXT(MID(dms_CRYf_y1,3,2)+2,"00") -> 2009-10 | Q134: dms_CRYf_y2 | R134: =VALUE(LEFT(dms_CRYc_y1,4)+1) -> 2010 | S134: dms_CRYc_y2
B135: 3 | C135: dms_FRCP_y3 | D135: 3 | E135: CRCP_y3 | F135: =IF(dms_RPT="financial",VALUE(LEFT(dms_FRCP_y2,4)+1)&"-"&TEXT(VALUE(RIGHT(dms_FRCP_y2,2)+1),"00"),VALUE(LEFT(dms_FRCP_y2,4)+1)) -> 2010-11 | G135: dms_FRCP_y3 | H135: =IF(dms_RPT="financial",VALUE(LEFT(dms_CRCP_yY,4)-1)&"-"&TEXT(VALUE(MID(dms_CRCP_yY,3,2)),"00"),VALUE(LEFT(dms_CRCP_yY,4)-1)) -> 2005-06 | I135: dms_CRCP_yX | J135: 3 | L135: 2007-08 | M135: 2008 | P135: =VALUE(LEFT(dms_CRYf_y2,4)+1)&"-"&TEXT(MID(dms_CRYf_y2,3,2)+2,"00") -> 2010-11 | Q135: dms_CRYf_y3 | R135: =VALUE(LEFT(dms_CRYc_y2,4)+1) -> 2011 | S135: dms_CRYc_y3
B136: 4 | C136: dms_FRCP_y4 | D136: 4 | E136: CRCP_y4 | F136: =IF(dms_RPT="financial",VALUE(LEFT(dms_FRCP_y3,4)+1)&"-"&TEXT(VALUE(RIGHT(dms_FRCP_y3,2)+1),"00"),VALUE(LEFT(dms_FRCP_y3,4)+1)) -> 2011-12 | G136: dms_FRCP_y4 | H136: =IF(dms_RPT="financial",VALUE(LEFT(dms_CRCP_yX,4)-1)&"-"&TEXT(VALUE(MID(dms_CRCP_yX,3,2)),"00"),VALUE(LEFT(dms_CRCP_yX,4)-1)) -> 2004-05 | I136: dms_CRCP_yW | J136: 4 | L136: 2008-09 | M136: 2009 | P136: =VALUE(LEFT(dms_CRYf_y3,4)+1)&"-"&TEXT(MID(dms_CRYf_y3,3,2)+2,"00") -> 2011-12 | Q136: dms_CRYf_y4 | R136: =VALUE(LEFT(dms_CRYc_y3,4)+1) -> 2012 | S136: dms_CRYc_y4
B137: 5 | C137: dms_FRCP_y5 | D137: 5 | E137: CRCP_y5 | F137: =IF(dms_RPT="financial",VALUE(LEFT(dms_FRCP_y4,4)+1)&"-"&TEXT(VALUE(RIGHT(dms_FRCP_y4,2)+1),"00"),VALUE(LEFT(dms_FRCP_y4,4)+1)) -> 2012-13 | G137: dms_FRCP_y5 | H137: =IF(dms_RPT="financial",VALUE(LEFT(dms_CRCP_yW,4)-1)&"-"&TEXT(VALUE(MID(dms_CRCP_yW,3,2)),"00"),VALUE(LEFT(dms_CRCP_yW,4)-1)) -> 2003-04 | I137: dms_CRCP_yV | J137: 5 | L137: 2009-10 | M137: 2010 | P137: =VALUE(LEFT(dms_CRYf_y4,4)+1)&"-"&TEXT(MID(dms_CRYf_y4,3,2)+2,"00") -> 2012-13 | Q137: dms_CRYf_y5 | R137: =VALUE(LEFT(dms_CRYc_y4,4)+1) -> 2013 | S137: dms_CRYc_y5
B138: 6 | C138: dms_FRCP_y6 | D138: 6 | E138: CRCP_y6 | F138: =IF(dms_RPT="financial",VALUE(LEFT(dms_FRCP_y5,4)+1)&"-"&TEXT(VALUE(RIGHT(dms_FRCP_y5,2)+1),"00"),VALUE(LEFT(dms_FRCP_y5,4)+1)) -> 2013-14 | G138: dms_FRCP_y6 | H138: =IF(dms_RPT="financial",VALUE(LEFT(dms_CRCP_yV,4)-1)&"-"&TEXT(VALUE(MID(dms_CRCP_yV,3,2)),"00"),VALUE(LEFT(dms_CRCP_yV,4)-1)) -> 2002-03 | I138: dms_CRCP_yU | J138: 6 | L138: 2010-11 | M138: 2011 | P138: =VALUE(LEFT(dms_CRYf_y5,4)+1)&"-"&TEXT(MID(dms_CRYf_y5,3,2)+2,"00") -> 2013-14 | Q138: dms_CRYf_y6 | R138: =VALUE(LEFT(dms_CRYc_y5,4)+1) -> 2014 | S138: dms_CRYc_y6
B139: 7 | C139: dms_FRCP_y7 | D139: 7 | E139: CRCP_y7 | F139: =IF(dms_RPT="financial",VALUE(LEFT(dms_FRCP_y6,4)+1)&"-"&TEXT(VALUE(RIGHT(dms_FRCP_y6,2)+1),"00"),VALUE(LEFT(dms_FRCP_y6,4)+1)) -> 2014-15 | G139: dms_FRCP_y7 | H139: =IF(dms_RPT="financial",VALUE(LEFT(dms_CRCP_yU,4)-1)&"-"&TEXT(VALUE(MID(dms_CRCP_yU,3,2)),"00"),VALUE(LEFT(dms_CRCP_yU,4)-1)) -> 2001-02 | I139: dms_CRCP_yT | J139: 7 | L139: 2011-12 | M139: 2012 | P139: =VALUE(LEFT(dms_CRYf_y6,4)+1)&"-"&TEXT(MID(dms_CRYf_y6,3,2)+2,"00") -> 2014-15 | Q139: dms_CRYf_y7 | R139: =VALUE(LEFT(dms_CRYc_y6,4)+1) -> 2015 | S139: dms_CRYc_y7
B140: 8 | C140: dms_FRCP_y8 | D140: 8 | E140: CRCP_y8 | F140: =IF(dms_RPT="financial",VALUE(LEFT(dms_FRCP_y7,4)+1)&"-"&TEXT(VALUE(RIGHT(dms_FRCP_y7,2)+1),"00"),VALUE(LEFT(dms_FRCP_y7,4)+1)) -> 2015-16 | G140: dms_FRCP_y8 | H140: =IF(dms_RPT="financial",VALUE(LEFT(dms_CRCP_yT,4)-1)&"-"&TEXT(VALUE(MID(dms_CRCP_yT,3,2)),"00"),VALUE(LEFT(dms_CRCP_yT,4)-1)) -> 2000-01 | I140: dms_CRCP_yS | J140: 8 | L140: 2012-13 | M140: 2013 | P140: =VALUE(LEFT(dms_CRYf_y7,4)+1)&"-"&TEXT(MID(dms_CRYf_y7,3,2)+2,"00") -> 2015-16 | Q140: dms_CRYf_y8 | R140: =VALUE(LEFT(dms_CRYc_y7,4)+1) -> 2016 | S140: dms_CRYc_y8
B141: 9 | C141: dms_FRCP_y9 | D141: 9 | E141: CRCP_y9 | F141: =IF(dms_RPT="financial",VALUE(LEFT(dms_FRCP_y8,4)+1)&"-"&TEXT(VALUE(RIGHT(dms_FRCP_y8,2)+1),"00"),VALUE(LEFT(dms_FRCP_y8,4)+1)) -> 2016-17 | G141: dms_FRCP_y9 | H141: =IF(dms_RPT="financial",VALUE(LEFT(dms_CRCP_yS,4)-1)&"-"&TEXT(VALUE(MID(dms_CRCP_yS,3,2)),"00"),VALUE(LEFT(dms_CRCP_yS,4)-1)) -> 1999-00 | I141: dms_CRCP_yR | J141: 9 | L141: 2013-14 | M141: 2014 | P141: =VALUE(LEFT(dms_CRYf_y8,4)+1)&"-"&TEXT(MID(dms_CRYf_y8,3,2)+2,"00") -> 2016-17 | Q141: dms_CRYf_y9 | R141: =VALUE(LEFT(dms_CRYc_y8,4)+1) -> 2017 | S141: dms_CRYc_y9
B142: 10 | C142: dms_FRCP_y10 | D142: 10 | E142: CRCP_y10 | F142: =IF(dms_RPT="financial",VALUE(LEFT(dms_FRCP_y9,4)+1)&"-"&TEXT(VALUE(RIGHT(dms_FRCP_y9,2)+1),"00"),VALUE(LEFT(dms_FRCP_y9,4)+1)) -> 2017-18 | G142: dms_FRCP_y10 | H142: =IF(dms_RPT="financial",VALUE(LEFT(dms_CRCP_yR,4)-1)&"-"&TEXT(VALUE(MID(dms_CRCP_yR,3,2)),"00"),VALUE(LEFT(dms_CRCP_yR,4)-1)) -> 1998-99 | I142: dms_CRCP_yQ | J142: 10 | L142: 2014-15 | M142: 2015 | P142: =VALUE(LEFT(dms_CRYf_y9,4)+1)&"-"&TEXT(MID(dms_CRYf_y9,3,2)+2,"00") -> 2017-18 | Q142: dms_CRYf_y10 | R142: =VALUE(LEFT(dms_CRYc_y9,4)+1) -> 2018 | S142: dms_CRYc_y10
B143: 11 | C143: dms_FRCP_y11 | D143: 11 | E143: CRCP_y11 | F143: =IF(dms_RPT="financial",VALUE(LEFT(dms_FRCP_y10,4)+1)&"-"&TEXT(VALUE(RIGHT(dms_FRCP_y10,2)+1),"00"),VALUE(LEFT(dms_FRCP_y10,4)+1)) -> 2018-19 | G143: dms_FRCP_y11 | H143: =IF(dms_RPT="financial",VALUE(LEFT(dms_CRCP_yQ,4)-1)&"-"&TEXT(VALUE(MID(dms_CRCP_yQ,3,2)),"00"),VALUE(LEFT(dms_CRCP_yQ,4)-1)) -> 1997-98 | I143: dms_CRCP_yP | J143: 11 | L143: 2015-16 | M143: 2016 | P143: =VALUE(LEFT(dms_CRYf_y10,4)+1)&"-"&TEXT(MID(dms_CRYf_y10,3,2)+2,"00") -> 2018-19 | Q143: dms_CRYf_y11 | R143: =VALUE(LEFT(dms_CRYc_y10,4)+1) -> 2019 | S143: dms_CRYc_y11
B144: 12 | C144: dms_FRCP_y12 | D144: 12 | E144: CRCP_y12 | F144: =IF(dms_RPT="financial",VALUE(LEFT(dms_FRCP_y11,4)+1)&"-"&TEXT(VALUE(RIGHT(dms_FRCP_y11,2)+1),"00"),VALUE(LEFT(dms_FRCP_y11,4)+1)) -> 2019-20 | G144: dms_FRCP_y12 | H144: =IF(dms_RPT="financial",VALUE(LEFT(dms_CRCP_yP,4)-1)&"-"&TEXT(VALUE(MID(dms_CRCP_yP,3,2)),"00"),VALUE(LEFT(dms_CRCP_yP,4)-1)) -> 1996-97 | I144: dms_CRCP_yO | J144: 12 | L144: 2016-17 | M144: 2017 | P144: =VALUE(LEFT(dms_CRYf_y11,4)+1)&"-"&TEXT(MID(dms_CRYf_y11,3,2)+2,"00") -> 2019-20 | Q144: dms_CRYf_y12 | R144: =VALUE(LEFT(dms_CRYc_y11,4)+1) -> 2020 | S144: dms_CRYc_y12
B145: 13 | C145: dms_FRCP_y13 | D145: 13 | E145: CRCP_y13 | F145: =IF(dms_RPT="financial",VALUE(LEFT(dms_FRCP_y12,4)+1)&"-"&TEXT(VALUE(RIGHT(dms_FRCP_y12,2)+1),"00"),VALUE(LEFT(dms_FRCP_y12,4)+1)) -> 2020-21 | G145: dms_FRCP_y13 | H145: =IF(dms_RPT="financial",VALUE(LEFT(dms_CRCP_yO,4)-1)&"-"&TEXT(VALUE(MID(dms_CRCP_yO,3,2)),"00"),VALUE(LEFT(dms_CRCP_yO,4)-1)) -> 1995-96 | I145: dms_CRCP_yN | J145: 13 | L145: 2017-18 | M145: 2018 | P145: =VALUE(LEFT(dms_CRYf_y12,4)+1)&"-"&TEXT(MID(dms_CRYf_y12,3,2)+2,"00") -> 2020-21 | Q145: dms_CRYf_y13 | R145: =VALUE(LEFT(dms_CRYc_y12,4)+1) -> 2021 | S145: dms_CRYc_y13
B146: 14 | C146: dms_FRCP_y14 | D146: 14 | E146: CRCP_y14 | F146: =IF(dms_RPT="financial",VALUE(LEFT(dms_FRCP_y13,4)+1)&"-"&TEXT(VALUE(RIGHT(dms_FRCP_y13,2)+1),"00"),VALUE(LEFT(dms_FRCP_y13,4)+1)) -> 2021-22 | G146: dms_FRCP_y14 | H146: =IF(dms_RPT="financial",VALUE(LEFT(dms_CRCP_yN,4)-1)&"-"&TEXT(VALUE(MID(dms_CRCP_yN,3,2)),"00"),VALUE(LEFT(dms_CRCP_yN,4)-1)) -> 1994-95 | I146: dms_CRCP_yM | J146: 14 | L146: 2018-19 | M146: 2019 | P146: =VALUE(LEFT(dms_CRYf_y13,4)+1)&"-"&TEXT(MID(dms_CRYf_y13,3,2)+2,"00") -> 2021-22 | Q146: dms_CRYf_y14 | R146: =VALUE(LEFT(dms_CRYc_y13,4)+1) -> 2022 | S146: dms_CRYc_y14
B147: 15 | C147: dms_FRCP_y15 | D147: 15 | E147: CRCP_y15 | F147: =IF(dms_RPT="financial",VALUE(LEFT(dms_FRCP_y14,4)+1)&"-"&TEXT(VALUE(RIGHT(dms_FRCP_y14,2)+1),"00"),VALUE(LEFT(dms_FRCP_y14,4)+1)) -> 2022-23 | G147: dms_FRCP_y15 | H147: =IF(dms_RPT="financial",VALUE(LEFT(dms_CRCP_yM,4)-1)&"-"&TEXT(VALUE(MID(dms_CRCP_yM,3,2)),"00"),VALUE(LEFT(dms_CRCP_yM,4)-1)) -> 1993-94 | I147: dms_CRCP_yL | J147: 15 | L147: 2019-20 | M147: 2020 | P147: =VALUE(LEFT(dms_CRYf_y14,4)+1)&"-"&TEXT(MID(dms_CRYf_y14,3,2)+2,"00") -> 2022-23 | Q147: dms_CRYf_y15 | R147: =VALUE(LEFT(dms_CRYc_y14,4)+1) -> 2023 | S147: dms_CRYc_y15
L148: 2020-21 | M148: 2021 | P148: =VALUE(LEFT(dms_CRYf_y15,4)+1)&"-"&TEXT(MID(dms_CRYf_y15,3,2)+2,"00") -> 2023-24 | Q148: dms_CRYf_y16 | R148: =VALUE(LEFT(dms_CRYc_y15,4)+1) -> 2024 | S148: dms_CRYc_y16
B149: These are drop down lists for businesses to select the correct FRCP_y1 on the business and other details worksheet. This also populates the column headings in the worksheets | L149: 2021-22 | M149: 2022 | P149: =VALUE(LEFT(dms_CRYf_y16,4)+1)&"-"&TEXT(MID(dms_CRYf_y16,3,2)+2,"00") -> 2024-25 | Q149: dms_CRYf_y17 | R149: =VALUE(LEFT(dms_CRYc_y16,4)+1) -> 2025 | S149: dms_CRYc_y17
B150: dms_RCP_fyear_list | C150: dms_CRY_ListF | D150: dms_CRY_ListC | E150: dms_RCP_cyear_list | F150: dms_FRCP_fyear_list | G150: dms_FRCP_ListF | H150: dms_FRCP_ListC | I150: dms_FRCP_cyear_list | L150: 2022-23 | M150: 2023 | P150: =VALUE(LEFT(dms_CRYf_y17,4)+1)&"-"&TEXT(MID(dms_CRYf_y17,3,2)+2,"00") -> 2025-26 | Q150: dms_CRYf_y18 | R150: =VALUE(LEFT(dms_CRYc_y17,4)+1) -> 2026 | S150: dms_CRYc_y18
B151: dms_y1 | C151: =CRY -> 2008-09 | D151: 2006 | E151: dms_cy1 | F151: dms_frcp_fy1 | G151: 2010-11 | H151: 2011 | I151: dms_crcp_cy1 | L151: 2023-24 | M151: 2024 | P151: =VALUE(LEFT(dms_CRYf_y18,4)+1)&"-"&TEXT(MID(dms_CRYf_y18,3,2)+2,"00") -> 2026-27 | Q151: dms_CRYf_y19 | R151: =VALUE(LEFT(dms_CRYc_y18,4)+1) -> 2027 | S151: dms_CRYc_y19
B152: dms_y2 | C152: =IF(dms_RPT="financial",VALUE(LEFT(CRY,4)+1)&"-"&TEXT(MID(CRY,3,2)+2,"00"),VALUE(LEFT(CRY,4)+1)) -> 2009-10 | D152: 2007 | E152: dms_cy2 | F152: dms_frcp_fy2 | G152: 2011-12 | H152: 2012 | I152: dms_crcp_cy2 | L152: 2024-25 | M152: 2025 | P152: =VALUE(LEFT(dms_CRYf_y19,4)+1)&"-"&TEXT(MID(dms_CRYf_y19,3,2)+2,"00") -> 2027-28 | Q152: dms_CRYf_y20 | R152: =VALUE(LEFT(dms_CRYc_y19,4)+1) -> 2028 | S152: dms_CRYc_y20
B153: dms_y3 | C153: =IF(dms_RPT="financial",VALUE(LEFT(dms_fy2,4)+1)&"-"&TEXT(MID(dms_fy2,3,2)+2,"00"),VALUE(LEFT(dms_fy2,4)+1)) -> 2010-11 | D153: 2008 | E153: dms_cy3 | F153: dms_frcp_fy3 | G153: 2012-13 | H153: 2013 | I153: dms_crcp_cy3 | L153: 2025-26 | M153: 2026
B154: dms_y4 | C154: =IF(dms_RPT="financial",VALUE(LEFT(dms_fy3,4)+1)&"-"&TEXT(MID(dms_fy3,3,2)+2,"00"),VALUE(LEFT(dms_fy3,4)+1)) -> 2011-12 | D154: 2009 | E154: dms_cy4 | F154: dms_frcp_fy4 | G154: 2013-14 | H154: 2014 | I154: dms_crcp_cy4 | L154: 2026-27 | M154: 2027
B155: dms_y5 | C155: =IF(dms_RPT="financial",VALUE(LEFT(dms_fy4,4)+1)&"-"&TEXT(MID(dms_fy4,3,2)+2,"00"),VALUE(LEFT(dms_fy4,4)+1)) -> 2012-13 | D155: 2010 | E155: dms_cy5 | F155: dms_frcp_fy5 | G155: 2014-15 | H155: 2015 | I155: dms_crcp_cy5 | L155: 2027-28 | M155: 2028
B156: dms_y6 | C156: =IF(dms_RPT="financial",VALUE(LEFT(dms_fy5,4)+1)&"-"&TEXT(MID(dms_fy5,3,2)+2,"00"),VALUE(LEFT(dms_fy5,4)+1)) -> 2013-14 | D156: 2011 | E156: dms_cy6 | F156: dms_frcp_fy6 | G156: 2015-16 | H156: 2016 | I156: dms_crcp_cy6 | L156: 2028-29 | M156: 2029
B157: dms_y7 | C157: =IF(dms_RPT="financial",VALUE(LEFT(dms_fy6,4)+1)&"-"&TEXT(MID(dms_fy6,3,2)+2,"00"),VALUE(LEFT(dms_fy6,4)+1)) -> 2014-15 | D157: 2012 | E157: dms_cy7 | F157: dms_frcp_fy7 | G157: 2016-17 | H157: 2017 | I157: dms_crcp_cy7 | L157: 2029-30 | M157: 2030
B158: dms_y8 | C158: =IF(dms_RPT="financial",VALUE(LEFT(dms_fy7,4)+1)&"-"&TEXT(MID(dms_fy7,3,2)+2,"00"),VALUE(LEFT(dms_fy7,4)+1)) -> 2015-16 | D158: 2013 | E158: dms_cy8 | F158: dms_frcp_fy8 | G158: 2017-18 | H158: 2018 | I158: dms_crcp_cy8 | L158: 2030-31 | M158: 2031
B159: dms_y9 | C159: =IF(dms_RPT="financial",VALUE(LEFT(dms_fy8,4)+1)&"-"&TEXT(MID(dms_fy8,3,2)+2,"00"),VALUE(LEFT(dms_fy8,4)+1)) -> 2016-17 | D159: 2014 | E159: dms_cy9 | F159: dms_frcp_fy9 | G159: 2018-19 | H159: 2019 | I159: dms_crcp_cy9 | L159: 2031-32 | M159: 2032
B160: dms_y10 | C160: =IF(dms_RPT="financial",VALUE(LEFT(dms_fy9,4)+1)&"-"&TEXT(MID(dms_fy9,3,2)+2,"00"),VALUE(LEFT(dms_fy9,4)+1)) -> 2017-18 | D160: 2015 | E160: dms_cy10 | F160: dms_frcp_fy10 | G160: 2019-20 | H160: 2020 | I160: dms_crcp_cy10 | L160: 2032-33 | M160: 2033
B161: dms_y11 | C161: =IF(dms_RPT="financial",VALUE(LEFT(dms_fy10,4)+1)&"-"&TEXT(MID(dms_fy10,3,2)+2,"00"),VALUE(LEFT(dms_fy10,4)+1)) -> 2018-19 | D161: 2016 | E161: dms_cy11 | F161: dms_frcp_fy11 | G161: 2020-21 | H161: 2021 | I161: dms_crcp_cy11 | L161: 2033-34 | M161: 2034
B162: dms_y12 | C162: =IF(dms_RPT="financial",VALUE(LEFT(dms_fy11,4)+1)&"-"&TEXT(MID(dms_fy11,3,2)+2,"00"),VALUE(LEFT(dms_fy11,4)+1)) -> 2019-20 | D162: 2017 | E162: dms_cy12 | F162: dms_frcp_fy12 | G162: 2021-22 | H162: 2022 | I162: dms_crcp_cy12 | L162: 2034-35 | M162: 2035
B163: dms_y13 | C163: =IF(dms_RPT="financial",VALUE(LEFT(dms_fy12,4)+1)&"-"&TEXT(MID(dms_fy12,3,2)+2,"00"),VALUE(LEFT(dms_fy12,4)+1)) -> 2020-21 | D163: 2018 | E163: dms_cy13 | F163: dms_frcp_fy13 | G163: 2022-23 | H163: 2023 | I163: dms_crcp_cy13 | L163: 2035-36 | M163: 2036
B164: dms_y14 | C164: =IF(dms_RPT="financial",VALUE(LEFT(dms_fy13,4)+1)&"-"&TEXT(MID(dms_fy13,3,2)+2,"00"),VALUE(LEFT(dms_fy13,4)+1)) -> 2021-22 | D164: 2019 | E164: dms_cy14 | F164: dms_frcp_fy14 | G164: 2023-24 | H164: 2024 | I164: dms_crcp_cy14
B165: dms_y15 | C165: =IF(dms_RPT="financial",VALUE(LEFT(dms_fy14,4)+1)&"-"&TEXT(MID(dms_fy14,3,2)+2,"00"),VALUE(LEFT(dms_fy14,4)+1)) -> 2022-23 | D165: 2020 | E165: dms_cy15 | F165: dms_frcp_fy15 | G165: 2024-25 | H165: 2025 | I165: dms_crcp_cy15
B166: dms_y16 | C166: =IF(dms_RPT="financial",VALUE(LEFT(dms_fy15,4)+1)&"-"&TEXT(MID(dms_fy15,3,2)+2,"00"),VALUE(LEFT(dms_fy15,4)+1)) -> 2023-24 | D166: 2021 | E166: dms_cy16
B167: dms_y17 | C167: =IF(dms_RPT="financial",VALUE(LEFT(dms_fy16,4)+1)&"-"&TEXT(MID(dms_fy16,3,2)+2,"00"),VALUE(LEFT(dms_fy16,4)+1)) -> 2024-25 | D167: 2022 | E167: dms_cy17
B168: dms_y18 | C168: =IF(dms_RPT="financial",VALUE(LEFT(dms_fy17,4)+1)&"-"&TEXT(MID(dms_fy17,3,2)+2,"00"),VALUE(LEFT(dms_fy17,4)+1)) -> 2025-26 | D168: 2023 | E168: dms_cy18
B169: dms_y19 | C169: =IF(dms_RPT="financial",VALUE(LEFT(dms_fy18,4)+1)&"-"&TEXT(MID(dms_fy18,3,2)+2,"00"),VALUE(LEFT(dms_fy18,4)+1)) -> 2026-27 | D169: 2024 | E169: dms_cy19
B170: dms_y20 | C170: =IF(dms_RPT="financial",VALUE(LEFT(dms_fy19,4)+1)&"-"&TEXT(MID(dms_fy19,3,2)+2,"00"),VALUE(LEFT(dms_fy19)+1)) -> 2027-28 | D170: 2025 | E170: dms_cy20
B176: These "row descriptions" are the column headings in the various templates but become row descriptions in the ETL process
C177: Table 6.3 sustained interruptions - row descriptions
C178: dms_060301_CustNo_Affected_Row | D178: dms_060301_Avg_Duration_Sustained_Int_Row | E178: dms_060301_Effect_unplanned_SAIDI_Row | F178: dms_060301_Effect_unplanned_SAIFI_Row
C179: Number of customers affected by the interruption | D179: Average duration of sustained customer interruption | E179: Effect on unplanned SAIDI | F179: Effect on unplanned SAIFI
C183: Table 6.1 telephone answering - row descriptions and start date
C184: dms_060101_Rows | D184: dms_060102_Rows | E184: dms_060101_StartDateTxt
C185: Total number of calls (after removing excluded events) | D185: Number of calls answered within 30 seconds (after excluding excluded events) | E185: =dms_060701_StartDateTxt -> 1-Jul-2008
H189: dms_0603_FeederList | I189: =INDEX(dms_FeederName_1,MATCH(dms_TradingName,dms_TradingName_List)) -> CBD | J189: =INDEX(dms_FeederName_2,MATCH(dms_TradingName,dms_TradingName_List)) -> Urban | K189: =INDEX(dms_FeederName_3,MATCH(dms_TradingName,dms_TradingName_List)) -> Short rural | L189: =INDEX(dms_FeederName_4,MATCH(dms_TradingName,dms_TradingName_List)) -> Long rural
C190: Table 6.7.1 - daily performance data - unplanned - MAIFI -- row descriptions and header named range values
C191: These headings (Lists) are determined from the INDEX/MATCH function on the NSP selected on the Business & other details sheet
B192: dms_060701_Feeder_Header_Lvl4 | C192: =INDEX(dms_FeederName_1,MATCH(dms_TradingName,dms_TradingName_List)) -> CBD | D192: =INDEX(dms_FeederName_1,MATCH(dms_TradingName,dms_TradingName_List)) -> CBD | E192: =INDEX(dms_FeederName_2,MATCH(dms_TradingName,dms_TradingName_List)) -> Urban | F192: =INDEX(dms_FeederName_2,MATCH(dms_TradingName,dms_TradingName_List)) -> Urban | G192: =INDEX(dms_FeederName_3,MATCH(dms_TradingName,dms_TradingName_List)) -> Short rural | H192: =INDEX(dms_FeederName_3,MATCH(dms_TradingName,dms_TradingName_List)) -> Short rural | I192: =INDEX(dms_FeederName_4,MATCH(dms_TradingName,dms_TradingName_List)) -> Long rural | J192: =INDEX(dms_FeederName_4,MATCH(dms_TradingName,dms_TradingName_List)) -> Long rural | K192: =IF((INDEX(dms_FeederName_5,MATCH(dms_TradingName,dms_TradingName_List))=0),"Network",(INDEX(dms_FeederName_5,MATCH(dms_TradingName,dms_TradingName_List)))) -> Network | L192: =IF((INDEX(dms_FeederName_5,MATCH(dms_TradingName,dms_TradingName_List))=0),"Network",(INDEX(dms_FeederName_5,MATCH(dms_TradingName,dms_TradingName_List)))) -> Network | M192: Network | N192: Network
B194: dms_060701_Rows | C194: All events | D194: After removing excluded events | E194: All events | F194: After removing excluded events | G194: All events | H194: After removing excluded events | I194: All events | J194: After removing excluded events | K194: All events | L194: After removing excluded events | M194: All events | N194: After removing excluded events
C195: the number of column headings changes from 10 to 12 depending on the number of feeder categories for the NSP
C200: Table 6.8.1 - row descriptions
C201: dms_060801_01_Rows | D201: dms_060801_02_Rows | E201: dms_060801_03_Rows | F201: dms_060801_04_Rows
C202: Number of interruptions | D202: Duration of interruptions | E202: Total unplanned minutes off supply | F202: Effect on unplanned MAIFI
C207: Table 7.9.4 - market impact component - row descriptions
B208: dms_070904_01_Rows | C208: without exclusions | D208: with exclusions
C214: Use this to add to existing files
C215: ARRs 6.7 STPIS daily performance
C216: dms_060101_Values | D216: dms_060102_Values | E216: dms_060701_Values
C218: ARR's 6.8 STPIS exclusions
C219: dms_060801_Event_Date | D219: dms_060801_OutageID | E219: dms_060801_FeederID | F219: dms_060801_FeederClass | G219: dms_060801_CauseID | H219: dms_060801_01_Values | I219: dms_060801_02_Values | J219: dms_060801_03_Values | K219: dms_060801_Excl_Cat | L219: dms_060801_04_Values
C220: dms_060801_StartCell
C222: CA 6.3 sustained interruptions
C223: dms_060301_Event_Date | D223: dms_060301_Event_Time | E223: dms_060301_AssetID | F223: dms_060301_FeederClass | G223: dms_060301_Reason | H223: dms_060301_DetailedReason | I223: dms_060301_CustNo_Affected_Values | J223: dms_060301_Avg_Duration_Sustained_Int_Values | K223: dms_060301_Effect_unplanned_SAIDI_Values | L223: dms_060301_Effect_unplanned_SAIFI_Values | M223: dms_060301_MED

Sheet Instructions
B2: =CONCATENATE(dms_Segment," Network Service Provider") -> Distribution Network Service Provider
B3: Historical Reporting RIN Template
C4: =CONCATENATE("This template is to be used by ",dms_TradingName," to fulfil its reporting obligations to the AER.") -> This template is to be used by Energex to fulfil its reporting obligations to the AER.
C5: INSTRUCTIONS
C6: Complete the Business & other details worksheet before entering data or values in any other worksheets. The Business & other details worksheet is linked to other worksheets within the workbook and automatically generates certain column headings and conditional formatting.
C8: Identifying CONFIDENTIAL INFORMATION: Please use the macro at the top of each worksheet to identify confidential information.
C9: -Do this by selecting the cell or cells that contain confidential information and then run the Mark selection CONFIDENTIAL macro. This will format the cells a specific colour that is identified by the AER's database which in turn marks that information as confidential. -To reverse this, select the cell or cells and run the Return selection to NON-CONFIDENTIAL macro.
C11: UNITS OF MEASURE All amounts are to be unrounded and reported on a one for one basis: that is 1000 is to be entered as '1000'. Applicable units of measure may be identified in the table column headings or row descriptors.
C13: COLOUR CODING OF INPUT / NON-INPUT CELLS:
D14: Yellow = Input cell (mandatory)
D15: Darker yellow = input cell (mandatory)
D16: Orange = input cell (if data available)
D17: Grey = Not applicable/No inputs required
D18: PLEASE DO NOT ENTER TEXT into cells that are to contain numeric data.
C21: WORKSHEET NAVIGATION Many tables in the worksheets have been "grouped" to allow for easy navigation. To ungroup or group data use the outline symbols in the left margin of excel (for Row groupings) or above the columns (for column groupings).
C23: RETURNING COMPLETED RESPONSES Please return two (2) files to the AER: 1. A confidential version which must contain a complete set of all responses with confidential information marked using the Mark selected cells CONFIDENTIAL macro and which has been completed using the locked template file provided by the AER. 2. A public version with confidential information either removed completely or aggregated in some form together with writtten consent to disclose the public version of the response. Use the drop down box on the Business and other details worksheet to identify the file as either confidential ('consolidated') or public.
C25: SUBMITTING AMENDED DATA TO THE AER If an NSP wishes to correct data previously submitted to the AER it should resubmit that data using the original completed submission as the starting point. Please make any necessary changes to the data. Data that is not being amended should be left unchanged. NSPs must identify the reason for the amendments in the Amendment Reason box on the Business and other details worksheet. NSPs may provide further details regarding any amendments in the Amendments worksheet. .
C26: NSP may use Amended Data macro to highlight cells that contain amended data. NB: if data is also CONFIDENTIAL, re-apply the Confidentiality macro after applying the Amended macro
C27: Please resubmit two (2) files - a confidential version and a public version of the amended submission to the AER

Sheet Contents
B1: REGULATORY REPORTING STATEMENT
B2: =INDEX(dms_TradingNameFull_List,MATCH(dms_TradingName,dms_TradingName_List)) -> Energex
B3: =CONCATENATE((LOOKUP(dms_Model,dms_Model_List,dms_Worksheet_List))&" "&CRY) -> CATEGORY ANALYSIS 2008-09
B4: CONTENTS
E7: 1. Business details | L7: 2. Expenditure
E27: 4. Alternative control services | L27: 5. Network information | S27: 6. Service & quality

Sheet Business & other details
B1: =IF(dms_DataQuality="backcast",INDEX(dms_Worksheet_List,MATCH(dms_Model,dms_Model_List))&" BACKCAST",INDEX(dms_Worksheet_List,MATCH(dms_Model,dms_Model_List))) -> CATEGORY ANALYSIS
B2: =INDEX(dms_TradingNameFull_List,MATCH(dms_TradingName,dms_TradingName_List)) -> Energex
B3: =IF(SUM(dms_SingleYear_Model)>0,CONCATENATE(CRY),CONCATENATE(FRCP_y1," to ",dms_MultiYear_FinalYear_Result)) -> 2008-09
B4: BUSINESS & OTHER DETAILS
B7: Instructions
B8: Complete the following business details regulatory template before entering data or values in any other regulatory template. This regulatory template is linked to other cells within the spreadsheet and automatically generates column headings and conditional formatting to distinguish business specific input and non-input cells.
B10: SUBMISSION PARTICULARS INPUT SHEETS
B12: ENTITY DETAILS
B14: Short name | C14: Energex | F14: Select business name from drop down list first
B15: ACN / ABN | C15: =INDEX(dms_ABN_List,MATCH(dms_TradingName,dms_TradingName_List)) -> 40078849055
B18: Business address | C18: Address 1 | E18: =INDEX(dms_Addr1_List,MATCH(dms_TradingName,dms_TradingName_List)) -> 26 Reddacliff Street
D19: Address 2 | E19: =IF(ISBLANK(INDEX(dms_Addr2_List,MATCH(dms_TradingName,dms_TradingName_List))),"",(INDEX(dms_Addr2_List,MATCH(dms_TradingName,dms_TradingName_List)))) -> 
C20: Suburb | E20: =INDEX(dms_Suburb_List,MATCH(dms_TradingName,dms_TradingName_List)) -> NEWSTEAD
D21: State | E21: =INDEX(dms_State_List,MATCH(dms_TradingName,dms_TradingName_List)) -> Qld | F21: p/code | G21: =INDEX(dms_PostCode_List,MATCH(dms_TradingName,dms_TradingName_List)) -> 4006
B23: Postal address | C23: Address 1 | E23: =INDEX(dms_PAddr1_List,MATCH(dms_TradingName,dms_TradingName_List)) -> 26 Reddacliff Street
D24: Address 2 | E24: =IF(ISBLANK(INDEX(dms_PAddr2_List,MATCH(dms_TradingName,dms_TradingName_List))),"",(INDEX(dms_PAddr2_List,MATCH(dms_TradingName,dms_TradingName_List)))) -> 
C25: Suburb | E25: =INDEX(dms_PSuburb_List,MATCH(dms_TradingName,dms_TradingName_List)) -> NEWSTEAD
D26: State | E26: =INDEX(dms_PState_List,MATCH(dms_TradingName,dms_TradingName_List)) -> QLD | F26: p/code | G26: =INDEX(dms_PPostCode_List,MATCH(dms_TradingName,dms_TradingName_List)) -> 4006
B29: Contact name/s
B30: Contact phone/s
B31: Contact email address/s
B33: REGULATORY CONTROL PERIODS
B35: Forthcoming regulatory control period | C35: 2008-09 | D35: =dms_FRCP_y2 -> 2009-10 | E35: =dms_FRCP_y3 -> 2010-11 | F35: =dms_FRCP_y4 -> 2011-12 | G35: =dms_FRCP_y5 -> 2012-13
C36: =dms_FRCP_y6 -> 2013-14 | D36: =dms_FRCP_y7 -> 2014-15 | E36: =dms_FRCP_y8 -> 2015-16 | F36: =dms_FRCP_y9 -> 2016-17 | G36: =dms_FRCP_y10 -> 2017-18
B39: Current regulatory control period | C39: =dms_CRCP_FirstYear_Result -> 2003-04 | D39: =IF(dms_RPT="financial",VALUE(LEFT(CRCP_y1,4)+1)&"-"&TEXT(MID(CRCP_y1,3,2)+2,"00"),VALUE(LEFT(CRCP_y1,4)+1)) -> 2004-05 | E39: =IF(dms_RPT="financial",VALUE(LEFT(CRCP_y1,4)+2)&"-"&TEXT(VALUE(MID(CRCP_y1,3,2)+3),"00"),VALUE(LEFT(CRCP_y1,4)+2)) -> 2005-06 | F39: =IF(dms_RPT="financial",VALUE(LEFT(CRCP_y1,4)+3)&"-"&TEXT(MID(CRCP_y1,3,2)+4,"00"),VALUE(LEFT(CRCP_y1,4)+3)) -> 2006-07 | G39: =IF(dms_RPT="financial",VALUE(LEFT(CRCP_y1,4)+4)&"-"&TEXT(MID(CRCP_y1,3,2)+5,"00"),VALUE(LEFT(CRCP_y1,4)+4)) -> 2007-08
C40: =IF(dms_RPT="financial",VALUE(LEFT(CRCP_y1,4)+5)&"-"&TEXT(MID(CRCP_y1,3,2)+6,"00"),VALUE(LEFT(CRCP_y1,4)+5)) -> 2008-09 | D40: =IF(dms_RPT="financial",VALUE(LEFT(CRCP_y1,4)+6)&"-"&TEXT(MID(CRCP_y1,3,2)+7,"00"),VALUE(LEFT(CRCP_y1,4)+6)) -> 2009-10 | E40: =IF(dms_RPT="financial",VALUE(LEFT(CRCP_y1,4)+7)&"-"&TEXT(MID(CRCP_y1,3,2)+8,"00"),VALUE(LEFT(CRCP_y1,4)+7)) -> 2010-11 | F40: =IF(dms_RPT="financial",VALUE(LEFT(CRCP_y1,4)+8)&"-"&TEXT(MID(CRCP_y1,3,2)+9,"00"),VALUE(LEFT(CRCP_y1,4)+8)) -> 2011-12 | G40: =IF(dms_RPT="financial",VALUE(LEFT(CRCP_y1,4)+9)&"-"&TEXT(MID(CRCP_y1,3,2)+10,"00"),VALUE(LEFT(CRCP_y1,4)+9)) -> 2012-13
C41: =IF(dms_RPT="financial",VALUE(LEFT(CRCP_y1,4)+10)&"-"&TEXT(MID(CRCP_y1,3,2)+11,"00"),VALUE(LEFT(CRCP_y1,4)+10)) -> 2013-14 | D41: =IF(dms_RPT="financial",VALUE(LEFT(CRCP_y1,4)+11)&"-"&TEXT(MID(CRCP_y1,3,2)+12,"00"),VALUE(LEFT(CRCP_y1,4)+11)) -> 2014-15 | E41: =IF(dms_RPT="financial",VALUE(LEFT(CRCP_y1,4)+12)&"-"&TEXT(MID(CRCP_y1,3,2)+13,"00"),VALUE(LEFT(CRCP_y1,4)+12)) -> 2015-16 | F41: =IF(dms_RPT="financial",VALUE(LEFT(CRCP_y1,4)+13)&"-"&TEXT(MID(CRCP_y1,3,2)+14,"00"),VALUE(LEFT(CRCP_y1,4)+13)) -> 2016-17 | G41: =IF(dms_RPT="financial",VALUE(LEFT(CRCP_y1,4)+14)&"-"&TEXT(MID(CRCP_y1,3,2)+15,"00"),VALUE(LEFT(CRCP_y1,4)+14)) -> 2017-18
B44: Previous regulatory control period | C44: =IF(dms_RPT="financial",VALUE(LEFT(PRCP_y2,4)-1)&"-"&TEXT(VALUE(MID(PRCP_y2,3,2)),"00"),VALUE(LEFT(PRCP_y2,4)-1)) -> 1998-99 | D44: =IF(dms_RPT="financial",VALUE(LEFT(PRCP_y3,4)-1)&"-"&TEXT(VALUE(MID(PRCP_y3,3,2)),"00"),VALUE(LEFT(PRCP_y3,4)-1)) -> 1999-00 | E44: =IF(dms_RPT="financial",VALUE(LEFT(PRCP_y4,4)-1)&"-"&TEXT(VALUE(MID(PRCP_y4,3,2)),"00"),VALUE(LEFT(PRCP_y4,4)-1)) -> 2000-01 | F44: =IF(dms_RPT="financial",VALUE(LEFT(PRCP_y5,4)-1)&"-"&TEXT(VALUE(RIGHT(PRCP_y5,2)-1),"00"),VALUE(LEFT(PRCP_y5,4)-1)) -> 2001-02 | G44: =IF(dms_RPT="financial",VALUE(LEFT(CRCP_y1,4)-1)&"-"&TEXT(VALUE(RIGHT(CRCP_y1,2)-1),"00"),VALUE(LEFT(CRCP_y1,4)-1)) -> 2002-03
B48: Commencing regulatory year | C48: 2008-09 | D48: CRY
B50: Last completed regulatory year | C50: 2017-18 | D50: dms_FinalYear
C54: IF THIS IS AN ABC RIN - make sure the the named range CRY is applied and the named range dms_dollar_nom_UOM is applied
C55: IF THIS IS A RESET RIN - make sure the named ranges CRY and dms_dollar_nom_UOM are NOT present in the workbook
C56: FOR ABC RINS THAT SPAN MULTIPLE YEARS - make sure MultiYear Flag is set and final year entered as required
B58: Source | C58: Reporting | E58: Please select the correct submission type from the dropdown list.
B59: Data quality (actual, estimate, public, consolidated) | C59: Recast | E59: Use Consolidated for Consolidated Confidential version Use Public for Consolidated Public version
B60: Amended RIN submission - amendment reason | C60: .
B61: Submission Date | C61: 2019-01-31 | D61: dms_SubmissionDate | E61: Please enter date this file submitted to AER (dd/mm/yyyy)
B62: EBSS - First application of scheme in forthcoming period? | C62: No
B63: Sector | C63: =INDEX(dms_Sector_List,MATCH(dms_TradingName,dms_TradingName_List)) -> Electricity | D63: dms_Sector | E63: =INDEX(dms_Sector_List,MATCH(dms_TradingName,dms_TradingName_List))
B64: Segment | C64: =INDEX(dms_Segment_List,MATCH(dms_TradingName,dms_TradingName_List)) -> Distribution | D64: dms_Segment | E64: =INDEX(dms_Segment_List,MATCH(dms_TradingName,dms_TradingName_List))
B65: Regulatory Year Ending | C65: =IF(dms_MultiYear_Flag=1,LEFT(dms_Specified_FinalYear,2)&RIGHT(dms_Specified_FinalYear,2),INDEX(dms_RYE_Formula_Result,MATCH(dms_Model,dms_Model_List))) -> 2018 | D65: dms_RYE | E65: =IF(dms_MultiYear_Flag=1,LEFT(dms_Specified_FinalYear,2)&RIGHT(dms_Specified_FinalYear,2),INDEX(dms_RYE_Formula_Result,MATCH(dms_Model,dms_Model_List)))
B66: Reporting Period Type | C66: =INDEX(dms_RPT_List,MATCH(dms_TradingName,dms_TradingName_List)) -> Financial | D66: dms_RPT | E66: =INDEX(dms_RPT_List,MATCH(dms_TradingName,dms_TradingName_List))
B67: Model or RIN Type | C67: CA | D67: dms_Model | E67: Drop down selection
B68: EB/CA Unit of Measure for Monetary Values | C68: $0s | D68: dms_dollar_nom_UOM | E68: If the cover sheet is attached to an ABC RIN apply the NAMED RANGE to the cell
B69: Security Classification | C69: Public | D69: dms_Classification | E69: Always Public
B70: Jurisdiction | C70: =INDEX(dms_JurisdictionList,MATCH(dms_TradingName,dms_TradingName_List)) -> Qld | D70: dms_Jurisdiction | E70: =INDEX(dms_JurisdictionList,MATCH(dms_TradingName,dms_TradingName_List))
B71: FORECAST and MultiYear RINS
B72: CRY-1 (last full calendar year before CRY) | C72: =IF(dms_RPT="financial",VALUE(LEFT(dms_SingleYear_FinalYear_Result,4)),VALUE(LEFT(dms_SingleYear_FinalYear_Result,4)-1)) -> 2008 | D72: dms_Cal_Year_B4_CRY | E72: '=IF(dms_RPT="financial",VALUE(LEFT(dms_SingleYear_FinalYear_Result,4)),VALUE(LEFT(dms_SingleYear_FinalYear_Result,4)-1))
B73: Dollar $ real month | C73: =INDEX(dms_RPTMonth_List,MATCH(dms_TradingName,dms_TradingName_List)) -> June | D73: dms_RPTMonth | E73: =INDEX(dms_RPTMonth_List,MATCH(dms_TradingName,dms_TradingName_List))
B74: Dollar $ real (the last month before the FRCP_y1) | C74: =IF(SUM(dms_SingleYear_Model)>0,CONCATENATE(dms_RPTMonth)&" "&VALUE((LEFT(CRY,2))&RIGHT(CRY,2)),CONCATENATE(dms_RPTMonth)&" "&VALUE((LEFT(dms_CRCP_FinalYear_Result,2)&RIGHT(dms_CRCP_FinalYear_Result,2)))) -> June 2009 | D74: dms_DollarReal | E74: =IF(SUM(dms_SingleYear_Model)>0,CONCATENATE(dms_RPTMonth)&" "&VALUE((LEFT(CRY,2))&RIGHT(CRY,2)),CONCATENATE(dms_RPTMonth)&" "&VALUE((LEFT(dms_CRCP_FinalYear_Result,2)&RIGHT(dms_CRCP_FinalYear_Result,2))))
B75: Dollar $ real previous year (PRCP_y5) | C75: =IF(SUM(dms_SingleYear_Model)>0,CONCATENATE(dms_RPTMonth)&" "&VALUE(((LEFT(CRY,2))&RIGHT(CRY,2))-1),CONCATENATE(dms_RPTMonth)&" "&VALUE(((LEFT(dms_CRCP_FirstYear_Result,2)&RIGHT(dms_CRCP_FirstYear_Result,2))))-1) -> June 2008 | D75: dms_DollarReal_Prev | E75: =IF(SUM(dms_SingleYear_Model)>0,CONCATENATE(dms_RPTMonth)&" "&VALUE(((LEFT(CRY,2))&RIGHT(CRY,2))-1),CONCATENATE(dms_RPTMonth)&" "&VALUE(((LEFT(dms_CRCP_FirstYear_Result,2)&RIGHT(dms_CRCP_FirstYear_Result,2))))-1)
B76: This block works out the various RYE's for ALL RIN types and MODELS
B77: Single Year Model T/F | C77: =IF(dms_Model="EB",1,0) -> 0 | D77: dms_EB
C78: =IF(dms_Model="CA",1,0) -> 1 | D78: dms_CA | E78: =dms_SingleYear_Model
C79: =IF(dms_Model="ARR",1,0) -> 0 | D79: dms_ARR
B80: Is this a single Year RIN? | C80: =IF(SUM(dms_SingleYear_Model)=1,"yes","no") -> yes | D80: dms_SingleYearModel | E80: =IF(SUM(dms_SingleYear_Model)=1,"yes","no")
B81: Single Year Final Year Reference | C81: CRY | D81: dms_SingleYear_FinalYear_Ref | E81: This is the reference for EB, CA & ARR RINs
B82: Single Year Final Year Result | C82: =IFERROR(IF(SUM(dms_SingleYear_Model)<>0,(INDIRECT(dms_SingleYear_FinalYear_Ref)),"not a single year RIN"),"CRY not present") -> 2008-09 | D82: dms_SingleYear_FinalYear_Result | E82: =IFERROR(IF(SUM(dms_SingleYear_Model)<>0,(INDIRECT(dms_SingleYear_FinalYear_Ref)),"not a single year RIN"),"CRY not present")
B83: FRCP length in years | C83: =INDEX(dms_FRCPlength_List,MATCH(dms_TradingName,dms_TradingName_List)) -> 5 | D83: dms_FRCPlength_Num | E83: =INDEX(dms_FRCPlength_List,MATCH(dms_TradingName,dms_TradingName_List))
B84: Multi Year Final Year Reference | C84: =INDEX(dms_FinalYear_List,MATCH(dms_FRCPlength_Num,dms_FRCPlength_Num_List)) -> dms_FRCP_y5 | D84: dms_MultiYear_FinalYear_Ref | E84: =INDEX(dms_FinalYear_List,MATCH(dms_FRCPlength_Num,dms_FRCPlength_Num_List))
B85: Multi Year Final Year Result | C85: =IF(dms_MultiYear_Flag=0,INDIRECT(dms_MultiYear_FinalYear_Ref),dms_Specified_FinalYear) -> 2017-18 | D85: dms_MultiYear_FinalYear_Result | E85: =IF(dms_MultiYear_Flag=0,INDIRECT(dms_MultiYear_FinalYear_Ref),dms_Specified_FinalYear) | I85: Formula errors OK
B86: CRCP length in years | C86: =INDEX(dms_CRCPlength_List,MATCH(dms_TradingName,dms_TradingName_List)) -> 5 | D86: dms_CRCPlength_Num | E86: =INDEX(dms_CRCPlength_List,MATCH(dms_TradingName,dms_TradingName_List))
B87: CRCP Final Year Reference | C87: =INDEX(dms_CFinalYear_List,MATCH(dms_CRCPlength_Num,dms_CRCPlength_Num_List)) -> CRCP_y5 | D87: dms_CRCP_FinalYear_Ref | E87: =INDEX(dms_CFinalYear_List,MATCH(dms_CRCPlength_Num,dms_CRCPlength_Num_List))
B88: CRCP First Year Result | C88: =INDEX(dms_CRCP_years,MATCH(dms_CRCPlength_Num,dms_CRCP_index)) -> 2003-04 | D88: dms_CRCP_FirstYear_Result | E88: =INDEX(dms_CRCP_years,MATCH(dms_CRCPlength_Num,dms_CRCP_index))
B89: CRCP Final Year Result | C89: =IF(dms_MultiYear_Flag=0,(IF(SUM(dms_SingleYear_Model)>0,CRY,dms_CRCP_yZ)),dms_Specified_FinalYear) -> 2017-18 | D89: dms_CRCP_FinalYear_Result | E89: =IF(dms_MultiYear_Flag=0,(IF(SUM(dms_SingleYear_Model)>0,CRY,dms_CRCP_yZ)),dms_Specified_FinalYear)
B90: PTRM/ RFMs
B91: Form of control | C91: =INDEX(dms_FormControl_List,MATCH(dms_TradingName,dms_TradingName_List)) -> Revenue cap | D91: dms_FormControl | E91: =INDEX(dms_FormControl_List,MATCH(dms_TradingName,dms_TradingName_List))
B92: ABC RINS THAT SPAN MULTIPLE YEARS
B93: Is this a multi year ABC RIN? | C93: Yes
B94: Multiyear EB, CA or ARR? | C94: =IF(dms_MultiYear_ResponseFlag="No",0,1) -> 1 | D94: dms_MultiYear_Flag | E94: This is set from the answer provided above
C95: =IF(dms_MultiYear_Flag=1,FRY,"not a Multiple year submission") -> 2017-18 | D95: dms_Specified_FinalYear | E95: The result here is returned to dms_CRCP_FinalYear_Result if response to Q in C73 is "yes" and dms_MultiYear_Flag is set to 1
B96: Start year for 5.2 in Multi year ABC RINS | C96: =IFERROR(IF(dms_MultiYear_Flag=1,FRY,CRY),"not an ABC") -> 2017-18 | D96: dms_0502_Inst_Year | E96: =IF(dms_MultiYear_Flag=1,FRY,CRY) | G96: For single year RINS this is CRY - multi year RINS need to start a the end of the span of years (ie. FRY)
B97: EB RINS
B98: Calendar Year for table 3.6 data | C98: =IF(dms_RPT="financial",VALUE(LEFT(dms_SingleYear_FinalYear_Result,4)),VALUE(LEFT(dms_SingleYear_FinalYear_Result,4)-1)) -> 2008 | D98: dms_0306_Year | E98: =IF(dms_RPT="financial",VALUE(LEFT(dms_SingleYear_FinalYear_Result,4)),VALUE(LEFT(dms_SingleYear_FinalYear_Result,4)-1))
B99: CA RINS
B100: Find how many rows in tables 6.3 sustained interruptions? | E100: dms_060301_MaxRows only returns a valid value when cover sheet is attached to a CA file
C101: =IF(dms_Model<>"CA","not a CA","Is a CA") -> Is a CA | E101: =IF(dms_Model<>"CA","not a CA","Is a CA")
B102: dms_060301_Avg_Duration_Sustained_Int_Values present? | C102: =IFERROR(IF(INDEX(dms_060301_Avg_Duration_Sustained_Int_Values,1,1)<>"","yes","no"),"no") -> no | D102: dms_060301_checkvalue | E102: =IFERROR(IF(INDEX(dms_060301_Avg_Duration_Sustained_Int_Values,1,1)<>"","yes","no"),"no")
C103: 6.3 not collected in backcast RIN | E103: =IF(AND(dms_Model="CA",(dms_060301_checkvalue="no")),"error - NR not present","no errors")
B104: Table 6.3.1 - last row reference | C104: 0 | D104: dms_060301_LastRow | E104: =IFERROR(IF(dms_Model="CA",LOOKUP(2,1/(dms_060301_Avg_Duration_Sustained_Int_Values<>""),(ROW(dms_060301_Avg_Duration_Sustained_Int_Values))),"not a CA"),"6.3 not present")
B105: Table 6.3.1 - max number rows | C105: 0 | D105: dms_060301_MaxRows | E105: =IFERROR(IF(dms_Model="CA",(dms_060301_LastRow-15),"not a CA"),"error")
B106: Table 6.6.3 - Public lighting repair - no. business days | C106: =INDEX(dms_663_List,MATCH(dms_TradingName,dms_TradingName_List)) -> 5 | D106: dms_663 | E106: =INDEX(dms_663_List,MATCH(dms_TradingName,dms_TradingName_List))
B107: ARR or RESET RINS
B108: How many rows in tables 6.1 or 6.7? (leap year?) | C108: insert dms_LeapYear NR if required | E108: 'dms_LeapYear is used to determine dms_060701_Max_Rows BUT it is only found on worksheet 6.1 or 6.7 and the date value in the cell is used to determine whether it is a leap year
B109: Is dms_LeapYear named range present? | C109: =IFERROR(IF(dms_LeapYear,"yes"),"no") -> no
B110: Table 6.7.1 - includes a leap year? | C110: =IFERROR(IF(MONTH(DATE(YEAR(dms_LeapYear),2,29))=2,"is a leap year","not a leap year"), "dms_LeapYear not present") -> dms_LeapYear not present | D110: dms_LeapYear_Result | E110: =IFERROR(IF(MONTH(DATE(YEAR(dms_LeapYear),2,29))=2,"is a leap year","not a leap year"),"dms_LeapYear not present")
B111: MaxRows if Reset and leap year | C111: =IF(dms_LeapYear_Result="is a leap year",1827,1826) -> 1826 | D111: dms_060701_Reset_MaxRows | E111: =IF(dms_LeapYear_Result="is a leap year",1827,1826) | H111: number of days present in Reset RIN table
B112: MaxRows if ARR and leap year | C112: =IF(dms_LeapYear_Result="is a leap year",366,365) -> 365 | D112: dms_060701_ARR_MaxRows | E112: =IF(dms_LeapYear_Result="is a leap year",366,365) | H112: number of days present in ARR RIN table
B113: Table 6.7.1 - Max Rows (leap year/ non leap year) | C113: =IF(dms_Model="ARR",dms_060701_ARR_MaxRows,IF(dms_Model="Reset",dms_060701_Reset_MaxRows,"not a relevant RIN type")) -> not a relevant RIN type | D113: dms_060701_MaxRows | E113: =IF(dms_Model="ARR",dms_060701_ARR_MaxRows,IF(dms_Model="Reset",dms_060701_Reset_MaxRows,"not a relevant RIN type"))
B114: How many columns in 6.7? (4 or 5 feeder categories) | C114: =IF(dms_FifthFeeder_flag_NSP="NO","This NSP has only 4 feeder categories","This NSP has 5 feeder categories") -> This NSP has only 4 feeder categories
B115: Table 6.7.1 - Last column (# of feeder categories > 4) | C115: =IF(dms_FifthFeeder_flag_NSP="NO",10,12) -> 10 | D115: dms_060701_MaxCols | E115: =IF(dms_FifthFeeder_flag_NSP="NO",8,10)
B116: Table 6.7.1 - Number of offset rows | C116: =IF(dms_Model="ARR",15,9) -> 9 | D116: dms_060701_OffsetRows | E116: =IF(dms_Model="ARR",15,9)
B117: Start date for telephone answering in 6.1 or 6.7? | E117: Using 060101 as naming standard not 060701 for start dates
B118: Table 6.1.1 and 6.7.1 - Start Date as Text | C118: =IF(dms_SingleYearModel="yes",(CONCATENATE(IF(LEN(CRY)=4,"1-Jan-","1-Jul-"),LEFT(CRY,4))),(CONCATENATE(IF(LEN(PRCP_y4)=4,"1-Jan-","1-Jul-"),LEFT(PRCP_y4,4)))) -> 1-Jul-2008 | D118: dms_060101_StartDateTxt | E118: =IF(SUM(dms_SingleYear_Model)>1,(CONCATENATE(IF(LEN(CRY)=4,"1-Jan-","1-Jul-"),LEFT(CRY,4))),(CONCATENATE(IF(LEN(CRCP_y4)=4,"1-Jan-","1-Jul-"),LEFT(CRCP_y4,4))))
B119: Table 6.1.1 and 6.7.1 - Start Date as Date Value | C119: =DATEVALUE(dms_060701_StartDateTxt) -> 39630 | D119: dms_060101_StartDateVal | E119: =DATEVALUE(dms_060701_StartDateTxt)
B120: ARRs
B121: How many rows in table 6.8? | C121: insert dms_060801_StartCell NR if required | E121: dms_060801_StartCell is only found on worksheet 6.8 and is used to determine the starting date for the date range
B122: Is dms_060801_StartCell named range present? | C122: yes | E122: =IFERROR(IF((ROW(dms_060801_StartCell)-1)=1,"yes","yes"),"no")
B123: Table 6.8 - Number of offset rows | C123: 12 | D123: dms_0608_OffsetRows | E123: =IFERROR(IF(dms_Model="ARR",(ROW(dms_060801_StartCell)-1),"not an ARR"),"6.8 error")
B124: Table 6.8 - Last row | C124: 6.8 not present | D124: dms_0608_LastRow | E124: =IFERROR(IF(dms_060801_StartCell<>"",IF(dms_Model="ARR",(LOOKUP(2,1/(dms_060801_01_Values<>""),(ROW(dms_060801_01_Values)))),"not an ARR"),0),"6.8 not present")
B125: Table 6.8 - MaxRows | C125: =IFERROR(IF(dms_Model="ARR",(MAX(0,dms_0608_LastRow-dms_0608_OffsetRows)),"not an ARR"),"6.8 not present") -> not an ARR | D125: dms_060801_MaxRows | E125: =IFERROR(IF(dms_Model="ARR",(MAX(0,dms_0608_LastRow-dms_0608_OffsetRows)),"not an ARR"),"6.8 not present")
B126: TNSP RESET RINS
B127: Table 7.9.4 only appears in TNSPs Reset RIN
B128: Table 7.9.4 - first year | C128: =LEFT(PRCP_y3,4) -> 2000 | D128: dms_070904_Start_Year | E128: =LEFT(PRCP_y3,4)
B129: SUBSET FILES
B130: Is this Submission File a Subset File | C130: YES | D130: dms_Partial
B131: MISC
B132: Distribution Determination Reference | C132: =INDEX(dms_DeterminationRef_List,MATCH(dms_TradingName,dms_TradingName_List)) -> 2015-20 Distribution Determination | D132: dms_DeterminationRef
B133: Public lighting NSP? | C133: =INDEX(dms_Public_Lighting_List,MATCH(dms_TradingName,dms_TradingName_List)) -> YES | D133: dms_Public_Lighting | E133: =INDEX(dms_Public_Lighting_List,MATCH(dms_TradingName,dms_TradingName_List))
B134: CBD Feeder for this business | C134: =INDEX(dms_CBD_flag,MATCH(dms_TradingName,dms_TradingName_List)) -> YES | D134: dms_CBD_flag_NSP
B135: Urban Feeder for this business | C135: =INDEX(dms_Urban_flag,MATCH(dms_TradingName,dms_TradingName_List)) -> YES | D135: dms_Urban_flag_NSP
B136: Short rural Feeder for this business | C136: =INDEX(dms_ShortRural_flag,MATCH(dms_TradingName,dms_TradingName_List)) -> YES | D136: dms_ShortRural_flag_NSP
B137: Long rural Feeder for this business | C137: =INDEX(dms_LongRural_flag,MATCH(dms_TradingName,dms_TradingName_List)) -> NO | D137: dms_LongRural_flag_NSP
B138: Fifth Feeder Category (eg. TasNetworks (D)) | C138: =INDEX(dms_FeederType_5_flag,MATCH(dms_TradingName,dms_TradingName_List)) -> NO | D138: dms_FifthFeeder_flag_NSP | E138: =INDEX(dms_FeederType_5_flag,MATCH(dms_TradingName,dms_TradingName_List))
B140: DISCARD FILES
B141: discard this record? | C141: NO | D141: dms_DISCARD | E141: If record is to be discarded from DB set this flag to YES
B143: USES NAMED RANGES FLAG | C143: yes | D143: dms_Defined_Names_Used
B145: REGULATORY YEARS FOR MULTI RYE SUBMISSIONS
B146: Multiple RYE flag | C146: YES | D146: dms_Multi_RYE_flag
C147: Manually specify RYE | D147: Named ranges to apply
C148: 2013 | D148: dms_RYE_01
C149: 2014 | D149: dms_RYE_02
C150: 2015 | D150: dms_RYE_03
C151: 2016 | D151: dms_RYE_04
C152: 2017 | D152: dms_RYE_05
C153: 2018 | D153: dms_RYE_06
C154: 2019 | D154: dms_RYE_07
C155: 2020 | D155: dms_RYE_08
C156: 2021 | D156: dms_RYE_09

Sheet 2.1 Expenditure summary
B1: REGULATORY REPORTING STATEMENT
B2: =INDEX(dms_TradingNameFull_List,MATCH(dms_TradingName,dms_TradingName_List)) -> Energex
B3: =IF(SUM(dms_SingleYear_Model)>0,("CATEGORY ANALYSIS "&CRY&" to "&FRY),("CATEGORY ANALYSIS "&CRY)) -> CATEGORY ANALYSIS 2008-09 to 2017-18
B4: 2.1 EXPENDITURE SUMMARY & RECONCILIATION
B6: There are EIGHT tables on this worksheet - see the Instructions sheet on how to group or ungroup tables.
B8: 2.1.1 - STANDARD CONTROL SERVICES CAPEX
C9: EXPENDITURE ($0's)
C10: =IF(dms_RPT="financial",dms_CRYf_y1,dms_CRYc_y1) -> 2008-09 | D10: =IF(dms_RPT="financial",dms_CRYf_y2,dms_CRYc_y2) -> 2009-10 | E10: =IF(dms_RPT="financial",dms_CRYf_y3,dms_CRYc_y3) -> 2010-11 | F10: =IF(dms_RPT="financial",dms_CRYf_y4,dms_CRYc_y4) -> 2011-12 | G10: =IF(dms_RPT="financial",dms_CRYf_y5,dms_CRYc_y5) -> 2012-13 | H10: =IF(dms_RPT="financial",dms_CRYf_y6,dms_CRYc_y6) -> 2013-14 | I10: =IF(dms_RPT="financial",dms_CRYf_y7,dms_CRYc_y7) -> 2014-15 | J10: =IF(dms_RPT="financial",dms_CRYf_y8,dms_CRYc_y8) -> 2015-16 | K10: =IF(dms_RPT="financial",dms_CRYf_y9,dms_CRYc_y9) -> 2016-17 | L10: =IF(dms_RPT="financial",dms_CRYf_y10,dms_CRYc_y10) -> 2017-18
B11: Replacement expenditure
B12: Connections | C12: 133280044.9 | D12: 102897662.7 | E12: 89340898.42 | F12: 72587164.63 | G12: 69565818.97 | H12: 63421157.59 | I12: 53714134.06 | J12: 52353764.18 | K12: 46467875.6 | L12: 38946860.57
B13: Augmentation Expenditure | C13: 299212492.5 | D13: 343685046.3 | E13: 338678641.6 | F13: 306070251.1 | G13: 261018418 | H13: 193266674.3 | I13: 125602702.2 | J13: 93524837.07 | K13: 55610358.31 | L13: 85890669.48
B14: Non-network | C14: 116942966.7 | D14: 234965435.8 | E14: 205750789.2 | F14: 225641810.3 | G14: 207018725.4 | H14: 130208078.1 | I14: 196427081.4 | J14: 122915983.3 | K14: 111660628.9 | L14: 110428577.4
B15: capitalised network overheads | C15: 53680244.89 | D15: 66500561.17 | E15: 71885772.05 | F15: 76204470.43 | G15: 64606591.28 | H15: 60608062.04 | I15: 60316148.1 | J15: 50495590.16 | K15: 49396725.07 | L15: 50367195.3
B16: capitalised corporate overheads | C16: 8074035.481 | D16: 8959453.198 | E16: 11146668.51 | F16: 11801564.04 | G16: 11872864.42 | H16: 11102120.66 | I16: 12018434.25 | J16: 9593158.395 | K16: 14347391.2 | L16: 14272709.77
B17: Metering | C17: 0 | D17: 0 | E17: 0 | F17: 0 | G17: 0 | H17: 0 | I17: 0 | J17: 0 | K17: 0 | L17: 0
B18: Public Lighting | C18: 0 | D18: 0 | E18: 0 | F18: 0 | G18: 0 | H18: 0 | I18: 0 | J18: 0 | K18: 0 | L18: 0
B25: balancing item
B26: capcons (included in the above items) | C26: 45734137.86 | D26: 55549293.22 | E26: 64267990.3 | F26: 61321976.81 | G26: 46991523.41 | H26: 35277971.61 | I26: 60550575.15 | J26: 79548878.06 | K26: 68929372.28 | L26: 56287342.04
B27: TOTAL GROSS CAPEX (includes capcons) | C27: =+SUM(C11:C25) -> 611189784.5 | D27: 757008159.2 | E27: 716802769.8 | F27: 692305260.5 | H27: 458606092.6 | I27: 448078499.9 | J27: 328883333.1
B29: 2.1.2 - STANDARD CONTROL SERVICES OPEX
C30: EXPENDITURE ($0's)
C31: =IF(dms_RPT="financial",dms_CRYf_y1,dms_CRYc_y1) -> 2008-09 | D31: =IF(dms_RPT="financial",dms_CRYf_y2,dms_CRYc_y2) -> 2009-10 | E31: =IF(dms_RPT="financial",dms_CRYf_y3,dms_CRYc_y3) -> 2010-11 | F31: =IF(dms_RPT="financial",dms_CRYf_y4,dms_CRYc_y4) -> 2011-12 | G31: =IF(dms_RPT="financial",dms_CRYf_y5,dms_CRYc_y5) -> 2012-13 | H31: =IF(dms_RPT="financial",dms_CRYf_y6,dms_CRYc_y6) -> 2013-14 | I31: =IF(dms_RPT="financial",dms_CRYf_y7,dms_CRYc_y7) -> 2014-15 | J31: =IF(dms_RPT="financial",dms_CRYf_y8,dms_CRYc_y8) -> 2015-16 | K31: =IF(dms_RPT="financial",dms_CRYf_y9,dms_CRYc_y9) -> 2016-17 | L31: =IF(dms_RPT="financial",dms_CRYf_y10,dms_CRYc_y10) -> 2017-18
B32: Vegetation management | C32: 0 | D32: 0 | E32: 0 | F32: 0 | G32: 0 | H32: 0 | I32: 0 | J32: 0 | K32: 0 | L32: 0
B33: Maintenance | C33: 0 | D33: 0 | E33: 0 | F33: 0 | G33: 0 | H33: 0 | I33: 0 | J33: 0 | K33: 0 | L33: 0
B34: Emergency response
B35: Non-network | C35: 40004986.63 | D35: 41937154.81 | E35: 48242798.77 | F35: 52169116.48 | G35: 51879727.98 | H35: 49564727.62 | I35: 52152607.14 | J35: 48562256.67 | K35: 50207693.97 | L35: 53103664.24
B36: network overheads | C36: 75848838.21 | D36: 78881785.28 | E36: 85812984.9 | F36: 103316148.9 | G36: 103579657.2 | H36: 99668265.5 | I36: 303551893.5 | J36: 88745188.02 | K36: 78809343.18 | L36: 85758344.64
B37: corporate overheads | C37: 45915593.67 | D37: 49141385.14 | E37: 51816218.77 | F37: 56793191.97 | G37: 73463592.03 | H37: 60768744.28 | I37: 72129304.82 | J37: 57969053.85 | K37: 64998832.3 | L37: 69387293.8
B38: Metering | C38: 0 | D38: 0 | E38: 0 | F38: 0 | G38: 0 | H38: 0 | I38: 0 | J38: 0 | K38: 0 | L38: 0
B39: Public Lighting | D39: 0 | E39: 0 | F39: 0 | G39: 0 | H39: 0 | I39: 0 | J39: 0 | K39: 0 | L39: 0
B46: balancing tem
B47: TOTAL OPEX | C47: =+SUM(C32:C46) -> 161769418.5 | D47: 169960325.2 | E47: 185872002.4 | F47: 212278457.3 | H47: 210001737.4 | I47: 427833805.5 | J47: 195276498.5
B49: 2.1.3 - ALTERNATIVE CONTROL SERVICES CAPEX
C50: EXPENDITURE ($0's)
C51: =IF(dms_RPT="financial",dms_CRYf_y1,dms_CRYc_y1) -> 2008-09 | D51: =IF(dms_RPT="financial",dms_CRYf_y2,dms_CRYc_y2) -> 2009-10 | E51: =IF(dms_RPT="financial",dms_CRYf_y3,dms_CRYc_y3) -> 2010-11 | F51: =IF(dms_RPT="financial",dms_CRYf_y4,dms_CRYc_y4) -> 2011-12 | G51: =IF(dms_RPT="financial",dms_CRYf_y5,dms_CRYc_y5) -> 2012-13 | H51: =IF(dms_RPT="financial",dms_CRYf_y6,dms_CRYc_y6) -> 2013-14 | I51: =IF(dms_RPT="financial",dms_CRYf_y7,dms_CRYc_y7) -> 2014-15 | J51: =IF(dms_RPT="financial",dms_CRYf_y8,dms_CRYc_y8) -> 2015-16 | K51: =IF(dms_RPT="financial",dms_CRYf_y9,dms_CRYc_y9) -> 2016-17 | L51: =IF(dms_RPT="financial",dms_CRYf_y10,dms_CRYc_y10) -> 2017-18
B52: Connections | C52: 0 | D52: 0 | E52: 695173.6608 | F52: 5682519.992 | G52: 6372086.112 | H52: 3080054.302 | I52: 9959160.813 | J52: 4617630.142 | K52: 397157.9082 | L52: 861661.177
B53: capitalised network overheads | C53: 8378507.262 | D53: 4980679.951 | E53: 4744105.342 | F53: 6830740.992 | G53: 5556787.62 | H53: 5196887.613 | I53: 1348328.171 | J53: 4500529.41 | K53: 4440987.953 | L53: 3264331.331
B54: capitalised corporate overheads | C54: 609614.3126 | D54: 643430.6037 | E54: 741175.475 | F54: 1045251.925 | G54: 1052450.322 | H54: 969711.8229 | I54: 269148.2701 | J54: 855011.1277 | K54: 1289895.056 | L54: 906180.8086
B55: Metering | C55: 19290612.07 | D55: 19187314.02 | E55: 26109896.26 | F55: 26553625.97 | G55: 24184864.91 | H55: 20721558.26 | I55: 11664959.03 | J55: 13061448.07 | K55: 11166771.53 | L55: 5594374.783
B56: Public lighting | C56: 5262496.27 | D56: 5690485.791 | E56: 4324352.357 | F56: 4462244.504 | G56: 4665540.352 | H56: 3613289.563 | I56: 4992236.053 | J56: 5832304.274 | K56: 4506901.97 | L56: 4038254.224
B57: Fee and quoted
B65: TOTAL CAPEX | C65: =+SUM(C52:C64) -> 33541229.92 | D65: 30501910.37 | E65: 36614703.1 | F65: 44574383.38 | H65: 33581501.56 | I65: 28233832.34 | J65: 28866923.02
B67: 2.1.4 - ALTERNATIVE CONTROL SERVICES OPEX
C68: EXPENDITURE ($0's)
C69: =IF(dms_RPT="financial",dms_CRYf_y1,dms_CRYc_y1) -> 2008-09 | D69: =IF(dms_RPT="financial",dms_CRYf_y2,dms_CRYc_y2) -> 2009-10 | E69: =IF(dms_RPT="financial",dms_CRYf_y3,dms_CRYc_y3) -> 2010-11 | F69: =IF(dms_RPT="financial",dms_CRYf_y4,dms_CRYc_y4) -> 2011-12 | G69: =IF(dms_RPT="financial",dms_CRYf_y5,dms_CRYc_y5) -> 2012-13 | H69: =IF(dms_RPT="financial",dms_CRYf_y6,dms_CRYc_y6) -> 2013-14 | I69: =IF(dms_RPT="financial",dms_CRYf_y7,dms_CRYc_y7) -> 2014-15 | J69: =IF(dms_RPT="financial",dms_CRYf_y8,dms_CRYc_y8) -> 2015-16 | K69: =IF(dms_RPT="financial",dms_CRYf_y9,dms_CRYc_y9) -> 2016-17 | L69: =IF(dms_RPT="financial",dms_CRYf_y10,dms_CRYc_y10) -> 2017-18
B70: Connections | C70: 0 | D70: 0 | E70: 0 | F70: 0 | G70: 0 | H70: 0 | I70: 0 | J70: 17204576.68 | K70: 22840321.12 | L70: 23404914.83
B71: network overheads | C71: 15729499.77 | D71: 33063938.47 | E71: 25160856.64 | F71: 26557717.83 | G71: 23340904.42 | H71: 26886473.77 | I71: 7514343.291 | J71: 22712141.32 | K71: 25072611.04 | L71: 28348933.27
B72: corporate overheads | C72: 10059076.5 | D72: 13489593.36 | E72: 11441316.24 | F72: 12766315.69 | G72: 14055041.5 | H72: 13476886.54 | I72: 5690952.783 | J72: 14128421.19 | K72: 17824868.08 | L72: 18356928.98
B73: Metering | C73: 8757896.561 | D73: 10238412.82 | E73: 9127081.692 | F73: 10126868.21 | G73: 10152540.89 | H73: 10160210.65 | I73: 9782092.664 | J73: 12750724.87 | K73: 13020264.32 | L73: 13339000.58
B74: Public lighting | C74: 7990045.324 | D74: 7054947.924 | E74: 8349809.375 | F74: 7917227.789 | G74: 8734431.577 | H74: 7719876.922 | I74: 8757478.694 | J74: 10564271.15 | K74: 10762858.09 | L74: 10824399.39
B75: Fee and quoted | C75: 8352077.628 | D75: 9019595.911 | E75: 16061131.71 | F75: 16619348.09 | G75: 13846019.31 | H75: 20919516.5 | I75: 27241387.97 | J75: 31364888.44 | K75: 31693245.62 | L75: 14381325.46
B83: TOTAL OPEX | C83: =+SUM(C70:C82) -> 50888595.78 | D83: 72866488.49 | E83: 70140195.66 | F83: 73987477.61 | H83: 79162964.39 | I83: 58986255.41 | J83: 108725023.6
B85: 2.1.5 - DUAL FUNCTION ASSETS CAPEX
C86: EXPENDITURE ($0's)
C87: =IF(dms_RPT="financial",dms_CRYf_y1,dms_CRYc_y1) -> 2008-09 | D87: =IF(dms_RPT="financial",dms_CRYf_y2,dms_CRYc_y2) -> 2009-10 | E87: =IF(dms_RPT="financial",dms_CRYf_y3,dms_CRYc_y3) -> 2010-11 | F87: =IF(dms_RPT="financial",dms_CRYf_y4,dms_CRYc_y4) -> 2011-12 | G87: =IF(dms_RPT="financial",dms_CRYf_y5,dms_CRYc_y5) -> 2012-13 | H87: =IF(dms_RPT="financial",dms_CRYf_y6,dms_CRYc_y6) -> 2013-14 | I87: =IF(dms_RPT="financial",dms_CRYf_y7,dms_CRYc_y7) -> 2014-15 | J87: =IF(dms_RPT="financial",dms_CRYf_y8,dms_CRYc_y8) -> 2015-16 | K87: =IF(dms_RPT="financial",dms_CRYf_y9,dms_CRYc_y9) -> 2016-17 | L87: =IF(dms_RPT="financial",dms_CRYf_y10,dms_CRYc_y10) -> 2017-18
B88: Replacement expenditure
B89: Connections
B90: Augmentation Expenditure
B91: Non-network
B92: Capitalised network overheads
B93: Capitalised corporate overheads
B101: capcons (included in the above items)
B102: TOTAL GROSS CAPEX (includes capcons) | C102: =SUM(C88:C100) -> 0 | D102: 0 | E102: 0 | F102: 0 | H102: 0 | I102: 0 | J102: 0
B104: 2.1.6 - DUAL FUNCTION ASSETS OPEX
C105: EXPENDITURE ($0's)
C106: =IF(dms_RPT="financial",dms_CRYf_y1,dms_CRYc_y1) -> 2008-09 | D106: =IF(dms_RPT="financial",dms_CRYf_y2,dms_CRYc_y2) -> 2009-10 | E106: =IF(dms_RPT="financial",dms_CRYf_y3,dms_CRYc_y3) -> 2010-11 | F106: =IF(dms_RPT="financial",dms_CRYf_y4,dms_CRYc_y4) -> 2011-12 | G106: =IF(dms_RPT="financial",dms_CRYf_y5,dms_CRYc_y5) -> 2012-13 | H106: =IF(dms_RPT="financial",dms_CRYf_y6,dms_CRYc_y6) -> 2013-14 | I106: =IF(dms_RPT="financial",dms_CRYf_y7,dms_CRYc_y7) -> 2014-15 | J106: =IF(dms_RPT="financial",dms_CRYf_y8,dms_CRYc_y8) -> 2015-16 | K106: =IF(dms_RPT="financial",dms_CRYf_y9,dms_CRYc_y9) -> 2016-17 | L106: =IF(dms_RPT="financial",dms_CRYf_y10,dms_CRYc_y10) -> 2017-18
B107: Vegetation management
B108: Maintenance
B109: Emergency response
B110: Non-network
B111: network overheads
B112: corporate overheads
B113: Metering
B120: TOTAL OPEX | C120: =SUM(C107:C119) -> 0 | D120: 0 | E120: 0 | F120: 0 | H120: 0 | I120: 0 | J120: 0
B122: 2.1.7 - STANDARD CONTROL SERVICES CAPCONS
C123: EXPENDITURE ($0's)
C124: =IF(dms_RPT="financial",dms_CRYf_y1,dms_CRYc_y1) -> 2008-09 | D124: =IF(dms_RPT="financial",dms_CRYf_y2,dms_CRYc_y2) -> 2009-10 | E124: =IF(dms_RPT="financial",dms_CRYf_y3,dms_CRYc_y3) -> 2010-11 | F124: =IF(dms_RPT="financial",dms_CRYf_y4,dms_CRYc_y4) -> 2011-12 | G124: =IF(dms_RPT="financial",dms_CRYf_y5,dms_CRYc_y5) -> 2012-13 | H124: =IF(dms_RPT="financial",dms_CRYf_y6,dms_CRYc_y6) -> 2013-14 | I124: =IF(dms_RPT="financial",dms_CRYf_y7,dms_CRYc_y7) -> 2014-15 | J124: =IF(dms_RPT="financial",dms_CRYf_y8,dms_CRYc_y8) -> 2015-16 | K124: =IF(dms_RPT="financial",dms_CRYf_y9,dms_CRYc_y9) -> 2016-17 | L124: =IF(dms_RPT="financial",dms_CRYf_y10,dms_CRYc_y10) -> 2017-18
B125: Replacement expenditure
B126: Connections | C126: 45734137.86 | D126: 55549293.22 | E126: 64267990.3 | F126: 61321976.81 | G126: 46991523.41 | H126: 35277971.61 | I126: 60550575.15 | J126: 79548878.06 | K126: 68929372.28 | L126: 56287342.04
B127: Augmentation Expenditure
B128: Non-network
B129: capitalised network overheads
B130: capitalised corporate overheads
B131: Metering
B132: Public Lighting
B140: TOTAL CAPCONS | C140: =+SUM(C125:C139) -> 45734137.86 | D140: 55549293.22 | E140: 64267990.3 | F140: 61321976.81 | H140: 35277971.61 | I140: 60550575.15 | J140: 79548878.06
B142: 2.1.8 - STANDARD CONTROL SERVICES CAPITALISED OVERHEADS
C143: EXPENDITURE ($0's)
C144: =IF(dms_RPT="financial",dms_CRYf_y1,dms_CRYc_y1) -> 2008-09 | D144: =IF(dms_RPT="financial",dms_CRYf_y2,dms_CRYc_y2) -> 2009-10 | E144: =IF(dms_RPT="financial",dms_CRYf_y3,dms_CRYc_y3) -> 2010-11 | F144: =IF(dms_RPT="financial",dms_CRYf_y4,dms_CRYc_y4) -> 2011-12 | G144: =IF(dms_RPT="financial",dms_CRYf_y5,dms_CRYc_y5) -> 2012-13 | H144: =IF(dms_RPT="financial",dms_CRYf_y6,dms_CRYc_y6) -> 2013-14 | I144: =IF(dms_RPT="financial",dms_CRYf_y7,dms_CRYc_y7) -> 2014-15 | J144: =IF(dms_RPT="financial",dms_CRYf_y8,dms_CRYc_y8) -> 2015-16 | K144: =IF(dms_RPT="financial",dms_CRYf_y9,dms_CRYc_y9) -> 2016-17 | L144: =IF(dms_RPT="financial",dms_CRYf_y10,dms_CRYc_y10) -> 2017-18
B145: Vegetation management
B146: Maintenance
B147: Emergency response
B148: Non-network | C148: 5611357.946 | D148: 11930494.05 | E148: 11831594.69 | F148: 12434747.83 | G148: 10238599.22 | H148: 7502295.786 | I148: 12173285.26 | J148: 6979184.423 | K148: 8754928.156 | L148: 7813748.282
B149: Metering
B150: Public Lighting
C151: 7468254.452 | D151: 10859094.69 | E151: 11744440.75 | F151: 17693708.62 | G151: 20305644.59 | H151: 23765677.9 | I151: 31278846.2 | J151: 28866353.89 | K151: 35724033.02 | L151: 31106381.63
C152: 14790866.8 | D152: 11948037.31 | E152: 12212999.37 | F152: 10914729.72 | G152: 9512928.15 | H152: 9841349.816 | I152: 8530016.9 | J152: 8588405.835 | K152: 8884805.438 | L152: 8157288.021
C153: 33883810.94 | D153: 40722400.25 | E153: 47243418.88 | F153: 46962862.22 | G153: 36422295.83 | H153: 30600870.53 | I153: 20352445.43 | J153: 15654813.91 | K153: 10380678.08 | L153: 17562820.19
B157: capcons (included in the above items)
B158: TOTAL CAPITALISED OVERHEADS | C158: =+SUM(C145:C156) -> 61754290.13 | D158: =+SUM(D145:D156) -> 75460026.3 | E158: 83032453.69 | F158: 88006048.38 | H158: 71710194.03 | I158: 72334593.79 | J158: 60088758.06

Sheet 2.2 Repex
B1: REGULATORY REPORTING STATEMENT
B2: =INDEX(dms_TradingNameFull_List,MATCH(dms_TradingName,dms_TradingName_List)) -> Energex
B3: =IF(SUM(dms_SingleYear_Model)>0,("CATEGORY ANALYSIS "&CRY&" to "&FRY),("CATEGORY ANALYSIS "&CRY)) -> CATEGORY ANALYSIS 2008-09 to 2017-18
B4: 2.2 REPEX
B6: There are TWO tables on this worksheet. These tables have been 'grouped' (and sub-grouped) for ease of navigation. See the Instructions sheet on how to group or ungroup tables.
B8: 2.2.1 - REPLACEMENT EXPENDITURE, VOLUMES AND ASSET FAILURES BY ASSET CATEGORY
B9: EXPENDITURE
E10: EXPENDITURE ($0's)
B11: ASSET GROUP | C11: ASSET CATEGORY | E11: =IF(dms_RPT="financial",dms_CRYf_y1,dms_CRYc_y1) -> 2008-09 | F11: =IF(dms_RPT="financial",dms_CRYf_y2,dms_CRYc_y2) -> 2009-10 | G11: =IF(dms_RPT="financial",dms_CRYf_y3,dms_CRYc_y3) -> 2010-11 | H11: =IF(dms_RPT="financial",dms_CRYf_y4,dms_CRYc_y4) -> 2011-12 | I11: =IF(dms_RPT="financial",dms_CRYf_y5,dms_CRYc_y5) -> 2012-13 | J11: =IF(dms_RPT="financial",dms_CRYf_y6,dms_CRYc_y6) -> 2013-14 | K11: =IF(dms_RPT="financial",dms_CRYf_y7,dms_CRYc_y7) -> 2014-15 | L11: =IF(dms_RPT="financial",dms_CRYf_y8,dms_CRYc_y8) -> 2015-16 | M11: =IF(dms_RPT="financial",dms_CRYf_y9,dms_CRYc_y9) -> 2016-17 | N11: =IF(dms_RPT="financial",dms_CRYf_y10,dms_CRYc_y10) -> 2017-18
B12: POLES BY: HIGHEST OPERATING VOLTAGE ; MATERIAL TYPE | C12: Staking of a wooden pole
C13: ˂ = 1 kV; Wood
C14: > 1 kV & < = 11 kV; Wood
C15: ˃ 11 kV & < = 22 kV; Wood
C16: > 22 kV & < = 66 kV; Wood
C17: > 66 kV & < = 132 kV; Wood
C18: > 132 kV; Wood
C19: ˂ = 1 kV; Concrete
C20: > 1 kV & < = 11 kV; Concrete
C21: ˃ 11 kV & < = 22 kV; Concrete
C22: > 22 kV & < = 66 kV; Concrete
C23: > 66 kV & < = 132 kV; Concrete
C24: > 132 kV; Concrete
C25: ˂ = 1 kV; Steel
C26: > 1 kV & < = 11 kV; Steel
C27: ˃ 11 kV & < = 22 kV; Steel
C28: > 22 kV & < = 66 kV; Steel
C29: > 66 kV & < = 132 kV; Steel
C30: > 132 kV; Steel
C31: Other
B32: POLE TOP STRUCTURES BY: HIGHEST OPERATING VOLTAGE | C32: ˂ = 1 kV
C33: > 1 kV & < = 11 kV
C34: ˃ 11 kV & < = 22 kV
C35: > 22 kV & < = 66 kV
C36: > 66 kV & < = 132 kV
C37: > 132 kV
C38: Other
B39: STAKING WOODEN POLES BY: HIGHEST OPERATING VOLTAGE | C39: ˂ = 1 Kv | D39: for year wooden pole staked
C40: > 1 kV & < = 11 kV | D40: for year wooden pole staked
C41: ˃ 11 kV & < = 22 kV | D41: for year wooden pole staked
C42: > 22 kV & < = 66 kV | D42: for year wooden pole staked
C43: > 66 kV & < = 132 kV | D43: for year wooden pole staked
C44: > 132 kV | D44: for year wooden pole staked
B45: OVERHEAD CONDUCTORS BY: HIGHEST OPERATING VOLTAGE; NUMBER OF PHASES (AT HV) | C45: ˂ = 1 kV | D45: per km
C46: > 1 kV & < = 11 kV | D46: per km
C47: ˃ 11 kV & < = 22 kV ; SWER | D47: per km
C48: ˃ 11 kV & < = 22 kV ; Single-Phase | D48: per km
C49: ˃ 11 kV & < = 22 kV ; Multiple-Phase | D49: per km
C50: > 22 kV & < = 66 kV | D50: per km
C51: > 66 kV & < = 132 kV | D51: per km
C52: > 132 kV | D52: per km
C53: Other | D53: per km
B54: UNDERGROUND CABLES BY: HIGHEST OPERATING VOLTAGE | C54: ˂ = 1 kV | D54: per km
C55: > 1 kV & < = 11 kV | D55: per km
C56: > 11 kV & < = 22 kV | D56: per km
C57: > 22 kV & < = 33 kV | D57: per km
C58: > 33 kV & < = 66 kV | D58: per km
C59: > 66 kV & < = 132 kV | D59: per km
C60: > 132 kV | D60: per km
C61: Other | D61: per km
B62: SERVICE LINES BY: CONNECTION VOLTAGE; CUSTOMER TYPE; CONNECTION COMPLEXITY | C62: ˂ = 11 kV ; Residential ; Simple Type | D62: per number of spans
C63: ˂ = 11 kV ; Commercial & Industrial ; Simple Type | D63: per number of spans
C64: ˂ = 11 kV ; Residential ; Complex Type | D64: per number of spans
C65: ˂ = 11 kV ; Commercial & Industrial ; Complex Type | D65: per number of spans
C66: ˂ = 11 kV ; Subdivision ; Complex Type | D66: per number of spans
C67: > 11 kV & < = 22 kV ; Commercial & Industrial | D67: per number of spans
C68: > 11 kV & < = 22 kV ; Subdivision | D68: per number of spans
C69: > 22 kV & < = 33 kV ; Commercial & Industrial | D69: per number of spans
C70: > 22 kV & < = 33 kV ; Subdivision | D70: per number of spans
C71: > 33 kV & < = 66 kV ; Commercial & Industrial | D71: per number of spans
C72: > 33 kV & < = 66 kV ; Subdivision | D72: per number of spans
C73: > 66 kV & < = 132 kV ; Commercial & Industrial | D73: per number of spans
C74: > 66 kV & < = 132 kV ; Subdivision | D74: per number of spans
C75: > 132 kV ; Commercial & Industrial | D75: per number of spans
C76: > 132 kV ; Subdivision | D76: per number of spans
C77: Other | D77: per number of spans
B78: TRANSFORMERS BY: MOUNTING TYPE; HIGHEST OPERATING VOLTAGE ; AMPERE RATING; NUMBER OF PHASES (AT LV) | C78: Pole Mounted ; < = 22kV ; < = 60 kVA ; Single Phase
C79: Pole Mounted ; < = 22kV ; > 60 kVA and < = 600 kVA ; Single Phase
C80: Pole Mounted ; < = 22kV ; > 600 kVA ; Single Phase
C81: Pole Mounted ; < = 22kV ; < = 60 kVA ; Multiple Phase
C82: Pole Mounted ; < = 22kV ; > 60 kVA and < = 600 kVA ; Multiple Phase
C83: Pole Mounted ; < = 22kV ; > 600 kVA ; Multiple Phase
C84: Kiosk Mounted ; < = 22kV ; < = 60 kVA ; Single Phase
C85: Kiosk Mounted ; < = 22kV ; > 60 kVA and < = 600 kVA ; Single Phase
C86: Kiosk Mounted ; < = 22kV ; > 600 kVA ; Single Phase
C87: Kiosk Mounted ; < = 22kV ; < = 60 kVA ; Multiple Phase
C88: Kiosk Mounted ; < = 22kV ; > 60 kVA and < = 600 kVA ; Multiple Phase
C89: Kiosk Mounted ; < = 22kV ; > 600 kVA ; Multiple Phase
C90: Ground Outdoor / Indoor Chamber Mounted; ˂ 22 kV ; < = 60 kVA ; Single Phase
C91: Ground Outdoor / Indoor Chamber Mounted; ˂ 22 kV ; > 60 kVA and < = 600 kVA ; Single Phase
C92: Ground Outdoor / Indoor Chamber Mounted; ˂ 22 kV ; > 600 kVA ; Single Phase
C93: Ground Outdoor / Indoor Chamber Mounted; ˂ 22 kV ; < = 60 kVA ; Multiple Phase
C94: Ground Outdoor / Indoor Chamber Mounted; ˂ 22 kV ; > 60 kVA and < = 600 kVA ; Multiple Phase
C95: Ground Outdoor / Indoor Chamber Mounted; ˂ 22 kV ; > 600 kVA ; Multiple Phase
C96: Ground Outdoor / Indoor Chamber Mounted; > = 22 kV & < = 33 kV ; < = 15 MVA
C97: Ground Outdoor / Indoor Chamber Mounted; > = 22 kV & < = 33 kV ; > 15 MVA and < = 40 MVA
C98: Ground Outdoor / Indoor Chamber Mounted; > = 22 kV & < = 33 kV ; > 40 MVA
C99: Ground Outdoor / Indoor Chamber Mounted; > 33 kV & < = 66 kV ; < = 15 MVA
C100: Ground Outdoor / Indoor Chamber Mounted; > 33 kV & < = 66 kV ; > 15 MVA and < = 40 MVA
C101: Ground Outdoor / Indoor Chamber Mounted; > 33 kV & < = 66 kV ; > 40 MVA
C102: Ground Outdoor / Indoor Chamber Mounted; > 66 kV & < = 132 kV ; < = 100 MVA
C103: Ground Outdoor / Indoor Chamber Mounted; > 66 kV & < = 132 kV ; > 100 MVA
C104: Ground Outdoor / Indoor Chamber Mounted; > 132 kV ; < = 100 MVA
C105: Ground Outdoor / Indoor Chamber Mounted; > 132 kV ; > 100 MVA
C106: Other
B107: SWITCHGEAR BY: HIGHEST OPERATING VOLTAGE ; SWITCH FUNCTION | C107: ˂ = 11 kV ; FUSE
C108: ˂ = 11 kV ; Switch
C109: ˂ = 11 kV ; Circuit Breaker
C110: > 11 kV & < = 22 kV ; Switch
C111: > 11 kV & < = 22 kV ; Circuit Breaker
C112: > 22 kV & < = 33 kV ; Switch
C113: > 22 kV & < = 33 kV ; Circuit Breaker
C114: > 33 kV & < = 66 kV ; Switch
C115: > 33 kV & < = 66 kV ; Circuit Breaker
C116: > 66 kV & < = 132 kV ; Switch
C117: > 66 kV & < = 132 kV ; Circuit Breaker
C118: > 132 kV ; Switch
C119: > 132 kV ; Circuit Breaker
C120: Other
B121: PUBLIC LIGHTING BY: ASSET TYPE ; LIGHTING OBLIGATION | C121: Luminaires ; Major Road
C122: Luminaires ; Minor Road
C123: Brackets ; Major Road
C124: Brackets ; Minor Road
C125: Lamps ; Major Road
C126: Lamps ; Minor Road
C127: Poles / Columns ; Major Road
C128: Poles / Columns ; Minor Road
C129: Other
B130: SCADA, NETWORK CONTROL AND PROTECTION SYSTEMS BY: FUNCTION | C130: Field Devices
C131: Local Network Wiring Assets
C132: Communications Network Assets
C133: Master Station Assets
C134: Communications Site Infrastructure
C135: Communications Linear Assets
C136: AFLC
C137: Other
B138: OTHER BY: DNSP DEFINED
B156: ASSET REPLACEMENTS
E157: VOLUMES (0's)
B158: ASSET GROUP | C158: ASSET CATEGORY | E158: =IF(dms_RPT="financial",dms_CRYf_y1,dms_CRYc_y1) -> 2008-09 | F158: =IF(dms_RPT="financial",dms_CRYf_y2,dms_CRYc_y2) -> 2009-10 | G158: =IF(dms_RPT="financial",dms_CRYf_y3,dms_CRYc_y3) -> 2010-11 | H158: =IF(dms_RPT="financial",dms_CRYf_y4,dms_CRYc_y4) -> 2011-12 | I158: =IF(dms_RPT="financial",dms_CRYf_y5,dms_CRYc_y5) -> 2012-13 | J158: =IF(dms_RPT="financial",dms_CRYf_y6,dms_CRYc_y6) -> 2013-14 | K158: =IF(dms_RPT="financial",dms_CRYf_y7,dms_CRYc_y7) -> 2014-15 | L158: =IF(dms_RPT="financial",dms_CRYf_y8,dms_CRYc_y8) -> 2015-16 | M158: =IF(dms_RPT="financial",dms_CRYf_y9,dms_CRYc_y9) -> 2016-17 | N158: =IF(dms_RPT="financial",dms_CRYf_y10,dms_CRYc_y10) -> 2017-18
B159: POLES BY: HIGHEST OPERATING VOLTAGE ; MATERIAL TYPE | C159: Staking of a wooden pole
C160: ˂ = 1 kV; Wood
C161: > 1 kV & < = 11 kV; Wood
C162: ˃ 11 kV & < = 22 kV; Wood
C163: > 22 kV & < = 66 kV; Wood
C164: > 66 kV & < = 132 kV; Wood
C165: > 132 kV; Wood
C166: ˂ = 1 kV; Concrete
C167: > 1 kV & < = 11 kV; Concrete
C168: ˃ 11 kV & < = 22 kV; Concrete
C169: > 22 kV & < = 66 kV; Concrete
C170: > 66 kV & < = 132 kV; Concrete
C171: > 132 kV; Concrete
C172: ˂ = 1 kV; Steel
C173: > 1 kV & < = 11 kV; Steel
C174: ˃ 11 kV & < = 22 kV; Steel
C175: > 22 kV & < = 66 kV; Steel
C176: > 66 kV & < = 132 kV; Steel
C177: > 132 kV; Steel
C178: Other
B179: POLE TOP STRUCTURES BY: HIGHEST OPERATING VOLTAGE | C179: ˂ = 1 kV
C180: > 1 kV & < = 11 kV
C181: ˃ 11 kV & < = 22 kV
C182: > 22 kV & < = 66 kV
C183: > 66 kV & < = 132 kV
C184: > 132 kV
C185: Other
B186: STAKING WOODEN POLES BY: HIGHEST OPERATING VOLTAGE | C186: ˂ = 1 Kv
C187: > 1 kV & < = 11 kV
C188: ˃ 11 kV & < = 22 kV
C189: > 22 kV & < = 66 kV
C190: > 66 kV & < = 132 kV
C191: > 132 kV
B192: OVERHEAD CONDUCTORS BY: HIGHEST OPERATING VOLTAGE; NUMBER OF PHASES (AT HV) | C192: ˂ = 1 kV
C193: > 1 kV & < = 11 kV
C194: ˃ 11 kV & < = 22 kV ; SWER
C195: ˃ 11 kV & < = 22 kV ; Single-Phase
C196: ˃ 11 kV & < = 22 kV ; Multiple-Phase
C197: > 22 kV & < = 66 kV
C198: > 66 kV & < = 132 kV
C199: > 132 kV
C200: Other
B201: UNDERGROUND CABLES BY: HIGHEST OPERATING VOLTAGE | C201: ˂ = 1 kV
C202: > 1 kV & < = 11 kV
C203: > 11 kV & < = 22 kV
C204: > 22 kV & < = 33 kV
C205: > 33 kV & < = 66 kV
C206: > 66 kV & < = 132 kV
C207: > 132 kV
C208: Other
B209: SERVICE LINES BY: CONNECTION VOLTAGE; CUSTOMER TYPE; CONNECTION COMPLEXITY | C209: ˂ = 11 kV ; Residential ; Simple Type
C210: ˂ = 11 kV ; Commercial & Industrial ; Simple Type
C211: ˂ = 11 kV ; Residential ; Complex Type
C212: ˂ = 11 kV ; Commercial & Industrial ; Complex Type
C213: ˂ = 11 kV ; Subdivision ; Complex Type
C214: > 11 kV & < = 22 kV ; Commercial & Industrial
C215: > 11 kV & < = 22 kV ; Subdivision
C216: > 22 kV & < = 33 kV ; Commercial & Industrial
C217: > 22 kV & < = 33 kV ; Subdivision
C218: > 33 kV & < = 66 kV ; Commercial & Industrial
C219: > 33 kV & < = 66 kV ; Subdivision
... 246 more rows

Sheet 2.3(a) Augex
B1: REGULATORY REPORTING STATEMENT
B2: =INDEX(dms_TradingNameFull_List,MATCH(dms_TradingName,dms_TradingName_List)) -> Energex
B3: =IF(SUM(dms_SingleYear_Model)>0,("CATEGORY ANALYSIS "&CRY&" to "&FRY),("CATEGORY ANALYSIS "&CRY)) -> CATEGORY ANALYSIS 2008-09 to 2017-18
B4: 2.3 AUGEX PROJECT DATA
B7: There are TWO tables on this worksheet - each has been 'grouped' (and sub-grouped) for easy navigation. Both rows and columns have been grouped. See the Instructions sheet on how to group or ungroup tables.
B9: 2.3.1 - AUGEX ASSET DATA - SUBTRANSMISSION SUBSTATIONS, SWITCHING STATIONS AND ZONE SUBSTATIONS
B10: NOTE: DNSP MUST PROVIDE EXPENDITURE INFORMATION ON A PROJECT CLOSE BASIS.
B11: AUG231_1 | C11: AUG231_2 | D11: AUG231_3 | E11: AUG231_4 | F11: AUG231_5 | G11: AUG231_6 | H11: ED_AUG231_00001 | I11: ED_AUG231_00002 | J11: ED_AUG231_00003 | K11: ED_AUG231_00004 | L11: ED_AUG231_00005 | M11: ED_AUG231_00006 | N11: ED_AUG231_00007 | O11: ED_AUG231_00008 | P11: ED_AUG231_00009 | Q11: ED_AUG231_00010 | R11: ED_AUG231_00011 | U11: ED_AUG231_00012 | V11: ED_AUG231_00013 | W11: ED_AUG231_00014 | X11: ED_AUG231_00015 | Y11: ED_AUG231_00016 | Z11: ED_AUG231_00017 | AA11: ED_AUG231_00018 | AB11: ED_AUG231_00019 | AC11: ED_AUG231_00020 | AD11: ED_AUG231_00021 | AE11: ED_AUG231_00022 | AF11: ED_AUG231_00023
B12: PROJECT DESCRIPTION AND CHANGES | L12: PLANT AND EQUIPMENT EXPENDITURE AND VOLUME | X12: OTHER EXPENDITURE | Z12: TOTAL DIRECT EXPENDITURE ($0's) | AA12: YEARS INCURRED | AB12: ALL RELATED PARTY CONTRACTS | AD12: ALL NON RELATED PARTYCONTRACTS | AE12: LAND AND EASEMENTS
B13: SUBSTATION ID | C13: SUBSTATION TYPE (drop down) | D13: PROJECT ID | E13: PROJECT TYPE (drop down) | F13: PROJECT TRIGGER (drop down) | G13: VOLTAGE (KV) | H13: SUBSTATION RATING NORMAL CYCLIC (MVA) | J13: SUBSTATION RATING N-1 EMERGENCY (MVA) | L13: TRANSFORMERS | O13: SWITCHGEAR | Q13: CAPACITORS | U13: OTHER PLANT ITEM | V13: INSTALLATION (LABOUR) | X13: CIVIL WORKS | Y13: OTHER DIRECT | AB13: RELATED PARTY MARGINS | AC13: TOTAL | AE13: LAND PURCHASE | AF13: EASEMENTS
H14: PRE | I14: POST | J14: PRE | K14: POST | L14: UNITS ADDED | M14: MVA ADDED | N14: EXPENDITURE ($0's) | O14: UNITS ADDED | P14: EXPENDITURE ($0's) | Q14: MVAR ADDED | R14: EXPENDITURE ($0's) | U14: EXPENDITURE ($0's) | V14: VOLUME | W14: EXPENDITURE ($0's) | X14: EXPENDITURE ($0's) | AB14: EXPENDITURE ($0's) | AE14: EXPENDITURE ($0's)
B15: SSGLY | C15: Zone substation | D15: C0062104 | E15: Substation upgrade - capacity | F15: Demand growth | G15: 11 | H15: 28.05 | I15: 60 | J15: 16.77 | K15: 33.75 | N15: 1259645.86 | P15: 555396.1767 | R15: 131989.8915 | U15: 1760519.113 | W15: 1090029.215 | X15: 183498.4374 | Y15: 2090607.398 | Z15: =SUM(N15,P15,R15,U15,W15,X15,Y15) -> 7071686.091 | AA15: 2008, 2009, 2010, 2011, 2012, 2013, 2014, 2015, 2016, 2017, 2018 | AB15: 0 | AC15: 0 | AD15: 3647045.382 | AE15: 0 | AF15: 0
B16: SSHTN | C16: Zone substation | D16: C0065200 | E16: Substation upgrade - capacity | F16: Demand growth | G16: 11 | H16: 35.2 | I16: 55 | J16: 20 | K16: 35 | N16: 1211474.312 | P16: 303808.9901 | R16: 133853.9707 | U16: 1414164.555 | W16: 1402791.559 | X16: 125717.3908 | Y16: 1016062.378 | Z16: 5607873.154 | AA16: 2009, 2010, 2011, 2012, 2013, 2014, 2015, 2016, 2017, 2018 | AB16: 0 | AC16: 0 | AD16: 1516850.336 | AE16: 0 | AF16: 0
B17: SSSFC | C17: Zone substation | D17: C0101112 | E17: New substation establishment | F17: Demand growth | G17: 11 | H17: 0 | I17: 55 | J17: 0 | K17: 31.25 | N17: 1245571.351 | P17: 570824.7453 | R17: 352288.357 | U17: 5866180.339 | W17: 871065.3265 | X17: 413020.3711 | Y17: 4939414.468 | Z17: 14258364.96 | AA17: 2009, 2010, 2011, 2012, 2013, 2014, 2015, 2016, 2017, 2018 | AB17: 0 | AC17: 0 | AD17: 16081195.73 | AE17: 0 | AF17: 0
B18: SSDBS | C18: Subtransmission substation | D18: C0112635 | E18: Other | F18: Demand growth | G18: 33 | H18: 236.25 | I18: 236.25 | J18: 192 | K18: 192 | N18: 0 | P18: 56678.17035 | R18: 132383.8272 | U18: 3077475.087 | W18: 1610676.207 | X18: 37312.38384 | Y18: 1105859.737 | Z18: 6020385.412 | AA18: 2009, 2010, 2011, 2012, 2013, 2014, 2015, 2016, 2017, 2018 | AB18: 0 | AC18: 0 | AD18: 2969608.253 | AE18: 0 | AF18: 0
B19: SSMLB | C19: Zone substation | D19: C0124994 | E19: Other | F19: Reactive power issue | G19: 11 | H19: 67.8 | I19: 67.8 | J19: 40.5 | K19: 40.5 | N19: 606859.5804 | P19: 3067938.763 | R19: 702368.0086 | U19: 860930.4181 | W19: 1054018.862 | X19: 52371.90983 | Y19: 1821040.292 | Z19: 8165527.834 | AA19: 2009, 2010, 2011, 2012, 2013, 2014, 2015, 2016, 2017, 2018 | AB19: 0 | AC19: 0 | AD19: 2064125.996 | AE19: 0 | AF19: 0
B20: SSGBG | C20: Zone substation | D20: C0131194 | E20: Substation upgrade - capacity | F20: Demand growth | G20: 11 | H20: 52.5 | I20: 78.25 | J20: 31.25 | K20: 62.5 | N20: 0 | P20: 401700.1606 | R20: 0 | U20: 2082008.491 | W20: 674634.8667 | X20: 104556.2241 | Y20: 845045.0081 | Z20: 4107944.751 | AA20: 2010, 2011, 2012, 2013, 2014, 2015, 2016, 2017, 2018 | AB20: 0 | AC20: 0 | AD20: 2086211.217 | AE20: 0 | AF20: 0
B21: SSYTA | C21: Zone substation | D21: C0138982 | E21: Substation upgrade - capacity | F21: Demand growth | G21: 11 | H21: 55 | I21: 63 | J21: 31.25 | K21: 62.5 | N21: 1404371.245 | P21: 3041053.726 | R21: 0 | U21: 3247578.493 | W21: 1193007.575 | X21: 82500.91346 | Y21: 1578700.813 | Z21: 10547212.77 | AA21: 2010, 2011, 2012, 2013, 2014, 2015, 2016, 2017, 2018 | AB21: 0 | AC21: 0 | AD21: 6334190.763 | AE21: 0 | AF21: 0
B22: SSCST | C22: Zone substation | D22: C0152828 | E22: Other | F22: Fault level issues | G22: 11 | H22: 186.9 | I22: 186.9 | J22: 147.5 | K22: 147.5 | N22: 0 | P22: 4108206.643 | R22: 0 | U22: 627597.6198 | W22: 1426706.865 | X22: 12304.83493 | Y22: 765474.8505 | Z22: 6940290.813 | AA22: 2011, 2012, 2013, 2014, 2015, 2016, 2017, 2018 | AB22: 0 | AC22: 0 | AD22: 1869389.278 | AE22: 0 | AF22: 0
B23: SSSPO | C23: Zone substation | D23: C0016779 | E23: Substation upgrade - capacity | F23: Demand growth | G23: 110/11 | H23: 132 | I23: 172.7 | J23: 75 | K23: 143.3 | N23: 1273920.99 | P23: 3050359.994 | R23: 274144.3406 | U23: 1721242.61 | W23: 2536549.115 | X23: 937936.3334 | Y23: 1305321.874 | Z23: 11099475.26 | AA23: 2005,2006,2007,2008,2009,2010,2011,2012,2013,2014,2015,2016,2017 | AB23: 0 | AC23: 0 | AD23: 2588301.87 | AE23: 0 | AF23: 0
B24: SSSBH | C24: Zone substation | D24: C0062258 | E24: Substation upgrade - capacity | F24: Demand growth | G24: 33/11 | H24: 22.5 | I24: 45.72 | J24: 16.88 | K24: 33.54 | N24: 1513104.956 | P24: 334125.8042 | R24: 0 | U24: 1227438.195 | W24: 1069725.547 | X24: 407139.9404 | Y24: 1135332.206 | Z24: 5686866.649 | AA24: 2008,2009,2010,2011,2012,2013,2014,2015,2016,2017 | AB24: 0 | AC24: 0 | AD24: 1065034.571 | AE24: 0 | AF24: 0
B25: SSTBV | C25: Zone substation | D25: C0062469 | E25: New substation establishment | F25: Other | G25: 33/11 | H25: 0 | I25: 9.6 | J25: 0 | K25: 0 | N25: 332496.3502 | P25: 230132.6285 | R25: 114785.5096 | U25: 903230.1477 | W25: 1581808.082 | X25: 901364.4986 | Y25: 1646029.667 | Z25: 5709846.884 | AA25: 2007,2008,2009,2010,2011,2012,2013,2014,2015,2016,2017 | AB25: 0 | AC25: 0 | AD25: 2670295.231 | AE25: 0 | AF25: 0
B26: SSLTA | C26: Zone substation | D26: C0065231 | E26: Substation upgrade - capacity | F26: Demand growth | G26: 33/11 | H26: 40.8 | I26: 40.8 | J26: 23 | K26: 23 | P26: 487634.7573 | R26: 0 | U26: 1280600.883 | W26: 2094424.925 | X26: 1590607.526 | Y26: 2437402.445 | Z26: 7890670.535 | AA26: 2006,2009,2010,2011,2012,2013,2014,2015,2016,2017 | AB26: 0 | AC26: 0 | AD26: 4655169.213 | AE26: 0 | AF26: 0
B27: SST78 | C27: Subtransmission substation | D27: C0065317 | E27: Substation upgrade - capacity | F27: Demand growth | G27: 110/33 | H27: 66 | I27: 144 | J27: 48 | K27: 81 | P27: 529554.8385 | R27: 0 | U27: 1573623.809 | W27: 2409433.288 | X27: 914716.0445 | Y27: 2120350.365 | Z27: 7547678.345 | AA27: 2006,2007,2010,2011,2012,2013,2014,2015,2016,2017 | AB27: 0 | AC27: 0 | AD27: 2465784.995 | AE27: 0 | AF27: 0
B28: SSBDA | C28: Zone substation | D28: C0066172 | E28: New substation establishment | F28: Demand growth | G28: 33/11 | H28: 0 | I28: 55 | J28: 0 | K28: 31.25 | N28: 1187291.815 | P28: 985507.8079 | R28: 127640.5819 | U28: 3298970.292 | W28: 2594300.272 | X28: 1925253.046 | Y28: 3362956.174 | Z28: 13481919.99 | AA28: 2006,2007,2008,2009,2010,2011,2012,2013,2014,2015,2016,2017 | AB28: 0 | AC28: 0 | AD28: 5777398.44 | AE28: 0 | AF28: 0
B29: SSNVL | C29: Zone substation | D29: C0077294 | E29: Substation upgrade - capacity | F29: Demand growth | G29: 132/11 | H29: 62.34 | I29: 138.74 | J29: 38.37 | K29: 81 | N29: 1439193.334 | P29: 655263.754 | R29: 247118.532 | U29: 1856749.022 | W29: 2163056.629 | X29: 1029045.248 | Y29: 2653897.35 | Z29: 10044323.87 | AA29: 2008,2009,2010,2011,2012,2013,2014,2015,2016,2017 | AB29: 0 | AC29: 0 | AD29: 2798695.932 | AE29: 0 | AF29: 0
B30: SSRLB | C30: Zone substation | D30: C0077434 | E30: Substation upgrade - capacity | F30: Demand growth | G30: 33/11 | H30: 19.8 | I30: 30 | J30: 15 | K30: 17.2 | N30: 605951.8686 | P30: 516430.9408 | R30: 129818.2549 | U30: 1140690.666 | W30: 1085967.815 | X30: 746846.9561 | Y30: 1462245.616 | Z30: 5687952.117 | AA30: 2006,2009,2010,2011,2012,2013,2014,2015 | AB30: 0 | AC30: 0 | AD30: 2210868.388 | AE30: 0 | AF30: 0
B31: SSKVG | C31: Zone substation | D31: C0077846 | E31: New substation establishment | F31: Demand growth | G31: 110/11 | H31: 0 | I31: 132 | J31: 0 | K31: 75 | N31: 2731866.912 | P31: 3959243.173 | R31: 517182.1641 | U31: 5924808.107 | W31: 7455757.02 | X31: 6314184.321 | Y31: 10875311.75 | Z31: 37778353.45 | AA31: 2007,2008,2009,2010,2011,2012,2013,2014,2015,2016,2017 | AB31: 0 | AC31: 0 | AD31: 18061135.37 | AE31: 0 | AF31: 0
B32: SSGNA | C32: Zone substation | D32: C0078045 | E32: New substation establishment | F32: Demand growth | G32: 33/11 | H32: 0 | I32: 27.5 | J32: 0 | K32: 0 | N32: 581310.9048 | P32: 582205.0767 | R32: 147891.2615 | U32: 1692688.181 | W32: 1472242.316 | X32: 1081859.563 | Y32: 1956674.783 | Z32: 7514872.086 | AA32: 2009,2010,2011,2012,2013,2014,2015,2016,2017 | AB32: 0 | AC32: 0 | AD32: 3214992.927 | AE32: 0 | AF32: 0
B33: SSYMT | C33: Zone substation | D33: C0078158 | E33: New substation establishment | F33: Demand growth | G33: 33/11 | H33: 0 | I33: 30 | J33: 0 | K33: 0 | N33: 576330.1187 | P33: 454234.1936 | R33: 127545.6815 | U33: 1868582.148 | W33: 2288414.839 | X33: 1875311.836 | Y33: 2798523.483 | Z33: 9988942.3 | AA33: 2006,2010,2011,2012,2013,2014,2015,2016,2017 | AB33: 0 | AC33: 0 | AD33: 5579093.379 | AE33: 0 | AF33: 0
B34: SSYTA | C34: Zone substation | D34: C0138982 | E34: Substation upgrade - capacity | F34: Demand growth | G34: 110/11 | H34: 52.5 | I34: 66 | J34: 31.25 | K34: 62.5 | N34: 1348852.418 | P34: 2928111.747 | R34: 0 | U34: 3123034.276 | W34: 3181406.88 | X34: 2113217.758 | Y34: 3551623.51 | Z34: 16246246.59 | AA34: 2010,2011,2012,2013,2014,2015,2016,2017 | AB34: 0 | AC34: 0 | AD34: 6102106.612 | AE34: 0 | AF34: 0
B35: SSCVL | C35: Subtransmission substation | D35: C0131186 | E35: Substation upgrade - capacity | F35: Demand growth | G35: 110/33 | H35: 255.46 | I35: 286.5 | J35: 157.18 | K35: 162 | N35: 1729273.207 | P35: 46487.58884 | R35: 0 | U35: 575025.0324 | W35: 701155.8792 | X35: 1797622.391 | Y35: 718880.6715 | Z35: 5568444.77 | AA35: 2009,2010,2011,2012,2013,2014,2015,2016,2017 | AB35: 0 | AC35: 0 | AD35: 2072096.341 | AE35: 0 | AF35: 0
B36: MGP | C36: Zone substation | D36: C0062187 | E36: Substation upgrade - capacity | F36: Demand growth | G36: 33/11 | H36: 22.85 | I36: 45 | J36: 10.8 | K36: 16.88 | N36: 329197.8563 | P36: 458476.329 | R36: 126555.3748 | U36: 2133453.118 | W36: 2758849.069 | X36: 2003563.415 | Y36: 2986457.923 | Z36: 10796553.09 | AA36: 2006,2007,2008,2009,2010,2011,2012,2013,2014,2015,2016 | AB36: 0 | AC36: 0 | AD36: 5999765.369 | AE36: 0 | AF36: 0
B37: NBR | C37: Zone substation | D37: C0065092 | E37: Substation upgrade - capacity | F37: Other | G37: 33/11 | H37: 68.75 | I37: 55.63 | J37: 46.89 | K37: 40.5 | N37: 583946.7339 | P37: 569613.8089 | R37: 253319.576 | U37: 2429112.227 | W37: 1315161.65 | X37: 557759.8869 | Y37: 2041751.755 | Z37: 7750665.638 | AA37: 2006,2008,2009,2010,2011,2012,2013,2014,2015,2016 | AB37: 0 | AC37: 0 | AD37: 1387513.082 | AE37: 0 | AF37: 0
B38: BGY | C38: Zone substation | D38: C0065225 | E38: New substation establishment | F38: Demand growth | G38: 33/11 | H38: 0 | I38: 60 | J38: 0 | K38: 33.75 | N38: 1230479.243 | P38: 1173408.345 | R38: 253390.113 | U38: 3464720.046 | W38: 2777041.109 | X38: 1922375.372 | Y38: 3684349.693 | Z38: 14505763.92 | AA38: 2006,2007,2008,2009,2010,2011,2012,2013,2014,2016 | AB38: 0 | AC38: 0 | AD38: 5617997.058 | AE38: 0 | AF38: 0
B39: GYN | C39: Zone substation | D39: C0065303 | E39: New substation establishment | F39: Demand growth | G39: 33/11 | H39: 0 | I39: 27.82 | J39: 0 | K39: 0 | N39: 593318.8687 | P39: 503914.1979 | R39: 127095.5394 | U39: 5142783.988 | W39: 3406884.202 | X39: 2761036.643 | Y39: 4439226.976 | Z39: 16974260.41 | AA39: 2006,2007,2008,2009,2010,2011,2012,2013,2014,2016 | AB39: 0 | AC39: 0 | AD39: 7499193.611 | AE39: 0 | AF39: 0
B40: WMR | C40: Zone substation | D40: C0065333 | E40: New substation establishment | F40: Other | G40: 33/11 | H40: 0 | I40: 9.6 | J40: 0 | K40: 0 | N40: 328538.8926 | P40: 164583.1501 | R40: 46873.66726 | U40: 1454189.937 | W40: 1895743.029 | X40: 1389873.286 | Y40: 2283597.937 | Z40: 7563399.898 | AA40: 2006,2007,2008,2009,2010,2011,2012,2013,2014,2015,2016 | AB40: 0 | AC40: 0 | AD40: 4122529.532 | AE40: 0 | AF40: 0
B41: UMG | C41: Zone substation | D41: C0077354 | E41: Substation upgrade - capacity | F41: Demand growth | G41: 33/11 | H41: 55 | I41: 82.5 | J41: 31.25 | K41: 62.5 | N41: 612498.4254 | P41: 474413.0418 | R41: 126666.7489 | U41: 1180874.292 | W41: 1006901.206 | X41: 561014.7964 | Y41: 1529142.02 | Z41: 5491510.531 | AA41: 2006,2009,2010,2011,2012,2013,2014,2015,2016 | AB41: 0 | AC41: 0 | AD41: 1426886.443 | AE41: 0 | AF41: 0
B42: CNA | C42: Zone substation | D42: C0094795 | E42: Substation upgrade - capacity | F42: Demand growth | G42: 33/11 | H42: 5.2 | I42: 26.25 | J42: 0 | K42: 0 | N42: 364256.5825 | P42: 768900.2161 | R42: 0 | U42: 1944321.481 | W42: 1966081.373 | X42: 1268506.091 | Y42: 2565835.811 | Z42: 8877901.555 | AA42: 2008,2009,2010,2011,2012,2013,2014,2015 | AB42: 0 | AC42: 0 | AD42: 3803912.154 | AE42: 0 | AF42: 0
B43: DBS | C43: Zone substation | D43: C0112644 | E43: New substation establishment | F43: Demand growth | G43: 33/11 | H43: 0 | I43: 52.5 | J43: 0 | K43: 31.25 | N43: 1181033.761 | P43: 557373.7899 | R43: 126628.6961 | U43: 1562269.843 | W43: 1389606.916 | X43: 1074086.734 | Y43: 2104075.801 | Z43: 7995075.542 | AA43: 2008,2009,2010,2011,2012,2013,2014,2015 | AB43: 0 | AC43: 0 | AD43: 3177443.373 | AE43: 0 | AF43: 0
B44: SSMMC | C44: Zone substation | D44: C0017124 | E44: New substation establishment | F44: Demand growth | G44: 110/11 | H44: 0 | I44: 63.4 | J44: 0 | K44: 40.5 | N44: 0 | P44: 445933.53 | R44: 223964.1437 | U44: 6246393.001 | W44: 4112698.907 | X44: 3578102.977 | Y44: 5342978.623 | Z44: 19950071.18 | AA44: 2002-2015 | AB44: 0 | AC44: 0 | AD44: 9492835.779 | AE44: 0 | AF44: 0
B45: SSGFN BS | C45: Subtransmission substation | D45: C0065199 | E45: New substation establishment | F45: Demand growth | G45: 110/33 | H45: 0 | I45: 189.8 | J45: 0 | K45: 108 | N45: 2725877.216 | P45: 723843.4046 | R45: 108841.8174 | U45: 9471224.34 | W45: 2376823.632 | X45: 5530519.568 | Y45: 2907732.715 | Z45: 23844862.69 | AA45: 2005-2015 | AB45: 0 | AC45: 0 | AD45: 7292144.277 | AE45: 0 | AF45: 0
B46: SSSGT BS | C46: Subtransmission substation | D46: C0065215 | E46: Substation upgrade - capacity | F46: Demand growth | G46: 110/33 | H46: 96 | I46: 192 | J46: 0 | K46: 108 | N46: 1196979.755 | P46: 960236.8385 | R46: 192644.0529 | U46: 5812533.135 | W46: 2332429.423 | X46: 3746726.234 | Y46: 2486381.261 | Z46: 16727930.7 | AA46: 2005-2015 | AB46: 0 | AC46: 0 | AD46: 5397994.131 | AE46: 0 | AF46: 0
B47: SSWSE | C47: Zone substation | D47: C0076665 | E47: New substation establishment | F47: Demand growth | G47: 33/11 | H47: 0 | I47: 16.5 | J47: 0 | K47: 0 | N47: 437695.7689 | P47: 431692.9899 | R47: 0 | U47: 3062326.096 | W47: 3445718.753 | X47: 3171853.672 | Y47: 2897069.949 | Z47: 13446357.23 | AA47: 2005-2015 | AB47: 0 | AC47: 0 | AD47: 6292256.904 | AE47: 0 | AF47: 0
B48: SSNGE BSP | C48: Subtransmission substation | D48: C0103936 | E48: Substation upgrade - voltage | F48: Demand growth | G48: 110/33 | H48: 192 | I48: 249.5 | J48: 218 | K48: 197.5 | N48: 2478847.96 | P48: 207403.3552 | R48: 0 | U48: 901864.1801 | W48: 1103134.848 | X48: 344705.695 | Y48: 1126967.125 | Z48: 6162923.162 | AA48: 2008-2015 | AB48: 0 | AC48: 0 | AD48: 723021.6398 | AE48: 0 | AF48: 0
B49: SSCCY | C49: Zone substation | D49: C0112576 | E49: Substation upgrade - capacity | F49: Other | G49: 110/11 | H49: 119 | I49: 125.3 | J49: 83.84 | K49: 81 | N49: 1239981.315 | P49: 174576.3535 | R49: 0 | U49: 2044504.088 | W49: 1742488.783 | X49: 1712156.942 | Y49: 1446360.575 | Z49: 8360068.057 | AA49: 2007-2015 | AB49: 0 | AC49: 0 | AD49: 2411826.207 | AE49: 0 | AF49: 0
B50: AGT ZS | C50: Zone substation | D50: C0016959 | E50: New substation establishment | F50: Demand growth | G50: 33/11 | H50: 0 | I50: 54.8 | J50: 0 | K50: 31.25 | N50: 1054870.544 | P50: 5165584.439 | R50: 0 | U50: 9489287.38 | W50: 9391982.152 | X50: 1246661.378 | Y50: 3206020.152 | Z50: 29554406.05 | AA50: 2003-2013 | AB50: 0 | AC50: 0.31998 | AD50: 9377024.381 | AE50: 0 | AF50: 0
B51: AST ZS | C51: Zone substation | D51: C0016994 | E51: New substation establishment | F51: Demand growth | G51: 110/11 | H51: 0 | I51: 125.4 | J51: 0 | K51: 75 | N51: 2289274.111 | P51: 2996520.391 | R51: 605000.1793 | U51: 1801532.907 | W51: 2288118.781 | X51: 3177995.566 | Y51: 2025482.033 | Z51: 15183923.97 | AA51: 2002-2011 | AB51: 0 | AC51: 71.57587 | AD51: 5357723.066 | AE51: 0 | AF51: 0
B52: BDB ZS | C52: Zone substation | D52: C0062027 | E52: Substation upgrade - capacity | F52: Demand growth | G52: 110/11 | H52: 63 | I52: 116.5 | J52: 0 | K52: 75 | N52: 1287815.296 | P52: 870319.9209 | R52: 312315.6977 | U52: 1406556.605 | W52: 1181715.77 | X52: 502224.3086 | Y52: 1060196.438 | Z52: 6621144.036 | AA52: 2006-2012 | AB52: 0 | AC52: 0 | AD52: 1442110.695 | AE52: 0 | AF52: 0
B53: BIS ZS | C53: Zone substation | D53: C0016747 | E53: Substation upgrade - capacity | F53: Demand growth | G53: 33/11 | H53: 38.18 | I53: 41.6 | J53: 22.5 | K53: 24.3 | N53: 0 | P53: 930462.2868 | R53: 108226.271 | U53: 2624544.031 | W53: 1578591.976 | X53: 1626073.894 | Y53: 1587575.285 | Z53: 8455473.743 | AA53: 2006-2012 | AB53: 0 | AC53: 11.87852 | AD53: 3870619.637 | AE53: 0 | AF53: 0
B54: BKD ZS | C54: Zone substation | D54: C0017014 | E54: New substation establishment | F54: Demand growth | G54: 33/11 | H54: 0 | I54: 59.9 | J54: 0 | K54: 33.75 | N54: 986134.3726 | P54: 2085805.169 | R54: 0 | U54: 1846627.845 | W54: 1395701.282 | X54: 894254.4021 | Y54: 898778.9769 | Z54: 8107302.048 | AA54: 2004-2011 | AB54: 0 | AC54: 1.95588 | AD54: 1707938.535 | AE54: 0 | AF54: 0
B55: BLH BS | C55: Subtransmission substation | D55: C0065195 | E55: Substation upgrade - capacity | F55: Demand growth | G55: 110/33 | H55: 132 | I55: 259.6 | J55: 169.4 | K55: 196.9763 | N55: 2588540.276 | P55: 2582625.464 | R55: 0 | U55: 1755211.145 | W55: 1550693.28 | X55: 1288314.921 | Y55: 987731.3109 | Z55: 10753116.4 | AA55: 2005-2013 | AB55: 0 | AC55: 0 | AD55: 2114203.368 | AE55: 0 | AF55: 0
B56: BNH ZS | C56: Zone substation | D56: C0097859 | E56: Substation upgrade - capacity | F56: Demand growth | G56: 33/11 | H56: 9.6 | I56: 18 | J56: 0 | K56: 10.8 | N56: 0 | P56: 920346.8038 | R56: 106160.5033 | U56: 1865527.185 | W56: 660588.2148 | X56: 1466461.669 | Y56: 572733.6866 | Z56: 5591818.063 | AA56: 2008-2012 | AB56: 0 | AC56: 0 | AD56: 1934913.057 | AE56: 0 | AF56: 0
B57: BPN BS | C57: Subtransmission substation | D57: C0060182 | E57: Substation upgrade - capacity | F57: Demand growth | G57: 110/33 | H57: 88 | I57: 196.4 | J57: 0 | K57: 100 | N57: 2359689.23 | P57: 2181123.603 | R57: 198741.9175 | U57: 1486971.099 | W57: 1680065.604 | X57: 1142699.521 | Y57: 819742.859 | Z57: 9869033.833 | AA57: 2005-2010 | AB57: 0 | AC57: 2.20442 | AD57: 1668463.694 | AE57: 0 | AF57: 0
B58: BPN ZS | C58: Zone substation | D58: C0060182 | E58: Substation upgrade - capacity | F58: Demand growth | G58: 33/11 | H58: 55 | I58: 80.4 | J58: 31.25 | K58: 60.1 | N58: 2359689.23 | P58: 2181123.603 | R58: 198741.9175 | U58: 1486971.099 | W58: 1680065.604 | X58: 1142699.521 | Y58: 819742.859 | Z58: 9869033.833 | AA58: 2005-2010 | AB58: 0 | AC58: 2.20442 | AD58: 1668463.694 | AE58: 0 | AF58: 0
B59: BTA ZS | C59: Zone substation | D59: C0122016 | E59: Substation upgrade - capacity | F59: Demand growth | G59: 33/11 | H59: 24 | I59: 47.8 | J59: 0 | K59: 27 | N59: 586892.0048 | P59: 899351.2544 | R59: 102152.1012 | U59: 653853.7634 | W59: 1357597.614 | X59: 1087757.874 | Y59: 841651.6393 | Z59: 5529256.251 | AA59: 2009-2013 | AB59: 0 | AC59: 0 | AD59: 2523225.481 | AE59: 0 | AF59: 0
B60: CBT ZS | C60: Zone substation | D60: C0062055 | E60: New substation establishment | F60: Demand growth | G60: 33/11 | H60: 0 | I60: 27.5 | J60: 0 | K60: 0 | N60: 612565.6675 | P60: 995704.809 | R60: 108164.0314 | U60: 1200798.552 | W60: 1781069.354 | X60: 25178.28912 | Y60: 1208915.389 | Z60: 5932396.092 | AA60: 2006-2010 | AB60: 0 | AC60: 0 | AD60: 2254151.104 | AE60: 0 | AF60: 0
B61: CCY ZS | C61: Zone substation | D61: C0072237 | E61: Substation upgrade - capacity | F61: Demand growth | G61: 110/11 | H61: 59.6 | I61: 126.8 | J61: 47.5 | K61: 75 | N61: 1313993.669 | P61: 1041680.931 | R61: 195410.8002 | U61: 1633072.776 | W61: 1005172.614 | X61: 927821.0395 | Y61: 624616.0907 | Z61: 6741767.92 | AA61: 2006-2010 | AB61: 0 | AC61: 15.89037 | AD61: 1216514.299 | AE61: 0 | AF61: 0
B62: CLD ZS | C62: Zone substation | D62: C0062685 | E62: Substation upgrade - capacity | F62: Demand growth | G62: 110/11 | H62: 66 | I62: 115.077 | J62: 48 | K62: 81 | N62: 2281698.284 | P62: 931492.2935 | R62: 0 | U62: 2252999.662 | W62: 1755964.34 | X62: 2029676.402 | Y62: 585134.7434 | Z62: 9836965.726 | AA62: 2005-2013 | AB62: 0 | AC62: 0 | AD62: 3096546.527 | AE62: 0 | AF62: 0
B63: CMD ZS | C63: Zone substation | D63: C0017022 | E63: New substation establishment | F63: Demand growth | G63: 132/11 | H63: 0 | I63: 36 | J63: 0 | K63: 0 | N63: 954821.1777 | P63: 3029916.729 | R63: 0 | U63: 1777660.47 | W63: 1173964.009 | X63: 1633935.322 | Y63: 796473.198 | Z63: 9366770.905 | AA63: 2002-2010 | AB63: 0 | AC63: -0.2631 | AD63: 2203374.042 | AE63: 0 | AF63: 0
B64: CNB ZS | C64: Zone substation | D64: C0065233 | E64: New substation establishment | F64: Demand growth | G64: 33/11 | H64: 0 | I64: 30 | J64: 0 | K64: 0 | N64: 597931.6054 | P64: 1879996.515 | R64: 104470.8925 | U64: 1979380.365 | W64: 1840179.579 | X64: 1199361.018 | Y64: 893213.8891 | Z64: 8494533.864 | AA64: 2006-2012 | AB64: 0 | AC64: 6.37585 | AD64: 2469621.094 | AE64: 0 | AF64: 9834.996408
B65: CRB ZS | C65: Zone substation | D65: C0063586 | E65: Substation upgrade - capacity | F65: Demand growth | G65: 33/11 | H65: 18 | I65: 37.5 | J65: 0 | K65: 21.8 | N65: 573066.9088 | P65: 2975003.342 | R65: 201640.1885 | U65: 912109.0612 | W65: 510446.1804 | X65: 83973.12983 | Y65: 663605.7582 | Z65: 5919844.569 | AA65: 2005-2010 | AB65: 0 | AC65: 0 | AD65: 454189.5751 | AE65: 0 | AF65: 0
B66: CRY BS | C66: Switching station | D66: C0088603 | E66: Substation upgrade - voltage | F66: Voltage issues | G66: 132 | H66: 0 | I66: 0 | J66: 0 | K66: 0 | N66: 0 | P66: 688456.663 | R66: 995368.719 | U66: 1776726.477 | W66: 1302253.405 | X66: 3523.024237 | Y66: 1275128.379 | Z66: 6041456.667 | AA66: 2007-2012 | AB66: 0 | AC66: 31.18878 | AD66: 1148894.486 | AE66: 0 | AF66: 0
D67: Non material projects - [actual] | Z67: 104121918.4 | AE67: 88496.79048 | AF67: 0
B70: AUG232_1 | C70: AUG232_2 | D70: AUG232_3 | E70: AUG232_4 | F70: AUG232_5 | G70: AUG232_6 | H70: ED_AUG232_00001 | I70: ED_AUG232_00002 | J70: ED_AUG232_00003 | K70: ED_AUG232_00004 | L70: ED_AUG232_00005 | M70: ED_AUG232_00006 | N70: ED_AUG232_00007 | O70: ED_AUG232_00008 | P70: ED_AUG232_00009 | Q70: ED_AUG232_00010 | R70: ED_AUG232_00011 | S70: ED_AUG232_00012 | T70: ED_AUG232_00013 | U70: ED_AUG232_00014 | V70: ED_AUG232_00015 | W70: ED_AUG232_00016 | X70: ED_AUG232_00017 | Y70: ED_AUG232_00018 | Z70: ED_AUG232_00019 | AA70: ED_AUG232_00020 | AB70: ED_AUG232_00021
B71: 2.3.2 - AUGEX ASSET DATA - SUBTRANSMISSION LINES
B72: NOTE: DNSP MUST PROVIDE EXPENDITURE INFORMATION ON A PROJECT CLOSE BASIS.
B73: PROJECT DESCRIPTION AND CHANGES | L73: PLANT AND EQUIPMENT EXPENDITURE AND VOLUME | X73: OTHER EXPENDITURE | Z73: TOTAL DIRECT EXPENDITURE ($0's) | AA73: YEARS INCURRED | AB73: ALL RELATED PARTY CONTRACTS | AD73: ALL NON RELATED PARTYCONTRACTS | AE73: LAND AND EASEMENTS
B74: LINE ID | C74: PROJECT ID | D74: PROJECT TYPE | E74: PROJECT TRIGGER | F74: PROJECT TRIGGER (drop down) | G74: VOLTAGE (KV) | H74: ROUTE LINE LENGTH ADDED | L74: POLES/TOWERS (INCLUDING STRUCTURES, AND CIVIL WORKS) | O74: OVERHEAD LINES | R74: UNDERGROUND CABLES | U74: OTHER PLANT ITEM | V74: INSTALLATION (LABOUR) | X74: CIVIL WORKS | Y74: OTHER DIRECT | AB74: RELATED PARTY MARGINS | AC74: TOTAL | AE74: LAND PURCHASE | AF74: EASEMENTS
H75: KM ADDED | L75: POLES/TOWERS ADDED | M75: POLES/TOWERS UPGRADED | N75: EXPENDITURE ($0's) | O75: CIRCUIT KM ADDED | P75: CIRCUIT KM UPGRADED | Q75: EXPENDITURE ($0's) | R75: CIRCUIT KM ADDED | S75: CIRCUIT KM UPGRADED | T75: EXPENDITURE ($0's) | U75: EXPENDITURE ($0's) | V75: VOLUME | W75: EXPENDITURE ($0's) | X75: EXPENDITURE ($0's) | AB75: EXPENDITURE ($0's) | AE75: EXPENDITURE ($0's)
B76: F3880, F3881 | C76: C0101112 | D76: New line on new route - dual circuit | E76: Demand growth | F76: Demand growth | G76: Other | K76: 12.6 | N76: 0 | Q76: 0 | T76: 1660978.024 | U76: 0 | W76: 871065.3265 | X76: 413020.3711 | Y76: 4939414.468 | Z76: =SUM(N76,Q76,T76,U76,W76,X76,Y76) -> 7884478.19 | AA76: 2009, 2010, 2011, 2012, 2013, 2014, 2015, 2016, 2017, 2018 | AB76: 0 | AC76: 0 | AD76: 16081195.73 | AE76: 0 | AF76: 0 | AH76: New line on new route - single circuit
B77: F414, F560, F569, F557 | C77: C0112635 | D77: New line on new route - other | E77: Demand growth | F77: Demand growth | G77: Other | K77: 5.32 | N77: 137785.9745 | Q77: 12758.12551 | T77: 1519850.286 | U77: 0 | W77: 1610676.207 | X77: 37312.38384 | Y77: 1105859.737 | Z77: 4424242.714 | AA77: 2009, 2010, 2011, 2012, 2013, 2014, 2015, 2016, 2017, 2018 | AB77: 0 | AC77: 0 | AD77: 2969608.253 | AE77: 0 | AF77: 0 | AH77: New line on new route - dual circuit
B78: F402 | C78: C0062469 | D78: Line rebuild over existing route - single circuit | E78: Demand growth | F78: Other | G78: Other | K78: 0.3519 | N78: 11504.99337 | Q78: 12806.62228 | T78: 22917.44109 | U78: 1533415.589 | W78: 1581808.082 | X78: 901364.4986 | Y78: 1646029.667 | Z78: 5709846.893 | AA78: 2007,2008,2009,2010,2011,2012,2013,2014,2015,2016,2017 | AB78: 0 | AC78: 0 | AD78: 2670295.231 | AE78: 0 | AF78: 0 | AH78: New line on new route - other
B79: F3290, F671 | C79: C0065198 | D79: New line on new route - single circuit | E79: Demand growth | F79: Demand growth | G79: Other | K79: 3.7 | N79: 791.1700723 | Q79: 0 | T79: 1283946.44 | U79: 1302755.13 | W79: 1305670.051 | X79: 964075.1091 | Y79: 1794144.746 | Z79: 6651382.646 | AA79: 2007,2008,2009,2010,2011,2012,2013,2014,2015,2016,2017 | AB79: 0 | AC79: 0 | AD79: 2670753.128 | AE79: 0 | AF79: 0 | AH79: Line rebuild over existing route - single circuit
B80: F3460, F3461 | C80: C0066172 | D80: New line on new route - dual circuit | E80: Demand growth | F80: Demand growth | G80: Other | K80: 0.9528 | N80: 1173.294686 | Q80: 0 | T80: 760799.2483 | U80: 4837437.944 | W80: 2594300.272 | X80: 1925253.046 | Y80: 3362956.174 | Z80: 13481919.98 | AA80: 2006,2007,2008,2009,2010,2011,2012,2013,2014,2015,2016,2017 | AB80: 0 | AC80: 0 | AD80: 5777398.44 | AE80: 0 | AF80: 0 | AH80: Line rebuild over existing route - dual circuit
B81: F781, F7365 | C81: C0077846 | D81: New line on new route - single circuit | E81: Demand growth | F81: Demand growth | G81: Other | K81: 1.5 | N81: 0 | Q81: 0 | T81: 1640259.804 | U81: 11492840.55 | W81: 7455757.02 | X81: 6314184.321 | Y81: 10875311.75 | Z81: 37778353.45 | AA81: 2007,2008,2009,2010,2011,2012,2013,2014,2015,2016,2017 | AB81: 0 | AC81: 0 | AD81: 18061135.37 | AE81: 0 | AF81: 0 | AH81: Reconductor - Single circuit
B82: F357 | C82: C0098410 | D82: New line on new route - single circuit | E82: Demand growth | F82: Demand growth | G82: Other | K82: 11.167 | N82: 260664.8468 | Q82: 80473.44963 | T82: 1027385.915 | U82: 1792557.833 | W82: 2684299.972 | X82: 1663805.009 | Y82: 3277821.559 | Z82: 10787008.58 | AA82: 2007,2008,2009,2010,2011,2012,2013,2014,2016 | AB82: 0 | AC82: 0 | AD82: 4848607.778 | AE82: 0 | AF82: 0 | AH82: Reconductor - Dual circuit
B83: F917, F916 | C83: C0099183 | D83: New line on new route - dual circuit | E83: Demand growth | F83: Demand growth | G83: Other | K83: 6.368 | N83: 0 | Q83: 0 | T83: 10919946.27 | U83: 4004657.441 | W83: 3604558.574 | X83: 2586097.214 | Y83: 5931797.326 | Z83: 27047056.82 | AA83: 2008,2009,2010,2011,2012,2013,2014,2015,2016 | AB83: 0 | AC83: 0 | AD83: 7673255.646 | AE83: 0 | AF83: 0 | AH83: Reconductor - Other
B84: F3870 | C84: C0112451 | D84: New line on new route - single circuit | E84: Demand growth | F84: Demand growth | G84: Other | K84: 19.779 | N84: 610440.2676 | Q84: 206310.5872 | T84: 309326.3335 | U84: 2390646.451 | W84: 4194823.639 | X84: 926711.2415 | Y84: 3159905.644 | Z84: 11798164.16 | AA84: 2008,2009,2010,2011,2012,2013,2014,2015,2016,2017 | AB84: 0 | AC84: 0 | AD84: 2676180.851 | AE84: 0 | AF84: 0 | AH84: Line upgrade - raising/retensoring
B85: F3972 | C85: C0132124 | D85: New line on new route - single circuit | E85: Demand growth | F85: Demand growth | G85: Other | K85: 20.115 | N85: 281628.6905 | Q85: 129700.0685 | T85: 312262.9575 | U85: 1220711.759 | W85: 2068765.925 | X85: 664351.425 | Y85: 2317159.351 | Z85: 6994580.177 | AA85: 2010,2011,2012,2013,2014,2015,2016,2017 | AB85: 0 | AC85: 0 | AD85: 1898331.205 | AE85: 0 | AF85: 0 | AH85: Line upgrade - voltage upgrade
B86: F3960 | C86: C0078158 | D86: New line on new route - single circuit | E86: Demand growth | F86: Demand growth | G86: Other | K86: 0.865 | N86: 0 | Q86: 4843.163637 | T86: 613825.7531 | U86: 2408023.216 | W86: 2288414.839 | X86: 1875311.836 | Y86: 2798523.483 | Z86: 9988942.291 | AA86: 2006,2010,2011,2012,2013,2014,2015,2016,2017 | AB86: 0 | AC86: 0 | AD86: 5579093.379 | AE86: 0 | AF86: 0 | AH86: Line upgrade - capacity
B87: F3331, F3329, F338, F320, F3359 & F3330 | C87: C0065199 | D87: Line rebuild over existing route - single circuit | E87: Demand growth | F87: Demand growth | G87: Other | K87: 6.2 | N87: 63282.07737 | Q87: 74365.38007 | T87: 2495114.507 | U87: 10397526.92 | W87: 2376823.632 | X87: 5530519.568 | Y87: 2907732.715 | Z87: 23845364.8 | AA87: 2005-2015 | AB87: 0 | AC87: 0 | AD87: 7292144.277 | AE87: 0 | AF87: 0 | AH87: String spare circuit
B88: F740 & F739 | C88: C0065215 | D88: New line on new route - dual circuit | E88: Demand growth | F88: Demand growth | G88: Other | K88: 0.8 | N88: 0 | Q88: 1625.90481 | T88: 402035.8079 | U88: 7758732.069 | W88: 2332429.423 | X88: 3746726.234 | Y88: 2486381.261 | Z88: 16727930.7 | AA88: 2005-2015 | AB88: 0 | AC88: 0 | AD88: 5397994.131 | AE88: 0 | AF88: 0 | AH88: Other
B89: F334, F335 | C89: C0076665 | D89: New line on new route - dual circuit | E89: Demand growth | F89: Demand growth | G89: Other | K89: 8.8 | N89: 163682.8201 | Q89: 82038.74647 | T89: 84492.83874 | U89: 3601500.449 | W89: 3445718.753 | X89: 3171853.672 | Y89: 2897069.949 | Z89: 13446357.23 | AA89: 2005-2015 | AB89: 0 | AC89: 0 | AD89: 6292256.904 | AE89: 0 | AF89: 0
B90: F392, F473 | C90: C0112576 | D90: Line rebuild over existing route - dual circuit | E90: Demand growth | F90: Demand growth | G90: Other | K90: 0.81 | N90: 39785.77923 | Q90: 2559.136656 | T90: 480624.2482 | U90: 2936092.593 | W90: 1742488.783 | X90: 1712156.942 | Y90: 1446360.575 | Z90: 8360068.057 | AA90: 2007-2015 | AB90: 0 | AC90: 0 | AD90: 2411826.207 | AE90: 0 | AF90: 0
B91: F3340,F333, F349, F336, F342, F338 | C91: C0113238 | D91: Line rebuild over existing route - single circuit | E91: Demand growth | F91: Demand growth | G91: Other | K91: 5.205 | N91: 99234.66464 | Q91: 32053.38756 | T91: 972853.293 | U91: 1391503.488 | W91: 2419300.907 | X91: 1041110.036 | Y91: 2064914.951 | Z91: 8020970.728 | AA91: 2007-2015 | AB91: 0 | AC91: 0 | AD91: 3387019.119 | AE91: 0 | AF91: 0
B92: F303, F3364 | C92: C0071983 | D92: New line on new route - dual circuit | E92: Demand growth | F92: Demand growth | G92: Other - specify | K92: 3.3 | N92: 0 | Q92: 0 | T92: 2741127.057 | U92: 466970.4456 | W92: 261135.8232 | X92: 1642973.372 | Y92: 312608.6024 | Z92: 5424815.3 | AA92: 2006-2009 | AB92: 0 | AC92: 0 | AD92: 70249.10589 | AE92: 0 | AF92: 0
B93: F637, F638 | C93: C0016682 | D93: New line on new route - dual circuit | E93: Demand growth | F93: Demand growth | G93: Other - specify | K93: 3.928 | N93: 0 | Q93: 0 | T93: 2580384.923 | U93: 1519133.716 | W93: 584566.6889 | X93: 2061301.436 | Y93: 726615.0339 | Z93: 7472001.797 | AA93: 2003-2010 | AB93: 0 | AC93: 0 | AD93: 322406.1307 | AE93: 0 | AF93: 26084.14149
B94: F3640 | C94: C0110005 | D94: New line on new route - single circuit | E94: Demand growth | F94: Demand growth | G94: Other - specify | K94: 6.05 | N94: 1052.550686 | Q94: 0 | T94: 2727384.99 | U94: 1116747.349 | W94: 411460.7154 | X94: 4421645.007 | Y94: 494450.6157 | Z94: 9172741.228 | AA94: 2008-2012 | AB94: 0 | AC94: 0 | AD94: 277901.7721 | AE94: 0 | AF94: 0
B95: F3641, F3642 | C95: C0065162 | D95: New line on new route - dual circuit | E95: Demand growth | F95: Demand growth | G95: Other - specify | K95: 9.092 | N95: 196999.1441 | Q95: 120940.5862 | T95: 1836203.856 | U95: 963215.9393 | W95: 3325354.788 | X95: 17375.14702 | Y95: 672602.8776 | Z95: 7132692.338 | AA95: 2006-2012 | AB95: 0 | AC95: 0 | AD95: 1252964.014 | AE95: 0 | AF95: 0
B96: F584 | C96: C0074685 | D96: New line on new route - single circuit | E96: Demand growth | F96: Demand growth | G96: Other - specify | K96: 1 | N96: 8801.685607 | Q96: 4554.432397 | T96: 508432.1459 | U96: 1606799.994 | W96: 530662.0643 | X96: 1731718.225 | Y96: 755776.1647 | Z96: 5146744.712 | AA96: 2006-2010 | AB96: 0 | AC96: 3.221005386 | AD96: 383479.5287 | AE96: 0 | AF96: 0
B97: F3751, F3755 | C97: C0063527 | D97: New line on new route - dual circuit | E97: Demand growth | F97: Demand growth | G97: Other - specify | K97: 7.4 | N97: 0 | Q97: 0 | T97: 6147597.299 | U97: 2589971.926 | W97: 4650623.586 | X97: 3893073.296 | Y97: 1635914.459 | Z97: 18917180.57 | AA97: 2005-2011 | AB97: 0 | AC97: 0 | AD97: 211421.7717 | AE97: 0 | AF97: 1067.187105
B98: F481, F482, F313 | C98: C0073912 | D98: New line on new route - dual circuit | E98: Demand growth | F98: Demand growth | G98: Other - specify | K98: 5.3 | N98: 0 | Q98: 4243.299428 | T98: 3965972.049 | U98: 1042990.477 | W98: 3290635.586 | X98: 328098.9925 | Y98: 629035.3891 | Z98: 9260975.793 | AA98: 2006-2010 | AB98: 0 | AC98: 2.219937401 | AD98: 100904.952 | AE98: 0 | AF98: 1590.905483
B99: F7348, F727 | C99: C0019494 | D99: Line rebuild over existing route - dual circuit | E99: Demand growth | F99: Demand growth | G99: Other - specify | K99: 2.7 | N99: 8278.728285 | Q99: 15866.07369 | T99: 0 | U99: 1995251.117 | W99: 2444148.452 | X99: 173489.3418 | Y99: 945393.1239 | Z99: 5582426.836 | AA99: 2002-2013 | AB99: 0 | AC99: 0 | AD99: 1610922.843 | AE99: 0 | AF99: 0
B100: F309 | C100: C0075936 | D100: New line on new route - single circuit | E100: Demand growth | F100: Demand growth | G100: Other - specify | K100: 8.216 | N100: 129230.2663 | Q100: 37075.01595 | T100: 230580.9377 | U100: 1929595.239 | W100: 2380905.792 | X100: 659955.721 | Y100: 945243.0565 | Z100: 6312586.028 | AA100: 2005-2012 | AB100: 0 | AC100: 23.00046043 | AD100: 1804867.634 | AE100: 0 | AF100: 0
B101: F590, F591 | C101: C0001193 | D101: New line on new route - dual circuit | E101: Demand growth | F101: Demand growth | G101: Other - specify | K101: 4.768 | N101: 1484.728794 | Q101: 0 | T101: 3354784.516 | U101: 1655647.499 | W101: 674987.0548 | X101: 4100095.817 | Y101: 2040625.094 | Z101: 11827624.71 | AA101: 2002-2013 | AB101: 0 | AC101: 28.8812383 | AD101: 348206.9642 | AE101: 0 | AF101: 9451.887894
B102: F425A, F3550 | C102: C0078051 | D102: New line on new route - dual circuit | E102: Demand growth | F102: Demand growth | G102: Other - specify | K102: 2.569 | N102: 0 | Q102: 101.3968824 | T102: 2107371.39 | U102: 605159.9734 | W102: 413834.1728 | X102: 1977979.399 | Y102: 303960.2048 | Z102: 5408406.537 | AA102: 2008-2011 | AB102: 0 | AC102: 0 | AD102: 54139.32699 | AE102: 0 | AF102: 0
B103: F371, F484 | C103: C0017014 | D103: Reconductor - Single circuit | E103: Demand growth | F103: Demand growth | G103: Other - specify | K103: 0.65 | N103: 21597.09045 | Q103: 65093.87492 | T103: 136518.9805 | U103: 4670963.272 | W103: 1395701.282 | X103: 894254.4021 | Y103: 896963.6897 | Z103: 8081092.592 | AA103: 2004-2011 | AB103: 0 | AC103: 1.815287271 | AD103: 295761.6009 | AE103: 0 | AF103: 0
B104: F431, F457 | C104: C0016747 | D104: New line on new route - dual circuit | E104: Demand growth | F104: Demand growth | G104: Other - specify | K104: 3.17 | N104: 613.801503 | Q104: 0 | T104: 1325249.429 | U104: 2328219.183 | W104: 1578591.976 | X104: 1626073.894 | Y104: 1576550.617 | Z104: 8435298.901 | AA104: 2006-2012 | AB104: 0 | AC104: 11.02466723 | AD104: 1979035.662 | AE104: 0 | AF104: 0
B105: IPS13A, IPS3A | C105: C0065337 | D105: New line on new route - dual circuit | E105: Demand growth | F105: Demand growth | G105: Other - specify | K105: 2.7 | N105: 6818.093433 | Q105: 0 | T105: 1795533.042 | U105: 2396975.875 | W105: 631187.3048 | X105: 1911398.967 | Y105: 330022.916 | Z105: 7071936.198 | AA105: 2006-2010 | AB105: 0 | AC105: 0 | AD105: 203969.2261 | AE105: 0 | AF105: 28351.27368
B106: F843 | C106: C0060182 | D106: Line upgrade - capacity | E106: Demand growth | F106: Demand growth | G106: Other - specify | K106: 10.951 | N106: 7233.676792 | Q106: -8134.730791 | T106: 121851.8402 | U106: 6104964.398 | W106: 1680065.604 | X106: 1142699.521 | Y106: 817696.8973 | Z106: 9866377.207 | AA106: 2005-2010 | AB106: 0 | AC106: 2.045961698 | AD106: 440815.0061 | AE106: 0 | AF106: 0
B107: NMC13A | C107: C0075916 | D107: New line on new route - single circuit | E107: Demand growth | F107: Demand growth | G107: Other - specify | K107: 5.45 | N107: 158376.9927 | Q107: 52562.14838 | T107: 212516.8673 | U107: 2597358.928 | W107: 2087150.327 | X107: 456245.2635 | Y107: 593421.7041 | Z107: 6157632.231 | AA107: 2006-2011 | AB107: 0 | AC107: 0 | AD107: 809601.7693 | AE107: 0 | AF107: 0
B108: F487, F377 | C108: C0001714 | D108: New line on new route - dual circuit | E108: Demand growth | F108: Demand growth | G108: Other - specify | K108: 6 | N108: 144982.5806 | Q108: 99624.22357 | T108: 535850.624 | U108: 6374256.401 | W108: 2779100.825 | X108: 1323301.068 | Y108: 1742025.633 | Z108: 12999141.36 | AA108: 2002-2009 | AB108: 0 | AC108: 1.42031741 | AD108: 1200084.059 | AE108: 0 | AF108: 0
B109: F3700, F3701 | C109: C0074630 | D109: New line on new route - other | E109: Demand growth | F109: Demand growth | G109: Other - specify | K109: 1.5855 | N109: 2905.473138 | Q109: 29.68121097 | T109: 1303513.297 | U109: 2300846.303 | W109: 809062.8483 | X109: 3333098.53 | Y109: 1108714.498 | Z109: 8858170.631 | AA109: 2006-2012 | AB109: 0 | AC109: 4.78476342 | AD109: 852039.2557 | AE109: 0 | AF109: 0
B110: F3402, F3403, F3400, F3405 | C110: C0016959 | D110: New line on new route - dual circuit | E110: Demand growth | F110: Demand growth | G110: Other - specify | K110: 6.194 | N110: 17907.92383 | Q110: 0 | T110: 4816628.641 | U110: 10857408.37 | W110: 9391982.152 | X110: 1246661.378 | Y110: 3205723.173 | Z110: 29536311.63 | AA110: 2003-2013 | AB110: 0 | AC110: 0.2969791709 | AD110: 3432676.255 | AE110: 0 | AF110: 0
B111: F405, F3591 | C111: C0065233 | D111: New line on new route - dual circuit | E111: Demand growth | F111: Demand growth | G111: Other - specify | K111: 1.6 | N111: 61204.52254 | Q111: 17388.80891 | T111: 375531.3032 | U111: 4102629.811 | W111: 1840179.579 | X111: 1199361.018 | Y111: 887296.3485 | Z111: 8483591.391 | AA111: 2006-2012 | AB111: 0 | AC111: 5.917540618 | AD111: 737862.4309 | AE111: 0 | AF111: 9834.996408
B112: F489, F3120 | C112: C0077466 | D112: New line on new route - dual circuit | E112: Demand growth | F112: Demand growth | G112: Other - specify | K112: 0.88846 | N112: 56523.19786 | Q112: 4432.514827 | T112: 195221.3249 | U112: 2397778.948 | W112: 1927498.713 | X112: 1627787.376 | Y112: 802269.5357 | Z112: 7011511.61 | AA112: 2006-2012 | AB112: 0 | AC112: 0 | AD112: 1788803.129 | AE112: 0 | AF112: 0
B113: F3620, F470 | C113: C0017130 | D113: Line upgrade - raising/retensoring | E113: Demand growth | F113: Demand growth | G113: Other - specify | K113: 0.7 | N113: 20525.96813 | Q113: 0 | T113: 146905.2603 | U113: 3324962.834 | W113: 1691246.223 | X113: 1087764.157 | Y113: 458131.1898 | Z113: 6729535.633 | AA113: 2004-2009 | AB113: 0 | AC113: 2.994377553 | AD113: 1270559.384 | AE113: 0 | AF113: 0
B114: F3840 | C114: C0062102 | D114: Line upgrade - capacity | E114: Demand growth | F114: Demand growth | G114: Other - specify | K114: 0.3 | N114: 13670.36945 | Q114: 0 | T114: 273662.6214 | U114: 2471531.337 | W114: 517303.1805 | X114: 1234232.348 | Y114: 322276.5933 | Z114: 4832676.449 | AA114: 2005-2012 | AB114: 0 | AC114: 0 | AD114: 245492.9154 | AE114: 0 | AF114: 10108.60557
B115: F3600, F3601 | C115: C0065312 | D115: New line on new route - dual circuit | E115: Demand growth | F115: Demand growth | G115: Other - specify | K115: 3.63 | N115: 36705.74567 | Q115: 0 | T115: 183967.5796 | U115: 2646138.875 | W115: 930210.2006 | X115: 857938.0483 | Y115: 414089.0247 | Z115: 5069049.474 | AA115: 2006-2010 | AB115: 0 | AC115: 1.104553133 | AD115: 394133.5335 | AE115: 0 | AF115: 0
B116: F477 | C116: C0100546 | D116: New line on new route - single circuit | E116: Demand growth | F116: Demand growth | G116: Other - specify | K116: 17.353 | N116: 410301.0878 | Q116: 137071.3962 | T116: 55444.63203 | U116: 744099.7545 | W116: 2137963.298 | X116: 66702.85086 | Y116: 674018.7215 | Z116: 4225601.741 | AA116: 2008-2012 | AB116: 0 | AC116: 0 | AD116: 922209.2952 | AE116: 0 | AF116: 19919.74007
B117: F3590 | C117: C0095006 | D117: New line on new route - single circuit | E117: Demand growth | F117: Demand growth | G117: Other - specify | K117: 7.2733 | N117: 126506.7692 | Q117: 54230.46817 | T117: 380188.3205 | U117: 493621.231 | W117: 1950258.048 | X117: 371142.2986 | Y117: 430383.5176 | Z117: 3806330.653 | AA117: 2007-2011 | AB117: 0 | AC117: 0 | AD117: 1647119.859 | AE117: 0 | AF117: 0
Z118: 0
Z119: 0
Z120: 0
Z121: 0
Z122: 0
Z123: 0
Z124: 0
Z125: 0
Z126: 0
Z127: 0
Z128: 0
Z129: 0
C130: Non material projects - [actual] | Z130: 114356339.5 | AE130: 0 | AF130: 4703.249608

Sheet 2.3(a) Augex Cont'd
B1: REGULATORY REPORTING STATEMENT
B2: =INDEX(dms_TradingNameFull_List,MATCH(dms_TradingName,dms_TradingName_List)) -> Energex
B3: =IF(SUM(dms_SingleYear_Model)>0,("CATEGORY ANALYSIS "&CRY&" to "&FRY),("CATEGORY ANALYSIS "&CRY)) -> CATEGORY ANALYSIS 2008-09 to 2017-18
B4: 2.3 AUGEX PROJECT DATA
B7: There are TWO tables on this worksheet - each has been 'grouped' (and sub-grouped) for easy navigation. Both rows and columns have been grouped. See the Instructions sheet on how to group or ungroup tables.
B9: 2.3.1 - AUGEX ASSET DATA - SUBTRANSMISSION SUBSTATIONS, SWITCHING STATIONS AND ZONE SUBSTATIONS
B10: NOTE: DNSP MUST PROVIDE EXPENDITURE INFORMATION ON A PROJECT CLOSE BASIS.
B11: AUG231_1 | C11: AUG231_2 | D11: AUG231_3 | E11: AUG231_4 | F11: AUG231_5 | G11: AUG231_6 | H11: ED_AUG231_00001 | I11: ED_AUG231_00002 | J11: ED_AUG231_00003 | K11: ED_AUG231_00004 | L11: ED_AUG231_00005 | M11: ED_AUG231_00006 | N11: ED_AUG231_00007 | O11: ED_AUG231_00008 | P11: ED_AUG231_00009 | Q11: ED_AUG231_00010 | R11: ED_AUG231_00011 | U11: ED_AUG231_00012 | V11: ED_AUG231_00013 | W11: ED_AUG231_00014 | X11: ED_AUG231_00015 | Y11: ED_AUG231_00016 | Z11: ED_AUG231_00017 | AA11: ED_AUG231_00018 | AB11: ED_AUG231_00019 | AC11: ED_AUG231_00020 | AD11: ED_AUG231_00021 | AE11: ED_AUG231_00022 | AF11: ED_AUG231_00023
B12: PROJECT DESCRIPTION AND CHANGES | L12: PLANT AND EQUIPMENT EXPENDITURE AND VOLUME | X12: OTHER EXPENDITURE | Z12: TOTAL DIRECT EXPENDITURE ($0's) | AA12: YEARS INCURRED | AB12: ALL RELATED PARTY CONTRACTS | AD12: ALL NON RELATED PARTYCONTRACTS | AE12: LAND AND EASEMENTS
B13: SUBSTATION ID | C13: SUBSTATION TYPE (drop down) | D13: PROJECT ID | E13: PROJECT TYPE (drop down) | F13: PROJECT TRIGGER (drop down) | G13: VOLTAGE (KV) | H13: SUBSTATION RATING NORMAL CYCLIC (MVA) | J13: SUBSTATION RATING N-1 EMERGENCY (MVA) | L13: TRANSFORMERS | O13: SWITCHGEAR | Q13: CAPACITORS | U13: OTHER PLANT ITEM | V13: INSTALLATION (LABOUR) | X13: CIVIL WORKS | Y13: OTHER DIRECT | AB13: RELATED PARTY MARGINS | AC13: TOTAL | AE13: LAND PURCHASE | AF13: EASEMENTS
H14: PRE | I14: POST | J14: PRE | K14: POST | L14: UNITS ADDED | M14: MVA ADDED | N14: EXPENDITURE ($0's) | O14: UNITS ADDED | P14: EXPENDITURE ($0's) | Q14: MVAR ADDED | R14: EXPENDITURE ($0's) | U14: EXPENDITURE ($0's) | V14: VOLUME | W14: EXPENDITURE ($0's) | X14: EXPENDITURE ($0's) | AB14: EXPENDITURE ($0's) | AE14: EXPENDITURE ($0's)
B15: DRD ZS | C15: Zone substation | D15: C0066526 | E15: Substation upgrade - capacity | F15: Demand growth | G15: 33/11 | H15: 20.625 | I15: 55 | J15: 15.63 | K15: 33.75 | N15: 1124685.699 | P15: 1718932.862 | R15: 101541.9472 | U15: 1374131.896 | W15: 1161962.85 | X15: 634497.1496 | Y15: 312258.637 | Z15: =SUM(N15,P15,R15,U15,W15,X15,Y15) -> 6428011.041 | AA15: 2005-2009 | AB15: 0 | AC15: 0 | AD15: 1355930.176 | AE15: 0 | AF15: 0
B16: GTN ZS | C16: Zone substation | D16: C0060241 | E16: Substation upgrade - capacity | F16: Demand growth | G16: 33/11 | H16: 16.5 | I16: 54.9 | J16: 12.5 | K16: 31.25 | N16: 1110990.874 | P16: 1323626.494 | R16: 0 | U16: 1233038.408 | W16: 1229953.659 | X16: 746042.5837 | Y16: 776153.0585 | Z16: 6419805.077 | AA16: 2005-2009 | AB16: 0 | AC16: 1123.514582 | AD16: 1601310.492 | AE16: 0 | AF16: 0
B17: GVN ZS | C17: Zone substation | D17: C0065157 | E17: Substation upgrade - capacity | F17: Demand growth | G17: 33/11 | H17: 27.5 | I17: 54.8 | J17: 0 | K17: 31.25 | N17: 598933.982 | P17: 841155.4303 | R17: 209228.0814 | U17: 2209437.185 | W17: 537393.7964 | X17: 984245.4392 | Y17: 483223.5538 | Z17: 5863617.469 | AA17: 2006-2012 | AB17: 0 | AC17: 4269.416666 | AD17: 1243826.479 | AE17: 0 | AF17: 0
B18: HDA ZS | C18: Zone substation | D18: C0053200 | E18: Substation upgrade - capacity | F18: Demand growth | G18: 33/11 | H18: 11 | I18: 27.5 | J18: 0 | K18: 12.5 | N18: 548132.2413 | P18: 309767.9119 | R18: 99714.32526 | U18: 939680.9757 | W18: 2155384.136 | X18: 1864678.634 | Y18: 633583.863 | Z18: 6550942.088 | AA18: 2004-2010 | AB18: 0 | AC18: 0 | AD18: 3406323.247 | AE18: 0 | AF18: 0
B19: HPE ZS | C19: Zone substation | D19: C0065144 | E19: New substation establishment | F19: Demand growth | G19: 33/11 | H19: 0 | I19: 59.9 | J19: 0 | K19: 33.75 | N19: 1127375.413 | P19: 1754165.666 | R19: 100237.8766 | U19: 2143421.133 | W19: 1755107.622 | X19: 2043370.346 | Y19: 1104744.232 | Z19: 10028422.29 | AA19: 2005-2010 | AB19: 0 | AC19: 0 | AD19: 2911479.759 | AE19: 0 | AF19: 308.7662685
B20: HTL ZS | C20: Zone substation | D20: C0095687 | E20: Substation upgrade - capacity | F20: Demand growth | G20: 33/11 | H20: 28.43 | I20: 52.5 | J20: 18.1 | K20: 31.25 | N20: 1181334.379 | P20: 930871.2062 | R20: -951.2466151 | U20: 904530.7928 | W20: 865647.4412 | X20: 1057021.606 | Y20: 1022133.514 | Z20: 5960587.693 | AA20: 2008-2013 | AB20: 0 | AC20: 0 | AD20: 1883254.589 | AE20: 0 | AF20: 0
B21: HTL ZS | C21: Zone substation | D21: C0115717 | E21: Substation upgrade - capacity | F21: Demand growth | G21: 33/11 | H21: 52.4 | I21: 31.3 | J21: 52.4 | K21: 31.3 | N21: 0 | P21: 1293718.683 | R21: 203903.7381 | U21: 954909.8501 | W21: 1193045.853 | X21: 1040708.486 | Y21: 1255664.985 | Z21: 5941951.595 | AA21: 2008-2013 | AB21: 0 | AC21: 3239.289309 | AD21: 2012268.372 | AE21: 0 | AF21: 0
B22: IDY ZS | C22: Zone substation | D22: C0062595 | E22: Substation upgrade - capacity | F22: Demand growth | G22: 33/11 | H22: 33 | I22: 54.11 | J22: 18.75 | K22: 31.25 | N22: 1025988.007 | P22: 574289.8898 | R22: 201206.8502 | U22: 684579.6639 | W22: 961531.6559 | X22: 1794682.765 | Y22: 1084919.735 | Z22: 6327198.567 | AA22: 2005-2010 | AB22: 0 | AC22: 205.7637421 | AD22: 2596572.71 | AE22: 0 | AF22: 0
B23: IPS ZS | C23: Zone substation | D23: C0065337 | E23: Substation upgrade - capacity | F23: Demand growth | G23: 33/11 | H23: 27.5 | I23: 60 | J23: 0 | K23: 33.75 | N23: 518868.1265 | P23: 801620.9947 | R23: 0 | U23: 2884922.649 | W23: 631187.3048 | X23: 1911398.967 | Y23: 330022.916 | Z23: 7078020.958 | AA23: 2006-2010 | AB23: 0 | AC23: 0 | AD23: 2127499.363 | AE23: 0 | AF23: 28351.27368
B24: KMR ZS | C24: Zone substation | D24: C0016659 | E24: Substation upgrade - capacity | F24: Demand growth | G24: 33/11 | H24: 27.5 | I24: 59.7 | J24: 18.75 | K24: 33.75 | N24: 1039634.793 | P24: 418707.2281 | R24: 0 | U24: 1198276.949 | W24: 1360327.831 | X24: 1228821.253 | Y24: 551486.775 | Z24: 5797254.829 | AA24: 2005-2009 | AB24: 0 | AC24: 0 | AD24: 2152465.558 | AE24: 0 | AF24: 0
B25: LBS BS | C25: Subtransmission substation | D25: C0109445 | E25: Substation upgrade - capacity | F25: Demand growth | G25: 110/33 | H25: 160 | I25: 238.3 | J25: 92 | K25: 175.9 | N25: 1363523.87 | P25: 1232527.516 | R25: 683360.0891 | U25: 1199567.274 | W25: 713880.9869 | X25: 810594.1687 | Y25: 1044724.897 | Z25: 7048178.802 | AA25: 2008-2013 | AB25: 0 | AC25: 6064.591621 | AD25: 1201118.493 | AE25: 0 | AF25: 0
B26: LGL ZS | C26: Zone substation | D26: C0068698 | E26: New substation establishment | F26: Demand growth | G26: 33/11 | H26: 0 | I26: 54.8 | J26: 0 | K26: 31.25 | N26: 1111698.323 | P26: 2749673.055 | R26: 202647.4563 | U26: 2461036.755 | W26: 2144033.505 | X26: 1573808.168 | Y26: 1055682.1 | Z26: 11298579.36 | AA26: 2005-2010 | AB26: 0 | AC26: 2524.425046 | AD26: 2838590.334 | AE26: 0 | AF26: 0
B27: LGV ZS | C27: Zone substation | D27: C0017130 | E27: New substation establishment | F27: Demand growth | G27: 33/11 | H27: 0 | I27: 30 | J27: 0 | K27: 0 | N27: 576825.2573 | P27: 912187.6728 | R27: 100525.194 | U27: 1928397.595 | W27: 1691246.223 | X27: 1087764.157 | Y27: 461125.5674 | Z27: 6758071.667 | AA27: 2004-2009 | AB27: 0 | AC27: 2994.377553 | AD27: 2588384.26 | AE27: 0 | AF27: 0
B28: MDH ZS | C28: Zone substation | D28: C0065113 | E28: Substation upgrade - capacity | F28: Demand growth | G28: 33/11 | H28: 39.3 | I28: 52.4 | J28: 30 | K28: 62.6 | N28: 1744048.995 | P28: 187393.6063 | R28: 204743.9725 | U28: 893096.3708 | W28: 1848337.791 | X28: 114360.4808 | Y28: 734389.4136 | Z28: 5726370.63 | AA28: 2006-2012 | AB28: 0 | AC28: 0 | AD28: 1445300.702 | AE28: 0 | AF28: 0
B29: MDR BS | C29: Subtransmission substation | D29: C0059957 | E29: Substation upgrade - capacity | F29: Demand growth | G29: 110/33 | H29: 209.4 | I29: 209.4 | J29: 138.4 | K29: 138.4 | N29: 0 | P29: 1924316.484 | R29: 131430.9359 | U29: 1939302.609 | W29: 2746381.364 | X29: 573162.5699 | Y29: 1584601.576 | Z29: 8899195.54 | AA29: 2005-2010 | AB29: 0 | AC29: 4174.711514 | AD29: 2411854.404 | AE29: 0 | AF29: 0
B30: NMC ZS | C30: Zone substation | D30: C0075916 | E30: Substation upgrade - capacity | F30: Demand growth | G30: 33/11 | H30: 30 | I30: 59.7 | J30: 0 | K30: 33.75 | N30: 514409.3553 | P30: 828023.0073 | R30: 108486.803 | U30: 1634451.959 | W30: 2087150.327 | X30: 456245.2635 | Y30: 593421.7041 | Z30: 6222188.419 | AA30: 2006-2011 | AB30: 0 | AC30: 0 | AD30: 1328720.553 | AE30: 0 | AF30: 0
B31: NSD ZS | C31: Zone substation | D31: C0065137 | E31: New substation establishment | F31: Demand growth | G31: 110/11 | H31: 0 | I31: 131.2 | J31: 0 | K31: 75 | N31: 2522776.736 | P31: 861111.9981 | R31: 380609.816 | U31: 2225171.708 | W31: 2038366.751 | X31: 1648920.668 | Y31: 382149.5636 | Z31: 10059107.24 | AA31: 2005-2013 | AB31: 0 | AC31: 16586.75725 | AD31: 2913239.267 | AE31: 0 | AF31: 0
B32: NSW ZS | C32: Zone substation | D32: C0076613 | E32: Substation upgrade - capacity | F32: Demand growth | G32: 110/11 | H32: 58.4 | I32: 124.4 | J32: 34.5 | K32: 69 | N32: 1290150.218 | P32: 762181.9325 | R32: 208881.318 | U32: 1363711.721 | W32: 1158607.657 | X32: 1203725.474 | Y32: 729120.4511 | Z32: 6716378.772 | AA32: 2006-2012 | AB32: 0 | AC32: 2372.325082 | AD32: 1587373.521 | AE32: 0 | AF32: 0
B33: PGY SS | C33: Switching station | D33: C0016740 | E33: New substation establishment | F33: Voltage issues | G33: 33 | H33: 0 | I33: 30 | J33: 0 | K33: 0 | N33: 535177.2559 | P33: 1120799.772 | R33: 0 | U33: 774311.3849 | W33: 1325217.065 | X33: 1756678.035 | Y33: 1041381.251 | Z33: 6553564.763 | AA33: 2006-2013 | AB33: 0 | AC33: 0 | AD33: 2588370.932 | AE33: 0 | AF33: 2990.906392
B34: PPE ZS | C34: Zone substation | D34: C0112210 | E34: New substation establishment | F34: Demand growth | G34: 33/11 | H34: 0 | I34: 59.5 | J34: 0 | K34: 33.75 | N34: 1173405.3 | P34: 2304542.199 | R34: 206648.4705 | U34: 3101085.2 | W34: 1155614.969 | X34: 1832098.243 | Y34: 1125834.821 | Z34: 10899229.2 | AA34: 2008-2012 | AB34: 0 | AC34: 3654.380766 | AD34: 2561054.073 | AE34: 0 | AF34: 0
B35: RBA ZS | C35: Zone substation | D35: C0065160 | E35: Substation upgrade - capacity | F35: Demand growth | G35: 110/11 | H35: 66 | I35: 131 | J35: 37.5 | K35: 75 | N35: 2577710.653 | P35: 807544.93 | R35: 201077.09 | U35: 1539706.248 | W35: 1013628.984 | X35: 705491.0051 | Y35: 497842.6825 | Z35: 7343001.593 | AA35: 2005-2010 | AB35: 0 | AC35: 0 | AD35: 950739.6121 | AE35: 0 | AF35: 0
B36: SRD ZS | C36: Zone substation | D36: C0063310 | E36: Substation upgrade - capacity | F36: Demand growth | G36: 33/11 | H36: 33 | I36: 46.7 | J36: 32.25 | K36: 37.4 | N36: 0 | P36: 1129814.006 | R36: 0 | U36: 630362.5142 | W36: 1094234.847 | X36: 1582100.057 | Y36: 969322.5004 | Z36: 5405833.924 | AA36: 2004-2012 | AB36: 0 | AC36: 3246.547191 | AD36: 2200759.125 | AE36: 0 | AF36: 0
B37: SRH BS | C37: Subtransmission substation | D37: C0069121 | E37: Substation upgrade - capacity | F37: Demand growth | G37: 132 | H37: 143 | I37: 143 | J37: 81 | K37: 81 | N37: 0 | P37: 3274324.674 | R37: 0 | U37: 1264287.795 | W37: 1673506.001 | X37: 37619.30142 | Y37: 926224.7138 | Z37: 7175962.485 | AA37: 2005-2010 | AB37: 0 | AC37: 1698.63213 | AD37: 592843.96 | AE37: 0 | AF37: 0
B38: TSN ZS | C38: Zone substation | D38: C0065147 | E38: New substation establishment | F38: Demand growth | G38: 33/11 | H38: 0 | I38: 27.5 | J38: 0 | K38: 0 | N38: 588672.0792 | P38: 867592.5722 | R38: 0 | U38: 1148696.704 | W38: 1043765.094 | X38: 1352963.782 | Y38: 951246.7357 | Z38: 5952936.966 | AA38: 2005-2013 | AB38: 0 | AC38: 0 | AD38: 1720590.509 | AE38: 0 | AF38: 0
B39: WFD ZS | C39: Zone substation | D39: C0065193 | E39: Substation upgrade - capacity | F39: Demand growth | G39: 33/11 | H39: 12.32 | I39: 16.5 | J39: 7.5 | K39: 15 | N39: 478200.7931 | P39: 869988.3879 | R39: 103814.9451 | U39: 2637130.535 | W39: 918804.7823 | X39: 1034196.096 | Y39: 661702.3554 | Z39: 6703837.894 | AA39: 2008-2012 | AB39: 0 | AC39: 0 | AD39: 1742141.453 | AE39: 0 | AF39: 30164.05504
B40: WRD ZS | C40: Zone substation | D40: C0005517 | E40: Substation upgrade - capacity | F40: Demand growth | G40: 110/11 | H40: 52.6 | I40: 125.8 | J40: 31.3 | K40: 75 | N40: 2292334.942 | P40: 2204058.436 | R40: 0 | U40: 2068523.298 | W40: 4438676.222 | X40: 1703650.723 | Y40: 2763116.546 | Z40: 15470360.17 | AA40: 2002-2009 | AB40: 0 | AC40: 0 | AD40: 6827818.884 | AE40: 0 | AF40: 0
B41: WSO ZS | C41: Zone substation | D41: C0017017 | E41: New substation establishment | F41: Demand growth | G41: 33/11 | H41: 0 | I41: 52.5 | J41: 0 | K41: 31.25 | N41: 1142914.232 | P41: 1619959.556 | R41: 206334.4975 | U41: 1715666.212 | W41: 1563836.135 | X41: 1886558.383 | Y41: 778509.6427 | Z41: 8913778.658 | AA41: 2005-2011 | AB41: 0 | AC41: 3755.471369 | AD41: 2969148.598 | AE41: 0 | AF41: 9236.545975
B42: YDA ZS | C42: Zone substation | D42: C0077466 | E42: Substation upgrade - capacity | F42: Voltage issues | G42: 33/11 | H42: 8.8 | I42: 16.5 | J42: 0 | K42: 0 | N42: 434792.9223 | P42: 873054.3976 | R42: 0 | U42: 1383149.87 | W42: 1927498.713 | X42: 1627787.376 | Y42: 802269.5357 | Z42: 7048552.815 | AA42: 2006-2012 | AB42: 0 | AC42: 0 | AD42: 3422607.484 | AE42: 0 | AF42: 0
B43: GBS BS | C43: Subtransmission substation | D43: C0001714 | E43: New substation establishment | F43: Demand growth | G43: 110/33 | H43: 0 | I43: 66 | J43: 0 | K43: 0 | N43: 992485.6877 | P43: 3123658.142 | R43: 0 | U43: 3087279.4 | W43: 2779100.825 | X43: 1323301.068 | Y43: 1743445.951 | Z43: 13049271.07 | AA43: 2002-2009 | AB43: 0 | AC43: 1420.31741 | AD43: 3024115.324 | AE43: 0 | AF43: 0
B44: LBH ZS | C44: Zone substation | D44: C0062164 | E44: New substation establishment | F44: Demand growth | G44: 33/11 | H44: 0 | I44: 27.5 | J44: 0 | K44: 0 | N44: 508176.301 | P44: 841279.8538 | R44: 0 | U44: 1675408.188 | W44: 1667837.91 | X44: 1212149.546 | Y44: 522028.5537 | Z44: 6426880.352 | AA44: 2005-2009 | AB44: 0 | AC44: 102.4827803 | AD44: 2296123.12 | AE44: 0 | AF44: 0
B45: BHD ZS | C45: Zone substation | D45: C0065156 | E45: Substation upgrade - capacity | F45: Demand growth | G45: 110/11 | H45: 64.3 | I45: 120.4 | J45: 62.5 | K45: 81 | N45: 1133932.984 | P45: 470351.802 | R45: 190023.1314 | U45: 1573308.757 | W45: 1673826.814 | X45: 901376.9182 | Y45: 376925.8654 | Z45: 6319746.272 | AA45: 2005-2010 | AB45: 0 | AC45: 0 | AD45: 2058486.287 | AE45: 0 | AF45: 0
B46: BLN ZS | C46: Zone substation | D46: C0033135 | E46: New substation establishment | F46: Demand growth | G46: 33/11 | H46: 0 | I46: 27.5 | J46: 0 | K46: 0 | N46: 570551.9598 | P46: 841358.0756 | R46: 100377.6326 | U46: 1563352.27 | W46: 815264.1703 | X46: 1720911.563 | Y46: 458092.4038 | Z46: 6069908.075 | AA46: 2005-2013 | AB46: 0 | AC46: 5967.491925 | AD46: 2197240.25 | AE46: 0 | AF46: 0
B47: MDR ZS | C47: Zone substation | D47: C0065158 | E47: Substation upgrade - capacity | F47: Demand growth | G47: 110/11 | H47: 33 | I47: 59.8 | J47: 0 | K47: 37.5 | N47: 1266837.557 | P47: 827156.7392 | R47: 95563.51278 | U47: 1359004.688 | W47: 520090.9776 | X47: 1255111.549 | Y47: 261746.9702 | Z47: =SUM(N47,P47,R47,U47,W47,X47,Y47) -> 5585511.993 | AA47: 2005-2009 | AB47: 0 | AC47: 0 | AD47: 1393448.016 | AE47: 0 | AF47: 0
B48: STT ZS | C48: Zone substation | D48: C0065312 | E48: New substation establishment | F48: Demand growth | G48: 33/11 | H48: 0 | I48: 27.5 | J48: 0 | K48: 0 | N48: 560503.3385 | P48: 883044.8816 | R48: 98609.77213 | U48: 1355466.034 | W48: 930210.2006 | X48: 857938.0483 | Y48: 415193.5778 | Z48: 5100965.853 | AA48: 2006-2010 | AB48: 0 | AC48: 1104.553133 | AD48: 1278617.907 | AE48: 0 | AF48: 0
B49: ESK ZS | C49: Zone substation | D49: C0062102 | E49: New substation establishment | F49: Demand growth | G49: 33/11 | H49: 0 | I49: 9.6 | J49: 0 | K49: 0 | N49: 328495.4195 | P49: 869151.4854 | R49: 0 | U49: 1577343.119 | W49: 517303.1805 | X49: 1234232.348 | Y49: 322276.5933 | Z49: 4848802.146 | AA49: 2005-2012 | AB49: 0 | AC49: 0 | AD49: 1479725.263 | AE49: 0 | AF49: 10108.60557
B50: GYM ZS | C50: Zone substation | D50: C0082555 | E50: Substation upgrade - capacity | F50: Voltage issues | G50: 33/11 | H50: 110 | I50: 110 | J50: 46 | K50: 46 | N50: 0 | P50: 1414198.143 | R50: 243425.1708 | U50: 608165.8596 | W50: 794664.8344 | X50: 883687.1021 | Y50: 698334.2136 | Z50: 4642475.324 | AA50: 2006-2012 | AB50: 0 | AC50: 0 | AD50: 1216276.496 | AE50: 0 | AF50: 0
B51: MTG ZS | C51: Zone substation | D51: C0016940 | E51: Substation upgrade - capacity | F51: Demand growth | G51: 33/11 | H51: 37.98 | I51: 59.29 | J51: 25 | K51: 54 | N51: 587711.5979 | P51: 929471.8736 | R51: 0 | U51: 722929.9603 | W51: 779412.8593 | X51: 709103.6949 | Y51: 676658.9757 | Z51: 4405288.961 | AA51: 2003-2013 | AB51: 0 | AC51: 0 | AD51: 1031230.174 | AE51: 0 | AF51: 0
B52: LRE ZS | C52: Zone substation | D52: C0076516 | E52: New substation establishment | F52: Demand growth | G52: 33/11 | H52: 0 | I52: 18 | J52: 0 | K52: 0 | N52: 0 | P52: 692843.1989 | R52: 0 | U52: 1139289.421 | W52: 1168744.339 | X52: 885793.5864 | Y52: 705648.9151 | Z52: 4592319.46 | AA52: 2006-2010 | AB52: 0 | AC52: 0 | AD52: 1535590.565 | AE52: 0 | AF52: 0
B53: SFD BS | C53: Subtransmission substation | D53: C0121646 | E53: Substation upgrade - capacity | F53: Demand growth | G53: 110/33 | H53: 200 | I53: 262.3 | J53: 150 | K53: 198.1 | N53: 2577768.187 | P53: 111318.0081 | R53: 0 | U53: 300331.338 | W53: 814662.4158 | X53: 0 | Y53: 447522.4586 | Z53: 4251602.408 | AA53: 2009-2013 | AB53: 0 | AC53: 0 | AD53: 457490.2594 | AE53: 0 | AF53: 0
B54: BRD ZS | C54: Zone substation | D54: C0065115 | E54: Substation upgrade - capacity | F54: Demand growth | G54: 33/11 | H54: 30 | I54: 58.8 | J54: 0 | K54: 31.3 | N54: 532638.7513 | P54: 842666.3692 | R54: 188725.8731 | U54: 1154202.828 | W54: 1171827.101 | X54: 747276.9527 | Y54: 181743.41 | Z54: 4819081.285 | AA54: 2006-2009 | AB54: 0 | AC54: 0 | AD54: 1633334.134 | AE54: 0 | AF54: 0
B55: TMH ZS | C55: Zone substation | D55: C0016775 | E55: Substation upgrade - capacity | F55: Demand growth | G55: 33/11 | H55: 18 | I55: 35.5 | J55: 0 | K55: 21.8 | N55: 466626.0025 | P55: 824414.9303 | R55: 121482.6999 | U55: 856924.8591 | W55: 676362.4791 | X55: 950866.7921 | Y55: 567396.8044 | Z55: 4464074.567 | AA55: 2006-2010 | AB55: 0 | AC55: 0 | AD55: 1446542.997 | AE55: 0 | AF55: 0
B56: PGN ZS | C56: Zone substation | D56: C0062240 | E56: New substation establishment | F56: Demand growth | G56: 33/11 | H56: 0 | I56: 30 | J56: 0 | K56: 0 | N56: 559704.5353 | P56: 854110.4436 | R56: 100362.495 | U56: 857639.779 | W56: 667652.835 | X56: 959826.6011 | Y56: 415273.925 | Z56: 4414570.614 | AA56: 2003-2010 | AB56: 0 | AC56: 0 | AD56: 1581664.909 | AE56: 0 | AF56: 11663.76923
B57: 0 | C57: Zone substation | D57: C0112332 | E57: Substation upgrade - capacity | F57: Demand growth | G57: 33/11 | H57: 45.73 | I57: 49.5 | J57: 33.54 | K57: 46.9 | N57: 0 | P57: 642282.9359 | R57: 0 | U57: 595644.166 | W57: 803999.6124 | X57: 1018698.429 | Y57: 840225.1313 | Z57: 3900850.275 | AA57: 2008-2013 | AB57: 0 | AC57: 0 | AD57: 1534900.045 | AE57: 0 | AF57: 0
B58: 0 | C58: Zone substation | D58: C0138393 | E58: Other - specify | F58: Other - specify | G58: 0 | H58: 0 | I58: 0 | J58: 0 | K58: 0 | N58: 0 | P58: 0 | R58: 0 | U58: 10678.28435 | W58: 0 | X58: 0 | Y58: 387749.2053 | Z58: 398427.4896 | AA58: 2010-2013 | AB58: 0 | AC58: 0 | AD58: 242306.5103 | AE58: 9311274.809 | AF58: 0
B59: 0 | C59: Zone substation | D59: C0065189 | E59: Other - specify | F59: Other - specify | G59: 0 | H59: 0 | I59: 0 | J59: 0 | K59: 0 | N59: 0 | P59: 0 | R59: 0 | U59: 150.8377238 | W59: 14772.73222 | X59: 0 | Y59: 78718.86868 | Z59: 93642.43863 | AA59: 2005-2010 | AB59: 0 | AC59: 0 | AD59: 39514.09127 | AE59: 10651337.39 | AF59: 0
B60: 0 | C60: Zone substation | D60: C0078730 | E60: Other - specify | F60: Other - specify | G60: 0 | H60: 0 | I60: 0 | J60: 0 | K60: 0 | N60: 0 | P60: 0 | R60: 0 | U60: 3071.058655 | W60: 0 | X60: 0 | Y60: 140421.7813 | Z60: 143492.8399 | AA60: 2006-2012 | AB60: 0 | AC60: 0 | AD60: 50155.76137 | AE60: 7299997.816 | AF60: 19650.28887
B61: 0 | C61: Zone substation | D61: C0139017 | E61: Other - specify | F61: Other - specify | G61: 0 | H61: 0 | I61: 0 | J61: 0 | K61: 0 | N61: 0 | P61: 0 | R61: 0 | U61: 2974.339487 | W61: 0 | X61: 0 | Y61: 439135.9294 | Z61: 442110.2689 | AA61: 2010-2013 | AB61: 0 | AC61: 0 | AD61: 324508.9582 | AE61: 6087688.726 | AF61: 7111.833472
B62: MTN | C62: Subtransmission substation | D62: C0065138 | E62: New substation establishment | F62: Demand growth | G62: 110/33 | H62: 0 | I62: 252 | J62: 0 | K62: 150 | N62: 3675727.057 | P62: 1986582.249 | R62: 118049.0566 | U62: 19016875.88 | W62: 4639775.811 | X62: 10959934.73 | Y62: 4637140.683 | Z62: 45034085.47 | AA62: 2003 - 2014 | AB62: 0 | AC62: 317.5196747 | AD62: 13562763.91 | AE62: 0 | AF62: 0
B63: MMC | C63: Zone substation | D63: C0017124 | E63: New substation establishment | F63: Demand growth | G63: 110/11 | H63: 0 | I63: 63.41 | J63: 0 | K63: 37.5 | N63: 0 | P63: 3698201.535 | R63: 218642.581 | U63: 3300071.697 | W63: 3203314.32 | X63: 8696565.127 | Y63: 2907535.7 | Z63: 22024330.96 | AA63: 2006 -2014 | AB63: 0 | AC63: 13098.7449 | AD63: 10791270.8 | AE63: 0 | AF63: 0
B64: BWH | C64: Subtransmission substation | D64: C0061514 | E64: Substation upgrade - capacity | F64: Demand growth | G64: 110/33 | H64: 66 | I64: 132 | J64: 0 | K64: 75 | N64: 2425592.593 | P64: 2366727.867 | R64: 331358.4855 | U64: 2903772.388 | W64: 3051196.494 | X64: 1917631.243 | Y64: 2000632.539 | Z64: 14996911.61 | AA64: 2006 - 2014 | AB64: 0 | AC64: 0 | AD64: 3686429.672 | AE64: 0 | AF64: 0
B65: BWH | C65: Zone substation | D65: C0061514 | E65: Substation upgrade - capacity | F65: Demand growth | G65: 33/11 | H65: 20.64 | I65: 55 | J65: 15.64 | K65: 31.25 | N65: 2425592.593 | P65: 2366727.867 | R65: 331358.4855 | U65: 2903772.388 | W65: 3051196.494 | X65: 1917631.243 | Y65: 2000632.539 | Z65: 14996911.61 | AA65: 2009 - 2014 | AB65: 0 | AC65: 0 | AD65: 3686429.672 | AE65: 0 | AF65: 0
B66: PKW | C66: Zone substation | D66: C0078163 | E66: New substation establishment | F66: Demand growth | G66: 33/11 | H66: 0 | I66: 55 | J66: 0 | K66: 31.25 | N66: 1130343.04 | P66: 1936286.815 | R66: 105161.4891 | U66: 2945473.189 | W66: 2226156.273 | X66: 3397168.933 | Y66: 1708184.398 | Z66: 13448774.14 | AA66: 2009 - 2014 | AB66: 0 | AC66: 0 | AD66: 5259756.418 | AE66: 0 | AF66: 0
D67: Non material projects - [actual]
B70: AUG232_1 | C70: AUG232_2 | D70: AUG232_3 | E70: AUG232_4 | F70: AUG232_5 | G70: AUG232_6 | H70: ED_AUG232_00001 | I70: ED_AUG232_00002 | J70: ED_AUG232_00003 | K70: ED_AUG232_00004 | L70: ED_AUG232_00005 | M70: ED_AUG232_00006 | N70: ED_AUG232_00007 | O70: ED_AUG232_00008 | P70: ED_AUG232_00009 | Q70: ED_AUG232_00010 | R70: ED_AUG232_00011 | S70: ED_AUG232_00012 | T70: ED_AUG232_00013 | U70: ED_AUG232_00014 | V70: ED_AUG232_00015 | W70: ED_AUG232_00016 | X70: ED_AUG232_00017 | Y70: ED_AUG232_00018 | Z70: ED_AUG232_00019 | AA70: ED_AUG232_00020 | AB70: ED_AUG232_00021
B71: 2.3.2 - AUGEX ASSET DATA - SUBTRANSMISSION LINES
B72: NOTE: DNSP MUST PROVIDE EXPENDITURE INFORMATION ON A PROJECT CLOSE BASIS.
B73: PROJECT DESCRIPTION AND CHANGES | L73: PLANT AND EQUIPMENT EXPENDITURE AND VOLUME | X73: OTHER EXPENDITURE | Z73: TOTAL DIRECT EXPENDITURE ($0's) | AA73: YEARS INCURRED | AB73: ALL RELATED PARTY CONTRACTS | AD73: ALL NON RELATED PARTYCONTRACTS | AE73: LAND AND EASEMENTS
B74: LINE ID | C74: PROJECT ID | D74: PROJECT TYPE | E74: PROJECT TRIGGER | F74: PROJECT TRIGGER (drop down) | G74: VOLTAGE (KV) | H74: ROUTE LINE LENGTH ADDED | L74: POLES/TOWERS (INCLUDING STRUCTURES, AND CIVIL WORKS) | O74: OVERHEAD LINES | R74: UNDERGROUND CABLES | U74: OTHER PLANT ITEM | V74: INSTALLATION (LABOUR) | X74: CIVIL WORKS | Y74: OTHER DIRECT | AB74: RELATED PARTY MARGINS | AC74: TOTAL | AE74: LAND PURCHASE | AF74: EASEMENTS
H75: KM ADDED | L75: POLES/TOWERS ADDED | M75: POLES/TOWERS UPGRADED | N75: EXPENDITURE ($0's) | O75: CIRCUIT KM ADDED | P75: CIRCUIT KM UPGRADED | Q75: EXPENDITURE ($0's) | R75: CIRCUIT KM ADDED | S75: CIRCUIT KM UPGRADED | T75: EXPENDITURE ($0's) | U75: EXPENDITURE ($0's) | V75: VOLUME | W75: EXPENDITURE ($0's) | X75: EXPENDITURE ($0's) | AB75: EXPENDITURE ($0's) | AE75: EXPENDITURE ($0's)
Z76: =SUM(N76,Q76,T76,U76,W76,X76,Y76) -> 0 | AH76: New line on new route - single circuit
Z77: 0 | AH77: New line on new route - dual circuit
Z78: 0 | AH78: New line on new route - other
Z79: 0 | AH79: Line rebuild over existing route - single circuit
Z80: 0 | AH80: Line rebuild over existing route - dual circuit
Z81: 0 | AH81: Reconductor - Single circuit
Z82: 0 | AH82: Reconductor - Dual circuit
Z83: 0 | AH83: Reconductor - Other
Z84: 0 | AH84: Line upgrade - raising/retensoring
Z85: 0 | AH85: Line upgrade - voltage upgrade
Z86: 0 | AH86: Line upgrade - capacity
Z87: 0 | AH87: String spare circuit
Z88: 0 | AH88: Other
Z89: 0
Z90: 0
Z91: 0
Z92: 0
Z93: 0
Z94: 0
Z95: 0
Z96: 0
Z97: 0
Z98: 0
Z99: 0
Z100: 0
Z101: 0
Z102: 0
Z103: 0
Z104: 0
Z105: 0
Z106: 0
Z107: 0
Z108: =SUM(N108,Q108,T108,U108,W108,X108,Y108) -> 0
Z109: 0
Z110: 0
Z111: 0
Z112: 0
Z113: 0
Z114: 0
Z115: 0
Z116: 0
Z117: 0
Z118: 0
Z119: 0
Z120: 0
Z121: 0
Z122: 0
Z123: 0
Z124: 0
Z125: 0
Z126: 0
Z127: 0
Z128: 0
Z129: 0
C130: Non material projects - [actual]

Sheet 2.3(a) Augex Cont'd (2)
B1: REGULATORY REPORTING STATEMENT
B2: =INDEX(dms_TradingNameFull_List,MATCH(dms_TradingName,dms_TradingName_List)) -> Energex
B3: =IF(SUM(dms_SingleYear_Model)>0,("CATEGORY ANALYSIS "&CRY&" to "&FRY),("CATEGORY ANALYSIS "&CRY)) -> CATEGORY ANALYSIS 2008-09 to 2017-18
B4: 2.3 AUGEX PROJECT DATA
B7: There are TWO tables on this worksheet - each has been 'grouped' (and sub-grouped) for easy navigation. Both rows and columns have been grouped. See the Instructions sheet on how to group or ungroup tables.
B9: 2.3.1 - AUGEX ASSET DATA - SUBTRANSMISSION SUBSTATIONS, SWITCHING STATIONS AND ZONE SUBSTATIONS
B10: NOTE: DNSP MUST PROVIDE EXPENDITURE INFORMATION ON A PROJECT CLOSE BASIS.
B11: AUG231_1 | C11: AUG231_2 | D11: AUG231_3 | E11: AUG231_4 | F11: AUG231_5 | G11: AUG231_6 | H11: ED_AUG231_00001 | I11: ED_AUG231_00002 | J11: ED_AUG231_00003 | K11: ED_AUG231_00004 | L11: ED_AUG231_00005 | M11: ED_AUG231_00006 | N11: ED_AUG231_00007 | O11: ED_AUG231_00008 | P11: ED_AUG231_00009 | Q11: ED_AUG231_00010 | R11: ED_AUG231_00011 | U11: ED_AUG231_00012 | V11: ED_AUG231_00013 | W11: ED_AUG231_00014 | X11: ED_AUG231_00015 | Y11: ED_AUG231_00016 | Z11: ED_AUG231_00017 | AA11: ED_AUG231_00018 | AB11: ED_AUG231_00019 | AC11: ED_AUG231_00020 | AD11: ED_AUG231_00021 | AE11: ED_AUG231_00022 | AF11: ED_AUG231_00023
B12: PROJECT DESCRIPTION AND CHANGES | L12: PLANT AND EQUIPMENT EXPENDITURE AND VOLUME | X12: OTHER EXPENDITURE | Z12: TOTAL DIRECT EXPENDITURE ($0's) | AA12: YEARS INCURRED | AB12: ALL RELATED PARTY CONTRACTS | AD12: ALL NON RELATED PARTYCONTRACTS | AE12: LAND AND EASEMENTS
B13: SUBSTATION ID | C13: SUBSTATION TYPE (drop down) | D13: PROJECT ID | E13: PROJECT TYPE (drop down) | F13: PROJECT TRIGGER (drop down) | G13: VOLTAGE (KV) | H13: SUBSTATION RATING NORMAL CYCLIC (MVA) | J13: SUBSTATION RATING N-1 EMERGENCY (MVA) | L13: TRANSFORMERS | O13: SWITCHGEAR | Q13: CAPACITORS | U13: OTHER PLANT ITEM | V13: INSTALLATION (LABOUR) | X13: CIVIL WORKS | Y13: OTHER DIRECT | AB13: RELATED PARTY MARGINS | AC13: TOTAL | AE13: LAND PURCHASE | AF13: EASEMENTS
H14: PRE | I14: POST | J14: PRE | K14: POST | L14: UNITS ADDED | M14: MVA ADDED | N14: EXPENDITURE ($0's) | O14: UNITS ADDED | P14: EXPENDITURE ($0's) | Q14: MVAR ADDED | R14: EXPENDITURE ($0's) | U14: EXPENDITURE ($0's) | V14: VOLUME | W14: EXPENDITURE ($0's) | X14: EXPENDITURE ($0's) | AB14: EXPENDITURE ($0's) | AE14: EXPENDITURE ($0's)
B15: WRG | C15: Zone substation | D15: C0117468 | E15: Substation upgrade - capacity | F15: Demand growth | G15: 33/11 | H15: 41.25 | I15: 82.5 | J15: 31.25 | K15: 62.5 | N15: 1731494.71 | P15: 2689481.815 | R15: 106940.0172 | U15: 2247653.77 | W15: 1818145.388 | X15: 2060281.879 | Y15: 2158365.543 | Z15: =SUM(N15,P15,R15,U15,W15,X15,Y15) -> 12812363.12 | AA15: 2007 - 2014 | AB15: 0 | AC15: 2259.166566 | AD15: 3510963.046 | AE15: 0 | AF15: 1273.071633
B16: COR | C16: Zone substation | D16: C0076327 | E16: New substation establishment | F16: Demand growth | G16: 132/11 | H16: 0 | I16: 33 | J16: 0 | K16: 0 | N16: 0 | P16: 2417565.154 | R16: 0 | U16: 1657204.987 | W16: 2710144.861 | X16: 2703828.609 | Y16: 2432474.717 | Z16: 11921218.33 | AA16: 2005 - 2014 | AB16: 0 | AC16: 2569.767815 | AD16: 4778763.56 | AE16: 0 | AF16: 0
B17: CPS | C17: Zone substation | D17: C0065141 | E17: New substation establishment | F17: Demand growth | G17: 33/11 | H17: 0 | I17: 54.81 | J17: 0 | K17: 31.25 | N17: 1122736.769 | P17: 1806395.789 | R17: 103984.6336 | U17: 2105992.089 | W17: 2762647.46 | X17: 2052220.496 | Y17: 1794205.531 | Z17: 11748182.77 | AA17: 2006 - 2014 | AB17: 0 | AC17: 0 | AD17: 4385814.626 | AE17: 0 | AF17: 33127.48654
B18: GLY | C18: Zone substation | D18: C0062104 | E18: Substation upgrade - capacity | F18: Demand growth | G18: 33/11 | H18: 28.05 | I18: 60 | J18: 16.77 | K18: 33.75 | N18: 1172292.526 | P18: 570343.6832 | R18: 103066.2179 | U18: 1678089.163 | W18: 1625473.067 | X18: 2481636.043 | Y18: 2311075.598 | Z18: 9941976.299 | AA18: 2006 - 2014 | AB18: 0 | AC18: 0 | AD18: 3470152.643 | AE18: 0 | AF18: 0
B19: JBB | C19: Subtransmission substation | D19: C0076312 | E19: New substation establishment | F19: Demand growth | G19: 110/33 | H19: 0 | I19: 88 | J19: 0 | K19: 100 | N19: 1562323.042 | P19: 2011237.977 | R19: 0 | U19: 938398.7361 | W19: 1901769.945 | X19: 2706019.695 | Y19: 1301145.314 | Z19: 10420894.71 | AA19: 2009 - 2014 | AB19: 0 | AC19: 19511.83488 | AD19: 4096330.512 | AE19: 0 | AF19: 0
B20: RIS | C20: Zone substation | D20: C0078162 | E20: New substation establishment | F20: Demand growth | G20: 110/11 | H20: 0 | I20: 20.63 | J20: 0 | K20: 0 | N20: 0 | P20: 355707.0749 | R20: 0 | U20: 837100.0987 | W20: 2051329.514 | X20: 1149622.161 | Y20: 1179455.51 | Z20: 5573214.359 | AA20: 2006 - 2014 | AB20: 0 | AC20: 0 | AD20: 2896663.586 | AE20: 0 | AF20: 0
B21: MTB | C21: Zone substation | D21: C0076904 | E21: Substation upgrade - capacity | F21: Demand growth | G21: 33/11 | H21: 21.6 | I21: 39.6 | J21: 0 | K21: 20.3 | N21: 517631.6488 | P21: 911033.4933 | R21: 109663.6326 | U21: 1269588.686 | W21: 660185.358 | X21: 2242915.26 | Y21: 601247.2866 | Z21: 6312265.365 | AA21: 2006 - 2014 | AB21: 0 | AC21: 0 | AD21: 2513066.703 | AE21: 0 | AF21: 0
B22: BVL | C22: Zone substation | D22: C0065166 | E22: Substation upgrade - capacity | F22: Demand growth | G22: 33/11 | H22: 52.89 | I22: 37.18 | J22: 16.67 | K22: 30.1 | N22: 0 | P22: 502224.7088 | R22: 213415.6934 | U22: 636932.7389 | W22: 832517.8684 | X22: 1344697.804 | Y22: 1110851.537 | Z22: 4640640.35 | AA22: 2003 - 2014 | AB22: 0 | AC22: 2968.800313 | AD22: 2082517.664 | AE22: 0 | AF22: 0
Z23: 0
Z24: 0
Z25: 0
Z26: 0
Z27: 0
Z28: 0
Z29: 0
Z30: 0
Z31: 0
Z32: 0
Z33: 0
Z34: 0
Z35: 0
Z36: 0
Z37: 0
Z38: 0
Z39: 0
Z40: 0
Z41: 0
Z42: 0
Z43: 0
Z44: 0
Z45: 0
Z46: 0
Z47: 0
Z48: 0
Z49: 0
Z50: 0
Z51: 0
Z52: 0
Z53: 0
Z54: 0
Z55: 0
Z56: 0
Z57: 0
Z58: 0
Z59: 0
Z60: 0
Z61: 0
Z62: 0
Z63: 0
Z64: 0
Z65: 0
Z66: 0
B70: AUG232_1 | C70: AUG232_2 | D70: AUG232_3 | E70: AUG232_4 | F70: AUG232_5 | G70: AUG232_6 | H70: ED_AUG232_00001 | I70: ED_AUG232_00002 | J70: ED_AUG232_00003 | K70: ED_AUG232_00004 | L70: ED_AUG232_00005 | M70: ED_AUG232_00006 | N70: ED_AUG232_00007 | O70: ED_AUG232_00008 | P70: ED_AUG232_00009 | Q70: ED_AUG232_00010 | R70: ED_AUG232_00011 | S70: ED_AUG232_00012 | T70: ED_AUG232_00013 | U70: ED_AUG232_00014 | V70: ED_AUG232_00015 | W70: ED_AUG232_00016 | X70: ED_AUG232_00017 | Y70: ED_AUG232_00018 | Z70: ED_AUG232_00019 | AA70: ED_AUG232_00020 | AB70: ED_AUG232_00021
B71: 2.3.2 - AUGEX ASSET DATA - SUBTRANSMISSION LINES
B72: NOTE: DNSP MUST PROVIDE EXPENDITURE INFORMATION ON A PROJECT CLOSE BASIS.
B73: PROJECT DESCRIPTION AND CHANGES | L73: PLANT AND EQUIPMENT EXPENDITURE AND VOLUME | X73: OTHER EXPENDITURE | Z73: TOTAL DIRECT EXPENDITURE ($0's) | AA73: YEARS INCURRED | AB73: ALL RELATED PARTY CONTRACTS | AD73: ALL NON RELATED PARTYCONTRACTS | AE73: LAND AND EASEMENTS
B74: LINE ID | C74: PROJECT ID | D74: PROJECT TYPE | E74: PROJECT TRIGGER | F74: PROJECT TRIGGER (drop down) | G74: VOLTAGE (KV) | H74: ROUTE LINE LENGTH ADDED | L74: POLES/TOWERS (INCLUDING STRUCTURES, AND CIVIL WORKS) | O74: OVERHEAD LINES | R74: UNDERGROUND CABLES | U74: OTHER PLANT ITEM | V74: INSTALLATION (LABOUR) | X74: CIVIL WORKS | Y74: OTHER DIRECT | AB74: RELATED PARTY MARGINS | AC74: TOTAL | AE74: LAND PURCHASE | AF74: EASEMENTS
H75: KM ADDED | L75: POLES/TOWERS ADDED | M75: POLES/TOWERS UPGRADED | N75: EXPENDITURE ($0's) | O75: CIRCUIT KM ADDED | P75: CIRCUIT KM UPGRADED | Q75: EXPENDITURE ($0's) | R75: CIRCUIT KM ADDED | S75: CIRCUIT KM UPGRADED | T75: EXPENDITURE ($0's) | U75: EXPENDITURE ($0's) | V75: VOLUME | W75: EXPENDITURE ($0's) | X75: EXPENDITURE ($0's) | AB75: EXPENDITURE ($0's) | AE75: EXPENDITURE ($0's)
Z76: =SUM(N76,Q76,T76,U76,W76,X76,Y76) -> 0 | AH76: New line on new route - single circuit
Z77: 0 | AH77: New line on new route - dual circuit
Z78: 0 | AH78: New line on new route - other
Z79: 0 | AH79: Line rebuild over existing route - single circuit
Z80: 0 | AH80: Line rebuild over existing route - dual circuit
Z81: 0 | AH81: Reconductor - Single circuit
Z82: 0 | AH82: Reconductor - Dual circuit
Z83: 0 | AH83: Reconductor - Other
Z84: 0 | AH84: Line upgrade - raising/retensoring
Z85: 0 | AH85: Line upgrade - voltage upgrade
Z86: 0 | AH86: Line upgrade - capacity
Z87: 0 | AH87: String spare circuit
Z88: 0 | AH88: Other
Z89: 0
Z90: 0
Z91: 0
Z92: 0
Z93: 0
Z94: 0
Z95: 0
Z96: 0
Z97: 0
Z98: 0
Z99: 0
Z100: 0
Z101: 0
Z102: 0
Z103: 0
Z104: 0
Z105: 0
Z106: 0
Z107: 0
Z108: 0
Z109: 0
Z110: 0
Z111: 0
Z112: 0
Z113: 0
Z114: 0
Z115: 0
Z116: 0
Z117: 0
Z118: 0
Z119: 0
Z120: 0
Z121: 0
Z122: 0
Z123: 0
Z124: 0
Z125: 0
Z126: 0
Z127: 0
Z128: 0
Z129: 0
C130: Non material projects - [actual]

Sheet 2.3(b) Augex
B1: REGULATORY REPORTING STATEMENT
B2: =INDEX(dms_TradingNameFull_List,MATCH(dms_TradingName,dms_TradingName_List)) -> Energex
B3: =IF(SUM(dms_SingleYear_Model)>0,("CATEGORY ANALYSIS "&CRY&" to "&FRY),("CATEGORY ANALYSIS "&CRY)) -> CATEGORY ANALYSIS 2008-09 to 2017-18
B4: 2.3 AUGEX PROJECT DATA
B6: There are FOUR tables on this worksheet. These tables have been 'grouped' (and sub-grouped) for easy navigation. See the Instructions sheet on how to group or ungroup tables.
B8: NOTE: DNSP MUST PROVIDE EXPENDITURE INFORMATION ON AN AS INCURRED BASIS.
B9: 2.3.3 - AUGEX DATA - HV/LV FEEDERS AND DISTRIBUTION SUBSTATIONS
B10: PROJECT TYPE | C10: Units | D10: VOLUME (0's)
D11: =IF(dms_RPT="financial",dms_CRYf_y1,dms_CRYc_y1) -> 2008-09 | E11: =IF(dms_RPT="financial",dms_CRYf_y2,dms_CRYc_y2) -> 2009-10 | F11: =IF(dms_RPT="financial",dms_CRYf_y3,dms_CRYc_y3) -> 2010-11 | G11: =IF(dms_RPT="financial",dms_CRYf_y4,dms_CRYc_y4) -> 2011-12 | H11: =IF(dms_RPT="financial",dms_CRYf_y5,dms_CRYc_y5) -> 2012-13 | I11: =IF(dms_RPT="financial",dms_CRYf_y6,dms_CRYc_y6) -> 2013-14 | J11: =IF(dms_RPT="financial",dms_CRYf_y7,dms_CRYc_y7) -> 2014-15 | K11: =IF(dms_RPT="financial",dms_CRYf_y8,dms_CRYc_y8) -> 2015-16 | L11: =IF(dms_RPT="financial",dms_CRYf_y9,dms_CRYc_y9) -> 2016-17 | M11: =IF(dms_RPT="financial",dms_CRYf_y10,dms_CRYc_y10) -> 2017-18
B12: DESCRIPTOR METRICS - UNITS ADDED
B13: HV Feeder Augmentations - Overhead Lines | C13: Circuit Line Length in KM
B14: HV Feeder Augmentations - Underground Cables | C14: Circuit Line Length in KM
B15: LV Feeder Augmentations - Overhead Lines | C15: Circuit Line Length in KM
B16: LV Feeder Augmentations - Underground Cables | C16: Circuit Line Length in KM
B17: Distribution Substation Augmentations - Pole Mounted | C17: Number
B18: Distribution Substation Augmentations - Ground Mounted | C18: Number
B19: Distribution Substation Augmentations - Indoor | C19: Number
B20: DESCRIPTOR METRICS - UNITS UPGRADED
B21: HV Feeder Augmentations - Overhead Lines | C21: Circuit Line Length in KM
B22: HV Feeder Augmentations - Underground Cables | C22: Circuit Line Length in KM
B23: LV Feeder Augmentations - Overhead Lines | C23: Circuit Line Length in KM
B24: LV Feeder Augmentations - Underground Cables | C24: Circuit Line Length in KM
B25: Distribution Substation Augmentations - Pole Mounted | C25: Number
B26: Distribution Substation Augmentations - Ground Mounted | C26: Number
B27: Distribution Substation Augmentations - Indoor | C27: Number
B29: COST METRICS
B30: TOTAL DIRECT EXPENDITURE - Project Type | D30: EXPENDITURE ($0's)
D31: =IF(dms_RPT="financial",dms_CRYf_y1,dms_CRYc_y1) -> 2008-09 | E31: =IF(dms_RPT="financial",dms_CRYf_y2,dms_CRYc_y2) -> 2009-10 | F31: =IF(dms_RPT="financial",dms_CRYf_y3,dms_CRYc_y3) -> 2010-11 | G31: =IF(dms_RPT="financial",dms_CRYf_y4,dms_CRYc_y4) -> 2011-12 | H31: =IF(dms_RPT="financial",dms_CRYf_y5,dms_CRYc_y5) -> 2012-13 | I31: =IF(dms_RPT="financial",dms_CRYf_y6,dms_CRYc_y6) -> 2013-14 | J31: =IF(dms_RPT="financial",dms_CRYf_y7,dms_CRYc_y7) -> 2014-15 | K31: =IF(dms_RPT="financial",dms_CRYf_y8,dms_CRYc_y8) -> 2015-16 | L31: =IF(dms_RPT="financial",dms_CRYf_y9,dms_CRYc_y9) -> 2016-17 | M31: =IF(dms_RPT="financial",dms_CRYf_y10,dms_CRYc_y10) -> 2017-18
B32: HV Feeder Augmentations - Overhead Lines | D32: 14659606.47 | E32: 17438771.72 | F32: 19501123.76 | G32: 26914927.52 | H32: 20261226.57 | I32: 5525278.389 | J32: 13735697.53 | K32: 6458385.473 | L32: 2885837.098 | M32: 5026508.788
B33: HV Feeder Augmentations - Underground Cables | D33: 38872140.23 | E33: 43418716.57 | F33: 51344725.36 | G33: 43599249.47 | H33: 36066304.25 | I33: 7272921.283 | J33: 4013703.808 | K33: 2634670.4 | L33: 775147.7967 | M33: 2754190.525
B34: HV Feeder Non-Material Projects | D34: 17907121.34 | E34: 16466276.89 | F34: 16920625.18 | G34: 16901755.75 | H34: 19970002.11 | I34: 26952579.67 | J34: 14821410 | K34: 6369829.139 | L34: 9536807.671 | M34: 25319024.33
B35: LV Feeder Augmentations - Overhead Lines | D35: 1737452.007 | E35: 644033.2363 | F35: 1025598.791 | G35: 2902274.899 | H35: 3283383.476 | I35: 2492177.106 | J35: 10741355.18 | K35: 2240529.655 | L35: 1562923.413 | M35: 11195514.94
B36: LV Feeder Augmentations - Underground Cables | D36: 641984.3578 | E36: 660355.5886 | F36: 690669.8593 | G36: 1075946.367 | H36: 1349632.759 | I36: 330186.6831 | J36: 2607226.548 | K36: 570453.1153 | L36: 269520.4497 | M36: 779492.3407
B37: LV Feeder Non-Material Projects | D37: 847937.654 | E37: 836820.3103 | F37: 1055344.222 | G37: 826858.5343 | H37: 916250.2504 | I37: 1328919.403 | J37: 1363711.443 | K37: 700009.5222 | L37: 1097918.611 | M37: 3068264.906
B38: Distribution Substation Augmentations - Pole Mounted | D38: 11595672.83 | E38: 13869140.99 | F38: 2307226.605 | G38: 6507640.3 | H38: 7729461.19 | I38: 14461102.28 | J38: 5659606.802 | K38: 3206030.927 | L38: 3940208.491 | M38: 14134805.79
B39: Distribution Substation Augmentations - Ground Mounted | D39: 26042992.66 | E39: 21174656.01 | F39: 16248274.2 | G39: 8151689.757 | H39: 3621042.655 | I39: 2398616.322 | J39: 1363664.638 | K39: 398421.0763 | L39: 777038.1334 | M39: 771848.2401
B40: Distribution Substation Augmentations - Indoor | D40: 869490.4037 | E40: 874034.5923 | F40: 543622.727 | G40: 173933.4828 | H40: 256566.9214 | I40: 455151.755 | J40: 0 | K40: 487422.2293 | L40: 0 | M40: 0
B44: 2.3.4 - AUGEX - TOTAL EXPENDITURE
B45: AUGMENTATION CAPEX (as incurred) | D45: EXPENDITURE ($0's)
D46: =IF(dms_RPT="financial",dms_CRYf_y1,dms_CRYc_y1) -> 2008-09 | E46: =IF(dms_RPT="financial",dms_CRYf_y2,dms_CRYc_y2) -> 2009-10 | F46: =IF(dms_RPT="financial",dms_CRYf_y3,dms_CRYc_y3) -> 2010-11 | G46: =IF(dms_RPT="financial",dms_CRYf_y4,dms_CRYc_y4) -> 2011-12 | H46: =IF(dms_RPT="financial",dms_CRYf_y5,dms_CRYc_y5) -> 2012-13 | I46: =IF(dms_RPT="financial",dms_CRYf_y6,dms_CRYc_y6) -> 2013-14 | J46: =IF(dms_RPT="financial",dms_CRYf_y7,dms_CRYc_y7) -> 2014-15 | K46: =IF(dms_RPT="financial",dms_CRYf_y8,dms_CRYc_y8) -> 2015-16 | L46: =IF(dms_RPT="financial",dms_CRYf_y9,dms_CRYc_y9) -> 2016-17 | M46: =IF(dms_RPT="financial",dms_CRYf_y10,dms_CRYc_y10) -> 2017-18
B47: Subtransmission Substations, Switching Stations, Zone Substations | D47: 116245826.9 | E47: 151416383 | F47: 150566183.6 | G47: 144206797.7 | H47: 136994904.2 | I47: 115228326.6 | J47: 43252867.66 | K47: 16229590.12 | L47: 6758277.292 | M47: 7653787.174
B48: Subtransmission Lines | D48: 41942952.81 | E48: 48203791.54 | F48: 58647277.95 | G48: 31415110.36 | H48: 22118493.43 | I48: 12729229.32 | J48: 19607569.92 | K48: 19814905.91 | L48: 6478021.229 | M48: 2565023.146
B49: HV Feeders | D49: 71431409.37 | E49: 77289531.27 | F49: 87754990.87 | G49: 87390187.86 | H49: 76201783.78 | I49: 39750779.34 | J49: 32570811.34 | K49: 15462885.03 | L49: 13197785.99 | M49: 33099738.6
B50: HV Feeders - Land Purchases and Easements | D50: 0 | E50: 26160.81991 | F50: 2320.052538 | G50: 16618.10166 | H50: 87783.20974 | I50: 26105.91513 | J50: 54890.08158 | K50: 0 | L50: 0 | M50: 0
B51: Distribution Substations | D51: 38504135.4 | E51: 35914081.55 | F51: 19097129.46 | G51: 14831714.85 | H51: 11602777.89 | I51: 17314870.36 | J51: 7023271.44 | K51: 4091874.242 | L51: 4717242.046 | M51: 14906661.57
B52: Distribution Substations - Land Purchases And Easements | D52: 0 | E52: 0 | F52: 0 | G52: 0 | H52: 3081.029771 | I52: 0 | J52: 20742.49804 | K52: 0 | L52: 0 | M52: 0
B53: LV Feeders | D53: 3227031.159 | E53: 2140985.58 | F53: 2771323.499 | G53: 4804578.12 | H53: 5548459.194 | I53: 4151283.192 | J53: 14712293.17 | K53: 3510992.274 | L53: 2930353.008 | M53: 15043274.9
B54: LV Feeders - Land Purchases And Easements | D54: 5.902213657 | E54: 0 | F54: 0 | G54: 0 | H54: 227.9134555 | I54: 0 | J54: 2873.85216 | K54: 0 | L54: 0 | M54: 0
B55: Other Assets | D55: 27861130.94 | E55: 28694112.52 | F55: 19839416.13 | G55: 23405244.01 | H55: 8460907.356 | I55: 4066079.571 | J55: 8357382.204 | K55: 34414589.5 | L55: 21528678.75 | M55: 12622184.08

Sheet 2.5 Connections
B1: REGULATORY REPORTING STATEMENT
B2: =INDEX(dms_TradingNameFull_List,MATCH(dms_TradingName,dms_TradingName_List)) -> Energex
B3: =IF(SUM(dms_SingleYear_Model)>0,("CATEGORY ANALYSIS "&CRY&" to "&FRY),("CATEGORY ANALYSIS "&CRY)) -> CATEGORY ANALYSIS 2008-09 to 2017-18
B4: 2.5 CONNECTIONS
B6: There are THREE tables on this worksheet - each has been 'grouped' (and sub-grouped) for easy navigation. See the Instructions sheet on how to group or ungroup tables.
B8: 2.5.1 - DESCRIPTOR METRICS
E9: VOLUMES AND EXPENDITURE
D10: Units | E10: =IF(dms_RPT="financial",dms_CRYf_y1,dms_CRYc_y1) -> 2008-09 | F10: =IF(dms_RPT="financial",dms_CRYf_y2,dms_CRYc_y2) -> 2009-10 | G10: =IF(dms_RPT="financial",dms_CRYf_y3,dms_CRYc_y3) -> 2010-11 | H10: =IF(dms_RPT="financial",dms_CRYf_y4,dms_CRYc_y4) -> 2011-12 | I10: =IF(dms_RPT="financial",dms_CRYf_y5,dms_CRYc_y5) -> 2012-13 | J10: =IF(dms_RPT="financial",dms_CRYf_y6,dms_CRYc_y6) -> 2013-14 | K10: =IF(dms_RPT="financial",dms_CRYf_y7,dms_CRYc_y7) -> 2014-15 | L10: =IF(dms_RPT="financial",dms_CRYf_y8,dms_CRYc_y8) -> 2015-16 | M10: =IF(dms_RPT="financial",dms_CRYf_y9,dms_CRYc_y9) -> 2016-17 | N10: =IF(dms_RPT="financial",dms_CRYf_y10,dms_CRYc_y10) -> 2017-18
B11: RESIDENTIAL | C11: Underground connections | D11: 0's
C12: Overhead connections | D12: 0's
C13: Distribution substation installed (MVA added) | D13: MVA
C14: Distribution substations installed | D14: 0's
C15: Distribution substation installed (total spend $0's) | D15: total spend $0s | E15: 6963395.291 | F15: 6665142.196 | G15: 5578578.545 | H15: 4275351.879 | I15: 2779309.876 | J15: 1874010.645 | K15: 2039475.587 | L15: 2591389.652 | M15: 2396308.197 | N15: 1796034.196
C16: Augmentation HV (net circuit KM added) | D16: KM
C17: Augmentation HV (total spend $0's) | D17: total spend $0s | E17: 440260.1606 | F17: 461043.0082 | G17: 294174.4335 | H17: 307107.2982 | I17: 329541.2709 | J17: 325091.95 | K17: 993751.6267 | L17: 596749.7264 | M17: 457710.0067 | N17: 398776.8203
C18: Augmentation LV (net circuit KM added) | D18: KM
C19: Augmentation LV (total spend $0's) | D19: total spend $0s | E19: 19416856.14 | F19: 17241052.05 | G19: 20774145.1 | H19: 21317415.11 | I19: 20592384.73 | J19: 23029675.99 | K19: 11018992.82 | L19: 8334542.14 | M19: 6988949.903 | N19: 9599666.135
C20: Mean days to connect residential customer with LV single phase connection | D20: 0's
C21: Volume of GSL breaches for residential customers | D21: 0's
C22: Volume of customer complaints relating to connection services | D22: 0's
C23: GSL payments | D23: $0s | E23: 648027.3067 | F23: 21592.07136 | G23: 29740.23724 | H23: 9011.848732 | I23: 1969.803001 | J23: 2860.002435 | K23: 3299.420027 | L23: 4093.023352 | M23: 110289.9324 | N23: 10584.08228
B24: COMMERCIAL/INDUSTRIAL | C24: Underground connections | D24: 0's
C25: Overhead connections | D25: 0's
C26: Distribution substation installed (MVA added) | D26: MVA
C27: Distribution substations installed (0's) | D27: 0's
C28: Distribution substation installed (total spend ($0's) | D28: total spend $0s | E28: 58112868.38 | F28: 48493057.54 | G28: 41937009.13 | H28: 32977336.19 | I28: 24622852.78 | J28: 24590236.54 | K28: 31777687.1 | L28: 31053934.48 | M28: 30353331.88 | N28: 24002585.7
C29: Augmentation HV (net circuit KM added) | D29: KM
C30: Augmentation HV (total spend $0's) | D30: total spend $0s | E30: 20945599.84 | F30: 13665249.51 | G30: 11999908.72 | H30: 10200328.68 | I30: 19065939.49 | J30: 10601778.07 | K30: 10220036.17 | L30: 23168299.7 | M30: 20707961.85 | N30: 21267435.79
C31: Augmentation LV (net circuit KM added) | D31: KM
C32: Augmentation LV (total spend $0's) | D32: total spend $0s | E32: 3952760.721 | F32: 2886403.792 | G32: 4445876.107 | H32: 3991835.939 | I32: 4947303.064 | J32: 3406017.276 | K32: 3001041.987 | L32: 2972434.538 | M32: 4602437.717 | N32: 2465804.042
B33: SUBDIVISION | C33: Underground connections | D33: 0's
C34: Overhead connections | D34: 0's
C35: Distribution substation installed (MVA added) | D35: MVA
C36: Distribution substations installed | D36: 0's
C37: Distribution substation installed (total spend $0's) | D37: total spend $0s | E37: 19608005 | F37: 10869602.95 | G37: 2067926.107 | H37: 932769.632 | I37: 711340.5897 | J37: 269595.3642 | K37: 393340.3586 | L37: 118133.4896 | M37: 209060.3474 | N37: 106647.0084
C38: Augmentation HV (net circuit KM added) | D38: KM
C39: Augmentation HV (total spend $0's) | D39: total spend $0s | E39: 1541288.097 | F39: 1189166.555 | G39: 2517172.831 | H39: 4148238.849 | I39: 2611867.716 | J39: 2256552.518 | K39: 4076101.93 | L39: 5317783.645 | M39: 3953010.13 | N39: 3549672.311
C40: Augmentation LV (net circuit KM added) | D40: KM
C41: Augmentation LV (total spend $0's) | D41: total spend $0s | E41: 2299010.773 | F41: 1426944.827 | G41: 421281.0745 | H41: 119301.0443 | I41: 277365.9002 | J41: 148254.2398 | K41: 67435.32503 | L41: 22703.62741 | M41: 36584.59836 | N41: 23327.40128
C42: Cost per lot ($) | D42: $0s | E42: 1131019.867 | F42: 750582.4193 | G42: 347810.1995 | H42: 399562.7757 | I42: 341902.403 | J42: 257873.1195 | K42: 298.3115122 | L42: 205.8924548 | M42: 235.9296121 | N42: 201.8235367
B43: EMBEDDED GENERATION | C43: Underground connections | D43: 0's
C44: Overhead connections | D44: 0's
C45: Distribution substation installed (MVA added) | D45: MVA
C46: Distribution substations installed | D46: 0's
C47: Distribution substation installed (total spend $0's) | D47: total spend $0s | E47: 0 | F47: 0 | G47: 0 | H47: 0 | I47: 0 | J47: 0 | K47: 0 | L47: 0 | M47: 0 | N47: 0
C48: Augmentation HV (net circuit KM added) | D48: KM
C49: Augmentation HV (total spend $0's) | D49: total spend $0s | E49: 0 | F49: 0 | G49: 0 | H49: 0 | I49: 0 | J49: 0 | K49: 85431.96611 | L49: 0 | M49: 0 | N49: 0
C50: Augmentation LV (net circuit KM added) | D50: KM
C51: Augmentation LV (total spend $0's) | D51: total spend $0s | E51: 0 | F51: 0 | G51: 0 | H51: 0 | I51: 0 | J51: 0 | K51: 0 | L51: 0 | M51: 0 | N51: 0
B55: 2.5.2 - COST METRICS BY CONNECTION CLASSIFICATION
E56: EXPENDITURE ($0's)
E57: =IF(dms_RPT="financial",dms_CRYf_y1,dms_CRYc_y1) -> 2008-09 | F57: =IF(dms_RPT="financial",dms_CRYf_y2,dms_CRYc_y2) -> 2009-10 | G57: =IF(dms_RPT="financial",dms_CRYf_y3,dms_CRYc_y3) -> 2010-11 | H57: =IF(dms_RPT="financial",dms_CRYf_y4,dms_CRYc_y4) -> 2011-12 | I57: =IF(dms_RPT="financial",dms_CRYf_y5,dms_CRYc_y5) -> 2012-13 | J57: =IF(dms_RPT="financial",dms_CRYf_y6,dms_CRYc_y6) -> 2013-14 | K57: =IF(dms_RPT="financial",dms_CRYf_y7,dms_CRYc_y7) -> 2014-15 | L57: =IF(dms_RPT="financial",dms_CRYf_y8,dms_CRYc_y8) -> 2015-16 | M57: =IF(dms_RPT="financial",dms_CRYf_y9,dms_CRYc_y9) -> 2016-17 | N57: =IF(dms_RPT="financial",dms_CRYf_y10,dms_CRYc_y10) -> 2017-18
B58: RESIDENTIAL | C58: Simple connection LV | E58: 17722841.05 | F58: 15810218.69 | G58: 19284677 | H58: 20403524.06 | I58: 19842003.29 | J58: 22150644.19 | K58: 10279719.51 | L58: 7792585.364 | M58: 6564857.695 | N58: 9305719.158
C59: Complex connection LV | E59: 1570231.993 | F59: 1384084.641 | G59: 1351983.516 | H59: 879449.8538 | I59: 687310.5691 | J59: 1196763.663 | K59: 2082578.655 | L59: 541956.7769 | M59: 424092.2082 | N59: 293946.9771
C60: Complex connection HV | E60: 7527438.542 | F60: 7172934.07 | G60: 6010237.595 | H60: 4616900.378 | I60: 3171921.749 | J60: 1881370.729 | K60: 1689921.875 | L60: 3188139.378 | M60: 2854018.204 | N60: 2194811.017
B61: COMMERCIAL/INDUSTRIAL | C61: Simple connection LV | E61: 3170690.059 | F61: 3009584.432 | G61: 4050800.381 | H61: 3574431.018 | I61: 3759912.053 | J61: 2027594.981 | K61: 912600.1088 | L61: 1284278.601 | M61: 2210305.525 | N61: 753632.1853
C62: Complex connection HV (customer connected at LV, minor HV works) | E62: 60721173.44 | F62: 40857878.02 | G62: 41532657.86 | H62: 36672853.96 | I62: 35813157.72 | J62: 31217732.17 | K62: 34643380.8 | L62: 50914578.23 | M62: 52741902.65 | N62: 41134912.94
C63: Complex connection HV (customer connected at LV, upstream asset works) | E63: 13393290.92 | F63: 10700244.13 | G63: 6508678.109 | H63: 4354585.547 | I63: 5345662.74 | J63: 1861154.928 | K63: 9309947.392 | L63: 3452554.539 | M63: 670987.7031 | N63: 5432461.462
C64: Complex connection HV (customer connected at HV) | E64: 450010.2463 | F64: 146344.1932 | G64: 140381.7043 | H64: 1294903.301 | I64: 2030544.974 | J64: 564977.9972 | K64: 35524.09024 | L64: 9634.647408 | M64: 0 | N64: 96750.39885
C65: Complex connection sub-transmission | E65: 5276064.28 | F65: 10330660.07 | G65: 6150275.909 | H65: 1272726.985 | I65: 1686817.845 | J65: 2926571.586 | K65: 97312.87079 | L65: 1533622.704 | M65: 40535.5664 | N65: 318068.5859
B66: SUBDIVISION | C66: Complex connection LV | E66: 2027007.488 | F66: 1415487.542 | G66: 349508.7276 | H66: 96430.89614 | I66: 364197.4776 | J66: 148254.2398 | K66: 526251.0925 | L66: 22575.77962 | M66: 36584.59836 | N66: 26814.51064
C67: Complex connection HV (no upstream asset works) | E67: 19394997.14 | F67: 11042408.64 | G67: 4085480.009 | H67: 4816641.938 | I67: 3006844.696 | J67: 2230935.41 | K67: 3679660.363 | L67: 5436044.982 | M67: 4162070.477 | N67: 3656319.319
C68: Complex connection HV (with upstream asset works) | E68: 2026299.249 | F68: 1027818.149 | G68: 571391.2756 | H68: 287236.6917 | I68: 229532.0325 | J68: 295212.4723 | K68: 330966.1583 | L68: 0 | M68: 0 | N68: 0
B69: EMBEDDED GENERATION | C69: Simple connection LV | E69: 0 | F69: 0 | G69: 0 | H69: 0 | I69: 0 | J69: 0 | K69: 0 | L69: 0 | M69: 0 | N69: 0
C70: Complex connection HV (small capacity) | E70: 0 | F70: 0 | G70: 0 | H70: 0 | I70: 0 | J70: 0 | K70: 0 | L70: 0 | M70: 0 | N70: 0
C71: Complex connection HV (large capacity) | E71: 0 | F71: 0 | G71: 0 | H71: 0 | I71: 0 | J71: 0 | K71: 85431.96611 | L71: 0 | M71: 0 | N71: 0
B73: 2.5.3 - VOLUMES BY CONNECTION CLASSIFICATION
E74: VOLUMES (0's)
E75: =IF(dms_RPT="financial",dms_CRYf_y1,dms_CRYc_y1) -> 2008-09 | F75: =IF(dms_RPT="financial",dms_CRYf_y2,dms_CRYc_y2) -> 2009-10 | G75: =IF(dms_RPT="financial",dms_CRYf_y3,dms_CRYc_y3) -> 2010-11 | H75: =IF(dms_RPT="financial",dms_CRYf_y4,dms_CRYc_y4) -> 2011-12 | I75: =IF(dms_RPT="financial",dms_CRYf_y5,dms_CRYc_y5) -> 2012-13 | J75: =IF(dms_RPT="financial",dms_CRYf_y6,dms_CRYc_y6) -> 2013-14 | K75: =IF(dms_RPT="financial",dms_CRYf_y7,dms_CRYc_y7) -> 2014-15 | L75: =IF(dms_RPT="financial",dms_CRYf_y8,dms_CRYc_y8) -> 2015-16 | M75: =IF(dms_RPT="financial",dms_CRYf_y9,dms_CRYc_y9) -> 2016-17 | N75: =IF(dms_RPT="financial",dms_CRYf_y10,dms_CRYc_y10) -> 2017-18
B76: RESIDENTIAL | C76: Simple connection LV
C77: Complex connection LV
C78: Complex connection HV
B79: COMMERCIAL/INDUSTRIAL | C79: Simple connection LV
C80: Complex connection HV (customer connected at LV, minor HV works)
C81: Complex connection HV (customer connected at LV, upstream asset works)
C82: Complex connection HV (customer connected at HV)
C83: Complex connection sub-transmission
B84: SUBDIVISION | C84: Complex connection LV
C85: Complex connection HV (no upstream asset works)
C86: Complex connection HV (with upstream asset works)
B87: EMBEDDED GENERATION | C87: Simple connection LV
C88: Complex connection HV (small capacity)
C89: Complex connection HV (large capacity)

Sheet 2.6 Non-network
B1: REGULATORY REPORTING STATEMENT
B2: =INDEX(dms_TradingNameFull_List,MATCH(dms_TradingName,dms_TradingName_List)) -> Energex
B3: =IF(SUM(dms_SingleYear_Model)>0,("CATEGORY ANALYSIS "&CRY&" to "&FRY),("CATEGORY ANALYSIS "&CRY)) -> CATEGORY ANALYSIS 2008-09 to 2017-18
B4: 2.6 NON-NETWORK EXPENDITURE
B6: There are THREE tables on this worksheet - each has been 'grouped' (and sub-grouped) for easy navigation. See the Instructions sheet on how to group or ungroup tables.
B8: 2.6.1 - NON-NETWORK EXPENDITURE
F9: EXPENDITURE ($0's)
B10: SERVICE SUBCATEGORY | C10: ASSET CATEGORY | F10: =IF(dms_RPT="financial",dms_CRYf_y1,dms_CRYc_y1) -> 2008-09 | G10: =IF(dms_RPT="financial",dms_CRYf_y2,dms_CRYc_y2) -> 2009-10 | H10: =IF(dms_RPT="financial",dms_CRYf_y3,dms_CRYc_y3) -> 2010-11 | I10: =IF(dms_RPT="financial",dms_CRYf_y4,dms_CRYc_y4) -> 2011-12 | J10: =IF(dms_RPT="financial",dms_CRYf_y5,dms_CRYc_y5) -> 2012-13 | K10: =IF(dms_RPT="financial",dms_CRYf_y6,dms_CRYc_y6) -> 2013-14 | L10: =IF(dms_RPT="financial",dms_CRYf_y7,dms_CRYc_y7) -> 2014-15 | M10: =IF(dms_RPT="financial",dms_CRYf_y8,dms_CRYc_y8) -> 2015-16 | N10: =IF(dms_RPT="financial",dms_CRYf_y9,dms_CRYc_y9) -> 2016-17 | O10: =IF(dms_RPT="financial",dms_CRYf_y10,dms_CRYc_y10) -> 2017-18
B11: OPEX
B12: IT & COMMUNICATIONS | C12: Total | F12: 12142754.92 | G12: 11299882.95 | H12: 12920844.29 | I12: 16513920.01 | J12: 16827626.35 | K12: 16718514.73 | L12: 16323489.02 | M12: 16548089.88 | N12: 19446913.68 | O12: 20600917.36
B13: MOTOR VEHICLES | C13: Car | F13: 2430940.254 | G13: 2461958.887 | H13: 1968047.577 | I13: 1858447.685 | J13: 1563488.774 | K13: 1688037.725 | L13: 1871558.498 | M13: 1797490.485 | N13: 1696914.501 | O13: 1355317.218
C14: Light commercial vehicle | F14: 742231.6454 | G14: 730493.3523 | H14: 820721.1225 | I14: 822828.7751 | J14: 730245.8572 | K14: 720360.2641 | L14: 712323.6624 | M14: 602505.9002 | N14: 638875.2863 | O14: 557455.2654
C15: Elevated work platform (LCV) | F15: 0 | G15: 0 | H15: 0 | I15: 0 | J15: 0 | K15: 0 | L15: 0 | M15: 0 | N15: 0 | O15: 0
C16: Elevated work platform (HCV) | F16: 2943668.876 | G16: 3114069.46 | H16: 3362847.805 | I16: 3782527.66 | J16: 3610818.089 | K16: 3560204.057 | L16: 3298491.757 | M16: 2982872.685 | N16: 3174425.812 | O16: 3753603.82
C17: Heavy commercial vehicle | F17: 2447587.321 | G17: 2640444.705 | H17: 2696641.366 | I17: 2709973.194 | J17: 2432046.245 | K17: 2428471.597 | L17: 2294164.032 | M17: 2023507.95 | N17: 2178126.356 | O17: 2273212.419
B18: BUILDINGS AND PROPERTY | C18: Total buildings and property expenditure | F18: 12096425.12 | G18: 13805106.44 | H18: 19532403.6 | I18: 18891842.21 | J18: 19671636.4 | K18: 18251325.27 | L18: 21245021.22 | M18: 18324194.13 | N18: 18095793.77 | O18: 19753788.64
B19: OTHER | C19: Other expenditure | F19: 7201378.497 | G19: 7885199.008 | H19: 6941293.011 | I19: 7589576.952 | J19: 7043866.268 | K19: 6197813.979 | L19: 6407558.949 | M19: 6283595.644 | N19: 4976644.57 | O19: 4809369.515
B20: OTHER - DNSP nominated | C20: Other Non Network Expenditure - Tools & Equipment | F20: 6858508.846 | G20: 7376194.336 | H20: 6117933.292 | I20: 7032296.586 | J20: 6444041.64 | K20: 5637367.108 | L20: 5553304.395 | M20: 5506862.34 | N20: 4296370.649 | O20: 3914482.591
C21: OTHER FLEET - Mobile Generators | F21: 342869.651 | G21: 509004.6724 | H21: 823359.7189 | I21: 557280.3658 | J21: 599824.6278 | K21: 560446.8703 | L21: 501828.3015 | M21: 446664.0334 | N21: 353519.8004 | O21: 477049.3349
C22: OTHER FLEET - Trailers/Fleet | F22: 0 | G22: 0 | H22: 0 | I22: 0 | J22: 0 | K22: 0 | L22: 352426.2521 | M22: 330069.2708 | N22: 326754.1207 | O22: 417837.5897
C23: OTHER | F23: 0 | G23: 0 | H23: 0 | I23: 0 | J23: 0 | K23: 0 | L23: 0
C24: OFFICE FURNITURE CAPEX | F24: 0 | G24: 0 | H24: 0 | I24: 0 | J24: 0 | K24: 0
C25: PLANT & EQUIPMENT CAPEX | F25: 0 | G25: 0 | H25: 0 | I25: 0 | J25: 0 | K25: 0
B31: CAPEX
B32: IT & COMMUNICATIONS | C32: Total | F32: 31495916.73 | G32: 45319645.51 | H32: 50721607.31 | I32: 77648336.67 | J32: 70089804.7 | K32: 41444575.73 | L32: 49700690.75 | M32: 45136925.35 | N32: 35273272.31 | O32: 47412573.19
B33: MOTOR VEHICLES | C33: Car | F33: 11060166.37 | G33: 13213980.2 | H33: 10731693.02 | I33: 8129982.367 | J33: 13347422.02 | K33: 7666863.366 | L33: 6201265.795 | M33: 4115604.199 | N33: 6109757.429 | O33: 4655999.765
C34: Light commercial vehicle | F34: 1988343.637 | G34: 3656862.045 | H34: 1323322.868 | I34: 4079960.745 | J34: 3234427.838 | K34: 2929207.343 | L34: 4564728.999 | M34: 1565873.316 | N34: 2337980.558 | O34: 1798270.172
C35: Elevated work platform (LCV) | F35: 0 | G35: 0 | H35: 0 | I35: 0 | J35: 0 | K35: 0 | L35: 0 | M35: 0 | N35: 0 | O35: 0
C36: Elevated work platform (HCV) | F36: 6017925.537 | G36: 3100058.672 | H36: 13695694.3 | I36: 1849411.512 | J36: 7853894.538 | K36: 17341163.1 | L36: 23225994.24 | M36: 14384870.52 | N36: 21261558.4 | O36: 7993451.173
C37: Heavy commercial vehicle | F37: 4921598.415 | G37: 6063858.776 | H37: 11382625.58 | I37: 13542523.58 | J37: 5413762.106 | K37: 5050837.754 | L37: 3555539.804 | M37: 5433688.041 | N37: 2345683.06 | O37: 7671725.017
B38: BUILDINGS AND PROPERTY | C38: Total buildings and property expenditure | F38: 32641186.05 | G38: 119843859.6 | H38: 77795323.28 | I38: 94533135.2 | J38: 78967681.91 | K38: 36989575.51 | L38: 79792205.49 | M38: 33037230.46 | N38: 31502637.16 | O38: 24464030.13
B39: OTHER | C39: Other expenditure | F39: 28817829.96 | G39: 43767170.99 | H39: 40100522.88 | I39: 25858460.24 | J39: 28111732.25 | K39: 18785855.29 | L39: 29386656.29 | M39: 19241791.44 | N39: 12829740.03 | O39: 16432527.92
B40: OTHER - DNSP nominated | C40: Other Non Network Expenditure - Tools & Equipment | F40: 23220384.13 | G40: 26422982.89 | H40: 21014438.06 | I40: 20521530.66 | J40: 17663113.78 | K40: 15636789.76 | L40: 18451848.13 | M40: 11648902.26 | N40: 10109189.02 | O40: 14894604.62
C41: OTHER FLEET - Mobile Generators | F41: 0 | G41: 0 | H41: 187163.382 | I41: 1581588.516 | J41: 1370263.339 | K41: 310526.6118 | L41: 7961729.354 | M41: 435255.3907 | N41: 1083229.335 | O41: 80694.36971
C42: OTHER FLEET - Trailers/Fleet | F42: 231258.0986 | G42: 1464701.241 | H42: 1722906.652 | I42: 439562.8833 | J42: 335161.7246 | K42: 290868.1686 | L42: 1061016.561 | M42: 1009303.264 | N42: 776516.5933 | O42: 983420.5639
C43: OTHER
C44: OFFICE FURNITURE CAPEX | F44: 5366187.73 | G44: 15879486.85 | H44: 17176014.78 | I44: 3315778.185 | J44: 2563741.475 | K44: 2132616.766 | L44: 1793266.212 | M44: 6148330.529 | N44: 860805.0762 | O44: 473808.3623
C45: PLANT & EQUIPMENT CAPEX | F45: 0 | G45: 0 | H45: 0 | I45: 0 | J45: 6179451.935 | K45: 415053.9833 | L45: 118796.0315
B54: 2.6.2 - ANNUAL DESCRIPTOR METRICS
B55: IT & COMMUNICATIONS
F56: VOLUMES (0's)
F57: =IF(dms_RPT="financial",dms_CRYf_y1,dms_CRYc_y1) -> 2008-09 | G57: =IF(dms_RPT="financial",dms_CRYf_y2,dms_CRYc_y2) -> 2009-10 | H57: =IF(dms_RPT="financial",dms_CRYf_y3,dms_CRYc_y3) -> 2010-11 | I57: =IF(dms_RPT="financial",dms_CRYf_y4,dms_CRYc_y4) -> 2011-12 | J57: =IF(dms_RPT="financial",dms_CRYf_y5,dms_CRYc_y5) -> 2012-13 | K57: =IF(dms_RPT="financial",dms_CRYf_y6,dms_CRYc_y6) -> 2013-14 | L57: =IF(dms_RPT="financial",dms_CRYf_y7,dms_CRYc_y7) -> 2014-15 | M57: =IF(dms_RPT="financial",dms_CRYf_y8,dms_CRYc_y8) -> 2015-16 | N57: =IF(dms_RPT="financial",dms_CRYf_y9,dms_CRYc_y9) -> 2016-17 | O57: =IF(dms_RPT="financial",dms_CRYf_y10,dms_CRYc_y10) -> 2017-18
B58: Employee numbers
B59: User numbers
B60: Number of devices
B62: MOTOR VEHICLES
F63: VOLUMES / %
B64: ASSET CATEGORY | C64: DESCRIPTOR METRIC | E64: Units | F64: =IF(dms_RPT="financial",dms_CRYf_y1,dms_CRYc_y1) -> 2008-09 | G64: =IF(dms_RPT="financial",dms_CRYf_y2,dms_CRYc_y2) -> 2009-10 | H64: =IF(dms_RPT="financial",dms_CRYf_y3,dms_CRYc_y3) -> 2010-11 | I64: =IF(dms_RPT="financial",dms_CRYf_y4,dms_CRYc_y4) -> 2011-12 | J64: =IF(dms_RPT="financial",dms_CRYf_y5,dms_CRYc_y5) -> 2012-13 | K64: =IF(dms_RPT="financial",dms_CRYf_y6,dms_CRYc_y6) -> 2013-14 | L64: =IF(dms_RPT="financial",dms_CRYf_y7,dms_CRYc_y7) -> 2014-15 | M64: =IF(dms_RPT="financial",dms_CRYf_y8,dms_CRYc_y8) -> 2015-16 | N64: =IF(dms_RPT="financial",dms_CRYf_y9,dms_CRYc_y9) -> 2016-17 | O64: =IF(dms_RPT="financial",dms_CRYf_y10,dms_CRYc_y10) -> 2017-18
B65: CAR | C65: Average kilometres travelled | E65: 0's
C66: Number purchased | E66: 0's
C67: Number leased | E67: 0's
C68: Number in fleet | E68: 0's
C69: Proportion of total fleet expenditure allocated as regulatory expenditure | E69: (per cent)
B70: LIGHT COMMERCIAL VEHICLE | C70: Average kilometres travelled | E70: 0's
C71: Number purchased | E71: 0's
C72: Number leased | E72: 0's
C73: Number in fleet | E73: 0's
C74: Proportion of total fleet expenditure allocated as regulatory expenditure | E74: (per cent)
B75: ELEVATED WORK PLATFORM (LCV) | C75: Average kilometres travelled | E75: 0's
C76: Number purchased | E76: 0's
C77: Number leased | E77: 0's
C78: Number in fleet | E78: 0's
C79: Proportion of total fleet expenditure allocated as regulatory expenditure | E79: (per cent)
B80: ELEVATED WORK PLATFORM (HCV) | C80: Average kilometres travelled | E80: 0's
C81: Number purchased | E81: 0's
C82: Number leased | E82: 0's
C83: Number in fleet | E83: 0's
C84: Proportion of total fleet expenditure allocated as regulatory expenditure | E84: (per cent)
B85: HEAVY COMMERCIAL VEHICLE | C85: Average kilometres travelled | E85: 0's
C86: Number purchased | E86: 0's
C87: Number leased | E87: 0's
C88: Number in fleet | E88: 0's
C89: Proportion of total fleet expenditure allocated as regulatory expenditure | E89: (per cent)

Sheet 2.7 Vegetation management
B1: REGULATORY REPORTING STATEMENT
B2: =INDEX(dms_TradingNameFull_List,MATCH(dms_TradingName,dms_TradingName_List)) -> Energex
B3: =IF(SUM(dms_SingleYear_Model)>0,("CATEGORY ANALYSIS "&CRY&" to "&FRY),("CATEGORY ANALYSIS "&CRY)) -> CATEGORY ANALYSIS 2008-09 to 2017-18
B4: 2.7 VEGETATION MANAGEMENT
B6: There are THREE tables on this worksheet. Each has been 'grouped' (and sub-grouped) for easy navigation. See the Instructions sheet on how to group and ungroup data.
B8: 2.7.1 - DESCRIPTOR METRICS BY ZONE
B9: URBAN AND CBD
B10: ZONES | C10: ASSET | D10: Units | E10: VOLUMES (0's)
E11: =IF(dms_RPT="financial",dms_CRYf_y1,dms_CRYc_y1) -> 2008-09 | F11: =IF(dms_RPT="financial",dms_CRYf_y2,dms_CRYc_y2) -> 2009-10 | G11: =IF(dms_RPT="financial",dms_CRYf_y3,dms_CRYc_y3) -> 2010-11 | H11: =IF(dms_RPT="financial",dms_CRYf_y4,dms_CRYc_y4) -> 2011-12 | I11: =IF(dms_RPT="financial",dms_CRYf_y5,dms_CRYc_y5) -> 2012-13 | J11: =IF(dms_RPT="financial",dms_CRYf_y6,dms_CRYc_y6) -> 2013-14 | K11: =IF(dms_RPT="financial",dms_CRYf_y7,dms_CRYc_y7) -> 2014-15 | L11: =IF(dms_RPT="financial",dms_CRYf_y8,dms_CRYc_y8) -> 2015-16 | M11: =IF(dms_RPT="financial",dms_CRYf_y9,dms_CRYc_y9) -> 2016-17 | N11: =IF(dms_RPT="financial",dms_CRYf_y10,dms_CRYc_y10) -> 2017-18
B12: ZONE 1 | C12: Route line length within zone | D12: KM
C13: Number of maintenance spans | D13: 0's
C14: Total length of maintenance spans | D14: KM
C15: Length of vegetation corridors | D15: KM
C16: Average number of trees per maintenance span | D16: 0's
C17: Average frequency of cutting cycle | D17: years
B18: ZONE 2 | C18: Route line length within zone | D18: KM
C19: Number of maintenance spans | D19: 0's
C20: Total length of maintenance spans | D20: KM
C21: Length of vegetation corridors | D21: KM
C22: Average number of trees per maintenance span | D22: 0's
C23: Average frequency of cutting cycle | D23: years
B24: ` | C24: Route line length within zone | D24: KM
C25: Number of maintenance spans | D25: 0's
C26: Total length of maintenance spans | D26: KM
C27: Length of vegetation corridors | D27: KM
C28: Average number of trees per maintenance span | D28: 0's
C29: Average frequency of cutting cycle | D29: years
B30: ZONE 4 | C30: Route line length within zone | D30: KM
C31: Number of maintenance spans | D31: 0's
C32: Total length of maintenance spans | D32: KM
C33: Length of vegetation corridors | D33: KM
C34: Average number of trees per maintenance span | D34: 0's
C35: Average frequency of cutting cycle | D35: years
B36: ZONE 5 | C36: Route line length within zone | D36: KM
C37: Number of maintenance spans | D37: 0's
C38: Total length of maintenance spans | D38: KM
C39: Length of vegetation corridors | D39: KM
C40: Average number of trees per maintenance span | D40: 0's
C41: Average frequency of cutting cycle | D41: years
B42: ZONE 6 | C42: Route line length within zone | D42: KM
C43: Number of maintenance spans | D43: 0's
C44: Total length of maintenance spans | D44: KM
C45: Length of vegetation corridors | D45: KM
C46: Average number of trees per maintenance span | D46: 0's
C47: Average frequency of cutting cycle | D47: years
B48: ZONE 7 | C48: Route line length within zone | D48: KM
C49: Number of maintenance spans | D49: 0's
C50: Total length of maintenance spans | D50: KM
C51: Length of vegetation corridors | D51: KM
C52: Average number of trees per maintenance span | D52: 0's
C53: Average frequency of cutting cycle | D53: years
B54: ZONE 8 | C54: Route line length within zone | D54: KM
C55: Number of maintenance spans | D55: 0's
C56: Total length of maintenance spans | D56: KM
C57: Length of vegetation corridors | D57: KM
C58: Average number of trees per maintenance span | D58: 0's
C59: Average frequency of cutting cycle | D59: years
B60: ZONE 9 | C60: Route line length within zone | D60: KM
C61: Number of maintenance spans | D61: 0's
C62: Total length of maintenance spans | D62: KM
C63: Length of vegetation corridors | D63: KM
C64: Average number of trees per maintenance span | D64: 0's
C65: Average frequency of cutting cycle | D65: years
B66: ZONE 10 | C66: Route line length within zone | D66: KM
C67: Number of maintenance spans | D67: 0's
C68: Total length of maintenance spans | D68: KM
C69: Length of vegetation corridors | D69: KM
C70: Average number of trees per maintenance span | D70: 0's
C71: Average frequency of cutting cycle | D71: years
B72: ZONE 11 | C72: Route line length within zone | D72: KM
C73: Number of maintenance spans | D73: 0's
C74: Total length of maintenance spans | D74: KM
C75: Length of vegetation corridors | D75: KM
C76: Average number of trees per maintenance span | D76: 0's
C77: Average frequency of cutting cycle | D77: years
B78: ZONE 12 | C78: Route line length within zone | D78: KM
C79: Number of maintenance spans | D79: 0's
C80: Total length of maintenance spans | D80: KM
C81: Length of vegetation corridors | D81: KM
C82: Average number of trees per maintenance span | D82: 0's
C83: Average frequency of cutting cycle | D83: years
B84: ZONE 13 | C84: Route line length within zone | D84: KM
C85: Number of maintenance spans | D85: 0's
C86: Total length of maintenance spans | D86: KM
C87: Length of vegetation corridors | D87: KM
C88: Average number of trees per maintenance span | D88: 0's
C89: Average frequency of cutting cycle | D89: years
B90: ZONE 14 | C90: Route line length within zone | D90: KM
C91: Number of maintenance spans | D91: 0's
C92: Total length of maintenance spans | D92: KM
C93: Length of vegetation corridors | D93: KM
C94: Average number of trees per maintenance span | D94: 0's
C95: Average frequency of cutting cycle | D95: years
B96: ZONE 15 | C96: Route line length within zone | D96: KM
C97: Number of maintenance spans | D97: 0's
C98: Total length of maintenance spans | D98: KM
C99: Length of vegetation corridors | D99: KM
C100: Average number of trees per maintenance span | D100: 0's
C101: Average frequency of cutting cycle | D101: years
B102: ZONE 16 | C102: Route line length within zone | D102: KM
C103: Number of maintenance spans | D103: 0's
C104: Total length of maintenance spans | D104: KM
C105: Length of vegetation corridors | D105: KM
C106: Average number of trees per maintenance span | D106: 0's
C107: Average frequency of cutting cycle | D107: years
B108: ZONE 17 | C108: Route line length within zone | D108: KM
C109: Number of maintenance spans | D109: 0's
C110: Total length of maintenance spans | D110: KM
C111: Length of vegetation corridors | D111: KM
C112: Average number of trees per maintenance span | D112: 0's
C113: Average frequency of cutting cycle | D113: years
B114: ZONE 18 | C114: Route line length within zone | D114: KM
C115: Number of maintenance spans | D115: 0's
C116: Total length of maintenance spans | D116: KM
C117: Length of vegetation corridors | D117: KM
C118: Average number of trees per maintenance span | D118: 0's
C119: Average frequency of cutting cycle | D119: years
B121: RURAL
B122: ZONES | C122: ASSET | D122: Units | E122: VOLUMES (0's)
E123: =IF(dms_RPT="financial",dms_CRYf_y1,dms_CRYc_y1) -> 2008-09 | F123: =IF(dms_RPT="financial",dms_CRYf_y2,dms_CRYc_y2) -> 2009-10 | G123: =IF(dms_RPT="financial",dms_CRYf_y3,dms_CRYc_y3) -> 2010-11 | H123: =IF(dms_RPT="financial",dms_CRYf_y4,dms_CRYc_y4) -> 2011-12 | I123: =IF(dms_RPT="financial",dms_CRYf_y5,dms_CRYc_y5) -> 2012-13 | J123: =IF(dms_RPT="financial",dms_CRYf_y6,dms_CRYc_y6) -> 2013-14 | K123: =IF(dms_RPT="financial",dms_CRYf_y7,dms_CRYc_y7) -> 2014-15 | L123: =IF(dms_RPT="financial",dms_CRYf_y8,dms_CRYc_y8) -> 2015-16 | M123: =IF(dms_RPT="financial",dms_CRYf_y9,dms_CRYc_y9) -> 2016-17 | N123: =IF(dms_RPT="financial",dms_CRYf_y10,dms_CRYc_y10) -> 2017-18
B124: =IF(ISBLANK(B12),"",B12) -> ZONE 1 | C124: Route line length within zone | D124: KM
C125: Number of maintenance spans | D125: 0's
C126: Total length of maintenance spans | D126: KM
C127: Length of vegetation corridors | D127: KM
C128: Average number of trees per maintenance span | D128: 0's
C129: Average frequency of cutting cycle | D129: years
B130: =IF(ISBLANK(B18),"",B18) -> ZONE 2 | C130: Route line length within zone | D130: KM
C131: Number of maintenance spans | D131: 0's
C132: Total length of maintenance spans | D132: KM
C133: Length of vegetation corridors | D133: KM
C134: Average number of trees per maintenance span | D134: 0's
C135: Average frequency of cutting cycle | D135: years
B136: =IF(ISBLANK(B24),"",B24) -> ` | C136: Route line length within zone | D136: KM
C137: Number of maintenance spans | D137: 0's
C138: Total length of maintenance spans | D138: KM
C139: Length of vegetation corridors | D139: KM
C140: Average number of trees per maintenance span | D140: 0's
C141: Average frequency of cutting cycle | D141: years
B142: =IF(ISBLANK(B30),"",B30) -> ZONE 4 | C142: Route line length within zone | D142: KM
C143: Number of maintenance spans | D143: 0's
C144: Total length of maintenance spans | D144: KM
C145: Length of vegetation corridors | D145: KM
C146: Average number of trees per maintenance span | D146: 0's
C147: Average frequency of cutting cycle | D147: years
B148: =IF(ISBLANK(B36),"",B36) -> ZONE 5 | C148: Route line length within zone | D148: KM
C149: Number of maintenance spans | D149: 0's
C150: Total length of maintenance spans | D150: KM
C151: Length of vegetation corridors | D151: KM
C152: Average number of trees per maintenance span | D152: 0's
C153: Average frequency of cutting cycle | D153: years
B154: =IF(ISBLANK(B42),"",B42) -> ZONE 6 | C154: Route line length within zone | D154: KM
C155: Number of maintenance spans | D155: 0's
C156: Total length of maintenance spans | D156: KM
C157: Length of vegetation corridors | D157: KM
C158: Average number of trees per maintenance span | D158: 0's
C159: Average frequency of cutting cycle | D159: years
B160: =IF(ISBLANK(B48),"",B48) -> ZONE 7 | C160: Route line length within zone | D160: KM
C161: Number of maintenance spans | D161: 0's
C162: Total length of maintenance spans | D162: KM
C163: Length of vegetation corridors | D163: KM
C164: Average number of trees per maintenance span | D164: 0's
C165: Average frequency of cutting cycle | D165: years
B166: =IF(ISBLANK(B54),"",B54) -> ZONE 8 | C166: Route line length within zone | D166: KM
C167: Number of maintenance spans | D167: 0's
C168: Total length of maintenance spans | D168: KM
C169: Length of vegetation corridors | D169: KM
C170: Average number of trees per maintenance span | D170: 0's
C171: Average frequency of cutting cycle | D171: years
B172: =IF(ISBLANK(B60),"",B60) -> ZONE 9 | C172: Route line length within zone | D172: KM
C173: Number of maintenance spans | D173: 0's
C174: Total length of maintenance spans | D174: KM
C175: Length of vegetation corridors | D175: KM
C176: Average number of trees per maintenance span | D176: 0's
C177: Average frequency of cutting cycle | D177: years
B178: =IF(ISBLANK(B66),"",B66) -> ZONE 10 | C178: Route line length within zone | D178: KM
C179: Number of maintenance spans | D179: 0's
C180: Total length of maintenance spans | D180: KM
C181: Length of vegetation corridors | D181: KM
C182: Average number of trees per maintenance span | D182: 0's
C183: Average frequency of cutting cycle | D183: years
B184: =IF(ISBLANK(B72),"",B72) -> ZONE 11 | C184: Route line length within zone | D184: KM
C185: Number of maintenance spans | D185: 0's
C186: Total length of maintenance spans | D186: KM
C187: Length of vegetation corridors | D187: KM
C188: Average number of trees per maintenance span | D188: 0's
C189: Average frequency of cutting cycle | D189: years
B190: =IF(ISBLANK(B78),"",B78) -> ZONE 12 | C190: Route line length within zone | D190: KM
C191: Number of maintenance spans | D191: 0's
C192: Total length of maintenance spans | D192: KM
C193: Length of vegetation corridors | D193: KM
C194: Average number of trees per maintenance span | D194: 0's
C195: Average frequency of cutting cycle | D195: years
B196: =IF(ISBLANK(B84),"",B84) -> ZONE 13 | C196: Route line length within zone | D196: KM
C197: Number of maintenance spans | D197: 0's
C198: Total length of maintenance spans | D198: KM
C199: Length of vegetation corridors | D199: KM
C200: Average number of trees per maintenance span | D200: 0's
C201: Average frequency of cutting cycle | D201: years
B202: =IF(ISBLANK(B90),"",B90) -> ZONE 14 | C202: Route line length within zone | D202: KM
C203: Number of maintenance spans | D203: 0's
... 200 more rows

Sheet 2.8 Maintenance
B1: REGULATORY REPORTING STATEMENT
B2: =INDEX(dms_TradingNameFull_List,MATCH(dms_TradingName,dms_TradingName_List)) -> Energex
B3: =IF(SUM(dms_SingleYear_Model)>0,("CATEGORY ANALYSIS "&CRY&" to "&FRY),("CATEGORY ANALYSIS "&CRY)) -> CATEGORY ANALYSIS 2008-09 to 2017-18
B4: 2.8 MAINTENANCE
B6: There are TWO tables on this worksheet. It has been 'grouped' (and sub-grouped) for easy navigation. See the Instructions sheet on how to group or ungroup data.
B8: 2.8.1 - DESCRIPTOR METRICS FOR ROUTINE AND NON-ROUTINE MAINTENANCE
B9: ASSET QUANTITY AT YEAR END
F10: VOLUME | Q10: AVERAGE AGE OF ASSET GROUP | R10: INSPECTION CYCLE (YEARS) | S10: MAINTENANCE CYCLE (YEARS)
F11: (0's)
B12: MAINTENANCE ACTIVITY | C12: MAINTENANCE ASSET CATEGORY | D12: ASSET QUANTITY | E12: Units | F12: =IF(dms_RPT="financial",dms_CRYf_y1,dms_CRYc_y1) -> 2008-09 | G12: =IF(dms_RPT="financial",dms_CRYf_y2,dms_CRYc_y2) -> 2009-10 | H12: =IF(dms_RPT="financial",dms_CRYf_y3,dms_CRYc_y3) -> 2010-11 | I12: =IF(dms_RPT="financial",dms_CRYf_y4,dms_CRYc_y4) -> 2011-12 | J12: =IF(dms_RPT="financial",dms_CRYf_y5,dms_CRYc_y5) -> 2012-13 | K12: =IF(dms_RPT="financial",dms_CRYf_y6,dms_CRYc_y6) -> 2013-14 | L12: =IF(dms_RPT="financial",dms_CRYf_y7,dms_CRYc_y7) -> 2014-15 | M12: =IF(dms_RPT="financial",dms_CRYf_y8,dms_CRYc_y8) -> 2015-16 | N12: =IF(dms_RPT="financial",dms_CRYf_y9,dms_CRYc_y9) -> 2016-17 | O12: =IF(dms_RPT="financial",dms_CRYf_y10,dms_CRYc_y10) -> 2017-18 | Q12: =dms_CRCP_FinalYear_Result -> 2017-18
B13: Pole top, overhead line & service line maintenance | C13: Pole tops and overhead lines | D13: Number of poles | E13: Number
C14: Service lines | D14: Number of customers | E14: Number
B15: Pole inspection and treatment | C15: All poles | D15: Number of poles | E15: Number
B16: Overhead asset inspection | C16: All overhead assets | D16: Line patrolled (route KM) | E16: KM
B17: Network underground cable maintenance: by voltage | C17: LV - 11 to 22 KV | D17: Length (KM) | E17: KM
C18: 33 KV and above | D18: Length (KM) | E18: KM
B19: Network underground cable maintenance: by location | C19: Cbd | D19: Length (KM) | E19: KM
C20: Non-CBD | D20: Length (KM) | E20: KM
B21: Distribution substation equipment & property maintenance | C21: Distribution substation transformers | D21: Number of installed transformers | E21: Number
C22: Distribution substation switchgear (within-substations and stand-alone switchgear) | D22: Number of switches | E22: Number
C23: Distribution substation - other equipment | D23: Earth mat | E23: Number
C24: Distribution substation - property | D24: Number of distribution substation properties maintained | E24: Number
B25: Zone substation equipment maintenance | C25: Transformers - zone substation | D25: Number | E25: Number
C26: Transformers - distribution | D26: Number of distribution transformers within zone substation | E26: Number
C27: Transformers - HV | D27: Number of HV transformers | E27: Number
C28: Zone substation - other equipment | D28: <DNSP to nominate> | E28: =D28 -> <DNSP to nominate>
B29: Zone substation property maintenance | C29: All zone substation properties | D29: Number of zone substation properties maintained | E29: Number
B30: Public lighting maintenance | C30: Minor roads | D30: Number of public lights maintained | E30: Number
C31: Major roads | D31: Number of public lights maintained | E31: Number
B32: SCADA & network control maintenance | C32: SCADA & network control | D32: Number of systems | E32: Number
B33: Protection systems maintenance | C33: Protection systems | D33: Number of systems | E33: Number
B34: Subtransmission asset maintenance | C34: Subtransmission asset maintenance - for DNSPs with dual function assets | D34: <DNSP to nominate> | E34: =D34 -> <DNSP to nominate>
B35: Various assets | C35: includes rates, electricity, communications equip, metering | D35: Various | E35: Number
B36: Ground clearance - access tracks | C36: Access tracks | D36: Number | E36: Number
B37: Other | C37: < DNSP to nominate > | D37: < DNSP to nominate >
C38: < DNSP to nominate > | D38: < DNSP to nominate >
B48: ASSET QUANTITY INSPECTED / MAINTAINED
F49: VOLUME
F50: (0's)
B51: MAINTENANCE ACTIVITY | C51: MAINTENANCE ASSET CATEGORY | D51: ASSET QUANTITY | E51: Units | F51: =IF(dms_RPT="financial",dms_CRYf_y1,dms_CRYc_y1) -> 2008-09 | G51: =IF(dms_RPT="financial",dms_CRYf_y2,dms_CRYc_y2) -> 2009-10 | H51: =IF(dms_RPT="financial",dms_CRYf_y3,dms_CRYc_y3) -> 2010-11 | I51: =IF(dms_RPT="financial",dms_CRYf_y4,dms_CRYc_y4) -> 2011-12 | J51: =IF(dms_RPT="financial",dms_CRYf_y5,dms_CRYc_y5) -> 2012-13 | K51: =IF(dms_RPT="financial",dms_CRYf_y6,dms_CRYc_y6) -> 2013-14 | L51: =IF(dms_RPT="financial",dms_CRYf_y7,dms_CRYc_y7) -> 2014-15 | M51: =IF(dms_RPT="financial",dms_CRYf_y8,dms_CRYc_y8) -> 2015-16 | N51: =IF(dms_RPT="financial",dms_CRYf_y9,dms_CRYc_y9) -> 2016-17 | O51: =IF(dms_RPT="financial",dms_CRYf_y10,dms_CRYc_y10) -> 2017-18
B52: Pole top, overhead line & service line maintenance | C52: Pole tops and overhead lines | D52: Number of poles | E52: Number
C53: Service lines | D53: Number of customers | E53: Number
B54: Pole inspection and treatment | C54: All poles | D54: Number of poles | E54: Number
B55: Overhead asset inspection | C55: All overhead assets | D55: Line patrolled (route KM) | E55: KM
B56: Network underground cable maintenance: by voltage | C56: LV - 11 to 22 KV | D56: Length (KM) | E56: KM
C57: 33 KV and above | D57: Length (KM) | E57: KM
B58: Network underground cable maintenance: by location | C58: Cbd | D58: Length (KM) | E58: KM
C59: Non-CBD | D59: Length (KM) | E59: KM
B60: Distribution substation equipment & property maintenance | C60: Distribution substation transformers | D60: Number of installed transformers | E60: Number
C61: Distribution substation switchgear (within-substations and stand-alone switchgear) | D61: Number of switches | E61: Number
C62: Distribution substation - other equipment | D62: Earth mat | E62: Number
C63: Distribution substation - property | D63: Number of distribution substation properties maintained | E63: Number
B64: Zone substation equipment maintenance | C64: Transformers - zone substation | D64: Number | E64: Number
C65: Transformers - distribution | D65: Number of distribution transformers within zone substation | E65: Number
C66: Transformers - HV | D66: Number of HV transformers | E66: Number
C67: Zone substation - other equipment | D67: =IF(ISBLANK(D28),"",D28) -> <DNSP to nominate> | E67: =IF(ISBLANK(E28),"",E28) -> <DNSP to nominate>
B68: Zone substation property maintenance | C68: All zone substation properties | D68: Number of zone substation properties maintained | E68: Number
B69: Public lighting maintenance | C69: Minor roads | D69: Number of public lights maintained | E69: Number
C70: Major roads | D70: Number of public lights maintained | E70: Number
B71: SCADA & network control maintenance | C71: SCADA & network control | D71: Number of systems | E71: Number
B72: Protection systems maintenance | C72: Protection systems | D72: Number of systems | E72: Number
B73: Subtransmission asset maintenance | C73: Subtransmission asset maintenance - for DNSPs with dual function assets | D73: =IF(ISBLANK(D34),"",D34) -> <DNSP to nominate> | E73: =IF(ISBLANK(E34),"",E34) -> <DNSP to nominate>
B74: Various assets | C74: includes rates, electricity, communications equip, metering | D74: Various | E74: Number
B75: Ground clearance - access tracks | C75: Access tracks | D75: Number | E75: Number
B76: Other | C76: =IF(ISBLANK(C37),"",C37) -> < DNSP to nominate > | D76: < DNSP to nominate >
C77: < DNSP to nominate > | D77: < DNSP to nominate >
B89: 2.8.2 - COST METRICS FOR ROUTINE AND NON-ROUTINE MAINTENANCE
B90: ROUTINE MAINTENANCE
F91: EXPENDITURE
F92: ($0'S)
B93: MAINTENANCE ACTIVITY | C93: MAINTENANCE ASSET CATEGORY | D93: ASSET QUANTITY | E93: Units | F93: =IF(dms_RPT="financial",dms_CRYf_y1,dms_CRYc_y1) -> 2008-09 | G93: =IF(dms_RPT="financial",dms_CRYf_y2,dms_CRYc_y2) -> 2009-10 | H93: =IF(dms_RPT="financial",dms_CRYf_y3,dms_CRYc_y3) -> 2010-11 | I93: =IF(dms_RPT="financial",dms_CRYf_y4,dms_CRYc_y4) -> 2011-12 | J93: =IF(dms_RPT="financial",dms_CRYf_y5,dms_CRYc_y5) -> 2012-13 | K93: =IF(dms_RPT="financial",dms_CRYf_y6,dms_CRYc_y6) -> 2013-14 | L93: =IF(dms_RPT="financial",dms_CRYf_y7,dms_CRYc_y7) -> 2014-15 | M93: =IF(dms_RPT="financial",dms_CRYf_y8,dms_CRYc_y8) -> 2015-16 | N93: =IF(dms_RPT="financial",dms_CRYf_y9,dms_CRYc_y9) -> 2016-17 | O93: =IF(dms_RPT="financial",dms_CRYf_y10,dms_CRYc_y10) -> 2017-18
B94: Pole top, overhead line & service line maintenance | C94: Pole tops and overhead lines | D94: Number of poles | E94: Number
C95: Service lines | D95: Number of customers | E95: Number
B96: Pole inspection and treatment | C96: All poles | D96: Number of poles | E96: Number
B97: Overhead asset inspection | C97: All overhead assets | D97: Line patrolled (route KM) | E97: KM
B98: Network underground cable maintenance: by voltage | C98: LV - 11 to 22 KV | D98: Length (KM) | E98: KM
C99: 33 KV and above | D99: Length (KM) | E99: KM
B100: Network underground cable maintenance: by location | C100: Cbd | D100: Length (KM) | E100: KM
C101: Non-CBD | D101: Length (KM) | E101: KM
B102: Distribution substation equipment & property maintenance | C102: Distribution substation transformers | D102: Number of installed transformers | E102: Number
C103: Distribution substation switchgear (within-substations and stand-alone switchgear) | D103: Number of switches | E103: Number
C104: Distribution substation - other equipment | D104: Earth mat | E104: Number
C105: Distribution substation - property | D105: Number of distribution substation properties maintained | E105: Number
B106: Zone substation equipment maintenance | C106: Transformers - zone substation | D106: Number | E106: Number
C107: Transformers - distribution | D107: Number of distribution transformers within zone substation | E107: Number
C108: Transformers - HV | D108: Number of HV transformers | E108: Number
C109: Zone substation - other equipment | D109: =IF(ISBLANK(D28),"",D28) -> <DNSP to nominate> | E109: =IF(ISBLANK(E28),"",E28) -> <DNSP to nominate>
B110: Zone substation property maintenance | C110: All zone substation properties | D110: Number of zone substation properties maintained | E110: Number
B111: Public lighting maintenance | C111: Minor roads | D111: Number of public lights maintained | E111: Number
C112: Major roads | D112: Number of public lights maintained | E112: Number
B113: SCADA & network control maintenance | C113: SCADA & network control | D113: Number of systems | E113: Number
B114: Protection systems maintenance | C114: Protection systems | D114: Number of systems | E114: Number
B115: Subtransmission asset maintenance | C115: Subtransmission asset maintenance - for DNSPs with dual function assets | D115: =IF(ISBLANK(D34),"",D34) -> <DNSP to nominate> | E115: =IF(ISBLANK(E34),"",E34) -> <DNSP to nominate>
B116: Various assets | C116: includes rates, electricity, communications equip, metering | D116: Various | E116: Number
B117: Ground clearance - access tracks | C117: Access tracks | D117: Number | E117: Number
B118: Other | C118: =IF(ISBLANK(C37),"",C37) -> < DNSP to nominate > | D118: =IF(ISBLANK(D37),"",D37) -> < DNSP to nominate >
C119: =IF(ISBLANK(C38),"",C38) -> < DNSP to nominate > | D119: < DNSP to nominate >
B129: NON-ROUTINE MAINTENANCE
F130: EXPENDITURE
F131: ($0'S)
B132: MAINTENANCE ACTIVITY | C132: MAINTENANCE ASSET CATEGORY | D132: ASSET QUANTITY | E132: Units | F132: =IF(dms_RPT="financial",dms_CRYf_y1,dms_CRYc_y1) -> 2008-09 | G132: =IF(dms_RPT="financial",dms_CRYf_y2,dms_CRYc_y2) -> 2009-10 | H132: =IF(dms_RPT="financial",dms_CRYf_y3,dms_CRYc_y3) -> 2010-11 | I132: =IF(dms_RPT="financial",dms_CRYf_y4,dms_CRYc_y4) -> 2011-12 | J132: =IF(dms_RPT="financial",dms_CRYf_y5,dms_CRYc_y5) -> 2012-13 | K132: =IF(dms_RPT="financial",dms_CRYf_y6,dms_CRYc_y6) -> 2013-14 | L132: =IF(dms_RPT="financial",dms_CRYf_y7,dms_CRYc_y7) -> 2014-15 | M132: =IF(dms_RPT="financial",dms_CRYf_y8,dms_CRYc_y8) -> 2015-16 | N132: =IF(dms_RPT="financial",dms_CRYf_y9,dms_CRYc_y9) -> 2016-17 | O132: =IF(dms_RPT="financial",dms_CRYf_y10,dms_CRYc_y10) -> 2017-18
B133: Pole top, overhead line & service line maintenance | C133: Pole tops and overhead lines | D133: Number of poles | E133: Number
C134: Service lines | D134: Number of customers | E134: Number
B135: Pole inspection and treatment | C135: All poles | D135: Number of poles | E135: Number
B136: Overhead asset inspection | C136: All overhead assets | D136: Line patrolled (route KM) | E136: KM
B137: Network underground cable maintenance: by voltage | C137: LV - 11 to 22 KV | D137: Length (KM) | E137: KM
C138: 33 KV and above | D138: Length (KM) | E138: KM
B139: Network underground cable maintenance: by location | C139: Cbd | D139: Length (KM) | E139: KM
C140: Non-CBD | D140: Length (KM) | E140: KM
B141: Distribution substation equipment & property maintenance | C141: Distribution substation transformers | D141: Number of installed transformers | E141: Number
C142: Distribution substation switchgear (within-substations and stand-alone switchgear) | D142: Number of switches | E142: Number
C143: Distribution substation - other equipment | D143: Earth mat | E143: Number
C144: Distribution substation - property | D144: Number of distribution substation properties maintained | E144: Number
B145: Zone substation equipment maintenance | C145: Transformers - zone substation | D145: Number | E145: Number
C146: Transformers - distribution | D146: Number of distribution transformers within zone substation | E146: Number
C147: Transformers - HV | D147: Number of HV transformers | E147: Number
C148: Zone substation - other equipment | D148: =IF(ISBLANK(D28),"",D28) -> <DNSP to nominate> | E148: =IF(ISBLANK(E28),"",E28) -> <DNSP to nominate>
B149: Zone substation property maintenance | C149: All zone substation properties | D149: Number of zone substation properties maintained | E149: Number
B150: Public lighting maintenance | C150: Minor roads | D150: Number of public lights maintained | E150: Number
C151: Major roads | D151: Number of public lights maintained | E151: Number
B152: SCADA & network control maintenance | C152: SCADA & network control | D152: Number of systems | E152: Number
B153: Protection systems maintenance | C153: Protection systems | D153: Number of systems | E153: Number
B154: Subtransmission asset maintenance | C154: Subtransmission asset maintenance - for DNSPs with dual function assets | D154: =IF(ISBLANK(D34),"",D34) -> <DNSP to nominate> | E154: =IF(ISBLANK(E34),"",E34) -> <DNSP to nominate>
B155: Various assets | C155: includes rates, electricity, communications equip, metering | D155: Various | E155: Number
B156: Ground clearance - access tracks | C156: Access tracks | D156: Number | E156: Number
B157: Other | C157: =IF(ISBLANK(C37),"",C37) -> < DNSP to nominate > | D157: < DNSP to nominate >
C158: < DNSP to nominate > | D158: < DNSP to nominate >

Sheet 2.9 Emergency Response
B1: REGULATORY REPORTING STATEMENT
B2: =INDEX(dms_TradingNameFull_List,MATCH(dms_TradingName,dms_TradingName_List)) -> Energex
B3: =IF(SUM(dms_SingleYear_Model)>0,("CATEGORY ANALYSIS "&CRY&" to "&FRY),("CATEGORY ANALYSIS "&CRY)) -> CATEGORY ANALYSIS 2008-09 to 2017-18
B4: 2.9 EMERGENCY RESPONSE
B6: There is ONE table on this worksheet. It has been 'sub-grouped' for easy navigation. See the Instructions sheet on how to group or ungroup data.
B8: 2.9.1 - EMERGENCY RESPONSE EXPENDITURE (OPEX)
D9: EXPENDITURE ($0's)
D10: =IF(dms_RPT="financial",dms_CRYf_y1,dms_CRYc_y1) -> 2008-09 | E10: =IF(dms_RPT="financial",dms_CRYf_y2,dms_CRYc_y2) -> 2009-10 | F10: =IF(dms_RPT="financial",dms_CRYf_y3,dms_CRYc_y3) -> 2010-11 | G10: =IF(dms_RPT="financial",dms_CRYf_y4,dms_CRYc_y4) -> 2011-12 | H10: =IF(dms_RPT="financial",dms_CRYf_y5,dms_CRYc_y5) -> 2012-13 | I10: =IF(dms_RPT="financial",dms_CRYf_y6,dms_CRYc_y6) -> 2013-14 | J10: =IF(dms_RPT="financial",dms_CRYf_y7,dms_CRYc_y7) -> 2014-15 | K10: =IF(dms_RPT="financial",dms_CRYf_y8,dms_CRYc_y8) -> 2015-16 | L10: =IF(dms_RPT="financial",dms_CRYf_y9,dms_CRYc_y9) -> 2016-17 | M10: =IF(dms_RPT="financial",dms_CRYf_y10,dms_CRYc_y10) -> 2017-18
B11: (A) TOTAL EMERGENCY RESPONSE EXPENDITURE | C11: Total Expenditure
B12: (B) MAJOR EVENTS O&M EXPENDITURE
B55: (C) MAJOR EVENT DAYS O&M EXPENDITURE

Sheet 2.10 Overheads
B1: REGULATORY REPORTING STATEMENT
B2: =INDEX(dms_TradingNameFull_List,MATCH(dms_TradingName,dms_TradingName_List)) -> Energex
B3: =IF(SUM(dms_SingleYear_Model)>0,("CATEGORY ANALYSIS "&CRY&" to "&FRY),("CATEGORY ANALYSIS "&CRY)) -> CATEGORY ANALYSIS 2008-09 to 2017-18
B4: 2.10 OVERHEADS
B6: There are TWO tables on this worksheet. Each table has been 'grouped' (and sub-grouped) for easy navigation. See the Instructions sheet on how to group or ungroup data.
B8: 2.10.1 - NETWORK OVERHEADS EXPENDITURE
D9: EXPENDITURE ($0's)
D10: =IF(dms_RPT="financial",dms_CRYf_y1,dms_CRYc_y1) -> 2008-09 | E10: =IF(dms_RPT="financial",dms_CRYf_y2,dms_CRYc_y2) -> 2009-10 | F10: =IF(dms_RPT="financial",dms_CRYf_y3,dms_CRYc_y3) -> 2010-11 | G10: =IF(dms_RPT="financial",dms_CRYf_y4,dms_CRYc_y4) -> 2011-12 | H10: =IF(dms_RPT="financial",dms_CRYf_y5,dms_CRYc_y5) -> 2012-13 | I10: =IF(dms_RPT="financial",dms_CRYf_y6,dms_CRYc_y6) -> 2013-14 | J10: =IF(dms_RPT="financial",dms_CRYf_y7,dms_CRYc_y7) -> 2014-15 | K10: =IF(dms_RPT="financial",dms_CRYf_y8,dms_CRYc_y8) -> 2015-16 | L10: =IF(dms_RPT="financial",dms_CRYf_y9,dms_CRYc_y9) -> 2016-17 | M10: =IF(dms_RPT="financial",dms_CRYf_y10,dms_CRYc_y10) -> 2017-18
B11: NETWORK OVERHEADS
B12: Standard Control Services | C12: Network management | D12: 30459628.67 | E12: 35000189.23 | F12: 29738209.26 | G12: 32376811.67 | H12: 42138478.42 | I12: 33630897.9 | J12: 29437596.81 | K12: 24089025.42 | L12: 22581818.55 | M12: 21549814.63
C13: Network planning | D13: 4255957.895 | E13: 4857949.485 | F13: 5632282.041 | G13: 5993043.546 | H13: 6170302.703 | I13: 4247121.321 | J13: 3867236.342 | K13: 6302107.908 | L13: 6264883.609 | M13: 9054117.658
C14: Network control and operational switching | D14: 13720618.28 | E14: 15120009.97 | F14: 19735517.29 | G14: 20757299.65 | H14: 19156950.88 | I14: 22382056.88 | J14: 19734773.75 | K14: 21071293.49 | L14: 21782538.24 | M14: 21015206.98
C15: Quality and standard functions | D15: 8438107.444 | E15: 7077682.477 | F15: 10295298.09 | G15: 11021984.72 | H15: 10416921.9 | I15: 16435250.84 | J15: 14670495.04 | K15: 10124448.64 | L15: 9069522.363 | M15: 8569888.263
C16: Project governance and related functions | D16: 31249728.99 | E16: 35101255.3 | F16: 41590331.02 | G16: 50290825.64 | H16: 37194165.27 | I16: 31746670.66 | J16: 28237547.56 | K16: 24145515.58 | L16: 19815909.15 | M16: 23346922.04
C17: Other - DNSP to nominate | D17: 0 | E17: 0 | F17: 0 | G17: 0 | H17: 0 | I17: 0 | J17: 0 | K17: 0 | L17: 0 | M17: 0
C18: other expenditure categories currently reported under annual rin : | D18: 0 | E18: 0 | F18: 0 | G18: 0 | H18: 0 | I18: 0
C19: TRAINING AND DEVELOPMENT | D19: 14142168.44 | E19: 13580566.29 | F19: 13533167.04 | G19: 14861605.31 | H19: 11264838.26 | I19: 9317173.625 | J19: 12166690.59 | K19: 12570356.06 | L19: 11713876.1 | M19: 11531698.87
C20: OHS | D20: 2000342.912 | E20: 3620601.201 | F20: 3846928.36 | G20: 3942390.058 | H20: 3366473.404 | I20: 4221288.958 | J20: 4470441.506 | K20: 4159646.795 | L20: 3625484.588 | M20: 3322147.475
C21: CUSTOMER SERVICE | D21: 10510862.66 | E21: 14969610.01 | F21: 13928871.09 | G21: 14407176.88 | H21: 12907936.21 | I21: 16423752.46 | J21: 14631350.96 | K21: 11903641.5 | L21: 10285856.8 | M21: 13678219.49
C22: METER READING, NETWORK BILLING, & METERING SUPPORT | D22: 1485667.36 | E22: 3495444.463 | F22: 3440519.908 | G22: 4053464.104 | H22: 4046689.572 | I22: 4024548.168 | J22: 13405340.66 | K22: 5026614.489 | L22: 5367027.489 | M22: 5651435.551
C23: DSM INITIATIVES | D23: 5939293.906 | E23: 5255470.582 | F23: 8265738.703 | G23: 12412905.82 | H23: 10383346.64 | I23: 8074676.334 | J23: 12216387.71 | K23: 6799671.361 | L23: 7136555.464 | M23: 6774024.609
C24: LEVIES | D24: 6438368.967 | E24: 6961004.253 | F24: 6891651.38 | G24: 7179930.366 | H24: 7564357.654 | I24: 7115405.648 | J24: 7316064.415 | K24: 7328156.37 | L24: 7162014.062 | M24: 6927293.427
C25: SOLAR | D25: 0 | E25: 0 | F25: 0 | G25: 0 | H25: 0 | I25: 0 | J25: 0
C26: NETWORK PROPERTY | D26: 3546382.878 | E26: 5803134.491 | F26: 6624913.951 | G26: 6623040.336 | H26: 5008112.326 | I26: 3641952.868 | J26: 6280139.2 | K26: 5720300.577 | L26: 3400581.837 | M26: 4375872.93
B32: Alternative Control Services | C32: Network management | D32: 5163132.866 | E32: 6846108.036 | F32: 4419557.59 | G32: 4634503.229 | H32: 4569321.349 | I32: 4982370.58 | J32: 2502084.066 | K32: 4391417.202 | L32: 4612063.102 | M32: 4123769.32
C33: Network planning | D33: 721416.4139 | E33: 950224.777 | F33: 837044.1754 | G33: 1011928.018 | H33: 977493.9158 | I33: 731805.4085 | J33: 328727.8482 | K33: 1147348.544 | L33: 1280435.758 | M33: 1732628.35
C34: Network control and operational switching | D34: 518201.0313 | E34: 805987.1518 | F34: 595501.8333 | G34: 905582.7076 | H34: 796251.5471 | I34: 903606.337 | J34: 434830.6143 | K34: 827173.2363 | L34: 833287.9366 | M34: 709689.8422
C35: Quality and standard functions | D35: 1430321.766 | E35: 1384409.055 | F35: 1530040.441 | G35: 1861066.93 | H35: 1650239.586 | I35: 2831895.9 | J35: 1247040.48 | K35: 1726489.72 | L35: 1851111.624 | M35: 1635808.131
C36: Project governance and related functions | D36: 5297060.727 | E36: 6865876.765 | F36: 6180966.096 | G36: 8491627.853 | H36: 5892266.879 | I36: 5470148.728 | J36: 2283721.165 | K36: 4549894.258 | L36: 4105965.758 | M36: 4483432.102
C37: Other - DNSP to nominate | D37: 0 | E37: 0 | F37: 0 | G37: 0 | H37: 0 | I37: 0 | J37: 0 | K37: 0 | L37: 0 | M37: 0
C38: other expenditure categories currently reported under annual rin : | D38: 0 | E38: 0 | F38: 0 | G38: 0 | H38: 0 | I38: 0
C39: TRAINING AND DEVELOPMENT | D39: 2397202.39 | E39: 2656386.324 | F39: 2011237.819 | G39: 2509388.541 | H39: 1784565.749 | I39: 1605406.941 | J39: 731229.5281 | K39: 2478744.342 | L39: 2341803.395 | M39: 2288311.702
C40: OHS | D40: 339072.9528 | E40: 708196.9419 | F40: 571713.0203 | G40: 665674.2814 | H40: 533313.7494 | I40: 727354.3317 | J40: 380002.2773 | K40: 757296.5689 | L40: 740987.4461 | M40: 659508.5932
C41: CUSTOMER SERVICE | D41: 750127.1896 | E41: 1890141.733 | F41: 1257661.298 | G41: 1288844.408 | H41: 1011727.245 | I41: 1056136.367 | J41: 148819.9041 | K41: 1363044.519 | L41: 1102661.074 | M41: 1417484.871
C42: METER READING, NETWORK BILLING, & METERING SUPPORT | D42: 10550140.96 | E42: 13709370.53 | F42: 11348591.7 | G42: 11992319.66 | H42: 11537166.17 | I42: 13056120.37 | J42: 174532.0535 | K42: 8929836.415 | L42: 11950261.76 | M42: 12874533.24
C43: DSM INITIATIVES | D43: 0 | E43: 0 | F43: 0 | G43: 0 | H43: 0 | I43: 0 | J43: 0 | K43: 0 | L43: 0 | M43: 0
C44: LEVIES | D44: 0 | E44: 0 | F44: 0 | G44: 0 | H44: 0 | I44: 0 | J44: 0 | K44: 0 | L44: 0 | M44: 0
C45: SOLAR | D45: 0 | E45: 0 | F45: 0 | G45: 0 | H45: 0 | I45: 0 | J45: 0
C46: NETWORK PROPERTY | D46: 601138.1882 | E46: 1135104.882 | F46: 984564.6214 | G46: 1118303.251 | H46: 793380.7404 | I46: 627531.1216 | J46: 533832.5519 | K46: 1041425.922 | L46: 695021.1454 | M46: 837382.7005
B52: Negotiated Services | C52: Total
B53: Unregulated Services | C53: Total | D53: 1899425.363 | E53: 8724449.636 | F53: 9954414.517 | G53: 7981572.466 | H53: 6445163.989 | I53: 5315495.84 | J53: 4267078.349 | K53: 4240550.871 | L53: 4865940.933 | M53: 2077933.095
B55: CAPITALISED NETWORK OVERHEADS
B56: Standard Control Services | C56: Network management | D56: 15311049.66 | E56: 18753579.11 | F56: 17737623.93 | G56: 16069665.11 | H56: 16775815.25 | I56: 16097650.75 | J56: 16729896.81 | K56: 12788763.67 | L56: 13187607.12 | M56: 12260219.31
C57: Network planning | D57: 2139329.516 | E57: 2602955.641 | F57: 3359425.574 | G57: 3508756.722 | H57: 3588773.055 | I57: 2364406.198 | J57: 2198000.88 | K57: 3359187.522 | L57: 3684192.194 | M57: 5151986.748
C58: Network control and operational switching | D58: 1536702.992 | E58: 2207844.769 | F58: 2390010.166 | G58: 3140015.255 | H58: 2923359.472 | I58: 2919481.599 | J58: 2907444.8 | K58: 2421783.709 | L58: 2397615.728 | M58: 2110269.442
C59: Quality and standard functions | D59: 4241558.014 | E59: 3792318.875 | F59: 6140723.678 | G59: 6453058.9 | H59: 6058692.81 | I59: 9149634.783 | J59: 8338192.485 | K59: 5054787.189 | L59: 5326195.364 | M59: 4954833.923
C60: Project governance and related functions | D60: 17583381.62 | E60: 19892937.37 | F60: 25960178.33 | G60: 30482933.5 | H60: 22575274.04 | I60: 18662363.29 | J60: 16981024.25 | K60: 13805019.82 | L60: 12504556.15 | M60: 14258275.4
C61: Other - DNSP to nominate | J61: 0 | L61: 0 | M61: 0
C62: other expenditure categories currently reported under annual rin :
C63: TRAINING AND DEVELOPMENT | D63: 7108801.145 | E63: 7276652.781 | F63: 8071979.905 | G63: 8701047.661 | H63: 6551858.144 | I63: 5186944.616 | J63: 4889281.985 | K63: 5023202.973 | L63: 5485860.868 | M63: 5023568.29
C64: OHS | D64: 1005506.337 | E64: 1939967.542 | F64: 2294535.22 | G64: 2308157.368 | H64: 1958009.132 | I64: 2350025.116 | J64: 2540841.442 | K64: 2217199.993 | L64: 2132039.931 | M64: 1442086.996
C65: CUSTOMER SERVICE | D65: 2224470.093 | E65: 5177675.015 | F65: 1420821.341 | G65: 1156682.768 | H65: 769946.6403 | I65: 1026073.63 | J65: 995067.141 | K65: 1222731.077 | L65: 816722.4333 | M65: 612787.2195
C66: METER READING, NETWORK BILLING, & METERING SUPPORT | D66: 746795.9301 | E66: 1747231.398 | F66: 558984.0509 | G66: 506551.1976 | H66: 492043.1468 | I66: 823977.9429 | J66: 1166988.465 | K66: 1553845.132 | L66: 1862153.989 | M66: 2063202.611
C67: DSM INITIATIVES | D67: 0 | E67: 0 | F67: 0 | G67: 0 | H67: 0 | I67: 0 | J67: 0 | K67: 0 | L67: 0 | M67: 0
C68: LEVIES | D68: 0 | E68: 0 | F68: 0 | G68: 0 | H68: 0 | I68: 0 | J68: 0 | K68: 0 | L68: 0 | M68: 0
C69: SOLAR | D69: 0 | E69: 0 | F69: 0 | G69: 0 | H69: 0 | I69: 0 | J69: 0
C70: NETWORK PROPERTY | D70: 1782649.583 | E70: 3109398.668 | F70: 3951489.856 | G70: 3877601.943 | H70: 2912819.586 | I70: 2027504.11 | J70: 3569409.849 | K70: 3049069.073 | L70: 1999781.296 | M70: 2489965.361
B78: 2.10.2 - CORPORATE OVERHEADS EXPENDITURE
D79: EXPENDITURE ($0's)
D80: =IF(dms_RPT="financial",dms_CRYf_y1,dms_CRYc_y1) -> 2008-09 | E80: =IF(dms_RPT="financial",dms_CRYf_y2,dms_CRYc_y2) -> 2009-10 | F80: =IF(dms_RPT="financial",dms_CRYf_y3,dms_CRYc_y3) -> 2010-11 | G80: =IF(dms_RPT="financial",dms_CRYf_y4,dms_CRYc_y4) -> 2011-12 | H80: =IF(dms_RPT="financial",dms_CRYf_y5,dms_CRYc_y5) -> 2012-13 | I80: =IF(dms_RPT="financial",dms_CRYf_y6,dms_CRYc_y6) -> 2013-14 | J80: =IF(dms_RPT="financial",dms_CRYf_y7,dms_CRYc_y7) -> 2014-15 | K80: =IF(dms_RPT="financial",dms_CRYf_y8,dms_CRYc_y8) -> 2015-16 | L80: =IF(dms_RPT="financial",dms_CRYf_y9,dms_CRYc_y9) -> 2016-17 | M80: =IF(dms_RPT="financial",dms_CRYf_y10,dms_CRYc_y10) -> 2017-18
B81: CORPORATE OVERHEADS
B82: Standard Control Services | C82: Office of CEO | D82: 487059.3645 | E82: 391031.6256 | F82: 468194.4531 | G82: 476402.5844 | H82: 394188.7017 | I82: 442293.6103 | J82: 477069.5776 | K82: 489196.2565 | L82: 756475.8564 | M82: 1257327.205
C83: Legal and Secretariat | D83: 1362528.802 | E83: 1242005.376 | F83: 1539397.617 | G83: 1399726.044 | H83: 973389.3042 | I83: 1247528.882 | J83: 1234867.122 | K83: 1080009.224 | L83: 1491123.372 | M83: 1432543.373
C84: Audit | D84: 661870.2916 | E84: 1125020.92 | F84: 1416127.203 | G84: 2088714.199 | H84: 1648208.818 | I84: 1427468.104 | J84: 1491227.174 | K84: 974219.8854 | L84: 906532.6736 | M84: 926659.9212
C85: Strategy and Regulation | D85: 4016457.838 | E85: 5012527.453 | F85: 5179756.18 | G85: 4404408.053 | H85: 3676994.851 | I85: 3902160.285 | J85: 4642975.603 | K85: 3991308.136 | L85: 4919172.239 | M85: 5226014.257
C86: Human Resources | D86: 7382891.765 | E86: 7447862.553 | F86: 8393051.657 | G86: 8681272.393 | H86: 6887299.452 | I86: 7340721.717 | J86: 5543193.183 | K86: 6958990.774 | L86: 7396533.682 | M86: 6321473.069
C87: Finance | D87: 7792942.962 | E87: 8552568.129 | F87: 9192511.59 | G87: 9098059.006 | H87: 7152639.551 | I87: 8579387.213 | J87: 7457612.736 | K87: 5992034.859 | L87: 6844169.465 | M87: 5253346.827
C88: Business Support Services | D88: 12955498.8 | E88: 12267024.37 | F88: 14271280.72 | G88: 14279829.4 | H88: 11664483.63 | I88: 12330635.1 | J88: 13887843.39 | K88: 12659354.56 | L88: 14018036.75 | M88: 13215253.97
C89: Business Operations and Performance | D89: 5438138.581 | E89: 10871771.54 | F89: 6605232.537 | G89: 6504320.888 | H89: 2165066.965 | I89: 2601834.658 | J89: 3308785.775 | K89: 1535274.629 | L89: 1386905.622 | M89: 317941.5454
C90: Field Support Services | D90: 5265365.912 | E90: 5815131.989 | F90: 7061781.973 | G90: 7082425.824 | H90: 6178900.841 | I90: 7293700.728 | J90: 7168396.439 | K90: 6896341.927 | L90: 7809543.365 | M90: 7195091.406
C91: Stakeholder Engagement and Management | D91: 4166332.803 | E91: 3172549.687 | F91: 5515199.704 | G91: 5787354.318 | H91: 4611319.386 | I91: 5235423.823 | J91: 4713339.857 | K91: 4930075.976 | L91: 5290431.656 | M91: 5023948.345
C92: Other Operating | D92: 3490346.784 | E92: 2010522.686 | F92: 6995345.651 | G92: 5396292.84 | H92: 4838230.393 | I92: 6920824.388 | J92: 11621006.02 | K92: 6090070.252 | L92: 4592725.386 | M92: 18669945.52
C93: Corporate Restructuring | D93: 0 | E93: 0 | F93: 0 | G93: 6322999.691 | H93: 31367729.13 | I93: 13330084.25 | J93: 19306768.65 | K93: 12251903.99 | L93: 23934573.43 | M93: 17260015.33
C94: IT and Communications | D94: 0 | E94: 0 | F94: 0 | G94: 0 | H94: 0 | I94: 0 | J94: 0 | K94: 0 | L94: 0 | M94: 0
C95: Property | D95: 0 | E95: 0 | F95: 0 | G95: 0 | H95: 0 | I95: 0 | J95: 0 | K95: 0 | L95: 0 | M95: 0
C96: Fleet | D96: 0 | E96: 0 | F96: 0 | G96: 0 | H96: 0 | I96: 0 | J96: 0 | K96: 0 | L96: 0 | M96: 0
C97: Debt Raising Costs | D97: 2107701.146 | E97: 2171278.06 | F97: 2476204.85 | G97: 2820566.036 | H97: 3097648.399 | I97: 3719839.853 | J97: 3490618.594 | K97: 3713431.776 | L97: 0 | M97: 0
B102: Alternative Control Services | C102: Office of CEO | D102: 98039.93653 | E102: 90640.66452 | F102: 76996.93788 | G102: 90437.18792 | H102: 70552.37966 | I102: 86127.4401 | J102: 2.188044186e-11 | K102: 125252.3859 | L102: 177608.067 | M102: 376316.9666
C103: Legal and Secretariat | D103: 274262.7429 | E103: 287895.365 | F103: 253161.6979 | G103: 265714.9465 | H103: 174218.4174 | I103: 242930.1861 | J103: 0 | K103: 276522.419 | L103: 350091.1993 | M103: 428759.0172
C104: Audit | D104: 133227.5409 | E104: 260778.5077 | F104: 232889.257 | G104: 396508.0054 | H104: 294998.4456 | I104: 277969.5903 | J104: 2.239527579e-10 | K104: 249436.4245 | L104: 212838.9353 | M104: 277348.5289
C105: Strategy and Regulation | D105: 808470.7948 | E105: 1161897.886 | F105: 851837.0138 | G105: 836104.3617 | H105: 658113.0703 | I105: 759864.1907 | J105: 0 | K105: 1021922.92 | L105: 1154940.591 | M105: 1564141.637
C106: Human Resources | D106: 1486098.601 | E106: 1726405.658 | F106: 1380279.653 | G106: 1647996.649 | H106: 1232697.344 | I106: 1429452.19 | J106: 434565.7658 | K106: 1673556.627 | L106: 1786297.965 | M106: 1809031.408
C107: Finance | D107: 1568637.602 | E107: 1982475.093 | F107: 1511754.868 | G107: 1727116.726 | H107: 1280188.242 | I107: 1670656.417 | J107: 0 | K107: 1534183.168 | L107: 1606898.223 | M107: 1566971.964
C108: Business Support Services | D108: 2607805.892 | E108: 2843481.62 | F108: 2346984.053 | G108: 2710790.532 | H108: 2087723.656 | I108: 2401133.571 | J108: 3028177.382 | K108: 2545088.377 | L108: 3641056.601 | M108: 3416611.502
C109: Business Operations and Performance | D109: 1094640.202 | E109: 2520063.677 | F109: 1086263.786 | G109: 1234738.244 | H109: 387506.3539 | I109: 506652.9414 | J109: 333194.3439 | K109: 315481.7659 | L109: 351625.7506 | M109: 92317.29906
C110: Field Support Services | D110: 1059862.878 | E110: 1347940.661 | F110: 1161345.642 | G110: 1344481.949 | H110: 1105907.288 | I110: 1420295.835 | J110: 1841035.791 | K110: 1325621.593 | L110: 2053947.326 | M110: 1860186.123
C111: Stakeholder Engagement and Management | D111: 838639.0516 | E111: 735393.2342 | F111: 907002.3922 | G111: 1098633.944 | H111: 825339.6271 | I111: 1019489.41 | J111: 0 | K111: 1262282.306 | L111: 1242106.185 | M111: 1503663.481
C112: Other Operating | D112: 702570.1631 | E112: 466036.7611 | F112: 2574268.638 | G112: 2378321.8 | H112: 2204934.865 | I112: 2669130.519 | J112: 14142.86213 | K112: 1311722.286 | L112: 917908.8039 | M112: -156321.8495
C113: Corporate Restructuring | D113: 0 | E113: 0 | F113: 0 | G113: 1200317.4 | H113: 5614234.82 | I113: 2595755.412 | J113: 0 | K113: 3136941.844 | L113: 5619443.484 | M113: 5165907.956
C114: IT and Communications | D114: 0 | E114: 0 | F114: 0 | G114: 0 | H114: 0 | I114: 0 | J114: 0 | K114: 0 | L114: 0 | M114: 0
C115: Property | D115: 0 | E115: 0 | F115: 0 | G115: 0 | H115: 0 | I115: 0 | J115: 0 | K115: 0 | L115: 0 | M115: 0
C116: Fleet | D116: 0 | E116: 0 | F116: 0 | G116: 0 | H116: 0 | I116: 0 | J116: 0 | K116: 0 | L116: 0 | M116: 0
C117: Debt Raising Costs | D117: 0 | E117: 0 | F117: 0 | G117: 0 | H117: 0 | I117: 0 | J117: 0 | K117: 205420.1988 | L117: 0 | M117: 0
B122: Negotiated Services | C122: Total
B123: Unregulated Services | C123: Total | D123: 4422969.345 | E123: 4527610.986 | F123: 3098077.07 | G123: 3118958.178 | H123: 3028267.233 | I123: 3356687.674 | J123: 3749580.207 | K123: 3861146.67 | L123: 5034596.903 | M123: 3718612.121
B126: CAPITALISED CORPORATE OVERHEADS
B127: Standard Control Services | C127: Office of CEO | D127: 0 | E127: 0 | F127: 0 | G127: 0 | H127: 0 | I127: 0 | J127: 4.653393156e-11 | K127: 0 | L127: 0 | M127: 0
C128: Legal and Secretariat | D128: 0 | E128: 0 | F128: 0 | G128: 0 | H128: 0 | I128: 0 | J128: 0 | K128: 0 | L128: 0 | M128: 0
C129: Audit | D129: 0 | E129: 0 | F129: 0 | G129: 0 | H129: 0 | I129: 0 | J129: 4.762884759e-10 | K129: 0 | L129: 0 | M129: 0
C130: Strategy and Regulation | D130: 711692.6613 | E130: 207161.5993 | F130: 219343.1659 | G130: 166716.7403 | H130: 208109.0831 | I130: 257265.8395 | J130: 0 | K130: 0 | L130: 0 | M130: 0
C131: Human Resources | D131: 995511.2065 | E131: 1087049.638 | F131: 1748071.957 | G131: 1778371.66 | H131: 1710556.884 | I131: 1097827.283 | J131: 924206.8203 | K131: 785132.4434 | L131: 1104181.587 | M131: 1282911.956
C132: Finance | D132: 545522.3536 | E132: 0 | F132: 0 | G132: 0 | H132: 0 | I132: 102997.1771 | J132: 0 | K132: 4.643377067e-10 | L132: 0 | M132: 82717.97992
C133: Business Support Services | D133: 2881410.853 | E133: 3053108.517 | F133: 4294784.791 | G133: 4705819.021 | H133: 5330418.819 | I133: 4949027.23 | J133: 6440134.98 | K133: 5051520.741 | L133: 7770504.612 | M133: 8328600.309
C134: Business Operations and Performance | D134: 1493676.67 | E134: 2845445.133 | F134: 2052213.077 | G134: 2099041.453 | H134: 882347.0958 | I134: 951439.4373 | J134: 708616.5302 | K134: 563112.9851 | L134: 577551.0131 | M134: 43943.85868
C135: Field Support Services | D135: 1446221.737 | E135: 1766688.31 | F135: 2814421.085 | G135: 3051615.165 | H135: 3741432.536 | I135: 3743563.69 | J135: 3915397.779 | K135: 3193392.225 | L135: 4895153.985 | M135: 4534535.668
C136: Stakeholder Engagement and Management | D136: 0 | E136: 0 | F136: 0 | G136: 0 | H136: 0 | I136: 0 | J136: 0 | K136: 0 | L136: 0 | M136: 0
C137: Other Operating | D137: 0 | E137: 0 | F137: 17834.43363 | G137: 0 | H137: 0 | I137: 0 | J137: 30078.13931 | K137: 1.448733645e-09 | L137: 0 | M137: 0
C138: Corporate Restructuring | D138: 0 | E138: 0 | F138: 0 | G138: 0 | H138: 0 | I138: 0 | J138: 0 | K138: 0 | L138: 0 | M138: 0
C139: IT and Communications | D139: 0 | E139: 0 | F139: 0 | G139: 0 | H139: 0 | I139: 0 | J139: 0 | K139: 0 | L139: 0 | M139: 0
C140: Property | D140: 0 | E140: 0 | F140: 0 | G140: 0 | H140: 0 | I140: 0 | J140: 0 | K140: 0 | L140: 0 | M140: 0
C141: Fleet | D141: 0 | E141: 0 | F141: 0 | G141: 0 | H141: 0 | I141: 0 | J141: 0 | K141: 0 | L141: 0 | M141: 0
C142: Debt Raising Costs | D142: 0 | E142: 0 | F142: 0 | G142: 0 | H142: 0 | I142: 0 | J142: 0 | K142: 0 | L142: 0 | M142: 0

Sheet 2.11 Labour
B1: REGULATORY REPORTING STATEMENT
B2: =INDEX(dms_TradingNameFull_List,MATCH(dms_TradingName,dms_TradingName_List)) -> Energex
B3: =IF(SUM(dms_SingleYear_Model)>0,("CATEGORY ANALYSIS "&CRY&" to "&FRY),("CATEGORY ANALYSIS "&CRY)) -> CATEGORY ANALYSIS 2008-09 to 2017-18
B4: 2.11 LABOUR
B6: There are TWO tables on this worksheet. Each table has been 'grouped' (and sub-grouped) for easy navigation. See the Instructions sheet on how to group or ungroup data.
B8: 2.11.1 - COST METRICS PER ANNUM
B9: AVERAGE STAFFING LEVEL (ASL)
D10: VOLUME (0's)
B11: INTERNAL LABOUR | D11: =IF(dms_RPT="financial",dms_CRYf_y1,dms_CRYc_y1) -> 2008-09 | E11: =IF(dms_RPT="financial",dms_CRYf_y2,dms_CRYc_y2) -> 2009-10 | F11: =IF(dms_RPT="financial",dms_CRYf_y3,dms_CRYc_y3) -> 2010-11 | G11: =IF(dms_RPT="financial",dms_CRYf_y4,dms_CRYc_y4) -> 2011-12 | H11: =IF(dms_RPT="financial",dms_CRYf_y5,dms_CRYc_y5) -> 2012-13 | I11: =IF(dms_RPT="financial",dms_CRYf_y6,dms_CRYc_y6) -> 2013-14 | J11: =IF(dms_RPT="financial",dms_CRYf_y7,dms_CRYc_y7) -> 2014-15 | K11: =IF(dms_RPT="financial",dms_CRYf_y8,dms_CRYc_y8) -> 2015-16 | L11: =IF(dms_RPT="financial",dms_CRYf_y9,dms_CRYc_y9) -> 2016-17 | M11: =IF(dms_RPT="financial",dms_CRYf_y10,dms_CRYc_y10) -> 2017-18
B12: CORPORATE OVERHEADS | C12: Executive manager
C13: Senior manager
C14: Manager
C15: Professional
C16: Semi professional
C17: Support staff
C18: Intern, junior staff, apprentice
B19: NETWORK OVERHEADS | C19: Executive manager
C20: Senior manager
C21: Manager
C22: Professional
C23: Semi professional
C24: Support staff
C25: Intern, junior staff, apprentice
B26: TOTAL DIRECT NETWORK LABOUR | C26: Skilled electrical worker
C27: Skilled non electical worker
C28: Apprentice
C29: Unskilled worker
B31: TOTAL LABOUR EXPENDITURE
D32: EXPENDITURE ($0's)
B33: INTERNAL LABOUR | D33: =IF(dms_RPT="financial",dms_CRYf_y1,dms_CRYc_y1) -> 2008-09 | E33: =IF(dms_RPT="financial",dms_CRYf_y2,dms_CRYc_y2) -> 2009-10 | F33: =IF(dms_RPT="financial",dms_CRYf_y3,dms_CRYc_y3) -> 2010-11 | G33: =IF(dms_RPT="financial",dms_CRYf_y4,dms_CRYc_y4) -> 2011-12 | H33: =IF(dms_RPT="financial",dms_CRYf_y5,dms_CRYc_y5) -> 2012-13 | I33: =IF(dms_RPT="financial",dms_CRYf_y6,dms_CRYc_y6) -> 2013-14 | J33: =IF(dms_RPT="financial",dms_CRYf_y7,dms_CRYc_y7) -> 2014-15 | K33: =IF(dms_RPT="financial",dms_CRYf_y8,dms_CRYc_y8) -> 2015-16 | L33: =IF(dms_RPT="financial",dms_CRYf_y9,dms_CRYc_y9) -> 2016-17 | M33: =IF(dms_RPT="financial",dms_CRYf_y10,dms_CRYc_y10) -> 2017-18
B34: CORPORATE OVERHEADS | C34: Executive manager | D34: 1188746.068 | E34: 1276098.168 | F34: 1323872.348 | G34: 1375549.004 | H34: 902817.2574 | I34: 1014524.652 | J34: 1315386.392 | K34: 982494.412 | L34: 783259.7877 | M34: 0
C35: Senior manager | D35: 3382158.414 | E35: 3564877.372 | F35: 3550681.525 | G35: 4794799.57 | H35: 7573105.578 | I35: 4382750.94 | J35: 4768275.671 | K35: 5035283.862 | L35: 2545593.848 | M35: 170915.8096
C36: Manager | D36: 7579045.898 | E36: 8608034.12 | F36: 8381822.519 | G36: 9855488.409 | H36: 6052194.987 | I36: 5909941.725 | J36: 6261291.983 | K36: 4708866.518 | L36: 4890689.18 | M36: 2667311.768
C37: Professional | D37: 19887089.77 | E37: 21032875.83 | F37: 23881564.31 | G37: 24465768.84 | H37: 23832563.04 | I37: 22481201.91 | J37: 21004017.76 | K37: 19818820.81 | L37: 18894946.58 | M37: 17144962.48
C38: Semi professional | D38: 2709860.219 | E38: 2290536.905 | F38: 3137661.447 | G38: 4048175.298 | H38: 4205313.394 | I38: 2291949.22 | J38: 3840998.627 | K38: 3562440.079 | L38: 3353139.347 | M38: 2734593.589
C39: Support staff | D39: 19146175.7 | E39: 20203628.93 | F39: 19177362.89 | G39: 18706343.92 | H39: 17816293.18 | I39: 17574989.76 | J39: 18627034.79 | K39: 15748688.67 | L39: 14610955.72 | M39: 13758260.62
C40: Intern, junior staff, apprentice | D40: 3876811.312 | E40: 4234241.62 | F40: 4734557.626 | G40: 4586708.551 | H40: 4290533.512 | I40: 3602014.596 | J40: 4218163.136 | K40: 3580580.282 | L40: 3786216.652 | M40: 4133750.721
B41: NETWORK OVERHEADS | C41: Executive manager | D41: 1188746.068 | E41: 1276098.168 | F41: 1323872.348 | G41: 1375549.004 | H41: 1203756.343 | I41: 711304.1928 | J41: 749689.6827 | K41: 728349.924 | L41: 290628.4436 | M41: 0
C42: Senior manager | D42: 4306320.458 | E42: 4331896.345 | F42: 3291294.735 | G42: 4860095.701 | H42: 13586638.8 | I42: 10260542.15 | J42: 10245759 | K42: 8376024.126 | L42: 8573539.086 | M42: 3560707.391
C43: Manager | D43: 10506375.47 | E43: 11425034.43 | F43: 12443844.93 | G43: 16870317.83 | H43: 12400286.12 | I43: 8594327.01 | J43: 8457683.229 | K43: 7181479.6 | L43: 6901428.875 | M43: 4300669.501
C44: Professional | D44: 20614402.43 | E44: 26555020.47 | F44: 28830393.81 | G44: 29756752.93 | H44: 36128348.13 | I44: 29877852.52 | J44: 29574677.83 | K44: 27064695.84 | L44: 26442883.2 | M44: 32927329.56
C45: Semi professional | D45: 31884177.86 | E45: 36956749.71 | F45: 37417472.11 | G45: 51370297.82 | H45: 56686169.01 | I45: 42161351.21 | J45: 50920133.46 | K45: 49682421.82 | L45: 47900183.11 | M45: 51855519.06
C46: Support staff | D46: 24821073.73 | E46: 30985576.7 | F46: 31914934.1 | G46: 30247753.94 | H46: 34145415.06 | I46: 26544501.94 | J46: 24833902.96 | K46: 22691268.11 | L46: 20244461.19 | M46: 22320366.8
C47: Intern, junior staff, apprentice | D47: 22137901.74 | E47: 21407410.84 | F47: 19589522.72 | G47: 19778613.91 | H47: 20244514.37 | I47: 11756696.3 | J47: 20078904.36 | K47: 20947374.92 | L47: 23854373.16 | M47: 22835204.07
B48: TOTAL DIRECT NETWORK LABOUR | C48: Skilled electrical worker | D48: 69745463.27 | E48: 71422593.22 | F48: 78190815.43 | G48: 83693174.18 | H48: 89176651.65 | I48: 88426974.77 | J48: 87681053.7 | K48: 77521061.49 | L48: 91704552.8 | M48: 92601491.94
C49: Skilled non electical worker | D49: 51084699.68 | E49: 53551851.87 | F49: 61892692.3 | G49: 54678405.91 | H49: 51706894.47 | I49: 49848342.45 | J49: 50327666.75 | K49: 47241352.03 | L49: 51699507.5 | M49: 51445645.08
C50: Apprentice | D50: 9153524.256 | E50: 10487716.16 | F50: 12224691.43 | G50: 13822165.17 | H50: 13856255.8 | I50: 12706568.76 | J50: 9843000.824 | K50: 7150139.014 | L50: 6567509.126 | M50: 8109566.764
C51: Unskilled worker | D51: 7436601.94 | E51: 7546213.509 | F51: 8363741.772 | G51: 8089063.624 | H51: 7447737.702 | I51: 6909104.006 | J51: 6858645.956 | K51: 6225367.421 | L51: 7182548.273 | M51: 7383906.821
B53: AVERAGE PRODUCTIVE WORK HOURS PER ASL
D54: VOLUME (0's)
B55: INTERNAL LABOUR | D55: =IF(dms_RPT="financial",dms_CRYf_y1,dms_CRYc_y1) -> 2008-09 | E55: =IF(dms_RPT="financial",dms_CRYf_y2,dms_CRYc_y2) -> 2009-10 | F55: =IF(dms_RPT="financial",dms_CRYf_y3,dms_CRYc_y3) -> 2010-11 | G55: =IF(dms_RPT="financial",dms_CRYf_y4,dms_CRYc_y4) -> 2011-12 | H55: =IF(dms_RPT="financial",dms_CRYf_y5,dms_CRYc_y5) -> 2012-13 | I55: =IF(dms_RPT="financial",dms_CRYf_y6,dms_CRYc_y6) -> 2013-14 | J55: =IF(dms_RPT="financial",dms_CRYf_y7,dms_CRYc_y7) -> 2014-15 | K55: =IF(dms_RPT="financial",dms_CRYf_y8,dms_CRYc_y8) -> 2015-16 | L55: =IF(dms_RPT="financial",dms_CRYf_y9,dms_CRYc_y9) -> 2016-17 | M55: =IF(dms_RPT="financial",dms_CRYf_y10,dms_CRYc_y10) -> 2017-18
B56: CORPORATE OVERHEADS | C56: Executive manager
C57: Senior manager
C58: Manager
C59: Professional
C60: Semi professional
C61: Support staff
C62: Intern, junior staff, apprentice
B63: NETWORK OVERHEADS | C63: Executive manager
C64: Senior manager
C65: Manager
C66: Professional
C67: Semi professional
C68: Support staff
C69: Intern, junior staff, apprentice
B70: TOTAL DIRECT NETWORK LABOUR | C70: Skilled electrical worker
C71: Skilled non electical worker
C72: Apprentice
C73: Unskilled worker
B75: STAND DOWN OCCURENCES PER ASL
D76: VOLUME (0's)
B77: INTERNAL LABOUR | D77: =IF(dms_RPT="financial",dms_CRYf_y1,dms_CRYc_y1) -> 2008-09 | E77: =IF(dms_RPT="financial",dms_CRYf_y2,dms_CRYc_y2) -> 2009-10 | F77: =IF(dms_RPT="financial",dms_CRYf_y3,dms_CRYc_y3) -> 2010-11 | G77: =IF(dms_RPT="financial",dms_CRYf_y4,dms_CRYc_y4) -> 2011-12 | H77: =IF(dms_RPT="financial",dms_CRYf_y5,dms_CRYc_y5) -> 2012-13 | I77: =IF(dms_RPT="financial",dms_CRYf_y6,dms_CRYc_y6) -> 2013-14 | J77: =IF(dms_RPT="financial",dms_CRYf_y7,dms_CRYc_y7) -> 2014-15 | K77: =IF(dms_RPT="financial",dms_CRYf_y8,dms_CRYc_y8) -> 2015-16 | L77: =IF(dms_RPT="financial",dms_CRYf_y9,dms_CRYc_y9) -> 2016-17 | M77: =IF(dms_RPT="financial",dms_CRYf_y10,dms_CRYc_y10) -> 2017-18
B78: CORPORATE OVERHEADS | C78: Executive manager
C79: Senior manager
C80: Manager
C81: Professional
C82: Semi professional
C83: Support staff
C84: Intern, junior staff, apprentice
B85: NETWORK OVERHEADS | C85: Executive manager
C86: Senior manager
C87: Manager
C88: Professional
C89: Semi professional
C90: Support staff
C91: Intern, junior staff, apprentice
B92: TOTAL DIRECT NETWORK LABOUR | C92: Skilled electrical worker
C93: Skilled non electical worker
C94: Apprentice
C95: Unskilled worker

Sheet 2.12 Input tables
B1: REGULATORY REPORTING STATEMENT
B2: =INDEX(dms_TradingNameFull_List,MATCH(dms_TradingName,dms_TradingName_List)) -> Energex
B3: =IF(SUM(dms_SingleYear_Model)>0,("CATEGORY ANALYSIS "&CRY&" to "&FRY),("CATEGORY ANALYSIS "&CRY)) -> CATEGORY ANALYSIS 2008-09 to 2017-18
B4: 2.12 INPUT TABLES
B6: There are SIX tables on this worksheet. Each table has been 'grouped' for easy navigation. See the Instructions sheet on how to group or ungroup data.
B8: 2.12 INPUT TABLES
B9: 2.12.1 - DIRECT MATERIALS EXPENDITURE
D10: EXPENDITURE
D11: Actual ($0's)
D12: =IF(dms_RPT="financial",dms_CRYf_y1,dms_CRYc_y1) -> 2008-09 | E12: =IF(dms_RPT="financial",dms_CRYf_y2,dms_CRYc_y2) -> 2009-10 | F12: =IF(dms_RPT="financial",dms_CRYf_y3,dms_CRYc_y3) -> 2010-11 | G12: =IF(dms_RPT="financial",dms_CRYf_y4,dms_CRYc_y4) -> 2011-12 | H12: =IF(dms_RPT="financial",dms_CRYf_y5,dms_CRYc_y5) -> 2012-13 | I12: =IF(dms_RPT="financial",dms_CRYf_y6,dms_CRYc_y6) -> 2013-14 | J12: =IF(dms_RPT="financial",dms_CRYf_y7,dms_CRYc_y7) -> 2014-15 | K12: =IF(dms_RPT="financial",dms_CRYf_y8,dms_CRYc_y8) -> 2015-16 | L12: =IF(dms_RPT="financial",dms_CRYf_y9,dms_CRYc_y9) -> 2016-17 | M12: =IF(dms_RPT="financial",dms_CRYf_y10,dms_CRYc_y10) -> 2017-18
B13: VEGETATION MANAGEMENT | C13: Zone 1
C14: Zone 2
C15: Zone 3
C16: Zone 4
C17: Zone 5
C18: Zone 6
C19: Zone 7
C20: Zone 8
C21: Zone 9
C22: Zone 10
C23: Zone 11
C24: Zone 12
C25: Zone 13
C26: Zone 14
C27: Zone 15
C28: Zone 16
C29: Zone 17
C30: Zone 18
B31: ROUTINE MAINTENANCE | C31: Pole top, overhead line & service line maintenance
C32: Pole inspection and treatment
C33: Overhead asset inspection
C34: Network underground cable maintenance
C35: Distribution substation equipment & property maintenance
C36: Zone substation equipment maintenance
C37: Zone substation property maintenance
C38: Public lighting maintenance
C39: Scada & network control maintenance
C40: Protection systems maintenance
C41: Subtransmission asset maintenance - for dnsps with dual function assets
C42: Other
B43: NON-ROUTINE MAINTENANCE | C43: Pole top, overhead line & service line maintenance
C44: Pole inspection and treatment
C45: Overhead asset inspection
C46: Network underground cable maintenance
C47: Distribution substation equipment & property maintenance
C48: Zone substation equipment maintenance
C49: Zone substation property maintenance
C50: Public lighting maintenance
C51: SCADA & network control maintenance
C52: Protection systems maintenance
C53: Subtransmission asset maintenance - for DNSP with dual function assets
C54: Other
B55: OVERHEADS | C55: Network overheads | D55: 7500286.234 | E55: 6816293.377 | F55: 6748382.267 | G55: 7030668.282 | H55: 7407103.79 | I55: 6967484.954 | J55: 180154329.7 | K55: 11580964.09 | L55: 12356127.3 | M55: 12301530.97
C56: Corporate overheads | D56: 418028.3997 | E56: 74598.02662 | F56: 55860.78192 | G56: 51324.16004 | H56: 28110.78217 | I56: 63012.14019 | J56: 285191.737 | K56: 255125.2734 | L56: 167378.0318 | M56: 695164.1001
B57: AUGMENTATION | C57: Subtransmission substations, switching stations, zone substations | D57: 55350235.84 | E57: 81382242.98 | F57: 61147812.06 | G57: 53256693.68 | H57: 52900518.51 | I57: 44241545.08 | J57: 16152674.36 | K57: 2489456.449 | L57: 516267.958 | M57: 2155938.823
C58: Subtransmission lines | D58: 18443098.31 | E58: 15530406.21 | F58: 20689780.82 | G58: 8491243.665 | H58: 8563561.777 | I58: 4407684.195 | J58: 7895534.106 | K58: 4508262.039 | L58: -21679.50274 | M58: 553638.7193
C59: HV feeders | D59: 29025103.01 | E59: 29024394.81 | F59: 28949333.56 | G59: 25849349.69 | H59: 21646950.81 | I59: 9716755.583 | J59: 9206903.541 | K59: 3741267.072 | L59: 3108069.697 | M59: 8658137.192
C60: Distribution substations | D60: 26591202.36 | E60: 24954424.93 | F60: 6945955 | G60: 5106692.131 | H60: 4491212.402 | I60: 5486171.172 | J60: 2529875.873 | K60: 761784.5959 | L60: 1225904.922 | M60: 4687118.741
C61: LV feeders | D61: 755627.7188 | E61: 704527.0453 | F61: 656080.9735 | G61: 1819734.149 | H61: 2245166.909 | I61: 1419359.643 | J61: 4814353.703 | K61: 717503.9138 | L61: 759054.8318 | M61: 2922997.188
C62: Other assets | D62: 17026846.46 | E62: 22360306.46 | F62: 15678368.49 | G62: 18326259.34 | H62: 4625512.493 | I62: -11929.61933 | J62: 2609491.527 | K62: 11828711.29 | L62: 8646497.865 | M62: 5668939.147
B63: CONNECTIONS | C63: Simple and complex customer connections | D63: 73815575.77 | E63: 51991778.76 | F63: 37340910.57 | G63: 27399411.35 | H63: 26560723.83 | I63: 21469093.23 | J63: 26418688.28 | K63: 21921611.54 | L63: 19678296.45 | M63: 15271614.59
B64: EMERGENCY RESPONSE | C64: Major storms
C65: Major event days
B66: PUBLIC LIGHTING | C66: All public lighting services | D66: 4153422.842 | E66: 3513039.905 | F66: 3320109.005 | G66: 2783175.117 | H66: 3378058.8 | I66: 2095944.66 | J66: 2949640.163 | K66: 3418653.062 | L66: 3332032.155 | M66: 3600295.509
B67: METERING | C67: All metering services | D67: 13725958.34 | E67: 12821082.7 | F67: 18174532.44 | G67: 17810676.28 | H67: 15862976.34 | I67: 13623356.02 | J67: 9657124.626 | K67: 13382154.83 | L67: 7509494.87 | M67: 3544979.675
B68: FEE-BASED SERVICES | C68: All fee-based services
B69: QUOTED SERVICES | C69: All quoted services
B70: REPLACEMENT | C70: Poles
C71: Pole top structures
C72: Overhead conductors
C73: Underground cables
C74: Service lines
C75: Transformers
C76: Switchgear
C77: Public lighting
C78: SCADA network control and protection systems
C79: Other
B80: NON-NETWORK EXPENDITURE | C80: IT and communications | D80: 2351075.126 | E80: 3050431.188 | F80: 3428797.882 | G80: 5073081.538 | H80: 4682759.636 | I80: 3133592.066 | J80: 3557115.763 | K80: 3323339.127 | L80: 2948102.298 | M80: 3664291.782
C81: Motor vehicles | D81: 8057969.778 | E81: 7157438.625 | F81: 10106481.76 | G81: 7523741.013 | H81: 7751459.105 | I81: 8443190.917 | J81: 9295754.779 | K81: 6735586.783 | L81: 9823536.705 | M81: 6563129.684
C82: Buildings and property | D82: 4025137.269 | E82: 21969129.21 | F82: 3437362.361 | G82: 6929718.517 | H82: 12795784.7 | I82: 2305537.842 | J82: 198036.0785 | K82: 1741178.719 | L82: 59940.60595 | M82: 1554390.792
C83: Other | D83: 11761263.53 | E83: 19568800.65 | F83: 16627138.72 | G83: 12247207.43 | H83: 9875501.971 | I83: 7717109.585 | J83: 14196360.75 | K83: 8701970.129 | L83: 6270550.337 | M83: 6566464.994
B86: 2.12.2 - DIRECT LABOUR EXPENDITURE
D87: EXPENDITURE
D88: Actual ($0's)
D89: =IF(dms_RPT="financial",dms_CRYf_y1,dms_CRYc_y1) -> 2008-09 | E89: =IF(dms_RPT="financial",dms_CRYf_y2,dms_CRYc_y2) -> 2009-10 | F89: =IF(dms_RPT="financial",dms_CRYf_y3,dms_CRYc_y3) -> 2010-11 | G89: =IF(dms_RPT="financial",dms_CRYf_y4,dms_CRYc_y4) -> 2011-12 | H89: =IF(dms_RPT="financial",dms_CRYf_y5,dms_CRYc_y5) -> 2012-13 | I89: =IF(dms_RPT="financial",dms_CRYf_y6,dms_CRYc_y6) -> 2013-14 | J89: =IF(dms_RPT="financial",dms_CRYf_y7,dms_CRYc_y7) -> 2014-15 | K89: =IF(dms_RPT="financial",dms_CRYf_y8,dms_CRYc_y8) -> 2015-16 | L89: =IF(dms_RPT="financial",dms_CRYf_y9,dms_CRYc_y9) -> 2016-17 | M89: =IF(dms_RPT="financial",dms_CRYf_y10,dms_CRYc_y10) -> 2017-18
B90: VEGETATION MANAGEMENT | C90: =IF(ISBLANK(C13)," ",C13) -> Zone 1
C91: =IF(ISBLANK(C14)," ",C14) -> Zone 2
C92: Zone 3
C93: Zone 4
C94: Zone 5
C95: Zone 6
C96: Zone 7
C97: Zone 8
C98: Zone 9
C99: Zone 10
C100: Zone 11
C101: Zone 12
C102: Zone 13
C103: Zone 14
C104: Zone 15
C105: Zone 16
C106: Zone 17
C107: Zone 18
B108: ROUTINE MAINTENANCE | C108: Pole top, overhead line & service line maintenance
C109: Pole inspection and treatment
C110: Overhead asset inspection
C111: Network underground cable maintenance
C112: Distribution substation equipment & property maintenance
C113: Zone substation equipment maintenance
C114: Zone substation property maintenance
C115: Public lighting maintenance
C116: Scada & network control maintenance
C117: Protection systems maintenance
C118: Subtransmission asset maintenance - for dnsps with dual function assets
C119: Other
B120: NON-ROUTINE MAINTENANCE | C120: Pole top, overhead line & service line maintenance
C121: Pole inspection and treatment
C122: Overhead asset inspection
C123: Network underground cable maintenance
C124: Distribution substation equipment & property maintenance
C125: Zone substation equipment maintenance
C126: Zone substation property maintenance
C127: Public lighting maintenance
C128: SCADA & network control maintenance
C129: Protection systems maintenance
C130: Subtransmission asset maintenance - for DNSP with dual function assets
C131: Other
B132: OVERHEADS | C132: Network overheads | D132: 105712291.8 | E132: 144596671.3 | F132: 150372297.1 | G132: 166072373.2 | H132: 148237922.5 | I132: 140547770.2 | J132: 129651739.9 | K132: 122544801.4 | L132: 123693959.8 | M132: 124331036.9
C133: Corporate overheads | D133: 16205891.66 | E133: 21293066.28 | F133: 22346166.43 | G133: 25361211.08 | H133: 31323324.97 | I133: 21744963.16 | J133: 23937579.51 | K133: 18911139.77 | L133: 26720182.16 | M133: 22112915.54
B134: AUGMENTATION | C134: Subtransmission substations, switching stations, zone substations | D134: 17565153.34 | E134: 18293319.82 | F134: 20883461.51 | G134: 20045207.8 | H134: 14613511.41 | I134: 10996546.27 | J134: 8390798.477 | K134: 3878415.066 | L134: 3004812.691 | M134: 1933364.222
C135: Subtransmission lines | D135: 5443673.179 | E135: 6531021.809 | F135: 5718848.564 | G135: 6704435.862 | H135: 4677861.204 | I135: 1622721.311 | J135: 3147373.105 | K135: 2927917.804 | L135: 1558433.341 | M135: 686283.4348
C136: HV feeders | D136: 14415255.72 | E136: 15209010.99 | F136: 18082927.81 | G136: 18579923.01 | H136: 18423221.29 | I136: 10288227.11 | J136: 9740882.402 | K136: 5011960.31 | L136: 5539800.973 | M136: 13482158.87
C137: Distribution substations | D137: 6522645.948 | E137: 6385271.671 | F137: 7387811.987 | G137: 4993532.096 | H137: 4230361.114 | I137: 4251416.315 | J137: 2093469.177 | K137: 1453072.743 | L137: 2007240.411 | M137: 5407071.697
C138: LV feeders | D138: 1696605.73 | E138: 711000.8807 | F138: 1126968.607 | G138: 2016967.564 | H138: 1930358.771 | I138: 1037772.651 | J138: 3734383.398 | K138: 1208148.578 | L138: 1247282.866 | M138: 6889398.241
C139: Other assets | D139: 1466791.077 | E139: 2377403.428 | F139: 853197.6396 | G139: 1583915.567 | H139: 1061662.288 | I139: 377844.9063 | J139: 850883.8602 | K139: 10852589.83 | L139: 7374953.431 | M139: 4057830.426
B140: CONNECTIONS | C140: Simple and complex customer connections | D140: 31542586.85 | E140: 25322562.06 | F140: 26636348.37 | G140: 22833855.85 | H140: 19490948.12 | I140: 12744538.54 | J140: 19990535.43 | K140: 26339691.52 | L140: 26801373.13 | M140: 25700277.24
B141: EMERGENCY RESPONSE | C141: Major storms
C142: Major event days
B143: PUBLIC LIGHTING | C143: All public lighting services | D143: 1615175.913 | E143: 1679448.783 | F143: 1536311.773 | G143: 1820483.734 | H143: 1478983.971 | I143: 1697609.901 | J143: 1330445.422 | K143: 1390201.052 | L143: 1491075.903 | M143: 1507315.916
B144: METERING | C144: All metering services | D144: 7748858.836 | E144: 8636395.167 | F144: 10644028.34 | G144: 11762481.82 | H144: 11015053.56 | I144: 9676961.275 | J144: 6531931.372 | K144: 8715689.25 | L144: 9725329.816 | M144: 7342478.62
B145: FEE-BASED SERVICES | C145: All fee-based services
B146: QUOTED SERVICES | C146: All quoted services
B147: REPLACEMENT | C147: Poles
C148: Pole top structures
C149: Overhead conductors
C150: Underground cables
C151: Service lines
C152: Transformers
C153: Switchgear
C154: Public lighting
C155: SCADA network control and protection systems
C156: Other
B157: NON-NETWORK EXPENDITURE | C157: IT and communications | D157: 16420136.34 | E157: 21304506.8 | F157: 23947056.43 | G157: 35430892.7 | H157: 32704846.74 | I157: 21885310.42 | J157: 24843240.93 | K157: 23210522.27 | L157: 20589831.92 | M157: 25591768.62
C158: Motor vehicles | D158: 1348786.789 | E158: 1661743.52 | F158: 1882254.471 | G158: 1898927.805 | H158: 1790517.187 | I158: 1618510.75 | J158: 1467810.49 | K158: 1498901.357 | L158: 1428837.764 | M158: 1402936.939
C159: Buildings and property | D159: 1242314.341 | E159: 1448018.054 | F159: 1496822.329 | G159: 1804384.23 | H159: 1539002.726 | I159: 1524609.22 | J159: 1564158.187 | K159: 1537822.264 | L159: 1608634.865 | M159: 1749616.489
C160: Other | D160: 4495652.874 | E160: 4558534.675 | F160: 4222858.89 | G160: 4729262.885 | H160: 4468535.61 | I160: 3804769.009 | J160: 4859013.457 | K160: 4671240.218 | L160: 3741994.369 | M160: 3992200.758
B163: 2.12.3 - CONTRACT EXPENDITURE
D164: EXPENDITURE
D165: Actual ($0's)
D166: =IF(dms_RPT="financial",dms_CRYf_y1,dms_CRYc_y1) -> 2008-09 | E166: =IF(dms_RPT="financial",dms_CRYf_y2,dms_CRYc_y2) -> 2009-10 | F166: =IF(dms_RPT="financial",dms_CRYf_y3,dms_CRYc_y3) -> 2010-11 | G166: =IF(dms_RPT="financial",dms_CRYf_y4,dms_CRYc_y4) -> 2011-12 | H166: =IF(dms_RPT="financial",dms_CRYf_y5,dms_CRYc_y5) -> 2012-13 | I166: =IF(dms_RPT="financial",dms_CRYf_y6,dms_CRYc_y6) -> 2013-14 | J166: =IF(dms_RPT="financial",dms_CRYf_y7,dms_CRYc_y7) -> 2014-15 | K166: =IF(dms_RPT="financial",dms_CRYf_y8,dms_CRYc_y8) -> 2015-16 | L166: =IF(dms_RPT="financial",dms_CRYf_y9,dms_CRYc_y9) -> 2016-17 | M166: =IF(dms_RPT="financial",dms_CRYf_y10,dms_CRYc_y10) -> 2017-18
B167: VEGETATION MANAGEMENT | C167: =IF(ISBLANK(C13)," ",C13) -> Zone 1
C168: Zone 2
C169: Zone 3
C170: Zone 4
C171: Zone 5
C172: Zone 6
C173: Zone 7
C174: Zone 8
C175: Zone 9
C176: Zone 10
C177: Zone 11
C178: Zone 12
C179: Zone 13
C180: Zone 14
C181: Zone 15
C182: Zone 16
C183: Zone 17
C184: Zone 18
B185: ROUTINE MAINTENANCE | C185: Pole top, overhead line & service line maintenance
C186: Pole inspection and treatment
C187: Overhead asset inspection
C188: Network underground cable maintenance
C189: Distribution substation equipment & property maintenance
C190: Zone substation equipment maintenance
C191: Zone substation property maintenance
C192: Public lighting maintenance
C193: Scada & network control maintenance
C194: Protection systems maintenance
C195: Subtransmission asset maintenance - for dnsps with dual function assets
C196: Other
B197: NON-ROUTINE MAINTENANCE | C197: Pole top, overhead line & service line maintenance
C198: Pole inspection and treatment
C199: Overhead asset inspection
C200: Network underground cable maintenance
C201: Distribution substation equipment & property maintenance
C202: Zone substation equipment maintenance
C203: Zone substation property maintenance
C204: Public lighting maintenance
C205: SCADA & network control maintenance
C206: Protection systems maintenance
... 256 more rows

Sheet 4.1 Public lighting
B1: REGULATORY REPORTING STATEMENT
B2: =INDEX(dms_TradingNameFull_List,MATCH(dms_TradingName,dms_TradingName_List)) -> Energex
B3: =IF(SUM(dms_SingleYear_Model)>0,("CATEGORY ANALYSIS "&CRY&" to "&FRY),("CATEGORY ANALYSIS "&CRY)) -> CATEGORY ANALYSIS 2008-09 to 2017-18
B4: 4.1 PUBLIC LIGHTING
B6: There are THREE tables on this worksheet. Each table has been 'grouped' (and 'sub-grouped') for easy navigation. See the Instructions sheet on how to group or ungroup data.
B8: 4.1.1 - DESCRIPTOR METRICS OVER YEAR
C9: LIGHT TYPE | E9: VOLUMES (0's)
E10: =IF(dms_RPT="financial",dms_CRYf_y1,dms_CRYc_y1) -> 2008-09 | F10: =IF(dms_RPT="financial",dms_CRYf_y2,dms_CRYc_y2) -> 2009-10 | G10: =IF(dms_RPT="financial",dms_CRYf_y3,dms_CRYc_y3) -> 2010-11 | H10: =IF(dms_RPT="financial",dms_CRYf_y4,dms_CRYc_y4) -> 2011-12 | I10: =IF(dms_RPT="financial",dms_CRYf_y5,dms_CRYc_y5) -> 2012-13 | J10: =IF(dms_RPT="financial",dms_CRYf_y6,dms_CRYc_y6) -> 2013-14 | K10: =IF(dms_RPT="financial",dms_CRYf_y7,dms_CRYc_y7) -> 2014-15 | L10: =IF(dms_RPT="financial",dms_CRYf_y8,dms_CRYc_y8) -> 2015-16 | M10: =IF(dms_RPT="financial",dms_CRYf_y9,dms_CRYc_y9) -> 2016-17 | N10: =IF(dms_RPT="financial",dms_CRYf_y10,dms_CRYc_y10) -> 2017-18
B11: POPULATION OF LIGHTS | C11: DNSP to enter description for type of light
B183: 4.1.2 - DESCRIPTOR METRICS ANNUALLY
B186: SERVICE/SERVICE QUALITY | C186: DESCRIPTOR METRIC | E186: VOLUMES & EXPENDITURE
D187: UNITS | E187: =IF(dms_RPT="financial",dms_CRYf_y1,dms_CRYc_y1) -> 2008-09 | F187: =IF(dms_RPT="financial",dms_CRYf_y2,dms_CRYc_y2) -> 2009-10 | G187: =IF(dms_RPT="financial",dms_CRYf_y3,dms_CRYc_y3) -> 2010-11 | H187: =IF(dms_RPT="financial",dms_CRYf_y4,dms_CRYc_y4) -> 2011-12 | I187: =IF(dms_RPT="financial",dms_CRYf_y5,dms_CRYc_y5) -> 2012-13 | J187: =IF(dms_RPT="financial",dms_CRYf_y6,dms_CRYc_y6) -> 2013-14 | K187: =IF(dms_RPT="financial",dms_CRYf_y7,dms_CRYc_y7) -> 2014-15 | L187: =IF(dms_RPT="financial",dms_CRYf_y8,dms_CRYc_y8) -> 2015-16 | M187: =IF(dms_RPT="financial",dms_CRYf_y9,dms_CRYc_y9) -> 2016-17 | N187: =IF(dms_RPT="financial",dms_CRYf_y10,dms_CRYc_y10) -> 2017-18
B188: LIGHT INSTALLATION | C188: Major road light installation | D188: 0's
C189: Minor road light installation | D189: 0's
C190: Number of poles installed | D190: 0's
C191: Total cost | D191: $0s | E191: 4261267.431 | F191: 4591204.912 | G191: 3459281.044 | H191: 3422779.972 | I191: 3473261.468 | J191: 2354926.509 | K191: 3430996.102 | L191: 4170261.69 | M191: 2933628.254 | N191: 2611481.513
B192: LIGHT REPLACEMENT | C192: Major road light replacement | D192: 0's
C193: Minor road light replacement | D193: 0's
C194: Number of poles replaced | D194: 0's
C195: Total cost | D195: $0s | E195: 1001228.839 | F195: 1099280.879 | G195: 865071.3129 | H195: 1039464.533 | I195: 1192278.883 | J195: 1258363.055 | K195: 1561239.951 | L195: 1662042.584 | M195: 1573273.555 | N195: 1426772.712
B196: LIGHT MAINTENANCE | C196: Major road light maintenance | D196: 0's
C197: Minor road light maintenance | D197: 0's
C198: Number of poles installed | D198: 0's
C199: Total cost | D199: $0s | E199: 7990045.324 | F199: 7054947.924 | G199: 8349809.375 | H199: 7917227.789 | I199: 8734431.577 | J199: 7719876.922 | K199: 8757478.694 | L199: 10564271.15 | M199: 10762858.16 | N199: 10824399.39
B200: QUALITY OF SUPPLY | C200: Mean days to rectify/replace public lighting assets | D200: days
C201: GSO breaches | D201: 0's
C202: GSL payments | D202: $0s
C203: Customer complaints | D203: 0's
B206: 4.1.3 - COST METRICS
E207: AVERAGE UNIT COST ($)
B208: ACTIVITY TYPE | C208: LIGHT TYPE | E208: =IF(dms_RPT="financial",dms_CRYf_y1,dms_CRYc_y1) -> 2008-09 | F208: =IF(dms_RPT="financial",dms_CRYf_y2,dms_CRYc_y2) -> 2009-10 | G208: =IF(dms_RPT="financial",dms_CRYf_y3,dms_CRYc_y3) -> 2010-11 | H208: =IF(dms_RPT="financial",dms_CRYf_y4,dms_CRYc_y4) -> 2011-12 | I208: =IF(dms_RPT="financial",dms_CRYf_y5,dms_CRYc_y5) -> 2012-13 | J208: =IF(dms_RPT="financial",dms_CRYf_y6,dms_CRYc_y6) -> 2013-14 | K208: =IF(dms_RPT="financial",dms_CRYf_y7,dms_CRYc_y7) -> 2014-15 | L208: =IF(dms_RPT="financial",dms_CRYf_y8,dms_CRYc_y8) -> 2015-16 | M208: =IF(dms_RPT="financial",dms_CRYf_y9,dms_CRYc_y9) -> 2016-17 | N208: =IF(dms_RPT="financial",dms_CRYf_y10,dms_CRYc_y10) -> 2017-18
B209: LIGHT INSTALLATION | C209: Wood Pole Major | E209: 1067.643881 | F209: 1098.492496 | G209: 1135.075617 | H209: 1153.010443 | I209: 1181.83459 | J209: 1216.46459 | K209: 1367.55948 | L209: 1449.23384 | M209: 1469.749623 | N209: 1425.265676
C210: Steel Overhead Major | E210: 4982.064616 | F210: 5126.051572 | G210: 5296.749023 | H210: 5380.438933 | I210: 5514.94567 | J210: 5676.537473 | K210: 5659.851217 | L210: 5916.441413 | M210: 5947.503771 | N210: 5925.261797
C211: Steel Underground Major | E211: 7426.534156 | F211: 7641.163458 | G211: 7895.613247 | H211: 8020.363296 | I211: 8220.874831 | J211: 8461.741954 | K211: 9281.277002 | L211: 9683.557561 | M211: 9783.799397 | N211: 9813.158802
C212: Wood Pole Minor | E212: 619.1394516 | F212: 637.029686 | G212: 658.2464694 | H212: 668.6452796 | I212: 685.3582902 | J212: 705.4424416 | K212: 760.7184499 | L212: 797.3015712 | M212: 804.2697695 | N212: 789.1452273
C213: Steel Underground Decorative Minor | E213: 3014.290449 | F213: 3101.40501 | G213: 3204.679643 | H213: 3255.318103 | I213: 3336.698157 | J213: 3434.461242 | K213: 3916.757346 | L213: 4097.987382 | M213: 4134.338074 | N213: 4042.701142
B279: LIGHT REPLACEMENT | C279: High Pressure Sodium - Major | E279: 229.9599666 | F279: 236.6041463 | G279: 244.4879784 | H279: 248.3496292 | I279: 254.5568092 | J279: 261.0226218 | K279: 273.5885939 | L279: 295.1977853 | M279: 297.1527688 | N279: 300.7114846
C280: Mercury Vapour/Compact Flourescent Minor | E280: 135.2469611 | F280: 139.1532037 | G280: 143.790752 | H280: 146.0649344 | I280: 149.7125445 | J280: 192.3512336 | K280: 195.659946 | L280: 199.7713109 | M280: 199.2880845 | N280: 199.2880845
C281: High Pressure Sodium Vapour Minor | E281: 162.6441695 | F281: 167.3441463 | G281: 172.9181226 | H281: 175.6560598 | I281: 180.0438939 | J281: 184.3247078 | K281: 193.0647026 | L281: 204.2304919 | M281: 204.6261582 | N281: 211.7435897
B349: LIGHT MAINTENANCE | C349: Major Road Luminaires | E349: 22.14429308 | F349: 19.62931497 | G349: 22.25131342 | H349: 22.10861963 | I349: 20.60141644 | J349: 22.74413175 | K349: 26.32571845 | N349: 26.53022624
C350: Minor Road Luminaires | E350: 17.6226835 | F350: 14.96501159 | G350: 18.05076488 | H350: 17.69403039 | I350: 17.81888746 | J350: 15.87468453 | K350: 16.93034852 | N350: 22.04624434
C351: Public Lighting Maintenance (average cost per unit) | L351: 19.70682669 | M351: 24.16368024

Sheet 4.2 Metering
B1: REGULATORY REPORTING STATEMENT
B2: =INDEX(dms_TradingNameFull_List,MATCH(dms_TradingName,dms_TradingName_List)) -> Energex
B3: =IF(SUM(dms_SingleYear_Model)>0,("CATEGORY ANALYSIS "&CRY&" to "&FRY),("CATEGORY ANALYSIS "&CRY)) -> CATEGORY ANALYSIS 2008-09 to 2017-18
B4: 4.2 METERING
B6: There are TWO tables on this worksheet. Each table has been 'grouped' (and 'sub-grouped') for easy navigation. See the Instructions sheet on how to group or ungroup data.
B8: 4.2.1 - METERING DESCRIPTOR METRIC
D9: VOLUMES (0's)
B10: ASSET CATEGORY | C10: ASSET SUBCATEGORY | D10: =IF(dms_RPT="financial",dms_CRYf_y1,dms_CRYc_y1) -> 2008-09 | E10: =IF(dms_RPT="financial",dms_CRYf_y2,dms_CRYc_y2) -> 2009-10 | F10: =IF(dms_RPT="financial",dms_CRYf_y3,dms_CRYc_y3) -> 2010-11 | G10: =IF(dms_RPT="financial",dms_CRYf_y4,dms_CRYc_y4) -> 2011-12 | H10: =IF(dms_RPT="financial",dms_CRYf_y5,dms_CRYc_y5) -> 2012-13 | I10: =IF(dms_RPT="financial",dms_CRYf_y6,dms_CRYc_y6) -> 2013-14 | J10: =IF(dms_RPT="financial",dms_CRYf_y7,dms_CRYc_y7) -> 2014-15 | K10: =IF(dms_RPT="financial",dms_CRYf_y8,dms_CRYc_y8) -> 2015-16 | L10: =IF(dms_RPT="financial",dms_CRYf_y9,dms_CRYc_y9) -> 2016-17 | M10: =IF(dms_RPT="financial",dms_CRYf_y10,dms_CRYc_y10) -> 2017-18
B11: Meter Type 4 | C11: Single phase meter population
C12: Multi phase meter population
C13: Current transformer connected meter population
C14: Direct connect meter population
B15: Meter Type 5 | C15: Single phase meter population
C16: Multi phase meter population
C17: Current transformer connected meter population
C18: Direct connect meter population
B19: Meter Type 6 | C19: Single phase meter population
C20: Multi phase meter population
C21: Current transformer connected meter population
C22: Direct connect meter population
B25: 4.2.2 - COST METRICS
B26: EXPENDITURE
D27: EXPENDITURE ($0's)
